Workbook

Sheet Introduction
C4: Joint Monitoring Programme for Water Supply, Sanitation and Hygiene
C6: Estimates on household water, sanitation and hygiene by wealth quintile and sub-national region in
C7: =+Water!B5 -> Georgia
C9: Updated May 2021
C11: Follow the links below to find the following information:
C13: JMP Estimates
C14: WASH status and trends by wealth quintile (customized quintiles made without water and sanitation assets)
C15: Water
C16: Sanitation
C17: Hygiene
C19: Data inputs
C20: customized wealth quintiles and subnational data:
C21: =IF(INDIRECT(CONCATENATE("Water","!B105"))=0,"",INDIRECT(CONCATENATE("Water","!B105"))) -> WHS03
C22: =IF(INDIRECT(CONCATENATE("Water","!B106"))=0,"",INDIRECT(CONCATENATE("Water","!B106"))) -> MICS05
C23: =IF(INDIRECT(CONCATENATE("Water","!B107"))=0,"",INDIRECT(CONCATENATE("Water","!B107"))) -> WMS13
C24: =IF(INDIRECT(CONCATENATE("Water","!B108"))=0,"",INDIRECT(CONCATENATE("Water","!B108"))) -> MICS18
C25: =IF(INDIRECT(CONCATENATE("Water","!B109"))=0,"",INDIRECT(CONCATENATE("Water","!B109"))) -> 
C26: =IF(INDIRECT(CONCATENATE("Water","!B110"))=0,"",INDIRECT(CONCATENATE("Water","!B110"))) -> 
C27: =IF(INDIRECT(CONCATENATE("Water","!B111"))=0,"",INDIRECT(CONCATENATE("Water","!B111"))) -> 
C28: =IF(INDIRECT(CONCATENATE("Water","!B112"))=0,"",INDIRECT(CONCATENATE("Water","!B112"))) -> 
C29: =IF(INDIRECT(CONCATENATE("Water","!B113"))=0,"",INDIRECT(CONCATENATE("Water","!B113"))) -> 
C30: =IF(INDIRECT(CONCATENATE("Water","!B114"))=0,"",INDIRECT(CONCATENATE("Water","!B114"))) -> 
C31: =IF(INDIRECT(CONCATENATE("Water","!B115"))=0,"",INDIRECT(CONCATENATE("Water","!B115"))) -> 
C32: =IF(INDIRECT(CONCATENATE("Water","!B116"))=0,"",INDIRECT(CONCATENATE("Water","!B116"))) -> 
L55: =+IF(ISNUMBER(M48), "", "Insufficient data to estimate safely managed sanitation services at national level") -> Insufficient data to estimate safely managed sanitation services at national level

Sheet Water
A1: BGD
B4: Summary of trends in use of drinking water by wealth quintile (%)
B5: =IF(ISERROR(INDIRECT(CONCATENATE($B105,"!A2"))),"",INDIRECT(CONCATENATE($B105,"!A2"))) -> Georgia
B7: =B118 -> National use of drinking water sources, 2000–2020 | J7: =B218 -> Urban use of drinking water sources, 2000–2020 | R7: =B318 -> Rural use of drinking water sources, 2000–2020
B31: =IF(ISERROR(INDIRECT(CONCATENATE($B105,"!A2"))),"",INDIRECT(CONCATENATE($B105,"!A2"))) -> Georgia | F31: Poorest | J31: Poor | N31: Middle | R31: Rich | V31: Richest
F32: Basic | G32: Limited | H32: Unimproved | I32: Surface water | J32: Basic | K32: Limited | L32: Unimproved | M32: Surface water | N32: Basic | O32: Limited | P32: Unimproved | Q32: Surface water | R32: Basic | S32: Limited | T32: Unimproved | U32: Surface water | V32: Basic | W32: Limited | X32: Unimproved | Y32: Surface water
B33: NATIONAL | D33: Estimate | E33: =C99 -> 2000 | F33: =E99 -> 92.51810265 | G33: =F99 -> 3.703010114 | H33: 3.778887237 | I33: 0 | J33: =J99 -> 91.07814599 | K33: =K99 -> 4.115827193 | L33: 4.674435225 | M33: 0.1315915885 | N33: =O99 -> 95.26790039 | O33: =P99 -> 1.170645194 | P33: 3.332671189 | Q33: 0.2287832274 | R33: =T99 -> 97.0616226 | S33: =U99 -> 0.3909322835 | T33: 1.517530293 | U33: 1.02991482 | V33: =Y99 -> 99.55655046 | W33: =Z99 -> 0.07123882951 | X33: 0.3139820533 | Y33: 0.05822865838
E34: =C100 -> 2020 | F34: =E100 -> 89.70899346 | G34: 3.590576337 | H34: 5.943657161 | I34: 0.7567730388 | J34: =J100 -> 93.13045291 | K34: 4.208571073 | L34: 2.660976013 | M34: 0 | N34: =O100 -> 97.3939219 | O34: 1.196769595 | P34: 1.409308508 | Q34: 0 | R34: =T100 -> 99.5988486 | S34: 0.4011513951 | T34: 0 | U34: 0 | V34: =Y100 -> 99.79851818 | W34: 0.07141197229 | X34: 0.1300698454 | Y34: 0
B36: URBAN | D36: Estimate | E36: =C199 -> 2000 | F36: =E199 -> 97.51473911 | G36: =F199 -> 0.8136728194 | H36: 1.67158807 | I36: 0 | J36: =J199 -> 98.89508105 | K36: =K199 -> 0.2778978708 | L36: 0.827021084 | M36: 0 | N36: =O199 -> 98.8897988 | O36: =P199 -> 0.1598219817 | P36: 0.9503792176 | Q36: 0 | R36: =T199 -> 99.54791243 | S36: =U199 -> 0.134145146 | T36: 0.3179424196 | U36: 0 | V36: =Y199 -> 99.64212299 | W36: =Z199 -> 0.01019831051 | X36: 0.3476786947 | Y36: 0
E37: =C200 -> 2020 | F37: =E200 -> 97.69787578 | G37: 0.8152009303 | H37: 1.486923293 | I37: 0 | J37: =J200 -> 99.20310241 | K37: 0.2787634192 | L37: 0.5181341714 | M37: 0 | N37: =O200 -> 99.75170768 | O37: 0.1612149664 | P37: 0.08707735582 | Q37: 0 | R37: =T200 -> 99.79222745 | S37: 0.1344743711 | T37: 0.07329817816 | U37: 0 | V37: =Y200 -> 99.84136118 | W37: 0.01021870242 | X37: 0.1484201223 | Y37: 0
B39: RURAL | D39: Estimate | E39: =C299 -> 2000 | F39: =E299 -> 90.01767716 | G39: =F299 -> 3.203760336 | H39: 4.11204341 | I39: 2.66651909 | J39: =J299 -> 90.92977203 | K39: =K299 -> 3.669753493 | L39: 5.400474479 | M39: 0 | N39: =O299 -> 90.46504838 | O39: =P299 -> 5.091787372 | P39: 4.206687154 | Q39: 0.2364770951 | R39: =T299 -> 91.29501011 | S39: =U299 -> 4.547844042 | T39: 4.047161544 | U39: 0.1099843017 | V39: =Y299 -> 93.87760355 | W39: =Z299 -> 2.076909638 | X39: 3.922095023 | Y39: 0.1233917902
E40: =C300 -> 2020 | F40: =E300 -> 89.41770813 | G40: 3.18240723 | H40: 7.399884636 | I40: 0 | J40: =J300 -> 90.47459728 | K40: 3.651383501 | L40: 4.787052007 | M40: 1.086967216 | N40: =O300 -> 91.50908087 | O40: 5.150550304 | P40: 3.340368823 | Q40: 0 | R40: =T300 -> 91.81954292 | S40: 4.573973546 | T40: 3.606483538 | U40: 0 | V40: =Y300 -> 95.5643136 | W40: 2.114225721 | X40: 2.321460677 | Y40: 0
A97: NATIONAL | D97: Poorest | I97: Poor | N97: Middle | S97: Rich | X97: Richest
D98: Improved | E98: Basic | F98: Limited | G98: Unimproved | H98: Surface water | I98: Improved | J98: Basic | K98: Limited | L98: Unimproved | M98: Surface water | N98: Improved | O98: Basic | P98: Limited | Q98: Unimproved | R98: Surface water | S98: Improved | T98: Basic | U98: Limited | V98: Unimproved | W98: Surface water | X98: Improved | Y98: Basic | Z98: Limited | AA98: Unimproved | AB98: Surface water
A99: Forecast period: | C99: 2000 | D99: =IF((D101+H101)>100,D101*100/(D101+H101),D101) -> 96.22111276 | E99: =D99*AVERAGEIF(E105:E116,">0")/100 -> 92.51810265 | F99: =D99*(100-AVERAGEIF(E105:E116,">0"))/100 -> 3.703010114 | G99: =100-(E99+F99+H99) -> 3.778887237 | H99: =IF((D101+H101)>100,H101*100/(D101+H101),H101) -> 0 | I99: =IF((I101+M101)>100,I101*100/(I101+M101),I101) -> 95.19397319 | J99: =I99*AVERAGEIF(J105:J116,">0")/100 -> 91.07814599 | K99: =I99*(100-AVERAGEIF(J105:J116,">0"))/100 -> 4.115827193 | L99: =100-(J99+K99+M99) -> 4.674435225 | M99: =IF((I101+M101)>100,M101*100/(I101+M101),M101) -> 0.1315915885 | N99: =IF((N101+R101)>100,N101*100/(N101+R101),N101) -> 96.43854558 | O99: =N99*AVERAGEIF(O105:O116,">0")/100 -> 95.26790039 | P99: =N99*(100-AVERAGEIF(O105:O116,">0"))/100 -> 1.170645194 | Q99: =100-(O99+P99+R99) -> 3.332671189 | R99: =IF((N101+R101)>100,R101*100/(N101+R101),R101) -> 0.2287832274 | S99: =IF((S101+W101)>100,S101*100/(S101+W101),S101) -> 97.45255489 | T99: =S99*AVERAGEIF(T105:T116,">0")/100 -> 97.0616226 | U99: =S99*(100-AVERAGEIF(T105:T116,">0"))/100 -> 0.3909322835 | V99: =100-(T99+U99+W99) -> 1.517530293 | W99: =IF((S101+W101)>100,W101*100/(S101+W101),W101) -> 1.02991482 | X99: =IF((X101+AB101)>100,X101*100/(X101+AB101),X101) -> 99.62778929 | Y99: =X99*AVERAGEIF(Y105:Y116,">0")/100 -> 99.55655046 | Z99: =X99*(100-AVERAGEIF(Y105:Y116,">0"))/100 -> 0.07123882951 | AA99: =100-(Y99+Z99+AB99) -> 0.3139820533 | AB99: =IF((X101+AB101)>100,AB101*100/(X101+AB101),AB101) -> 0.05822865838
C100: 2020 | D100: =IF((D102+H102)>100,D102*100/(D102+H102),D102) -> 93.2995698 | E100: =D100*AVERAGEIF(E105:E116,">0")/100 -> 89.70899346 | F100: =D100*(100-AVERAGEIF(E105:E116,">0"))/100 -> 3.590576337 | G100: =100-(E100+F100+H100) -> 5.943657161 | H100: =IF((D102+H102)>100,H102*100/(D102+H102),H102) -> 0.7567730388 | I100: =IF((I102+M102)>100,I102*100/(I102+M102),I102) -> 97.33902399 | J100: =I100*AVERAGEIF(J105:J116,">0")/100 -> 93.13045291 | K100: =I100*(100-AVERAGEIF(J105:J116,">0"))/100 -> 4.208571073 | L100: =100-(J100+K100+M100) -> 2.660976013 | M100: =IF((I102+M102)>100,M102*100/(I102+M102),M102) -> 0 | N100: =IF((N102+R102)>100,N102*100/(N102+R102),N102) -> 98.59069149 | O100: =N100*AVERAGEIF(O105:O116,">0")/100 -> 97.3939219 | P100: =N100*(100-AVERAGEIF(O105:O116,">0"))/100 -> 1.196769595 | Q100: =100-(O100+P100+R100) -> 1.409308508 | R100: =IF((N102+R102)>100,R102*100/(N102+R102),R102) -> 0 | S100: =IF((S102+W102)>100,S102*100/(S102+W102),S102) -> 100 | T100: =S100*AVERAGEIF(T105:T116,">0")/100 -> 99.5988486 | U100: =S100*(100-AVERAGEIF(T105:T116,">0"))/100 -> 0.4011513951 | V100: =100-(T100+U100+W100) -> 0 | W100: =IF((S102+W102)>100,W102*100/(S102+W102),W102) -> 0 | X100: =IF((X102+AB102)>100,X102*100/(X102+AB102),X102) -> 99.86993015 | Y100: =X100*AVERAGEIF(Y105:Y116,">0")/100 -> 99.79851818 | Z100: =X100*(100-AVERAGEIF(Y105:Y116,">0"))/100 -> 0.07141197229 | AA100: =100-(Y100+Z100+AB100) -> 0.1300698454 | AB100: =IF((X102+AB102)>100,AB102*100/(X102+AB102),AB102) -> 0
A101: Regression period: | C101: =MinRegYear(C99,C105:C116) -> 2001 | D101: =IF(MAX(C105:C116)-MIN(C105:C116)<5,AVERAGEIF(C105:C116,">0",D105:D116), IF(FORECAST($C101,D$105:D$116,$C$105:$C$116)<0,0, IF(FORECAST($C101,D$105:D$116,$C$105:$C$116)>100,100, FORECAST($C101,D$105:D$116,$C$105:$C$116)))) -> 96.22111276 | H101: =IF(MAX(C105:C116)-MIN(C105:C116)<5,AVERAGEIF(C105:C116,">0",H105:H116), IF(FORECAST($C101,H$105:H$116,$C$105:$C$116)<0,0, IF(FORECAST($C101,H$105:H$116,$C$105:$C$116)>100,100, FORECAST($C101,H$105:H$116,$C$105:$C$116)))) -> 0 | I101: =IF(MAX(C105:C116)-MIN(C105:C116)<5,AVERAGEIF(C105:C116,">0",I105:I116), IF(FORECAST($C101,I$105:I$116,$C$105:$C$116)<0,0, IF(FORECAST($C101,I$105:I$116,$C$105:$C$116)>100,100, FORECAST($C101,I$105:I$116,$C$105:$C$116)))) -> 95.19397319 | M101: =IF(MAX(C105:C116)-MIN(C105:C116)<5,AVERAGEIF(C105:C116,">0",M105:M116), IF(FORECAST($C101,M$105:M$116,$C$105:$C$116)<0,0, IF(FORECAST($C101,M$105:M$116,$C$105:$C$116)>100,100, FORECAST($C101,M$105:M$116,$C$105:$C$116)))) -> 0.1315915885 | N101: =IF(MAX(C105:C116)-MIN(C105:C116)<5,AVERAGEIF(C105:C116,">0",N105:N116), IF(FORECAST($C101,N$105:N$116,$C$105:$C$116)<0,0, IF(FORECAST($C101,N$105:N$116,$C$105:$C$116)>100,100, FORECAST($C101,N$105:N$116,$C$105:$C$116)))) -> 96.43854558 | R101: =IF(MAX(C105:C116)-MIN(C105:C116)<5,AVERAGEIF(C105:C116,">0",R105:R116), IF(FORECAST($C101,R$105:R$116,$C$105:$C$116)<0,0, IF(FORECAST($C101,R$105:R$116,$C$105:$C$116)>100,100, FORECAST($C101,R$105:R$116,$C$105:$C$116)))) -> 0.2287832274 | S101: =IF(MAX(C105:C116)-MIN(C105:C116)<5,AVERAGEIF(C105:C116,">0",S105:S116), IF(FORECAST($C101,S$105:S$116,$C$105:$C$116)<0,0, IF(FORECAST($C101,S$105:S$116,$C$105:$C$116)>100,100, FORECAST($C101,S$105:S$116,$C$105:$C$116)))) -> 97.45255489 | W101: =IF(MAX(C105:C116)-MIN(C105:C116)<5,AVERAGEIF(C105:C116,">0",W105:W116), IF(FORECAST($C101,W$105:W$116,$C$105:$C$116)<0,0, IF(FORECAST($C101,W$105:W$116,$C$105:$C$116)>100,100, FORECAST($C101,W$105:W$116,$C$105:$C$116)))) -> 1.02991482 | X101: =IF(MAX(C105:C116)-MIN(C105:C116)<5,AVERAGEIF(C105:C116,">0",X105:X116), IF(FORECAST($C101,X$105:X$116,$C$105:$C$116)<0,0, IF(FORECAST($C101,X$105:X$116,$C$105:$C$116)>100,100, FORECAST($C101,X$105:X$116,$C$105:$C$116)))) -> 99.62778929 | AB101: =IF(MAX(C105:C116)-MIN(C105:C116)<5,AVERAGEIF(C105:C116,">0",AB105:AB116), IF(FORECAST($C101,AB$105:AB$116,$C$105:$C$116)<0,0, IF(FORECAST($C101,AB$105:AB$116,$C$105:$C$116)>100,100, FORECAST($C101,AB$105:AB$116,$C$105:$C$116)))) -> 0.05822865838
C102: =MaxRegYear(C100,C105:C116) -> 2020 | D102: =IF(MAX(C105:C116)-MIN(C105:C116)<5,AVERAGEIF(C105:C116,">0",D105:D116), IF(FORECAST($C102,D$105:D$116,$C$105:$C$116)<0,0, IF(FORECAST($C102,D$105:D$116,$C$105:$C$116)>100,100, FORECAST($C102,D$105:D$116,$C$105:$C$116)))) -> 93.2995698 | H102: =IF(MAX(C105:C116)-MIN(C105:C116)<5,AVERAGEIF(C105:C116,">0",H105:H116), IF(FORECAST($C102,H$105:H$116,$C$105:$C$116)<0,0, IF(FORECAST($C102,H$105:H$116,$C$105:$C$116)>100,100, FORECAST($C102,H$105:H$116,$C$105:$C$116)))) -> 0.7567730388 | I102: =IF(MAX(C105:C116)-MIN(C105:C116)<5,AVERAGEIF(C105:C116,">0",I105:I116), IF(FORECAST($C102,I$105:I$116,$C$105:$C$116)<0,0, IF(FORECAST($C102,I$105:I$116,$C$105:$C$116)>100,100, FORECAST($C102,I$105:I$116,$C$105:$C$116)))) -> 97.33902399 | M102: =IF(MAX(C105:C116)-MIN(C105:C116)<5,AVERAGEIF(C105:C116,">0",M105:M116), IF(FORECAST($C102,M$105:M$116,$C$105:$C$116)<0,0, IF(FORECAST($C102,M$105:M$116,$C$105:$C$116)>100,100, FORECAST($C102,M$105:M$116,$C$105:$C$116)))) -> 0 | N102: =IF(MAX(C105:C116)-MIN(C105:C116)<5,AVERAGEIF(C105:C116,">0",N105:N116), IF(FORECAST($C102,N$105:N$116,$C$105:$C$116)<0,0, IF(FORECAST($C102,N$105:N$116,$C$105:$C$116)>100,100, FORECAST($C102,N$105:N$116,$C$105:$C$116)))) -> 98.59069149 | R102: =IF(MAX(C105:C116)-MIN(C105:C116)<5,AVERAGEIF(C105:C116,">0",R105:R116), IF(FORECAST($C102,R$105:R$116,$C$105:$C$116)<0,0, IF(FORECAST($C102,R$105:R$116,$C$105:$C$116)>100,100, FORECAST($C102,R$105:R$116,$C$105:$C$116)))) -> 0 | S102: =IF(MAX(C105:C116)-MIN(C105:C116)<5,AVERAGEIF(C105:C116,">0",S105:S116), IF(FORECAST($C102,S$105:S$116,$C$105:$C$116)<0,0, IF(FORECAST($C102,S$105:S$116,$C$105:$C$116)>100,100, FORECAST($C102,S$105:S$116,$C$105:$C$116)))) -> 100 | W102: =IF(MAX(C105:C116)-MIN(C105:C116)<5,AVERAGEIF(C105:C116,">0",W105:W116), IF(FORECAST($C102,W$105:W$116,$C$105:$C$116)<0,0, IF(FORECAST($C102,W$105:W$116,$C$105:$C$116)>100,100, FORECAST($C102,W$105:W$116,$C$105:$C$116)))) -> 0 | X102: =IF(MAX(C105:C116)-MIN(C105:C116)<5,AVERAGEIF(C105:C116,">0",X105:X116), IF(FORECAST($C102,X$105:X$116,$C$105:$C$116)<0,0, IF(FORECAST($C102,X$105:X$116,$C$105:$C$116)>100,100, FORECAST($C102,X$105:X$116,$C$105:$C$116)))) -> 99.86993015 | AB102: =IF(MAX(C105:C116)-MIN(C105:C116)<5,AVERAGEIF(C105:C116,">0",AB105:AB116), IF(FORECAST($C102,AB$105:AB$116,$C$105:$C$116)<0,0, IF(FORECAST($C102,AB$105:AB$116,$C$105:$C$116)>100,100, FORECAST($C102,AB$105:AB$116,$C$105:$C$116)))) -> 0
B104: Survey | C104: Year | D104: Improved | E104: % Improved < = 30min | H104: Surface water | I104: Improved | J104: % Improved < = 30min | M104: Surface water | N104: Improved | O104: % Improved < = 30min | R104: Surface water | S104: Improved | T104: % Improved < = 30min | W104: Surface water | X104: Improved | Y104: % Improved < = 30min | AB104: Surface water
B105: WHS03 | C105: 2003 | D105: =IF(ISERROR(INDIRECT(CONCATENATE($B105,"!C16"))),"",INDIRECT(CONCATENATE($B105,"!C16"))) -> 99.19185898 | E105: =IF(ISERROR(INDIRECT(CONCATENATE($B105,"!C23"))),"",INDIRECT(CONCATENATE($B105,"!C23"))) -> 92.52423617 | H105: =IF(ISERROR(INDIRECT(CONCATENATE($B105,"!C21"))),"",INDIRECT(CONCATENATE($B105,"!C21"))) -> 0 | I105: =IF(ISERROR(INDIRECT(CONCATENATE($B105,"!D16"))),"",INDIRECT(CONCATENATE($B105,"!D16"))) -> 97.81734115 | J105: =IF(ISERROR(INDIRECT(CONCATENATE($B105,"!D23"))),"",INDIRECT(CONCATENATE($B105,"!D23"))) -> 89.03983274 | M105: =IF(ISERROR(INDIRECT(CONCATENATE($B105,"!D21"))),"",INDIRECT(CONCATENATE($B105,"!D21"))) -> 0 | N105: =IF(ISERROR(INDIRECT(CONCATENATE($B105,"!E16"))),"",INDIRECT(CONCATENATE($B105,"!E16"))) -> 98.45479892 | O105: =IF(ISERROR(INDIRECT(CONCATENATE($B105,"!E23"))),"",INDIRECT(CONCATENATE($B105,"!E23"))) -> 97.07252468 | R105: =IF(ISERROR(INDIRECT(CONCATENATE($B105,"!E21"))),"",INDIRECT(CONCATENATE($B105,"!E21"))) -> 0.154014653 | S105: =IF(ISERROR(INDIRECT(CONCATENATE($B105,"!F16"))),"",INDIRECT(CONCATENATE($B105,"!F16"))) -> 97.73444653 | T105: =IF(ISERROR(INDIRECT(CONCATENATE($B105,"!F23"))),"",INDIRECT(CONCATENATE($B105,"!F23"))) -> 98.95446998 | W105: =IF(ISERROR(INDIRECT(CONCATENATE($B105,"!F21"))),"",INDIRECT(CONCATENATE($B105,"!F21"))) -> 1.351763201 | X105: =IF(ISERROR(INDIRECT(CONCATENATE($B105,"!G16"))),"",INDIRECT(CONCATENATE($B105,"!G16"))) -> 99.41539597 | Y105: =IF(ISERROR(INDIRECT(CONCATENATE($B105,"!G23"))),"",INDIRECT(CONCATENATE($B105,"!G23"))) -> 99.9359379 | AB105: =IF(ISERROR(INDIRECT(CONCATENATE($B105,"!G221"))),"",INDIRECT(CONCATENATE($B105,"!G21"))) -> 0.07642511412
B106: MICS05 | C106: 2005 | D106: 91.09248264 | E106: 97.60266822 | H106: 0.1717632749 | I106: 92.31680256 | J106: 97.82392597 | M106: 0.2402976834 | N106: 94.55781648 | O106: 99.21776785 | R106: 0.2034968111 | S106: 97.8141444 | T106: 99.80488091 | W106: 0 | X106: 99.9086307 | Y106: 99.98850314 | AB106: 0
B107: WMS13 | C107: 2013 | D107: 96.27637455 | E107: 97.0195094 | H107: 0.4514367674 | I107: 98.0107994 | J107: 98.19755402 | M107: 0 | N107: 98.49657302 | O107: 99.37655908 | R107: 0 | S107: 99.87112886 | T107: 100 | W107: 0 | X107: 99.89671847 | Y107: 100 | AB107: 0
B108: MICS18 | C108: 2018 | D108: 92.94194522 | E108: 97.45983319 | H108: N/A | I108: 96.58235901 | J108: 97.64420085 | M108: N/A | N108: 98.20947322 | O108: 99.47764092 | R108: N/A | S108: 99.571956 | T108: 99.63604353 | W108: N/A | X108: 99.73646099 | Y108: 99.78953905 | AB108: N/A
D111: =IF(ISERROR(INDIRECT(CONCATENATE($B111,"!C16"))),"",INDIRECT(CONCATENATE($B111,"!C16"))) ->  | E111: =IF(ISERROR(INDIRECT(CONCATENATE($B111,"!C23"))),"",INDIRECT(CONCATENATE($B111,"!C23"))) ->  | H111: =IF(ISERROR(INDIRECT(CONCATENATE($B111,"!C21"))),"",INDIRECT(CONCATENATE($B111,"!C21"))) ->  | I111: =IF(ISERROR(INDIRECT(CONCATENATE($B111,"!D16"))),"",INDIRECT(CONCATENATE($B111,"!D16"))) ->  | J111: =IF(ISERROR(INDIRECT(CONCATENATE($B111,"!D23"))),"",INDIRECT(CONCATENATE($B111,"!D23"))) ->  | M111: =IF(ISERROR(INDIRECT(CONCATENATE($B111,"!D21"))),"",INDIRECT(CONCATENATE($B111,"!D21"))) ->  | N111: =IF(ISERROR(INDIRECT(CONCATENATE($B111,"!E16"))),"",INDIRECT(CONCATENATE($B111,"!E16"))) ->  | O111: =IF(ISERROR(INDIRECT(CONCATENATE($B111,"!E23"))),"",INDIRECT(CONCATENATE($B111,"!E23"))) ->  | R111: =IF(ISERROR(INDIRECT(CONCATENATE($B111,"!E21"))),"",INDIRECT(CONCATENATE($B111,"!E21"))) ->  | S111: =IF(ISERROR(INDIRECT(CONCATENATE($B111,"!F16"))),"",INDIRECT(CONCATENATE($B111,"!F16"))) ->  | T111: =IF(ISERROR(INDIRECT(CONCATENATE($B111,"!F23"))),"",INDIRECT(CONCATENATE($B111,"!F23"))) ->  | W111: =IF(ISERROR(INDIRECT(CONCATENATE($B111,"!F21"))),"",INDIRECT(CONCATENATE($B111,"!F21"))) ->  | X111: =IF(ISERROR(INDIRECT(CONCATENATE($B111,"!G16"))),"",INDIRECT(CONCATENATE($B111,"!G16"))) ->  | Y111: =IF(ISERROR(INDIRECT(CONCATENATE($B111,"!G23"))),"",INDIRECT(CONCATENATE($B111,"!G23"))) ->  | AB111: =IF(ISERROR(INDIRECT(CONCATENATE($B111,"!G221"))),"",INDIRECT(CONCATENATE($B111,"!G21"))) -> 
D112: =IF(ISERROR(INDIRECT(CONCATENATE($B112,"!C16"))),"",INDIRECT(CONCATENATE($B112,"!C16"))) ->  | E112: =IF(ISERROR(INDIRECT(CONCATENATE($B112,"!C23"))),"",INDIRECT(CONCATENATE($B112,"!C23"))) ->  | H112: =IF(ISERROR(INDIRECT(CONCATENATE($B112,"!C21"))),"",INDIRECT(CONCATENATE($B112,"!C21"))) ->  | I112: =IF(ISERROR(INDIRECT(CONCATENATE($B112,"!D16"))),"",INDIRECT(CONCATENATE($B112,"!D16"))) ->  | J112: =IF(ISERROR(INDIRECT(CONCATENATE($B112,"!D23"))),"",INDIRECT(CONCATENATE($B112,"!D23"))) ->  | M112: =IF(ISERROR(INDIRECT(CONCATENATE($B112,"!D21"))),"",INDIRECT(CONCATENATE($B112,"!D21"))) ->  | N112: =IF(ISERROR(INDIRECT(CONCATENATE($B112,"!E16"))),"",INDIRECT(CONCATENATE($B112,"!E16"))) ->  | O112: =IF(ISERROR(INDIRECT(CONCATENATE($B112,"!E23"))),"",INDIRECT(CONCATENATE($B112,"!E23"))) ->  | R112: =IF(ISERROR(INDIRECT(CONCATENATE($B112,"!E21"))),"",INDIRECT(CONCATENATE($B112,"!E21"))) ->  | S112: =IF(ISERROR(INDIRECT(CONCATENATE($B112,"!F16"))),"",INDIRECT(CONCATENATE($B112,"!F16"))) ->  | T112: =IF(ISERROR(INDIRECT(CONCATENATE($B112,"!F23"))),"",INDIRECT(CONCATENATE($B112,"!F23"))) ->  | W112: =IF(ISERROR(INDIRECT(CONCATENATE($B112,"!F21"))),"",INDIRECT(CONCATENATE($B112,"!F21"))) ->  | X112: =IF(ISERROR(INDIRECT(CONCATENATE($B112,"!G16"))),"",INDIRECT(CONCATENATE($B112,"!G16"))) ->  | Y112: =IF(ISERROR(INDIRECT(CONCATENATE($B112,"!G23"))),"",INDIRECT(CONCATENATE($B112,"!G23"))) ->  | AB112: =IF(ISERROR(INDIRECT(CONCATENATE($B112,"!G221"))),"",INDIRECT(CONCATENATE($B112,"!G21"))) -> 
B118: =CONCATENATE("National use of drinking water sources, ",C99,"–",C100) -> National use of drinking water sources, 2000–2020 | S118: Data points used for regression
E153: =IF(ISERROR(INDIRECT(CONCATENATE($B153,"!M18"))),"",INDIRECT(CONCATENATE($B153,"!M18"))) ->  | F153: =IF(ISERROR(INDIRECT(CONCATENATE($B153,"!M19"))),"",INDIRECT(CONCATENATE($B153,"!M19"))) ->  | G153: =IF(ISERROR(INDIRECT(CONCATENATE($B153,"!M20"))),"",INDIRECT(CONCATENATE($B153,"!M20"))) ->  | H153: =IF(ISERROR(INDIRECT(CONCATENATE($B153,"!M21"))),"",INDIRECT(CONCATENATE($B153,"!M21"))) ->  | J153: =IF(ISERROR(INDIRECT(CONCATENATE($B153,"!N18"))),"",INDIRECT(CONCATENATE($B153,"!N18"))) ->  | K153: =IF(ISERROR(INDIRECT(CONCATENATE($B153,"!N19"))),"",INDIRECT(CONCATENATE($B153,"!N19"))) ->  | L153: =IF(ISERROR(INDIRECT(CONCATENATE($B153,"!N20"))),"",INDIRECT(CONCATENATE($B153,"!N20"))) ->  | M153: =IF(ISERROR(INDIRECT(CONCATENATE($B153,"!N21"))),"",INDIRECT(CONCATENATE($B153,"!N21"))) ->  | O153: =IF(ISERROR(INDIRECT(CONCATENATE($B153,"!O18"))),"",INDIRECT(CONCATENATE($B153,"!O18"))) ->  | P153: =IF(ISERROR(INDIRECT(CONCATENATE($B153,"!O19"))),"",INDIRECT(CONCATENATE($B153,"!O19"))) ->  | Q153: =IF(ISERROR(INDIRECT(CONCATENATE($B153,"!O20"))),"",INDIRECT(CONCATENATE($B153,"!O20"))) ->  | R153: =IF(ISERROR(INDIRECT(CONCATENATE($B153,"!O21"))),"",INDIRECT(CONCATENATE($B153,"!O21"))) ->  | T153: =IF(ISERROR(INDIRECT(CONCATENATE($B153,"!P18"))),"",INDIRECT(CONCATENATE($B153,"!P18"))) ->  | U153: =IF(ISERROR(INDIRECT(CONCATENATE($B153,"!P19"))),"",INDIRECT(CONCATENATE($B153,"!P19"))) ->  | V153: =IF(ISERROR(INDIRECT(CONCATENATE($B153,"!P20"))),"",INDIRECT(CONCATENATE($B153,"!P20"))) ->  | W153: =IF(ISERROR(INDIRECT(CONCATENATE($B153,"!P21"))),"",INDIRECT(CONCATENATE($B153,"!P21"))) ->  | Y153: =IF(ISERROR(INDIRECT(CONCATENATE($B153,"!Q18"))),"",INDIRECT(CONCATENATE($B153,"!Q18"))) ->  | Z153: =IF(ISERROR(INDIRECT(CONCATENATE($B153,"!Q19"))),"",INDIRECT(CONCATENATE($B153,"!Q19"))) ->  | AA153: =IF(ISERROR(INDIRECT(CONCATENATE($B153,"!Q20"))),"",INDIRECT(CONCATENATE($B153,"!Q20"))) ->  | AB153: =IF(ISERROR(INDIRECT(CONCATENATE($B153,"!Q21"))),"",INDIRECT(CONCATENATE($B153,"!Q1"))) -> 
A197: URBAN | D197: Poorest | I197: Poor | N197: Middle | S197: Rich | X197: Richest
D198: Improved | E198: Basic | F198: Limited | G198: Unimproved | H198: Surface water | I198: Improved | J198: Basic | K198: Limited | L198: Unimproved | M198: Surface water | N198: Improved | O198: Basic | P198: Limited | Q198: Unimproved | R198: Surface water | S198: Improved | T198: Basic | U198: Limited | V198: Unimproved | W198: Surface water | X198: Improved | Y198: Basic | Z198: Limited | AA198: Unimproved | AB198: Surface water
A199: Forecast period: | C199: 2000 | D199: =IF((D201+H201)>100,D201*100/(D201+H201),D201) -> 98.32841193 | E199: =D199*AVERAGEIF(E205:E216,">0")/100 -> 97.51473911 | F199: =D199*(100-AVERAGEIF(E205:E216,">0"))/100 -> 0.8136728194 | G199: =100-(E199+F199+H199) -> 1.67158807 | H199: =IF((D201+H201)>100,H201*100/(D201+H201),H201) -> 0 | I199: =IF((I201+M201)>100,I201*100/(I201+M201),I201) -> 99.17297892 | J199: =I199*AVERAGEIF(J205:J216,">0")/100 -> 98.89508105 | K199: =I199*(100-AVERAGEIF(J205:J216,">0"))/100 -> 0.2778978708 | L199: =100-(J199+K199+M199) -> 0.827021084 | M199: =IF((I201+M201)>100,M201*100/(I201+M201),M201) -> 0 | N199: =IF((N201+R201)>100,N201*100/(N201+R201),N201) -> 99.04962078 | O199: =N199*AVERAGEIF(O205:O216,">0")/100 -> 98.8897988 | P199: =N199*(100-AVERAGEIF(O205:O216,">0"))/100 -> 0.1598219817 | Q199: =100-(O199+P199+R199) -> 0.9503792176 | R199: =IF((N201+R201)>100,R201*100/(N201+R201),R201) -> 0 | S199: =IF((S201+W201)>100,S201*100/(S201+W201),S201) -> 99.68205758 | T199: =S199*AVERAGEIF(T205:T216,">0")/100 -> 99.54791243 | U199: =S199*(100-AVERAGEIF(T205:T216,">0"))/100 -> 0.134145146 | V199: =100-(T199+U199+W199) -> 0.3179424196 | W199: =IF((S201+W201)>100,W201*100/(S201+W201),W201) -> 0 | X199: =IF((X201+AB201)>100,X201*100/(X201+AB201),X201) -> 99.65232131 | Y199: =X199*AVERAGEIF(Y205:Y216,">0")/100 -> 99.64212299 | Z199: =X199*(100-AVERAGEIF(Y205:Y216,">0"))/100 -> 0.01019831051 | AA199: =100-(Y199+Z199+AB199) -> 0.3476786947 | AB199: =IF((X201+AB201)>100,AB201*100/(X201+AB201),AB201) -> 0
C200: 2020 | D200: =IF((D202+H202)>100,D202*100/(D202+H202),D202) -> 98.51307671 | E200: =D200*AVERAGEIF(E205:E216,">0")/100 -> 97.69787578 | F200: =D200*(100-AVERAGEIF(E205:E216,">0"))/100 -> 0.8152009303 | G200: =100-(E200+F200+H200) -> 1.486923293 | H200: =IF((D202+H202)>100,H202*100/(D202+H202),H202) -> 0 | I200: =IF((I202+M202)>100,I202*100/(I202+M202),I202) -> 99.48186583 | J200: =I200*AVERAGEIF(J205:J216,">0")/100 -> 99.20310241 | K200: =I200*(100-AVERAGEIF(J205:J216,">0"))/100 -> 0.2787634192 | L200: =100-(J200+K200+M200) -> 0.5181341714 | M200: =IF((I202+M202)>100,M202*100/(I202+M202),M202) -> 0 | N200: =IF((N202+R202)>100,N202*100/(N202+R202),N202) -> 99.91292264 | O200: =N200*AVERAGEIF(O205:O216,">0")/100 -> 99.75170768 | P200: =N200*(100-AVERAGEIF(O205:O216,">0"))/100 -> 0.1612149664 | Q200: =100-(O200+P200+R200) -> 0.08707735582 | R200: =IF((N202+R202)>100,R202*100/(N202+R202),R202) -> 0 | S200: =IF((S202+W202)>100,S202*100/(S202+W202),S202) -> 99.92670182 | T200: =S200*AVERAGEIF(T205:T216,">0")/100 -> 99.79222745 | U200: =S200*(100-AVERAGEIF(T205:T216,">0"))/100 -> 0.1344743711 | V200: =100-(T200+U200+W200) -> 0.07329817816 | W200: =IF((S202+W202)>100,W202*100/(S202+W202),W202) -> 0 | X200: =IF((X202+AB202)>100,X202*100/(X202+AB202),X202) -> 99.85157988 | Y200: =X200*AVERAGEIF(Y205:Y216,">0")/100 -> 99.84136118 | Z200: =X200*(100-AVERAGEIF(Y205:Y216,">0"))/100 -> 0.01021870242 | AA200: =100-(Y200+Z200+AB200) -> 0.1484201223 | AB200: =IF((X202+AB202)>100,AB202*100/(X202+AB202),AB202) -> 0
A201: Regression period: | C201: =MinRegYear(C199,C205:C216) -> 2001 | D201: =IF(MAX(C205:C216)-MIN(C205:C216)<5,AVERAGEIF(C205:C216,">0",D205:D216), IF(FORECAST($C201,D$205:D$216,$C$205:$C$216)<0,0, IF(FORECAST($C201,D$205:D$216,$C$205:$C$216)>100,100, FORECAST($C201,D$205:D$216,$C$205:$C$216)))) -> 98.32841193 | H201: =IF(MAX(C205:C216)-MIN(C205:C216)<5,AVERAGEIF(C205:C216,">0",H205:H216), IF(FORECAST($C201,H$205:H$216,$C$205:$C$216)<0,0, IF(FORECAST($C201,H$205:H$216,$C$205:$C$216)>100,100, FORECAST($C201,H$205:H$216,$C$205:$C$216)))) -> 0 | I201: =IF(MAX(C205:C216)-MIN(C205:C216)<5,AVERAGEIF(C205:C216,">0",I205:I216), IF(FORECAST($C201,I$205:I$216,$C$205:$C$216)<0,0, IF(FORECAST($C201,I$205:I$216,$C$205:$C$216)>100,100, FORECAST($C201,I$205:I$216,$C$205:$C$216)))) -> 99.17297892 | M201: =IF(MAX(C205:C216)-MIN(C205:C216)<5,AVERAGEIF(C205:C216,">0",M205:M216), IF(FORECAST($C201,M$205:M$216,$C$205:$C$216)<0,0, IF(FORECAST($C201,M$205:M$216,$C$205:$C$216)>100,100, FORECAST($C201,M$205:M$216,$C$205:$C$216)))) -> 0 | N201: =IF(MAX(C205:C216)-MIN(C205:C216)<5,AVERAGEIF(C205:C216,">0",N205:N216), IF(FORECAST($C201,N$205:N$216,$C$205:$C$216)<0,0, IF(FORECAST($C201,N$205:N$216,$C$205:$C$216)>100,100, FORECAST($C201,N$205:N$216,$C$205:$C$216)))) -> 99.04962078 | R201: =IF(MAX(C205:C216)-MIN(C205:C216)<5,AVERAGEIF(C205:C216,">0",R205:R216), IF(FORECAST($C201,R$205:R$216,$C$205:$C$216)<0,0, IF(FORECAST($C201,R$205:R$216,$C$205:$C$216)>100,100, FORECAST($C201,R$205:R$216,$C$205:$C$216)))) -> 0 | S201: =IF(MAX(C205:C216)-MIN(C205:C216)<5,AVERAGEIF(C205:C216,">0",S205:S216), IF(FORECAST($C201,S$205:S$216,$C$205:$C$216)<0,0, IF(FORECAST($C201,S$205:S$216,$C$205:$C$216)>100,100, FORECAST($C201,S$205:S$216,$C$205:$C$216)))) -> 99.68205758 | W201: =IF(MAX(C205:C216)-MIN(C205:C216)<5,AVERAGEIF(C205:C216,">0",W205:W216), IF(FORECAST($C201,W$205:W$216,$C$205:$C$216)<0,0, IF(FORECAST($C201,W$205:W$216,$C$205:$C$216)>100,100, FORECAST($C201,W$205:W$216,$C$205:$C$216)))) -> 0 | X201: =IF(MAX(C205:C216)-MIN(C205:C216)<5,AVERAGEIF(C205:C216,">0",X205:X216), IF(FORECAST($C201,X$205:X$216,$C$205:$C$216)<0,0, IF(FORECAST($C201,X$205:X$216,$C$205:$C$216)>100,100, FORECAST($C201,X$205:X$216,$C$205:$C$216)))) -> 99.65232131 | AB201: =IF(MAX(C205:C216)-MIN(C205:C216)<5,AVERAGEIF(C205:C216,">0",AB205:AB216), IF(FORECAST($C201,AB$205:AB$216,$C$205:$C$216)<0,0, IF(FORECAST($C201,AB$205:AB$216,$C$205:$C$216)>100,100, FORECAST($C201,AB$205:AB$216,$C$205:$C$216)))) -> 0
C202: =MaxRegYear(C200,C205:C216) -> 2020 | D202: =IF(MAX(C205:C216)-MIN(C205:C216)<5,AVERAGEIF(C205:C216,">0",D205:D216), IF(FORECAST($C202,D$205:D$216,$C$205:$C$216)<0,0, IF(FORECAST($C202,D$205:D$216,$C$205:$C$216)>100,100, FORECAST($C202,D$205:D$216,$C$205:$C$216)))) -> 98.51307671 | H202: =IF(MAX(C205:C216)-MIN(C205:C216)<5,AVERAGEIF(C205:C216,">0",H205:H216), IF(FORECAST($C202,H$205:H$216,$C$205:$C$216)<0,0, IF(FORECAST($C202,H$205:H$216,$C$205:$C$216)>100,100, FORECAST($C202,H$205:H$216,$C$205:$C$216)))) -> 0 | I202: =IF(MAX(C205:C216)-MIN(C205:C216)<5,AVERAGEIF(C205:C216,">0",I205:I216), IF(FORECAST($C202,I$205:I$216,$C$205:$C$216)<0,0, IF(FORECAST($C202,I$205:I$216,$C$205:$C$216)>100,100, FORECAST($C202,I$205:I$216,$C$205:$C$216)))) -> 99.48186583 | M202: =IF(MAX(C205:C216)-MIN(C205:C216)<5,AVERAGEIF(C205:C216,">0",M205:M216), IF(FORECAST($C202,M$205:M$216,$C$205:$C$216)<0,0, IF(FORECAST($C202,M$205:M$216,$C$205:$C$216)>100,100, FORECAST($C202,M$205:M$216,$C$205:$C$216)))) -> 0 | N202: =IF(MAX(C205:C216)-MIN(C205:C216)<5,AVERAGEIF(C205:C216,">0",N205:N216), IF(FORECAST($C202,N$205:N$216,$C$205:$C$216)<0,0, IF(FORECAST($C202,N$205:N$216,$C$205:$C$216)>100,100, FORECAST($C202,N$205:N$216,$C$205:$C$216)))) -> 99.91292264 | R202: =IF(MAX(C205:C216)-MIN(C205:C216)<5,AVERAGEIF(C205:C216,">0",R205:R216), IF(FORECAST($C202,R$205:R$216,$C$205:$C$216)<0,0, IF(FORECAST($C202,R$205:R$216,$C$205:$C$216)>100,100, FORECAST($C202,R$205:R$216,$C$205:$C$216)))) -> 0 | S202: =IF(MAX(C205:C216)-MIN(C205:C216)<5,AVERAGEIF(C205:C216,">0",S205:S216), IF(FORECAST($C202,S$205:S$216,$C$205:$C$216)<0,0, IF(FORECAST($C202,S$205:S$216,$C$205:$C$216)>100,100, FORECAST($C202,S$205:S$216,$C$205:$C$216)))) -> 99.92670182 | W202: =IF(MAX(C205:C216)-MIN(C205:C216)<5,AVERAGEIF(C205:C216,">0",W205:W216), IF(FORECAST($C202,W$205:W$216,$C$205:$C$216)<0,0, IF(FORECAST($C202,W$205:W$216,$C$205:$C$216)>100,100, FORECAST($C202,W$205:W$216,$C$205:$C$216)))) -> 0 | X202: =IF(MAX(C205:C216)-MIN(C205:C216)<5,AVERAGEIF(C205:C216,">0",X205:X216), IF(FORECAST($C202,X$205:X$216,$C$205:$C$216)<0,0, IF(FORECAST($C202,X$205:X$216,$C$205:$C$216)>100,100, FORECAST($C202,X$205:X$216,$C$205:$C$216)))) -> 99.85157988 | AB202: =IF(MAX(C205:C216)-MIN(C205:C216)<5,AVERAGEIF(C205:C216,">0",AB205:AB216), IF(FORECAST($C202,AB$205:AB$216,$C$205:$C$216)<0,0, IF(FORECAST($C202,AB$205:AB$216,$C$205:$C$216)>100,100, FORECAST($C202,AB$205:AB$216,$C$205:$C$216)))) -> 0
B204: Survey | C204: Year | D204: Improved | E204: % Improved < = 30min | H204: Surface water | I204: Improved | J204: % Improved < = 30min | M204: Surface water | N204: Improved | O204: % Improved < = 30min | R204: Surface water | S204: Improved | T204: % Improved < = 30min | W204: Surface water | X204: Improved | Y204: % Improved < = 30min | AB204: Surface water
B205: WHS03 | C205: 2003 | D205: =IF(ISERROR(INDIRECT(CONCATENATE($B205,"!H16"))),"",INDIRECT(CONCATENATE($B205,"!H16"))) -> 99.04284081 | E205: =IF(ISERROR(INDIRECT(CONCATENATE($B205,"!H23"))),"",INDIRECT(CONCATENATE($B205,"!H23"))) -> 98.26931382 | H205: =IF(ISERROR(INDIRECT(CONCATENATE($B205,"!H21"))),"",INDIRECT(CONCATENATE($B205,"!H21"))) -> 0 | I205: =IF(ISERROR(INDIRECT(CONCATENATE($B205,"!I16"))),"",INDIRECT(CONCATENATE($B205,"!I16"))) -> 99.24340058 | J205: =IF(ISERROR(INDIRECT(CONCATENATE($B205,"!I23"))),"",INDIRECT(CONCATENATE($B205,"!I23"))) -> 99.72553798 | M205: =IF(ISERROR(INDIRECT(CONCATENATE($B205,"!I21"))),"",INDIRECT(CONCATENATE($B205,"!I21"))) -> 0 | N205: =IF(ISERROR(INDIRECT(CONCATENATE($B205,"!J16"))),"",INDIRECT(CONCATENATE($B205,"!J16"))) -> 99.09621956 | O205: =IF(ISERROR(INDIRECT(CONCATENATE($B205,"!J23"))),"",INDIRECT(CONCATENATE($B205,"!J23"))) -> 99.52196924 | R205: =IF(ISERROR(INDIRECT(CONCATENATE($B205,"!J21"))),"",INDIRECT(CONCATENATE($B205,"!J21"))) -> 0 | S205: =IF(ISERROR(INDIRECT(CONCATENATE($B205,"!K16"))),"",INDIRECT(CONCATENATE($B205,"!K16"))) -> 99.65302741 | T205: =IF(ISERROR(INDIRECT(CONCATENATE($B205,"!K23"))),"",INDIRECT(CONCATENATE($B205,"!K23"))) -> 100 | W205: =IF(ISERROR(INDIRECT(CONCATENATE($B205,"!K21"))),"",INDIRECT(CONCATENATE($B205,"!K21"))) -> 0 | X205: =IF(ISERROR(INDIRECT(CONCATENATE($B205,"!L16"))),"",INDIRECT(CONCATENATE($B205,"!L16"))) -> 99.33438658 | Y205: =IF(ISERROR(INDIRECT(CONCATENATE($B205,"!L23"))),"",INDIRECT(CONCATENATE($B205,"!L23"))) -> 100 | AB205: =IF(ISERROR(INDIRECT(CONCATENATE($B205,"!L221"))),"",INDIRECT(CONCATENATE($B205,"!L21"))) -> 0
B206: MICS05 | C206: 2005 | D206: 97.04769204 | E206: 99.70256575 | H206: 0 | I206: 99.04829111 | J206: 99.70429648 | M206: 0 | N206: 99.12663369 | O206: 99.91698252 | R206: 0 | S206: 99.81106324 | T206: 99.97620314 | W206: 0 | X206: 100 | Y206: 100 | AB206: 0
B207: WMS13 | C207: 2013 | D207: 99.79102224 | E207: 99.28835037 | H207: 0 | I207: 99.74760687 | J207: 100 | M207: 0 | N207: 100 | O207: 100 | R207: 0 | S207: 99.79941214 | T207: 100 | W207: 0 | X207: 100 | Y207: 100 | AB207: 0
B208: MICS18 | C208: 2018 | D208: 97.77226459 | E208: 99.42974886 | H208: N/A | I208: 99.22161932 | J208: 99.4493043 | M208: N/A | N208: 99.56592279 | O208: 99.91562636 | R208: N/A | S208: 99.91538797 | T208: 99.48550482 | W208: N/A | X208: 99.6419539 | Y208: 99.95906443 | AB208: N/A
B218: =CONCATENATE("Urban use of drinking water sources, ",C199,"–",C200) -> Urban use of drinking water sources, 2000–2020 | S218: Data points used for regression
E253: =IF(ISERROR(INDIRECT(CONCATENATE($B253,"!M18"))),"",INDIRECT(CONCATENATE($B253,"!M18"))) ->  | F253: =IF(ISERROR(INDIRECT(CONCATENATE($B253,"!M19"))),"",INDIRECT(CONCATENATE($B253,"!M19"))) ->  | G253: =IF(ISERROR(INDIRECT(CONCATENATE($B253,"!M20"))),"",INDIRECT(CONCATENATE($B253,"!M20"))) ->  | H253: =IF(ISERROR(INDIRECT(CONCATENATE($B253,"!M21"))),"",INDIRECT(CONCATENATE($B253,"!M21"))) ->  | J253: =IF(ISERROR(INDIRECT(CONCATENATE($B253,"!N18"))),"",INDIRECT(CONCATENATE($B253,"!N18"))) ->  | K253: =IF(ISERROR(INDIRECT(CONCATENATE($B253,"!N19"))),"",INDIRECT(CONCATENATE($B253,"!N19"))) ->  | L253: =IF(ISERROR(INDIRECT(CONCATENATE($B253,"!N20"))),"",INDIRECT(CONCATENATE($B253,"!N20"))) ->  | M253: =IF(ISERROR(INDIRECT(CONCATENATE($B253,"!N21"))),"",INDIRECT(CONCATENATE($B253,"!N21"))) ->  | O253: =IF(ISERROR(INDIRECT(CONCATENATE($B253,"!O18"))),"",INDIRECT(CONCATENATE($B253,"!O18"))) ->  | P253: =IF(ISERROR(INDIRECT(CONCATENATE($B253,"!O19"))),"",INDIRECT(CONCATENATE($B253,"!O19"))) ->  | Q253: =IF(ISERROR(INDIRECT(CONCATENATE($B253,"!O20"))),"",INDIRECT(CONCATENATE($B253,"!O20"))) ->  | R253: =IF(ISERROR(INDIRECT(CONCATENATE($B253,"!O21"))),"",INDIRECT(CONCATENATE($B253,"!O21"))) ->  | T253: =IF(ISERROR(INDIRECT(CONCATENATE($B253,"!P18"))),"",INDIRECT(CONCATENATE($B253,"!P18"))) ->  | U253: =IF(ISERROR(INDIRECT(CONCATENATE($B253,"!P19"))),"",INDIRECT(CONCATENATE($B253,"!P19"))) ->  | V253: =IF(ISERROR(INDIRECT(CONCATENATE($B253,"!P20"))),"",INDIRECT(CONCATENATE($B253,"!P20"))) ->  | W253: =IF(ISERROR(INDIRECT(CONCATENATE($B253,"!P21"))),"",INDIRECT(CONCATENATE($B253,"!P21"))) ->  | Y253: =IF(ISERROR(INDIRECT(CONCATENATE($B253,"!Q18"))),"",INDIRECT(CONCATENATE($B253,"!Q18"))) ->  | Z253: =IF(ISERROR(INDIRECT(CONCATENATE($B253,"!Q19"))),"",INDIRECT(CONCATENATE($B253,"!Q19"))) ->  | AA253: =IF(ISERROR(INDIRECT(CONCATENATE($B253,"!Q20"))),"",INDIRECT(CONCATENATE($B253,"!Q20"))) ->  | AB253: =IF(ISERROR(INDIRECT(CONCATENATE($B253,"!Q21"))),"",INDIRECT(CONCATENATE($B253,"!Q1"))) -> 
E254: =IF(ISERROR(INDIRECT(CONCATENATE($B254,"!M18"))),"",INDIRECT(CONCATENATE($B254,"!M18"))) ->  | F254: =IF(ISERROR(INDIRECT(CONCATENATE($B254,"!M19"))),"",INDIRECT(CONCATENATE($B254,"!M19"))) ->  | G254: =IF(ISERROR(INDIRECT(CONCATENATE($B254,"!M20"))),"",INDIRECT(CONCATENATE($B254,"!M20"))) ->  | H254: =IF(ISERROR(INDIRECT(CONCATENATE($B254,"!M21"))),"",INDIRECT(CONCATENATE($B254,"!M21"))) ->  | J254: =IF(ISERROR(INDIRECT(CONCATENATE($B254,"!N18"))),"",INDIRECT(CONCATENATE($B254,"!N18"))) ->  | K254: =IF(ISERROR(INDIRECT(CONCATENATE($B254,"!N19"))),"",INDIRECT(CONCATENATE($B254,"!N19"))) ->  | L254: =IF(ISERROR(INDIRECT(CONCATENATE($B254,"!N20"))),"",INDIRECT(CONCATENATE($B254,"!N20"))) ->  | M254: =IF(ISERROR(INDIRECT(CONCATENATE($B254,"!N21"))),"",INDIRECT(CONCATENATE($B254,"!N21"))) ->  | O254: =IF(ISERROR(INDIRECT(CONCATENATE($B254,"!O18"))),"",INDIRECT(CONCATENATE($B254,"!O18"))) ->  | P254: =IF(ISERROR(INDIRECT(CONCATENATE($B254,"!O19"))),"",INDIRECT(CONCATENATE($B254,"!O19"))) ->  | Q254: =IF(ISERROR(INDIRECT(CONCATENATE($B254,"!O20"))),"",INDIRECT(CONCATENATE($B254,"!O20"))) ->  | R254: =IF(ISERROR(INDIRECT(CONCATENATE($B254,"!O21"))),"",INDIRECT(CONCATENATE($B254,"!O21"))) ->  | T254: =IF(ISERROR(INDIRECT(CONCATENATE($B254,"!P18"))),"",INDIRECT(CONCATENATE($B254,"!P18"))) ->  | U254: =IF(ISERROR(INDIRECT(CONCATENATE($B254,"!P19"))),"",INDIRECT(CONCATENATE($B254,"!P19"))) ->  | V254: =IF(ISERROR(INDIRECT(CONCATENATE($B254,"!P20"))),"",INDIRECT(CONCATENATE($B254,"!P20"))) ->  | W254: =IF(ISERROR(INDIRECT(CONCATENATE($B254,"!P21"))),"",INDIRECT(CONCATENATE($B254,"!P21"))) ->  | Y254: =IF(ISERROR(INDIRECT(CONCATENATE($B254,"!Q18"))),"",INDIRECT(CONCATENATE($B254,"!Q18"))) ->  | Z254: =IF(ISERROR(INDIRECT(CONCATENATE($B254,"!Q19"))),"",INDIRECT(CONCATENATE($B254,"!Q19"))) ->  | AA254: =IF(ISERROR(INDIRECT(CONCATENATE($B254,"!Q20"))),"",INDIRECT(CONCATENATE($B254,"!Q20"))) ->  | AB254: =IF(ISERROR(INDIRECT(CONCATENATE($B254,"!Q21"))),"",INDIRECT(CONCATENATE($B254,"!Q1"))) -> 
E255: =IF(ISERROR(INDIRECT(CONCATENATE($B255,"!M18"))),"",INDIRECT(CONCATENATE($B255,"!M18"))) ->  | F255: =IF(ISERROR(INDIRECT(CONCATENATE($B255,"!M19"))),"",INDIRECT(CONCATENATE($B255,"!M19"))) ->  | G255: =IF(ISERROR(INDIRECT(CONCATENATE($B255,"!M20"))),"",INDIRECT(CONCATENATE($B255,"!M20"))) ->  | H255: =IF(ISERROR(INDIRECT(CONCATENATE($B255,"!M21"))),"",INDIRECT(CONCATENATE($B255,"!M21"))) ->  | J255: =IF(ISERROR(INDIRECT(CONCATENATE($B255,"!N18"))),"",INDIRECT(CONCATENATE($B255,"!N18"))) ->  | K255: =IF(ISERROR(INDIRECT(CONCATENATE($B255,"!N19"))),"",INDIRECT(CONCATENATE($B255,"!N19"))) ->  | L255: =IF(ISERROR(INDIRECT(CONCATENATE($B255,"!N20"))),"",INDIRECT(CONCATENATE($B255,"!N20"))) ->  | M255: =IF(ISERROR(INDIRECT(CONCATENATE($B255,"!N21"))),"",INDIRECT(CONCATENATE($B255,"!N21"))) ->  | O255: =IF(ISERROR(INDIRECT(CONCATENATE($B255,"!O18"))),"",INDIRECT(CONCATENATE($B255,"!O18"))) ->  | P255: =IF(ISERROR(INDIRECT(CONCATENATE($B255,"!O19"))),"",INDIRECT(CONCATENATE($B255,"!O19"))) ->  | Q255: =IF(ISERROR(INDIRECT(CONCATENATE($B255,"!O20"))),"",INDIRECT(CONCATENATE($B255,"!O20"))) ->  | R255: =IF(ISERROR(INDIRECT(CONCATENATE($B255,"!O21"))),"",INDIRECT(CONCATENATE($B255,"!O21"))) ->  | T255: =IF(ISERROR(INDIRECT(CONCATENATE($B255,"!P18"))),"",INDIRECT(CONCATENATE($B255,"!P18"))) ->  | U255: =IF(ISERROR(INDIRECT(CONCATENATE($B255,"!P19"))),"",INDIRECT(CONCATENATE($B255,"!P19"))) ->  | V255: =IF(ISERROR(INDIRECT(CONCATENATE($B255,"!P20"))),"",INDIRECT(CONCATENATE($B255,"!P20"))) ->  | W255: =IF(ISERROR(INDIRECT(CONCATENATE($B255,"!P21"))),"",INDIRECT(CONCATENATE($B255,"!P21"))) ->  | Y255: =IF(ISERROR(INDIRECT(CONCATENATE($B255,"!Q18"))),"",INDIRECT(CONCATENATE($B255,"!Q18"))) ->  | Z255: =IF(ISERROR(INDIRECT(CONCATENATE($B255,"!Q19"))),"",INDIRECT(CONCATENATE($B255,"!Q19"))) ->  | AA255: =IF(ISERROR(INDIRECT(CONCATENATE($B255,"!Q20"))),"",INDIRECT(CONCATENATE($B255,"!Q20"))) ->  | AB255: =IF(ISERROR(INDIRECT(CONCATENATE($B255,"!Q21"))),"",INDIRECT(CONCATENATE($B255,"!Q1"))) -> 
E256: =IF(ISERROR(INDIRECT(CONCATENATE($B256,"!M18"))),"",INDIRECT(CONCATENATE($B256,"!M18"))) ->  | F256: =IF(ISERROR(INDIRECT(CONCATENATE($B256,"!M19"))),"",INDIRECT(CONCATENATE($B256,"!M19"))) ->  | G256: =IF(ISERROR(INDIRECT(CONCATENATE($B256,"!M20"))),"",INDIRECT(CONCATENATE($B256,"!M20"))) ->  | H256: =IF(ISERROR(INDIRECT(CONCATENATE($B256,"!M21"))),"",INDIRECT(CONCATENATE($B256,"!M21"))) ->  | J256: =IF(ISERROR(INDIRECT(CONCATENATE($B256,"!N18"))),"",INDIRECT(CONCATENATE($B256,"!N18"))) ->  | K256: =IF(ISERROR(INDIRECT(CONCATENATE($B256,"!N19"))),"",INDIRECT(CONCATENATE($B256,"!N19"))) ->  | L256: =IF(ISERROR(INDIRECT(CONCATENATE($B256,"!N20"))),"",INDIRECT(CONCATENATE($B256,"!N20"))) ->  | M256: =IF(ISERROR(INDIRECT(CONCATENATE($B256,"!N21"))),"",INDIRECT(CONCATENATE($B256,"!N21"))) ->  | O256: =IF(ISERROR(INDIRECT(CONCATENATE($B256,"!O18"))),"",INDIRECT(CONCATENATE($B256,"!O18"))) ->  | P256: =IF(ISERROR(INDIRECT(CONCATENATE($B256,"!O19"))),"",INDIRECT(CONCATENATE($B256,"!O19"))) ->  | Q256: =IF(ISERROR(INDIRECT(CONCATENATE($B256,"!O20"))),"",INDIRECT(CONCATENATE($B256,"!O20"))) ->  | R256: =IF(ISERROR(INDIRECT(CONCATENATE($B256,"!O21"))),"",INDIRECT(CONCATENATE($B256,"!O21"))) ->  | T256: =IF(ISERROR(INDIRECT(CONCATENATE($B256,"!P18"))),"",INDIRECT(CONCATENATE($B256,"!P18"))) ->  | U256: =IF(ISERROR(INDIRECT(CONCATENATE($B256,"!P19"))),"",INDIRECT(CONCATENATE($B256,"!P19"))) ->  | V256: =IF(ISERROR(INDIRECT(CONCATENATE($B256,"!P20"))),"",INDIRECT(CONCATENATE($B256,"!P20"))) ->  | W256: =IF(ISERROR(INDIRECT(CONCATENATE($B256,"!P21"))),"",INDIRECT(CONCATENATE($B256,"!P21"))) ->  | Y256: =IF(ISERROR(INDIRECT(CONCATENATE($B256,"!Q18"))),"",INDIRECT(CONCATENATE($B256,"!Q18"))) ->  | Z256: =IF(ISERROR(INDIRECT(CONCATENATE($B256,"!Q19"))),"",INDIRECT(CONCATENATE($B256,"!Q19"))) ->  | AA256: =IF(ISERROR(INDIRECT(CONCATENATE($B256,"!Q20"))),"",INDIRECT(CONCATENATE($B256,"!Q20"))) ->  | AB256: =IF(ISERROR(INDIRECT(CONCATENATE($B256,"!Q21"))),"",INDIRECT(CONCATENATE($B256,"!Q1"))) -> 
E257: =IF(ISERROR(INDIRECT(CONCATENATE($B257,"!M18"))),"",INDIRECT(CONCATENATE($B257,"!M18"))) ->  | F257: =IF(ISERROR(INDIRECT(CONCATENATE($B257,"!M19"))),"",INDIRECT(CONCATENATE($B257,"!M19"))) ->  | G257: =IF(ISERROR(INDIRECT(CONCATENATE($B257,"!M20"))),"",INDIRECT(CONCATENATE($B257,"!M20"))) ->  | H257: =IF(ISERROR(INDIRECT(CONCATENATE($B257,"!M21"))),"",INDIRECT(CONCATENATE($B257,"!M21"))) ->  | J257: =IF(ISERROR(INDIRECT(CONCATENATE($B257,"!N18"))),"",INDIRECT(CONCATENATE($B257,"!N18"))) ->  | K257: =IF(ISERROR(INDIRECT(CONCATENATE($B257,"!N19"))),"",INDIRECT(CONCATENATE($B257,"!N19"))) ->  | L257: =IF(ISERROR(INDIRECT(CONCATENATE($B257,"!N20"))),"",INDIRECT(CONCATENATE($B257,"!N20"))) ->  | M257: =IF(ISERROR(INDIRECT(CONCATENATE($B257,"!N21"))),"",INDIRECT(CONCATENATE($B257,"!N21"))) ->  | O257: =IF(ISERROR(INDIRECT(CONCATENATE($B257,"!O18"))),"",INDIRECT(CONCATENATE($B257,"!O18"))) ->  | P257: =IF(ISERROR(INDIRECT(CONCATENATE($B257,"!O19"))),"",INDIRECT(CONCATENATE($B257,"!O19"))) ->  | Q257: =IF(ISERROR(INDIRECT(CONCATENATE($B257,"!O20"))),"",INDIRECT(CONCATENATE($B257,"!O20"))) ->  | R257: =IF(ISERROR(INDIRECT(CONCATENATE($B257,"!O21"))),"",INDIRECT(CONCATENATE($B257,"!O21"))) ->  | T257: =IF(ISERROR(INDIRECT(CONCATENATE($B257,"!P18"))),"",INDIRECT(CONCATENATE($B257,"!P18"))) ->  | U257: =IF(ISERROR(INDIRECT(CONCATENATE($B257,"!P19"))),"",INDIRECT(CONCATENATE($B257,"!P19"))) ->  | V257: =IF(ISERROR(INDIRECT(CONCATENATE($B257,"!P20"))),"",INDIRECT(CONCATENATE($B257,"!P20"))) ->  | W257: =IF(ISERROR(INDIRECT(CONCATENATE($B257,"!P21"))),"",INDIRECT(CONCATENATE($B257,"!P21"))) ->  | Y257: =IF(ISERROR(INDIRECT(CONCATENATE($B257,"!Q18"))),"",INDIRECT(CONCATENATE($B257,"!Q18"))) ->  | Z257: =IF(ISERROR(INDIRECT(CONCATENATE($B257,"!Q19"))),"",INDIRECT(CONCATENATE($B257,"!Q19"))) ->  | AA257: =IF(ISERROR(INDIRECT(CONCATENATE($B257,"!Q20"))),"",INDIRECT(CONCATENATE($B257,"!Q20"))) ->  | AB257: =IF(ISERROR(INDIRECT(CONCATENATE($B257,"!Q21"))),"",INDIRECT(CONCATENATE($B257,"!Q1"))) -> 
A297: RURAL | D297: Poorest | I297: Poor | N297: Middle | S297: Rich | X297: Richest
D298: Improved | E298: Basic | F298: Limited | G298: Unimproved | H298: Surface water | I298: Improved | J298: Basic | K298: Limited | L298: Unimproved | M298: Surface water | N298: Improved | O298: Basic | P298: Limited | Q298: Unimproved | R298: Surface water | S298: Improved | T298: Basic | U298: Limited | V298: Unimproved | W298: Surface water | X298: Improved | Y298: Basic | Z298: Limited | AA298: Unimproved | AB298: Surface water
A299: Forecast period: | C299: 2000 | D299: =IF((D301+H301)>100,D301*100/(D301+H301),D301) -> 93.2214375 | E299: =D299*AVERAGEIF(E305:E316,">0")/100 -> 90.01767716 | F299: =D299*(100-AVERAGEIF(E305:E316,">0"))/100 -> 3.203760336 | G299: =100-(E299+F299+H299) -> 4.11204341 | H299: =IF((D301+H301)>100,H301*100/(D301+H301),H301) -> 2.66651909 | I299: =IF((I301+M301)>100,I301*100/(I301+M301),I301) -> 94.59952552 | J299: =I299*AVERAGEIF(J305:J316,">0")/100 -> 90.92977203 | K299: =I299*(100-AVERAGEIF(J305:J316,">0"))/100 -> 3.669753493 | L299: =100-(J299+K299+M299) -> 5.400474479 | M299: =IF((I301+M301)>100,M301*100/(I301+M301),M301) -> 0 | N299: =IF((N301+R301)>100,N301*100/(N301+R301),N301) -> 95.55683575 | O299: =N299*AVERAGEIF(O305:O316,">0")/100 -> 90.46504838 | P299: =N299*(100-AVERAGEIF(O305:O316,">0"))/100 -> 5.091787372 | Q299: =100-(O299+P299+R299) -> 4.206687154 | R299: =IF((N301+R301)>100,R301*100/(N301+R301),R301) -> 0.2364770951 | S299: =IF((S301+W301)>100,S301*100/(S301+W301),S301) -> 95.84285415 | T299: =S299*AVERAGEIF(T305:T316,">0")/100 -> 91.29501011 | U299: =S299*(100-AVERAGEIF(T305:T316,">0"))/100 -> 4.547844042 | V299: =100-(T299+U299+W299) -> 4.047161544 | W299: =IF((S301+W301)>100,W301*100/(S301+W301),W301) -> 0.1099843017 | X299: =IF((X301+AB301)>100,X301*100/(X301+AB301),X301) -> 95.95451319 | Y299: =X299*AVERAGEIF(Y305:Y316,">0")/100 -> 93.87760355 | Z299: =X299*(100-AVERAGEIF(Y305:Y316,">0"))/100 -> 2.076909638 | AA299: =100-(Y299+Z299+AB299) -> 3.922095023 | AB299: =IF((X301+AB301)>100,AB301*100/(X301+AB301),AB301) -> 0.1233917902
C300: 2020 | D300: =IF((D302+H302)>100,D302*100/(D302+H302),D302) -> 92.60011536 | E300: =D300*AVERAGEIF(E305:E316,">0")/100 -> 89.41770813 | F300: =D300*(100-AVERAGEIF(E305:E316,">0"))/100 -> 3.18240723 | G300: =100-(E300+F300+H300) -> 7.399884636 | H300: =IF((D302+H302)>100,H302*100/(D302+H302),H302) -> 0 | I300: =IF((I302+M302)>100,I302*100/(I302+M302),I302) -> 94.12598078 | J300: =I300*AVERAGEIF(J305:J316,">0")/100 -> 90.47459728 | K300: =I300*(100-AVERAGEIF(J305:J316,">0"))/100 -> 3.651383501 | L300: =100-(J300+K300+M300) -> 4.787052007 | M300: =IF((I302+M302)>100,M302*100/(I302+M302),M302) -> 1.086967216 | N300: =IF((N302+R302)>100,N302*100/(N302+R302),N302) -> 96.65963118 | O300: =N300*AVERAGEIF(O305:O316,">0")/100 -> 91.50908087 | P300: =N300*(100-AVERAGEIF(O305:O316,">0"))/100 -> 5.150550304 | Q300: =100-(O300+P300+R300) -> 3.340368823 | R300: =IF((N302+R302)>100,R302*100/(N302+R302),R302) -> 0 | S300: =IF((S302+W302)>100,S302*100/(S302+W302),S302) -> 96.39351646 | T300: =S300*AVERAGEIF(T305:T316,">0")/100 -> 91.81954292 | U300: =S300*(100-AVERAGEIF(T305:T316,">0"))/100 -> 4.573973546 | V300: =100-(T300+U300+W300) -> 3.606483538 | W300: =IF((S302+W302)>100,W302*100/(S302+W302),W302) -> 0 | X300: =IF((X302+AB302)>100,X302*100/(X302+AB302),X302) -> 97.67853932 | Y300: =X300*AVERAGEIF(Y305:Y316,">0")/100 -> 95.5643136 | Z300: =X300*(100-AVERAGEIF(Y305:Y316,">0"))/100 -> 2.114225721 | AA300: =100-(Y300+Z300+AB300) -> 2.321460677 | AB300: =IF((X302+AB302)>100,AB302*100/(X302+AB302),AB302) -> 0
A301: Regression period: | C301: =MinRegYear(C299,C305:C316) -> 2001 | D301: =IF(MAX(C305:C316)-MIN(C305:C316)<5,AVERAGEIF(C305:C316,">0",D305:D316), IF(FORECAST($C301,D$305:D$316,$C$305:$C$316)<0,0, IF(FORECAST($C301,D$305:D$316,$C$305:$C$316)>100,100, FORECAST($C301,D$305:D$316,$C$305:$C$316)))) -> 93.2214375 | H301: =IF(MAX(C305:C316)-MIN(C305:C316)<5,AVERAGEIF(C305:C316,">0",H305:H316), IF(FORECAST($C301,H$305:H$316,$C$305:$C$316)<0,0, IF(FORECAST($C301,H$305:H$316,$C$305:$C$316)>100,100, FORECAST($C301,H$305:H$316,$C$305:$C$316)))) -> 2.66651909 | I301: =IF(MAX(C305:C316)-MIN(C305:C316)<5,AVERAGEIF(C305:C316,">0",I305:I316), IF(FORECAST($C301,I$305:I$316,$C$305:$C$316)<0,0, IF(FORECAST($C301,I$305:I$316,$C$305:$C$316)>100,100, FORECAST($C301,I$305:I$316,$C$305:$C$316)))) -> 94.59952552 | M301: =IF(MAX(C305:C316)-MIN(C305:C316)<5,AVERAGEIF(C305:C316,">0",M305:M316), IF(FORECAST($C301,M$305:M$316,$C$305:$C$316)<0,0, IF(FORECAST($C301,M$305:M$316,$C$305:$C$316)>100,100, FORECAST($C301,M$305:M$316,$C$305:$C$316)))) -> 0 | N301: =IF(MAX(C305:C316)-MIN(C305:C316)<5,AVERAGEIF(C305:C316,">0",N305:N316), IF(FORECAST($C301,N$305:N$316,$C$305:$C$316)<0,0, IF(FORECAST($C301,N$305:N$316,$C$305:$C$316)>100,100, FORECAST($C301,N$305:N$316,$C$305:$C$316)))) -> 95.55683575 | R301: =IF(MAX(C305:C316)-MIN(C305:C316)<5,AVERAGEIF(C305:C316,">0",R305:R316), IF(FORECAST($C301,R$305:R$316,$C$305:$C$316)<0,0, IF(FORECAST($C301,R$305:R$316,$C$305:$C$316)>100,100, FORECAST($C301,R$305:R$316,$C$305:$C$316)))) -> 0.2364770951 | S301: =IF(MAX(C305:C316)-MIN(C305:C316)<5,AVERAGEIF(C305:C316,">0",S305:S316), IF(FORECAST($C301,S$305:S$316,$C$305:$C$316)<0,0, IF(FORECAST($C301,S$305:S$316,$C$305:$C$316)>100,100, FORECAST($C301,S$305:S$316,$C$305:$C$316)))) -> 95.84285415 | W301: =IF(MAX(C305:C316)-MIN(C305:C316)<5,AVERAGEIF(C305:C316,">0",W305:W316), IF(FORECAST($C301,W$305:W$316,$C$305:$C$316)<0,0, IF(FORECAST($C301,W$305:W$316,$C$305:$C$316)>100,100, FORECAST($C301,W$305:W$316,$C$305:$C$316)))) -> 0.1099843017 | X301: =IF(MAX(C305:C316)-MIN(C305:C316)<5,AVERAGEIF(C305:C316,">0",X305:X316), IF(FORECAST($C301,X$305:X$316,$C$305:$C$316)<0,0, IF(FORECAST($C301,X$305:X$316,$C$305:$C$316)>100,100, FORECAST($C301,X$305:X$316,$C$305:$C$316)))) -> 95.95451319 | AB301: =IF(MAX(C305:C316)-MIN(C305:C316)<5,AVERAGEIF(C305:C316,">0",AB305:AB316), IF(FORECAST($C301,AB$305:AB$316,$C$305:$C$316)<0,0, IF(FORECAST($C301,AB$305:AB$316,$C$305:$C$316)>100,100, FORECAST($C301,AB$305:AB$316,$C$305:$C$316)))) -> 0.1233917902
C302: =MaxRegYear(C300,C305:C316) -> 2020 | D302: =IF(MAX(C305:C316)-MIN(C305:C316)<5,AVERAGEIF(C305:C316,">0",D305:D316), IF(FORECAST($C302,D$305:D$316,$C$305:$C$316)<0,0, IF(FORECAST($C302,D$305:D$316,$C$305:$C$316)>100,100, FORECAST($C302,D$305:D$316,$C$305:$C$316)))) -> 92.60011536 | H302: =IF(MAX(C305:C316)-MIN(C305:C316)<5,AVERAGEIF(C305:C316,">0",H305:H316), IF(FORECAST($C302,H$305:H$316,$C$305:$C$316)<0,0, IF(FORECAST($C302,H$305:H$316,$C$305:$C$316)>100,100, FORECAST($C302,H$305:H$316,$C$305:$C$316)))) -> 0 | I302: =IF(MAX(C305:C316)-MIN(C305:C316)<5,AVERAGEIF(C305:C316,">0",I305:I316), IF(FORECAST($C302,I$305:I$316,$C$305:$C$316)<0,0, IF(FORECAST($C302,I$305:I$316,$C$305:$C$316)>100,100, FORECAST($C302,I$305:I$316,$C$305:$C$316)))) -> 94.12598078 | M302: =IF(MAX(C305:C316)-MIN(C305:C316)<5,AVERAGEIF(C305:C316,">0",M305:M316), IF(FORECAST($C302,M$305:M$316,$C$305:$C$316)<0,0, IF(FORECAST($C302,M$305:M$316,$C$305:$C$316)>100,100, FORECAST($C302,M$305:M$316,$C$305:$C$316)))) -> 1.086967216 | N302: =IF(MAX(C305:C316)-MIN(C305:C316)<5,AVERAGEIF(C305:C316,">0",N305:N316), IF(FORECAST($C302,N$305:N$316,$C$305:$C$316)<0,0, IF(FORECAST($C302,N$305:N$316,$C$305:$C$316)>100,100, FORECAST($C302,N$305:N$316,$C$305:$C$316)))) -> 96.65963118 | R302: =IF(MAX(C305:C316)-MIN(C305:C316)<5,AVERAGEIF(C305:C316,">0",R305:R316), IF(FORECAST($C302,R$305:R$316,$C$305:$C$316)<0,0, IF(FORECAST($C302,R$305:R$316,$C$305:$C$316)>100,100, FORECAST($C302,R$305:R$316,$C$305:$C$316)))) -> 0 | S302: =IF(MAX(C305:C316)-MIN(C305:C316)<5,AVERAGEIF(C305:C316,">0",S305:S316), IF(FORECAST($C302,S$305:S$316,$C$305:$C$316)<0,0, IF(FORECAST($C302,S$305:S$316,$C$305:$C$316)>100,100, FORECAST($C302,S$305:S$316,$C$305:$C$316)))) -> 96.39351646 | W302: =IF(MAX(C305:C316)-MIN(C305:C316)<5,AVERAGEIF(C305:C316,">0",W305:W316), IF(FORECAST($C302,W$305:W$316,$C$305:$C$316)<0,0, IF(FORECAST($C302,W$305:W$316,$C$305:$C$316)>100,100, FORECAST($C302,W$305:W$316,$C$305:$C$316)))) -> 0 | X302: =IF(MAX(C305:C316)-MIN(C305:C316)<5,AVERAGEIF(C305:C316,">0",X305:X316), IF(FORECAST($C302,X$305:X$316,$C$305:$C$316)<0,0, IF(FORECAST($C302,X$305:X$316,$C$305:$C$316)>100,100, FORECAST($C302,X$305:X$316,$C$305:$C$316)))) -> 97.67853932 | AB302: =IF(MAX(C305:C316)-MIN(C305:C316)<5,AVERAGEIF(C305:C316,">0",AB305:AB316), IF(FORECAST($C302,AB$305:AB$316,$C$305:$C$316)<0,0, IF(FORECAST($C302,AB$305:AB$316,$C$305:$C$316)>100,100, FORECAST($C302,AB$305:AB$316,$C$305:$C$316)))) -> 0
B304: Survey | C304: Year | D304: Improved | E304: % Improved < = 30min | H304: Surface water | I304: Improved | J304: % Improved < = 30min | M304: Surface water | N304: Improved | O304: % Improved < = 30min | R304: Surface water | S304: Improved | T304: % Improved < = 30min | W304: Surface water | X304: Improved | Y304: % Improved < = 30min | AB304: Surface water
B305: WHS03 | C305: 2003 | D305: =IF(ISERROR(INDIRECT(CONCATENATE($B305,"!M16"))),"",INDIRECT(CONCATENATE($B305,"!M16"))) -> 94.28292997 | E305: =IF(ISERROR(INDIRECT(CONCATENATE($B305,"!M23"))),"",INDIRECT(CONCATENATE($B305,"!M23"))) -> 94.02185132 | H305: =IF(ISERROR(INDIRECT(CONCATENATE($B305,"!M21"))),"",INDIRECT(CONCATENATE($B305,"!M21"))) -> 3.381632659 | I305: =IF(ISERROR(INDIRECT(CONCATENATE($B305,"!N16"))),"",INDIRECT(CONCATENATE($B305,"!N16"))) -> 97.21006114 | J305: =IF(ISERROR(INDIRECT(CONCATENATE($B305,"!N23"))),"",INDIRECT(CONCATENATE($B305,"!N23"))) -> 92.01822644 | M305: =IF(ISERROR(INDIRECT(CONCATENATE($B305,"!N21"))),"",INDIRECT(CONCATENATE($B305,"!N21"))) -> 0 | N305: =IF(ISERROR(INDIRECT(CONCATENATE($B305,"!O16"))),"",INDIRECT(CONCATENATE($B305,"!O16"))) -> 98.11344804 | O305: =IF(ISERROR(INDIRECT(CONCATENATE($B305,"!O23"))),"",INDIRECT(CONCATENATE($B305,"!O23"))) -> 87.26763239 | R305: =IF(ISERROR(INDIRECT(CONCATENATE($B305,"!O21"))),"",INDIRECT(CONCATENATE($B305,"!O21"))) -> 0 | S305: =IF(ISERROR(INDIRECT(CONCATENATE($B305,"!P16"))),"",INDIRECT(CONCATENATE($B305,"!P16"))) -> 98.51112909 | T305: =IF(ISERROR(INDIRECT(CONCATENATE($B305,"!P23"))),"",INDIRECT(CONCATENATE($B305,"!P23"))) -> 85.47298903 | W305: =IF(ISERROR(INDIRECT(CONCATENATE($B305,"!P21"))),"",INDIRECT(CONCATENATE($B305,"!P21"))) -> 0 | X305: =IF(ISERROR(INDIRECT(CONCATENATE($B305,"!Q16"))),"",INDIRECT(CONCATENATE($B305,"!Q16"))) -> 100 | Y305: =IF(ISERROR(INDIRECT(CONCATENATE($B305,"!Q23"))),"",INDIRECT(CONCATENATE($B305,"!Q23"))) -> 95.67597662 | AB305: =IF(ISERROR(INDIRECT(CONCATENATE($B305,"!Q221"))),"",INDIRECT(CONCATENATE($B305,"!Q21"))) -> 0
B306: MICS05 | C306: 2005 | D306: 90.96353865 | E306: 97.043146 | H306: 0.3323402831 | I306: 90.56914989 | J306: 97.54285833 | M306: 0 | N306: 92.42576557 | O306: 97.82511405 | R306: 0.4318277388 | S306: 92.27274743 | T306: 98.16388957 | W306: 0.2008408987 | X306: 91.37823846 | Y306: 99.26546101 | AB306: 0.2253241386
B307: WMS13 | C307: 2013 | D307: 94.978784 | E307: 97.13435128 | H307: 0.2970976772 | I307: 96.53907051 | J307: 96.965908 | M307: 0.6296913529 | N307: 97.6761703 | O307: 97.19719563 | R307: 0 | S307: 97.94340206 | T307: 99.44007971 | W307: 0 | X307: 98.29333241 | Y307: 98.90512873 | AB307: 0
B308: MICS18 | C308: 2018 | D308: 91.5159566 | E308: 98.05376905 | H308: N/A | I308: 93.20750127 | J308: 97.95600131 | M308: N/A | N308: 96.04342435 | O308: 96.39588471 | R308: N/A | S308: 95.65851597 | T308: 97.94262179 | W308: N/A | X308: 97.32231949 | Y308: 97.49554119 | AB308: N/A
B318: =CONCATENATE("Rural use of drinking water sources, ",C299,"–",C300) -> Rural use of drinking water sources, 2000–2020 | S318: Data points used for regression

Sheet Sanitation
B4: Summary of trends in use of sanitation facilities by wealth quintile (%)
B5: =IF(ISERROR(INDIRECT(CONCATENATE($B105,"!A2"))),"",INDIRECT(CONCATENATE($B105,"!A2"))) -> Georgia
B7: =B118 -> National use of sanitation facilities, 2000–2020 | J7: =B218 -> Urban use of sanitation facilities, 2000–2020 | R7: =B318 -> Rural use of sanitation facilities, 2000–2020
B31: =IF(ISERROR(INDIRECT(CONCATENATE($B105,"!A2"))),"",INDIRECT(CONCATENATE($B105,"!A2"))) -> Georgia | F31: Poorest | J31: Poor | N31: Middle | R31: Rich | V31: Richest
F32: Basic | G32: Limited | H32: Unimproved | I32: Open defecation | J32: Basic | K32: Limited | L32: Unimproved | M32: Open defecation | N32: Basic | O32: Limited | P32: Unimproved | Q32: Open defecation | R32: Basic | S32: Limited | T32: Unimproved | U32: Open defecation | V32: Basic | W32: Limited | X32: Unimproved | Y32: Open defecation
B33: NATIONAL | D33: Estimate | E33: =C99 -> 2000 | F33: =E99 -> 94.20594563 | G33: =F99 -> 1.717815177 | H33: 4.076239195 | I33: 0 | J33: =J99 -> 94.65221915 | K33: =K99 -> 0.6017615248 | L33: 4.158184095 | M33: 0.5878352339 | N33: =O99 -> 92.50366185 | O33: =P99 -> 3.946767452 | P33: 3.316566922 | Q33: 0.2330037795 | R33: =T99 -> 94.23519527 | S33: =U99 -> 1.926408811 | T33: 1.364903988 | U33: 2.473491936 | V33: =Y99 -> 99.30183715 | W33: =Z99 -> 0.4225279911 | X33: 0.1340744918 | Y33: 0.1415603682
E34: =C100 -> 2020 | F34: =E100 -> 71.26175279 | G34: 1.299435186 | H34: 27.25328761 | I34: 0.1855244101 | J34: =J100 -> 81.73359653 | K34: 0.519630011 | L34: 17.74677346 | M34: 0 | N34: =O100 -> 88.23003565 | O34: 3.76442863 | P34: 8.005535718 | Q34: 0 | R34: =T100 -> 97.66746028 | S34: 1.996573101 | T34: 0.3359666178 | U34: 0 | V34: =Y100 -> 99.56400122 | W34: 0.4236434957 | X34: 0.0123552797 | Y34: 0
B36: URBAN | D36: Estimate | E36: =C199 -> 2000 | F36: =E199 -> 89.96436538 | G36: =F199 -> 5.557606999 | H36: 4.478027621 | I36: 0 | J36: =J199 -> 95.99716729 | K36: =K199 -> 3.471160803 | L36: 0.531671904 | M36: 0 | N36: =O199 -> 97.28687157 | O36: =P199 -> 1.98397575 | P36: 0.7291526764 | Q36: 0 | R36: =T199 -> 99.50078022 | S36: =U199 -> 0.4992197783 | T36: 0 | U36: 0 | V36: =Y199 -> 99.44158608 | W36: =Z199 -> 0.3049245649 | X36: 0.2534893505 | Y36: 0
E37: =C200 -> 2020 | F37: =E200 -> 87.39983762 | G37: 5.399181634 | H37: 7.153939777 | I37: 0.0470409673 | J37: =J200 -> 94.54491448 | K37: 3.418648805 | L37: 2.036436715 | M37: 0 | N37: =O200 -> 97.76091812 | O37: 1.993643004 | P37: 0.2454388798 | Q37: 0 | R37: =T200 -> 99.24975588 | S37: 0.4979603277 | T37: 0.2522837941 | U37: 0 | V37: =Y200 -> 99.69430052 | W37: 0.3056994806 | X37: 0 | Y37: 0
B39: RURAL | D39: Estimate | E39: =C299 -> 2000 | F39: =E299 -> 90.52101027 | G39: =F299 -> 2.147360991 | H39: 1.46176443 | I39: 5.86986431 | J39: =J299 -> 93.66586244 | K39: =K299 -> 1.219169323 | L39: 3.754803657 | M39: 1.360164582 | N39: =O299 -> 95.95028863 | O39: =P299 -> 1.039051074 | P39: 3.010660298 | Q39: 0 | R39: =T299 -> 95.48475796 | S39: =U299 -> 0.4680387126 | T39: 4.047203327 | U39: 0 | V39: =Y299 -> 93.87735448 | W39: =Z299 -> 0.4317839216 | X39: 5.690861599 | Y39: 0
E40: =C300 -> 2020 | F40: =E300 -> 66.351822 | G40: 1.574013744 | H40: 32.07416426 | I40: 0 | J40: =J300 -> 73.91721903 | K40: 0.9621179321 | L40: 25.12066303 | M40: 0 | N40: =O300 -> 76.91860665 | O40: 0.832955919 | P40: 22.23833855 | Q40: 0.01009887487 | R40: =T300 -> 83.39699646 | S40: 0.408787996 | T40: 16.19421555 | U40: 0 | V40: =Y300 -> 87.19651649 | W40: 0.401055761 | X40: 12.40242775 | Y40: 0
A97: NATIONAL | D97: Poorest | I97: Poor | N97: Middle | S97: Rich | X97: Richest
D98: Improved | E98: Basic | F98: Limited | G98: Unimproved | H98: Open defecation | I98: Improved | J98: Basic | K98: Limited | L98: Unimproved | M98: Open defecation | N98: Improved | O98: Basic | P98: Limited | Q98: Unimproved | R98: Open defecation | S98: Improved | T98: Basic | U98: Limited | V98: Unimproved | W98: Open defecation | X98: Improved | Y98: Basic | Z98: Limited | AA98: Unimproved | AB98: Open defecation
A99: Forecast period: | C99: 2000 | D99: =IF((D101+H101)>100,D101*100/(D101+H101),D101) -> 95.92376081 | E99: =D99*AVERAGEIF(E105:E116,">0")/100 -> 94.20594563 | F99: =D99*(100-AVERAGEIF(E105:E116,">0"))/100 -> 1.717815177 | G99: =100-(E99+F99+H99) -> 4.076239195 | H99: =IF((D101+H101)>100,H101*100/(D101+H101),H101) -> 0 | I99: =IF((I101+M101)>100,I101*100/(I101+M101),I101) -> 95.25398067 | J99: =I99*AVERAGEIF(J105:J116,">0")/100 -> 94.65221915 | K99: =I99*(100-AVERAGEIF(J105:J116,">0"))/100 -> 0.6017615248 | L99: =100-(J99+K99+M99) -> 4.158184095 | M99: =IF((I101+M101)>100,M101*100/(I101+M101),M101) -> 0.5878352339 | N99: =IF((N101+R101)>100,N101*100/(N101+R101),N101) -> 96.4504293 | O99: =N99*AVERAGEIF(O105:O116,">0")/100 -> 92.50366185 | P99: =N99*(100-AVERAGEIF(O105:O116,">0"))/100 -> 3.946767452 | Q99: =100-(O99+P99+R99) -> 3.316566922 | R99: =IF((N101+R101)>100,R101*100/(N101+R101),R101) -> 0.2330037795 | S99: =IF((S101+W101)>100,S101*100/(S101+W101),S101) -> 96.16160408 | T99: =S99*AVERAGEIF(T105:T116,">0")/100 -> 94.23519527 | U99: =S99*(100-AVERAGEIF(T105:T116,">0"))/100 -> 1.926408811 | V99: =100-(T99+U99+W99) -> 1.364903988 | W99: =IF((S101+W101)>100,W101*100/(S101+W101),W101) -> 2.473491936 | X99: =IF((X101+AB101)>100,X101*100/(X101+AB101),X101) -> 99.72436514 | Y99: =X99*AVERAGEIF(Y105:Y116,">0")/100 -> 99.30183715 | Z99: =X99*(100-AVERAGEIF(Y105:Y116,">0"))/100 -> 0.4225279911 | AA99: =100-(Y99+Z99+AB99) -> 0.1340744918 | AB99: =IF((X101+AB101)>100,AB101*100/(X101+AB101),AB101) -> 0.1415603682
C100: 2020 | D100: =IF((D102+H102)>100,D102*100/(D102+H102),D102) -> 72.56118798 | E100: =D100*AVERAGEIF(E105:E116,">0")/100 -> 71.26175279 | F100: =D100*(100-AVERAGEIF(E105:E116,">0"))/100 -> 1.299435186 | G100: =100-(E100+F100+H100) -> 27.25328761 | H100: =IF((D102+H102)>100,H102*100/(D102+H102),H102) -> 0.1855244101 | I100: =IF((I102+M102)>100,I102*100/(I102+M102),I102) -> 82.25322654 | J100: =I100*AVERAGEIF(J105:J116,">0")/100 -> 81.73359653 | K100: =I100*(100-AVERAGEIF(J105:J116,">0"))/100 -> 0.519630011 | L100: =100-(J100+K100+M100) -> 17.74677346 | M100: =IF((I102+M102)>100,M102*100/(I102+M102),M102) -> 0 | N100: =IF((N102+R102)>100,N102*100/(N102+R102),N102) -> 91.99446428 | O100: =N100*AVERAGEIF(O105:O116,">0")/100 -> 88.23003565 | P100: =N100*(100-AVERAGEIF(O105:O116,">0"))/100 -> 3.76442863 | Q100: =100-(O100+P100+R100) -> 8.005535718 | R100: =IF((N102+R102)>100,R102*100/(N102+R102),R102) -> 0 | S100: =IF((S102+W102)>100,S102*100/(S102+W102),S102) -> 99.66403338 | T100: =S100*AVERAGEIF(T105:T116,">0")/100 -> 97.66746028 | U100: =S100*(100-AVERAGEIF(T105:T116,">0"))/100 -> 1.996573101 | V100: =100-(T100+U100+W100) -> 0.3359666178 | W100: =IF((S102+W102)>100,W102*100/(S102+W102),W102) -> 0 | X100: =IF((X102+AB102)>100,X102*100/(X102+AB102),X102) -> 99.98764472 | Y100: =X100*AVERAGEIF(Y105:Y116,">0")/100 -> 99.56400122 | Z100: =X100*(100-AVERAGEIF(Y105:Y116,">0"))/100 -> 0.4236434957 | AA100: =100-(Y100+Z100+AB100) -> 0.0123552797 | AB100: =IF((X102+AB102)>100,AB102*100/(X102+AB102),AB102) -> 0
A101: Regression period: | C101: =MinRegYear(C99,C105:C116) -> 2001 | D101: =IF(MAX(C105:C116)-MIN(C105:C116)<5,AVERAGEIF(C105:C116,">0",D105:D116), IF(FORECAST($C101,D$105:D$116,$C$105:$C$116)<0,0, IF(FORECAST($C101,D$105:D$116,$C$105:$C$116)>100,100, FORECAST($C101,D$105:D$116,$C$105:$C$116)))) -> 95.92376081 | H101: =IF(MAX(C105:C116)-MIN(C105:C116)<5,AVERAGEIF(C105:C116,">0",H105:H116), IF(FORECAST($C101,H$105:H$116,$C$105:$C$116)<0,0, IF(FORECAST($C101,H$105:H$116,$C$105:$C$116)>100,100, FORECAST($C101,H$105:H$116,$C$105:$C$116)))) -> 0 | I101: =IF(MAX(C105:C116)-MIN(C105:C116)<5,AVERAGEIF(C105:C116,">0",I105:I116), IF(FORECAST($C101,I$105:I$116,$C$105:$C$116)<0,0, IF(FORECAST($C101,I$105:I$116,$C$105:$C$116)>100,100, FORECAST($C101,I$105:I$116,$C$105:$C$116)))) -> 95.25398067 | M101: =IF(MAX(C105:C116)-MIN(C105:C116)<5,AVERAGEIF(C105:C116,">0",M105:M116), IF(FORECAST($C101,M$105:M$116,$C$105:$C$116)<0,0, IF(FORECAST($C101,M$105:M$116,$C$105:$C$116)>100,100, FORECAST($C101,M$105:M$116,$C$105:$C$116)))) -> 0.5878352339 | N101: =IF(MAX(C105:C116)-MIN(C105:C116)<5,AVERAGEIF(C105:C116,">0",N105:N116), IF(FORECAST($C101,N$105:N$116,$C$105:$C$116)<0,0, IF(FORECAST($C101,N$105:N$116,$C$105:$C$116)>100,100, FORECAST($C101,N$105:N$116,$C$105:$C$116)))) -> 96.4504293 | R101: =IF(MAX(C105:C116)-MIN(C105:C116)<5,AVERAGEIF(C105:C116,">0",R105:R116), IF(FORECAST($C101,R$105:R$116,$C$105:$C$116)<0,0, IF(FORECAST($C101,R$105:R$116,$C$105:$C$116)>100,100, FORECAST($C101,R$105:R$116,$C$105:$C$116)))) -> 0.2330037795 | S101: =IF(MAX(C105:C116)-MIN(C105:C116)<5,AVERAGEIF(C105:C116,">0",S105:S116), IF(FORECAST($C101,S$105:S$116,$C$105:$C$116)<0,0, IF(FORECAST($C101,S$105:S$116,$C$105:$C$116)>100,100, FORECAST($C101,S$105:S$116,$C$105:$C$116)))) -> 96.16160408 | W101: =IF(MAX(C105:C116)-MIN(C105:C116)<5,AVERAGEIF(C105:C116,">0",W105:W116), IF(FORECAST($C101,W$105:W$116,$C$105:$C$116)<0,0, IF(FORECAST($C101,W$105:W$116,$C$105:$C$116)>100,100, FORECAST($C101,W$105:W$116,$C$105:$C$116)))) -> 2.473491936 | X101: =IF(MAX(C105:C116)-MIN(C105:C116)<5,AVERAGEIF(C105:C116,">0",X105:X116), IF(FORECAST($C101,X$105:X$116,$C$105:$C$116)<0,0, IF(FORECAST($C101,X$105:X$116,$C$105:$C$116)>100,100, FORECAST($C101,X$105:X$116,$C$105:$C$116)))) -> 99.72436514 | AB101: =IF(MAX(C105:C116)-MIN(C105:C116)<5,AVERAGEIF(C105:C116,">0",AB105:AB116), IF(FORECAST($C101,AB$105:AB$116,$C$105:$C$116)<0,0, IF(FORECAST($C101,AB$105:AB$116,$C$105:$C$116)>100,100, FORECAST($C101,AB$105:AB$116,$C$105:$C$116)))) -> 0.1415603682
C102: =MaxRegYear(C100,C105:C116) -> 2020 | D102: =IF(MAX(C105:C116)-MIN(C105:C116)<5,AVERAGEIF(C105:C116,">0",D105:D116), IF(FORECAST($C102,D$105:D$116,$C$105:$C$116)<0,0, IF(FORECAST($C102,D$105:D$116,$C$105:$C$116)>100,100, FORECAST($C102,D$105:D$116,$C$105:$C$116)))) -> 72.56118798 | H102: =IF(MAX(C105:C116)-MIN(C105:C116)<5,AVERAGEIF(C105:C116,">0",H105:H116), IF(FORECAST($C102,H$105:H$116,$C$105:$C$116)<0,0, IF(FORECAST($C102,H$105:H$116,$C$105:$C$116)>100,100, FORECAST($C102,H$105:H$116,$C$105:$C$116)))) -> 0.1855244101 | I102: =IF(MAX(C105:C116)-MIN(C105:C116)<5,AVERAGEIF(C105:C116,">0",I105:I116), IF(FORECAST($C102,I$105:I$116,$C$105:$C$116)<0,0, IF(FORECAST($C102,I$105:I$116,$C$105:$C$116)>100,100, FORECAST($C102,I$105:I$116,$C$105:$C$116)))) -> 82.25322654 | M102: =IF(MAX(C105:C116)-MIN(C105:C116)<5,AVERAGEIF(C105:C116,">0",M105:M116), IF(FORECAST($C102,M$105:M$116,$C$105:$C$116)<0,0, IF(FORECAST($C102,M$105:M$116,$C$105:$C$116)>100,100, FORECAST($C102,M$105:M$116,$C$105:$C$116)))) -> 0 | N102: =IF(MAX(C105:C116)-MIN(C105:C116)<5,AVERAGEIF(C105:C116,">0",N105:N116), IF(FORECAST($C102,N$105:N$116,$C$105:$C$116)<0,0, IF(FORECAST($C102,N$105:N$116,$C$105:$C$116)>100,100, FORECAST($C102,N$105:N$116,$C$105:$C$116)))) -> 91.99446428 | R102: =IF(MAX(C105:C116)-MIN(C105:C116)<5,AVERAGEIF(C105:C116,">0",R105:R116), IF(FORECAST($C102,R$105:R$116,$C$105:$C$116)<0,0, IF(FORECAST($C102,R$105:R$116,$C$105:$C$116)>100,100, FORECAST($C102,R$105:R$116,$C$105:$C$116)))) -> 0 | S102: =IF(MAX(C105:C116)-MIN(C105:C116)<5,AVERAGEIF(C105:C116,">0",S105:S116), IF(FORECAST($C102,S$105:S$116,$C$105:$C$116)<0,0, IF(FORECAST($C102,S$105:S$116,$C$105:$C$116)>100,100, FORECAST($C102,S$105:S$116,$C$105:$C$116)))) -> 99.66403338 | W102: =IF(MAX(C105:C116)-MIN(C105:C116)<5,AVERAGEIF(C105:C116,">0",W105:W116), IF(FORECAST($C102,W$105:W$116,$C$105:$C$116)<0,0, IF(FORECAST($C102,W$105:W$116,$C$105:$C$116)>100,100, FORECAST($C102,W$105:W$116,$C$105:$C$116)))) -> 0 | X102: =IF(MAX(C105:C116)-MIN(C105:C116)<5,AVERAGEIF(C105:C116,">0",X105:X116), IF(FORECAST($C102,X$105:X$116,$C$105:$C$116)<0,0, IF(FORECAST($C102,X$105:X$116,$C$105:$C$116)>100,100, FORECAST($C102,X$105:X$116,$C$105:$C$116)))) -> 99.98764472 | AB102: =IF(MAX(C105:C116)-MIN(C105:C116)<5,AVERAGEIF(C105:C116,">0",AB105:AB116), IF(FORECAST($C102,AB$105:AB$116,$C$105:$C$116)<0,0, IF(FORECAST($C102,AB$105:AB$116,$C$105:$C$116)>100,100, FORECAST($C102,AB$105:AB$116,$C$105:$C$116)))) -> 0
B104: Survey | C104: Year | D104: Improved | E104: Not shared | H104: Open defecation | I104: Improved | J104: Not shared | M104: Open defecation | N104: Improved | O104: Not shared | R104: Open defecation | S104: Improved | T104: Not shared | W104: Open defecation | X104: Improved | Y104: Not shared | AB104: Open defecation
B105: WHS03 | C105: 2003 | D105: =IF(ISERROR(INDIRECT(CONCATENATE($B105,"!C122"))),"",INDIRECT(CONCATENATE($B105,"!C122"))) -> 94.21564097 | E105: =IF(ISERROR(INDIRECT(CONCATENATE($B105,"!C129"))),"",INDIRECT(CONCATENATE($B105,"!C129"))) -> N/A | H105: =IF(ISERROR(INDIRECT(CONCATENATE($B105,"!C127"))),"",INDIRECT(CONCATENATE($B105,"!C127"))) -> 0 | I105: =IF(ISERROR(INDIRECT(CONCATENATE($B105,"!D122"))),"",INDIRECT(CONCATENATE($B105,"!D122"))) -> 95.46635046 | J105: =IF(ISERROR(INDIRECT(CONCATENATE($B105,"!D129"))),"",INDIRECT(CONCATENATE($B105,"!D129"))) -> N/A | M105: =IF(ISERROR(INDIRECT(CONCATENATE($B105,"!D127"))),"",INDIRECT(CONCATENATE($B105,"!D127"))) -> 0.9009380738 | N105: =IF(ISERROR(INDIRECT(CONCATENATE($B105,"!E122"))),"",INDIRECT(CONCATENATE($B105,"!E122"))) -> 97.00405789 | O105: =IF(ISERROR(INDIRECT(CONCATENATE($B105,"!E129"))),"",INDIRECT(CONCATENATE($B105,"!E129"))) -> N/A | R105: =IF(ISERROR(INDIRECT(CONCATENATE($B105,"!E127"))),"",INDIRECT(CONCATENATE($B105,"!E127"))) -> 0.3696493487 | S105: =IF(ISERROR(INDIRECT(CONCATENATE($B105,"!F122"))),"",INDIRECT(CONCATENATE($B105,"!F122"))) -> 94.97074204 | T105: =IF(ISERROR(INDIRECT(CONCATENATE($B105,"!F129"))),"",INDIRECT(CONCATENATE($B105,"!F129"))) -> N/A | W105: =IF(ISERROR(INDIRECT(CONCATENATE($B105,"!F127"))),"",INDIRECT(CONCATENATE($B105,"!F127"))) -> 3.790965447 | X105: =IF(ISERROR(INDIRECT(CONCATENATE($B105,"!G122"))),"",INDIRECT(CONCATENATE($B105,"!G122"))) -> 99.58856498 | Y105: =IF(ISERROR(INDIRECT(CONCATENATE($B105,"!G129"))),"",INDIRECT(CONCATENATE($B105,"!G129"))) -> N/A | AB105: =IF(ISERROR(INDIRECT(CONCATENATE($B105,"!G2127"))),"",INDIRECT(CONCATENATE($B105,"!G127"))) -> 0.2169606687
B106: MICS05 | C106: 2005 | D106: 94.11701027 | E106: 98.32179513 | H106: 0 | I106: 94.85285674 | J106: 99.21501988 | M106: 0 | N106: 96.59689757 | O106: 96.78639936 | R106: 0 | S106: 99.04003359 | T106: 97.285537 | W106: 0 | X106: 100 | Y106: 99.18220705 | AB106: 0
B107: WMS13 | C107: 2013 | D107: 70.82477338 | E107: N/A | H107: 0 | I107: 76.22708734 | J107: N/A | M107: 0 | N107: 87.74823095 | O107: N/A | R107: 0 | S107: 97.48548357 | T107: N/A | W107: 0 | X107: 99.80864867 | Y107: N/A | AB107: 0
B108: MICS18 | C108: 2018 | D108: 81.50130023 | E108: 98.09657887 | H108: 0.2245419149 | I108: 90.52087052 | J108: 99.52149166 | M108: 0 | N108: 96.24417418 | O108: 95.0295677 | R108: 0.03382029582 | S108: 99.60200056 | T108: 98.70785594 | W108: 0 | X108: 99.98523561 | Y108: 99.97040126 | AB108: 0
B118: =CONCATENATE("National use of sanitation facilities, ",C99,"–",C100) -> National use of sanitation facilities, 2000–2020 | S118: Data points used for regression
A197: URBAN | D197: Poorest | I197: Poor | N197: Middle | S197: Rich | X197: Richest
D198: Improved | E198: Basic | F198: Limited | G198: Unimproved | H198: Open defecation | I198: Improved | J198: Basic | K198: Limited | L198: Unimproved | M198: Open defecation | N198: Improved | O198: Basic | P198: Limited | Q198: Unimproved | R198: Open defecation | S198: Improved | T198: Basic | U198: Limited | V198: Unimproved | W198: Open defecation | X198: Improved | Y198: Basic | Z198: Limited | AA198: Unimproved | AB198: Open defecation
A199: Forecast period: | C199: 2000 | D199: =IF((D201+H201)>100,D201*100/(D201+H201),D201) -> 95.52197238 | E199: =D199*AVERAGEIF(E205:E216,">0")/100 -> 89.96436538 | F199: =D199*(100-AVERAGEIF(E205:E216,">0"))/100 -> 5.557606999 | G199: =100-(E199+F199+H199) -> 4.478027621 | H199: =IF((D201+H201)>100,H201*100/(D201+H201),H201) -> 0 | I199: =IF((I201+M201)>100,I201*100/(I201+M201),I201) -> 99.4683281 | J199: =I199*AVERAGEIF(J205:J216,">0")/100 -> 95.99716729 | K199: =I199*(100-AVERAGEIF(J205:J216,">0"))/100 -> 3.471160803 | L199: =100-(J199+K199+M199) -> 0.531671904 | M199: =IF((I201+M201)>100,M201*100/(I201+M201),M201) -> 0 | N199: =IF((N201+R201)>100,N201*100/(N201+R201),N201) -> 99.27084732 | O199: =N199*AVERAGEIF(O205:O216,">0")/100 -> 97.28687157 | P199: =N199*(100-AVERAGEIF(O205:O216,">0"))/100 -> 1.98397575 | Q199: =100-(O199+P199+R199) -> 0.7291526764 | R199: =IF((N201+R201)>100,R201*100/(N201+R201),R201) -> 0 | S199: =IF((S201+W201)>100,S201*100/(S201+W201),S201) -> 100 | T199: =S199*AVERAGEIF(T205:T216,">0")/100 -> 99.50078022 | U199: =S199*(100-AVERAGEIF(T205:T216,">0"))/100 -> 0.4992197783 | V199: =100-(T199+U199+W199) -> 0 | W199: =IF((S201+W201)>100,W201*100/(S201+W201),W201) -> 0 | X199: =IF((X201+AB201)>100,X201*100/(X201+AB201),X201) -> 99.74651065 | Y199: =X199*AVERAGEIF(Y205:Y216,">0")/100 -> 99.44158608 | Z199: =X199*(100-AVERAGEIF(Y205:Y216,">0"))/100 -> 0.3049245649 | AA199: =100-(Y199+Z199+AB199) -> 0.2534893505 | AB199: =IF((X201+AB201)>100,AB201*100/(X201+AB201),AB201) -> 0
C200: 2020 | D200: =IF((D202+H202)>100,D202*100/(D202+H202),D202) -> 92.79901926 | E200: =D200*AVERAGEIF(E205:E216,">0")/100 -> 87.39983762 | F200: =D200*(100-AVERAGEIF(E205:E216,">0"))/100 -> 5.399181634 | G200: =100-(E200+F200+H200) -> 7.153939777 | H200: =IF((D202+H202)>100,H202*100/(D202+H202),H202) -> 0.0470409673 | I200: =IF((I202+M202)>100,I202*100/(I202+M202),I202) -> 97.96356328 | J200: =I200*AVERAGEIF(J205:J216,">0")/100 -> 94.54491448 | K200: =I200*(100-AVERAGEIF(J205:J216,">0"))/100 -> 3.418648805 | L200: =100-(J200+K200+M200) -> 2.036436715 | M200: =IF((I202+M202)>100,M202*100/(I202+M202),M202) -> 0 | N200: =IF((N202+R202)>100,N202*100/(N202+R202),N202) -> 99.75456112 | O200: =N200*AVERAGEIF(O205:O216,">0")/100 -> 97.76091812 | P200: =N200*(100-AVERAGEIF(O205:O216,">0"))/100 -> 1.993643004 | Q200: =100-(O200+P200+R200) -> 0.2454388798 | R200: =IF((N202+R202)>100,R202*100/(N202+R202),R202) -> 0 | S200: =IF((S202+W202)>100,S202*100/(S202+W202),S202) -> 99.74771621 | T200: =S200*AVERAGEIF(T205:T216,">0")/100 -> 99.24975588 | U200: =S200*(100-AVERAGEIF(T205:T216,">0"))/100 -> 0.4979603277 | V200: =100-(T200+U200+W200) -> 0.2522837941 | W200: =IF((S202+W202)>100,W202*100/(S202+W202),W202) -> 0 | X200: =IF((X202+AB202)>100,X202*100/(X202+AB202),X202) -> 100 | Y200: =X200*AVERAGEIF(Y205:Y216,">0")/100 -> 99.69430052 | Z200: =X200*(100-AVERAGEIF(Y205:Y216,">0"))/100 -> 0.3056994806 | AA200: =100-(Y200+Z200+AB200) -> 0 | AB200: =IF((X202+AB202)>100,AB202*100/(X202+AB202),AB202) -> 0
A201: Regression period: | C201: =MinRegYear(C199,C205:C216) -> 2001 | D201: =IF(MAX(C205:C216)-MIN(C205:C216)<5,AVERAGEIF(C205:C216,">0",D205:D216), IF(FORECAST($C201,D$205:D$216,$C$205:$C$216)<0,0, IF(FORECAST($C201,D$205:D$216,$C$205:$C$216)>100,100, FORECAST($C201,D$205:D$216,$C$205:$C$216)))) -> 95.52197238 | H201: =IF(MAX(C205:C216)-MIN(C205:C216)<5,AVERAGEIF(C205:C216,">0",H205:H216), IF(FORECAST($C201,H$205:H$216,$C$205:$C$216)<0,0, IF(FORECAST($C201,H$205:H$216,$C$205:$C$216)>100,100, FORECAST($C201,H$205:H$216,$C$205:$C$216)))) -> 0 | I201: =IF(MAX(C205:C216)-MIN(C205:C216)<5,AVERAGEIF(C205:C216,">0",I205:I216), IF(FORECAST($C201,I$205:I$216,$C$205:$C$216)<0,0, IF(FORECAST($C201,I$205:I$216,$C$205:$C$216)>100,100, FORECAST($C201,I$205:I$216,$C$205:$C$216)))) -> 99.4683281 | M201: =IF(MAX(C205:C216)-MIN(C205:C216)<5,AVERAGEIF(C205:C216,">0",M205:M216), IF(FORECAST($C201,M$205:M$216,$C$205:$C$216)<0,0, IF(FORECAST($C201,M$205:M$216,$C$205:$C$216)>100,100, FORECAST($C201,M$205:M$216,$C$205:$C$216)))) -> 0 | N201: =IF(MAX(C205:C216)-MIN(C205:C216)<5,AVERAGEIF(C205:C216,">0",N205:N216), IF(FORECAST($C201,N$205:N$216,$C$205:$C$216)<0,0, IF(FORECAST($C201,N$205:N$216,$C$205:$C$216)>100,100, FORECAST($C201,N$205:N$216,$C$205:$C$216)))) -> 99.27084732 | R201: =IF(MAX(C205:C216)-MIN(C205:C216)<5,AVERAGEIF(C205:C216,">0",R205:R216), IF(FORECAST($C201,R$205:R$216,$C$205:$C$216)<0,0, IF(FORECAST($C201,R$205:R$216,$C$205:$C$216)>100,100, FORECAST($C201,R$205:R$216,$C$205:$C$216)))) -> 0 | S201: =IF(MAX(C205:C216)-MIN(C205:C216)<5,AVERAGEIF(C205:C216,">0",S205:S216), IF(FORECAST($C201,S$205:S$216,$C$205:$C$216)<0,0, IF(FORECAST($C201,S$205:S$216,$C$205:$C$216)>100,100, FORECAST($C201,S$205:S$216,$C$205:$C$216)))) -> 100 | W201: =IF(MAX(C205:C216)-MIN(C205:C216)<5,AVERAGEIF(C205:C216,">0",W205:W216), IF(FORECAST($C201,W$205:W$216,$C$205:$C$216)<0,0, IF(FORECAST($C201,W$205:W$216,$C$205:$C$216)>100,100, FORECAST($C201,W$205:W$216,$C$205:$C$216)))) -> 0 | X201: =IF(MAX(C205:C216)-MIN(C205:C216)<5,AVERAGEIF(C205:C216,">0",X205:X216), IF(FORECAST($C201,X$205:X$216,$C$205:$C$216)<0,0, IF(FORECAST($C201,X$205:X$216,$C$205:$C$216)>100,100, FORECAST($C201,X$205:X$216,$C$205:$C$216)))) -> 99.74651065 | AB201: =IF(MAX(C205:C216)-MIN(C205:C216)<5,AVERAGEIF(C205:C216,">0",AB205:AB216), IF(FORECAST($C201,AB$205:AB$216,$C$205:$C$216)<0,0, IF(FORECAST($C201,AB$205:AB$216,$C$205:$C$216)>100,100, FORECAST($C201,AB$205:AB$216,$C$205:$C$216)))) -> 0
C202: =MaxRegYear(C200,C205:C216) -> 2020 | D202: =IF(MAX(C205:C216)-MIN(C205:C216)<5,AVERAGEIF(C205:C216,">0",D205:D216), IF(FORECAST($C202,D$205:D$216,$C$205:$C$216)<0,0, IF(FORECAST($C202,D$205:D$216,$C$205:$C$216)>100,100, FORECAST($C202,D$205:D$216,$C$205:$C$216)))) -> 92.79901926 | H202: =IF(MAX(C205:C216)-MIN(C205:C216)<5,AVERAGEIF(C205:C216,">0",H205:H216), IF(FORECAST($C202,H$205:H$216,$C$205:$C$216)<0,0, IF(FORECAST($C202,H$205:H$216,$C$205:$C$216)>100,100, FORECAST($C202,H$205:H$216,$C$205:$C$216)))) -> 0.0470409673 | I202: =IF(MAX(C205:C216)-MIN(C205:C216)<5,AVERAGEIF(C205:C216,">0",I205:I216), IF(FORECAST($C202,I$205:I$216,$C$205:$C$216)<0,0, IF(FORECAST($C202,I$205:I$216,$C$205:$C$216)>100,100, FORECAST($C202,I$205:I$216,$C$205:$C$216)))) -> 97.96356328 | M202: =IF(MAX(C205:C216)-MIN(C205:C216)<5,AVERAGEIF(C205:C216,">0",M205:M216), IF(FORECAST($C202,M$205:M$216,$C$205:$C$216)<0,0, IF(FORECAST($C202,M$205:M$216,$C$205:$C$216)>100,100, FORECAST($C202,M$205:M$216,$C$205:$C$216)))) -> 0 | N202: =IF(MAX(C205:C216)-MIN(C205:C216)<5,AVERAGEIF(C205:C216,">0",N205:N216), IF(FORECAST($C202,N$205:N$216,$C$205:$C$216)<0,0, IF(FORECAST($C202,N$205:N$216,$C$205:$C$216)>100,100, FORECAST($C202,N$205:N$216,$C$205:$C$216)))) -> 99.75456112 | R202: =IF(MAX(C205:C216)-MIN(C205:C216)<5,AVERAGEIF(C205:C216,">0",R205:R216), IF(FORECAST($C202,R$205:R$216,$C$205:$C$216)<0,0, IF(FORECAST($C202,R$205:R$216,$C$205:$C$216)>100,100, FORECAST($C202,R$205:R$216,$C$205:$C$216)))) -> 0 | S202: =IF(MAX(C205:C216)-MIN(C205:C216)<5,AVERAGEIF(C205:C216,">0",S205:S216), IF(FORECAST($C202,S$205:S$216,$C$205:$C$216)<0,0, IF(FORECAST($C202,S$205:S$216,$C$205:$C$216)>100,100, FORECAST($C202,S$205:S$216,$C$205:$C$216)))) -> 99.74771621 | W202: =IF(MAX(C205:C216)-MIN(C205:C216)<5,AVERAGEIF(C205:C216,">0",W205:W216), IF(FORECAST($C202,W$205:W$216,$C$205:$C$216)<0,0, IF(FORECAST($C202,W$205:W$216,$C$205:$C$216)>100,100, FORECAST($C202,W$205:W$216,$C$205:$C$216)))) -> 0 | X202: =IF(MAX(C205:C216)-MIN(C205:C216)<5,AVERAGEIF(C205:C216,">0",X205:X216), IF(FORECAST($C202,X$205:X$216,$C$205:$C$216)<0,0, IF(FORECAST($C202,X$205:X$216,$C$205:$C$216)>100,100, FORECAST($C202,X$205:X$216,$C$205:$C$216)))) -> 100 | AB202: =IF(MAX(C205:C216)-MIN(C205:C216)<5,AVERAGEIF(C205:C216,">0",AB205:AB216), IF(FORECAST($C202,AB$205:AB$216,$C$205:$C$216)<0,0, IF(FORECAST($C202,AB$205:AB$216,$C$205:$C$216)>100,100, FORECAST($C202,AB$205:AB$216,$C$205:$C$216)))) -> 0
B204: Survey | C204: Year | D204: Improved | E204: Not shared | H204: Open defecation | I204: Improved | J204: Not shared | M204: Open defecation | N204: Improved | O204: Not shared | R204: Open defecation | S204: Improved | T204: Not shared | W204: Open defecation | X204: Improved | Y204: Not shared | AB204: Open defecation
B205: WHS03 | C205: 2003 | D205: =IF(ISERROR(INDIRECT(CONCATENATE($B205,"!H122"))),"",INDIRECT(CONCATENATE($B205,"!H122"))) -> 96.42359191 | E205: =IF(ISERROR(INDIRECT(CONCATENATE($B205,"!H129"))),"",INDIRECT(CONCATENATE($B205,"!H129"))) -> N/A | H205: =IF(ISERROR(INDIRECT(CONCATENATE($B205,"!H127"))),"",INDIRECT(CONCATENATE($B205,"!H127"))) -> 0 | I205: =IF(ISERROR(INDIRECT(CONCATENATE($B205,"!I122"))),"",INDIRECT(CONCATENATE($B205,"!I122"))) -> 99.46810284 | J205: =IF(ISERROR(INDIRECT(CONCATENATE($B205,"!I129"))),"",INDIRECT(CONCATENATE($B205,"!I129"))) -> N/A | M205: =IF(ISERROR(INDIRECT(CONCATENATE($B205,"!I127"))),"",INDIRECT(CONCATENATE($B205,"!I127"))) -> 0 | N205: =IF(ISERROR(INDIRECT(CONCATENATE($B205,"!J122"))),"",INDIRECT(CONCATENATE($B205,"!J122"))) -> 99.02270181 | O205: =IF(ISERROR(INDIRECT(CONCATENATE($B205,"!J129"))),"",INDIRECT(CONCATENATE($B205,"!J129"))) -> N/A | R205: =IF(ISERROR(INDIRECT(CONCATENATE($B205,"!J127"))),"",INDIRECT(CONCATENATE($B205,"!J127"))) -> 0 | S205: =IF(ISERROR(INDIRECT(CONCATENATE($B205,"!K122"))),"",INDIRECT(CONCATENATE($B205,"!K122"))) -> 100 | T205: =IF(ISERROR(INDIRECT(CONCATENATE($B205,"!K129"))),"",INDIRECT(CONCATENATE($B205,"!K129"))) -> N/A | W205: =IF(ISERROR(INDIRECT(CONCATENATE($B205,"!K127"))),"",INDIRECT(CONCATENATE($B205,"!K127"))) -> 0 | X205: =IF(ISERROR(INDIRECT(CONCATENATE($B205,"!L122"))),"",INDIRECT(CONCATENATE($B205,"!L122"))) -> 99.61149282 | Y205: =IF(ISERROR(INDIRECT(CONCATENATE($B205,"!L129"))),"",INDIRECT(CONCATENATE($B205,"!L129"))) -> N/A | AB205: =IF(ISERROR(INDIRECT(CONCATENATE($B205,"!L2127"))),"",INDIRECT(CONCATENATE($B205,"!L127"))) -> 0
B206: MICS05 | C206: 2005 | D206: 94.30082945 | E206: 95.43058523 | H206: 0 | I206: 99.44655523 | J206: 95.02085816 | M206: 0 | N206: 99.76660932 | O206: 97.46310057 | R206: 0 | S206: 100 | T206: 99.16812232 | W206: 0 | X206: 100 | Y206: 99.38860104 | AB206: 0
B207: WMS13 | C207: 2013 | D207: 91.92198705 | E207: N/A | H207: 0 | I207: 97.27638591 | J207: N/A | M207: 0 | N207: 99.44932752 | O207: N/A | R207: 0 | S207: 99.62836771 | T207: N/A | W207: 0 | X207: 100 | Y207: N/A | AB207: 0
B208: MICS18 | C208: 2018 | D208: 94.42551483 | E208: 92.93312448 | H208: 0.05693411918 | I208: 98.91033323 | J208: 97.99971257 | M208: 0 | N208: 99.73580238 | O208: 98.53980299 | R208: 0 | S208: 99.90920918 | T208: 99.83343812 | W208: 0 | X208: 100 | Y208: 100 | AB208: 0
B218: =CONCATENATE("Urban use of sanitation facilities, ",C199,"–",C200) -> Urban use of sanitation facilities, 2000–2020 | S218: Data points used for regression
A297: RURAL | D297: Poorest | I297: Poor | N297: Middle | S297: Rich | X297: Richest
D298: Improved | E298: Basic | F298: Limited | G298: Unimproved | H298: Open defecation | I298: Improved | J298: Basic | K298: Limited | L298: Unimproved | M298: Open defecation | N298: Improved | O298: Basic | P298: Limited | Q298: Unimproved | R298: Open defecation | S298: Improved | T298: Basic | U298: Limited | V298: Unimproved | W298: Open defecation | X298: Improved | Y298: Basic | Z298: Limited | AA298: Unimproved | AB298: Open defecation
A299: Forecast period: | C299: 2000 | D299: =IF((D301+H301)>100,D301*100/(D301+H301),D301) -> 92.66837126 | E299: =D299*AVERAGEIF(E305:E316,">0")/100 -> 90.52101027 | F299: =D299*(100-AVERAGEIF(E305:E316,">0"))/100 -> 2.147360991 | G299: =100-(E299+F299+H299) -> 1.46176443 | H299: =IF((D301+H301)>100,H301*100/(D301+H301),H301) -> 5.86986431 | I299: =IF((I301+M301)>100,I301*100/(I301+M301),I301) -> 94.88503176 | J299: =I299*AVERAGEIF(J305:J316,">0")/100 -> 93.66586244 | K299: =I299*(100-AVERAGEIF(J305:J316,">0"))/100 -> 1.219169323 | L299: =100-(J299+K299+M299) -> 3.754803657 | M299: =IF((I301+M301)>100,M301*100/(I301+M301),M301) -> 1.360164582 | N299: =IF((N301+R301)>100,N301*100/(N301+R301),N301) -> 96.9893397 | O299: =N299*AVERAGEIF(O305:O316,">0")/100 -> 95.95028863 | P299: =N299*(100-AVERAGEIF(O305:O316,">0"))/100 -> 1.039051074 | Q299: =100-(O299+P299+R299) -> 3.010660298 | R299: =IF((N301+R301)>100,R301*100/(N301+R301),R301) -> 0 | S299: =IF((S301+W301)>100,S301*100/(S301+W301),S301) -> 95.95279667 | T299: =S299*AVERAGEIF(T305:T316,">0")/100 -> 95.48475796 | U299: =S299*(100-AVERAGEIF(T305:T316,">0"))/100 -> 0.4680387126 | V299: =100-(T299+U299+W299) -> 4.047203327 | W299: =IF((S301+W301)>100,W301*100/(S301+W301),W301) -> 0 | X299: =IF((X301+AB301)>100,X301*100/(X301+AB301),X301) -> 94.3091384 | Y299: =X299*AVERAGEIF(Y305:Y316,">0")/100 -> 93.87735448 | Z299: =X299*(100-AVERAGEIF(Y305:Y316,">0"))/100 -> 0.4317839216 | AA299: =100-(Y299+Z299+AB299) -> 5.690861599 | AB299: =IF((X301+AB301)>100,AB301*100/(X301+AB301),AB301) -> 0
C300: 2020 | D300: =IF((D302+H302)>100,D302*100/(D302+H302),D302) -> 67.92583574 | E300: =D300*AVERAGEIF(E305:E316,">0")/100 -> 66.351822 | F300: =D300*(100-AVERAGEIF(E305:E316,">0"))/100 -> 1.574013744 | G300: =100-(E300+F300+H300) -> 32.07416426 | H300: =IF((D302+H302)>100,H302*100/(D302+H302),H302) -> 0 | I300: =IF((I302+M302)>100,I302*100/(I302+M302),I302) -> 74.87933697 | J300: =I300*AVERAGEIF(J305:J316,">0")/100 -> 73.91721903 | K300: =I300*(100-AVERAGEIF(J305:J316,">0"))/100 -> 0.9621179321 | L300: =100-(J300+K300+M300) -> 25.12066303 | M300: =IF((I302+M302)>100,M302*100/(I302+M302),M302) -> 0 | N300: =IF((N302+R302)>100,N302*100/(N302+R302),N302) -> 77.75156257 | O300: =N300*AVERAGEIF(O305:O316,">0")/100 -> 76.91860665 | P300: =N300*(100-AVERAGEIF(O305:O316,">0"))/100 -> 0.832955919 | Q300: =100-(O300+P300+R300) -> 22.23833855 | R300: =IF((N302+R302)>100,R302*100/(N302+R302),R302) -> 0.01009887487 | S300: =IF((S302+W302)>100,S302*100/(S302+W302),S302) -> 83.80578445 | T300: =S300*AVERAGEIF(T305:T316,">0")/100 -> 83.39699646 | U300: =S300*(100-AVERAGEIF(T305:T316,">0"))/100 -> 0.408787996 | V300: =100-(T300+U300+W300) -> 16.19421555 | W300: =IF((S302+W302)>100,W302*100/(S302+W302),W302) -> 0 | X300: =IF((X302+AB302)>100,X302*100/(X302+AB302),X302) -> 87.59757225 | Y300: =X300*AVERAGEIF(Y305:Y316,">0")/100 -> 87.19651649 | Z300: =X300*(100-AVERAGEIF(Y305:Y316,">0"))/100 -> 0.401055761 | AA300: =100-(Y300+Z300+AB300) -> 12.40242775 | AB300: =IF((X302+AB302)>100,AB302*100/(X302+AB302),AB302) -> 0
A301: Regression period: | C301: =MinRegYear(C299,C305:C316) -> 2001 | D301: =IF(MAX(C305:C316)-MIN(C305:C316)<5,AVERAGEIF(C305:C316,">0",D305:D316), IF(FORECAST($C301,D$305:D$316,$C$305:$C$316)<0,0, IF(FORECAST($C301,D$305:D$316,$C$305:$C$316)>100,100, FORECAST($C301,D$305:D$316,$C$305:$C$316)))) -> 92.66837126 | H301: =IF(MAX(C305:C316)-MIN(C305:C316)<5,AVERAGEIF(C305:C316,">0",H305:H316), IF(FORECAST($C301,H$305:H$316,$C$305:$C$316)<0,0, IF(FORECAST($C301,H$305:H$316,$C$305:$C$316)>100,100, FORECAST($C301,H$305:H$316,$C$305:$C$316)))) -> 5.86986431 | I301: =IF(MAX(C305:C316)-MIN(C305:C316)<5,AVERAGEIF(C305:C316,">0",I305:I316), IF(FORECAST($C301,I$305:I$316,$C$305:$C$316)<0,0, IF(FORECAST($C301,I$305:I$316,$C$305:$C$316)>100,100, FORECAST($C301,I$305:I$316,$C$305:$C$316)))) -> 94.88503176 | M301: =IF(MAX(C305:C316)-MIN(C305:C316)<5,AVERAGEIF(C305:C316,">0",M305:M316), IF(FORECAST($C301,M$305:M$316,$C$305:$C$316)<0,0, IF(FORECAST($C301,M$305:M$316,$C$305:$C$316)>100,100, FORECAST($C301,M$305:M$316,$C$305:$C$316)))) -> 1.360164582 | N301: =IF(MAX(C305:C316)-MIN(C305:C316)<5,AVERAGEIF(C305:C316,">0",N305:N316), IF(FORECAST($C301,N$305:N$316,$C$305:$C$316)<0,0, IF(FORECAST($C301,N$305:N$316,$C$305:$C$316)>100,100, FORECAST($C301,N$305:N$316,$C$305:$C$316)))) -> 96.9893397 | R301: =IF(MAX(C305:C316)-MIN(C305:C316)<5,AVERAGEIF(C305:C316,">0",R305:R316), IF(FORECAST($C301,R$305:R$316,$C$305:$C$316)<0,0, IF(FORECAST($C301,R$305:R$316,$C$305:$C$316)>100,100, FORECAST($C301,R$305:R$316,$C$305:$C$316)))) -> 0 | S301: =IF(MAX(C305:C316)-MIN(C305:C316)<5,AVERAGEIF(C305:C316,">0",S305:S316), IF(FORECAST($C301,S$305:S$316,$C$305:$C$316)<0,0, IF(FORECAST($C301,S$305:S$316,$C$305:$C$316)>100,100, FORECAST($C301,S$305:S$316,$C$305:$C$316)))) -> 95.95279667 | W301: =IF(MAX(C305:C316)-MIN(C305:C316)<5,AVERAGEIF(C305:C316,">0",W305:W316), IF(FORECAST($C301,W$305:W$316,$C$305:$C$316)<0,0, IF(FORECAST($C301,W$305:W$316,$C$305:$C$316)>100,100, FORECAST($C301,W$305:W$316,$C$305:$C$316)))) -> 0 | X301: =IF(MAX(C305:C316)-MIN(C305:C316)<5,AVERAGEIF(C305:C316,">0",X305:X316), IF(FORECAST($C301,X$305:X$316,$C$305:$C$316)<0,0, IF(FORECAST($C301,X$305:X$316,$C$305:$C$316)>100,100, FORECAST($C301,X$305:X$316,$C$305:$C$316)))) -> 94.3091384 | AB301: =IF(MAX(C305:C316)-MIN(C305:C316)<5,AVERAGEIF(C305:C316,">0",AB305:AB316), IF(FORECAST($C301,AB$305:AB$316,$C$305:$C$316)<0,0, IF(FORECAST($C301,AB$305:AB$316,$C$305:$C$316)>100,100, FORECAST($C301,AB$305:AB$316,$C$305:$C$316)))) -> 0
C302: =MaxRegYear(C300,C305:C316) -> 2020 | D302: =IF(MAX(C305:C316)-MIN(C305:C316)<5,AVERAGEIF(C305:C316,">0",D305:D316), IF(FORECAST($C302,D$305:D$316,$C$305:$C$316)<0,0, IF(FORECAST($C302,D$305:D$316,$C$305:$C$316)>100,100, FORECAST($C302,D$305:D$316,$C$305:$C$316)))) -> 67.92583574 | H302: =IF(MAX(C305:C316)-MIN(C305:C316)<5,AVERAGEIF(C305:C316,">0",H305:H316), IF(FORECAST($C302,H$305:H$316,$C$305:$C$316)<0,0, IF(FORECAST($C302,H$305:H$316,$C$305:$C$316)>100,100, FORECAST($C302,H$305:H$316,$C$305:$C$316)))) -> 0 | I302: =IF(MAX(C305:C316)-MIN(C305:C316)<5,AVERAGEIF(C305:C316,">0",I305:I316), IF(FORECAST($C302,I$305:I$316,$C$305:$C$316)<0,0, IF(FORECAST($C302,I$305:I$316,$C$305:$C$316)>100,100, FORECAST($C302,I$305:I$316,$C$305:$C$316)))) -> 74.87933697 | M302: =IF(MAX(C305:C316)-MIN(C305:C316)<5,AVERAGEIF(C305:C316,">0",M305:M316), IF(FORECAST($C302,M$305:M$316,$C$305:$C$316)<0,0, IF(FORECAST($C302,M$305:M$316,$C$305:$C$316)>100,100, FORECAST($C302,M$305:M$316,$C$305:$C$316)))) -> 0 | N302: =IF(MAX(C305:C316)-MIN(C305:C316)<5,AVERAGEIF(C305:C316,">0",N305:N316), IF(FORECAST($C302,N$305:N$316,$C$305:$C$316)<0,0, IF(FORECAST($C302,N$305:N$316,$C$305:$C$316)>100,100, FORECAST($C302,N$305:N$316,$C$305:$C$316)))) -> 77.75156257 | R302: =IF(MAX(C305:C316)-MIN(C305:C316)<5,AVERAGEIF(C305:C316,">0",R305:R316), IF(FORECAST($C302,R$305:R$316,$C$305:$C$316)<0,0, IF(FORECAST($C302,R$305:R$316,$C$305:$C$316)>100,100, FORECAST($C302,R$305:R$316,$C$305:$C$316)))) -> 0.01009887487 | S302: =IF(MAX(C305:C316)-MIN(C305:C316)<5,AVERAGEIF(C305:C316,">0",S305:S316), IF(FORECAST($C302,S$305:S$316,$C$305:$C$316)<0,0, IF(FORECAST($C302,S$305:S$316,$C$305:$C$316)>100,100, FORECAST($C302,S$305:S$316,$C$305:$C$316)))) -> 83.80578445 | W302: =IF(MAX(C305:C316)-MIN(C305:C316)<5,AVERAGEIF(C305:C316,">0",W305:W316), IF(FORECAST($C302,W$305:W$316,$C$305:$C$316)<0,0, IF(FORECAST($C302,W$305:W$316,$C$305:$C$316)>100,100, FORECAST($C302,W$305:W$316,$C$305:$C$316)))) -> 0 | X302: =IF(MAX(C305:C316)-MIN(C305:C316)<5,AVERAGEIF(C305:C316,">0",X305:X316), IF(FORECAST($C302,X$305:X$316,$C$305:$C$316)<0,0, IF(FORECAST($C302,X$305:X$316,$C$305:$C$316)>100,100, FORECAST($C302,X$305:X$316,$C$305:$C$316)))) -> 87.59757225 | AB302: =IF(MAX(C305:C316)-MIN(C305:C316)<5,AVERAGEIF(C305:C316,">0",AB305:AB316), IF(FORECAST($C302,AB$305:AB$316,$C$305:$C$316)<0,0, IF(FORECAST($C302,AB$305:AB$316,$C$305:$C$316)>100,100, FORECAST($C302,AB$305:AB$316,$C$305:$C$316)))) -> 0
B304: Survey | C304: Year | D304: Improved | E304: Not shared | H304: Open defecation | I304: Improved | J304: Not shared | M304: Open defecation | N304: Improved | O304: Not shared | R304: Open defecation | S304: Improved | T304: Not shared | W304: Open defecation | X304: Improved | Y304: Not shared | AB304: Open defecation
B305: WHS03 | C305: 2003 | D305: =IF(ISERROR(INDIRECT(CONCATENATE($B305,"!M122"))),"",INDIRECT(CONCATENATE($B305,"!M122"))) -> 87.12604695 | E305: =IF(ISERROR(INDIRECT(CONCATENATE($B305,"!M129"))),"",INDIRECT(CONCATENATE($B305,"!M129"))) -> N/A | H305: =IF(ISERROR(INDIRECT(CONCATENATE($B305,"!M127"))),"",INDIRECT(CONCATENATE($B305,"!M127"))) -> 9.196919311 | I305: =IF(ISERROR(INDIRECT(CONCATENATE($B305,"!N122"))),"",INDIRECT(CONCATENATE($B305,"!N122"))) -> 93.77175795 | J305: =IF(ISERROR(INDIRECT(CONCATENATE($B305,"!N129"))),"",INDIRECT(CONCATENATE($B305,"!N129"))) -> N/A | M305: =IF(ISERROR(INDIRECT(CONCATENATE($B305,"!N127"))),"",INDIRECT(CONCATENATE($B305,"!N127"))) -> 2.084638667 | N305: =IF(ISERROR(INDIRECT(CONCATENATE($B305,"!O122"))),"",INDIRECT(CONCATENATE($B305,"!O122"))) -> 96.4460196 | O305: =IF(ISERROR(INDIRECT(CONCATENATE($B305,"!O129"))),"",INDIRECT(CONCATENATE($B305,"!O129"))) -> N/A | R305: =IF(ISERROR(INDIRECT(CONCATENATE($B305,"!O127"))),"",INDIRECT(CONCATENATE($B305,"!O127"))) -> 0 | S305: =IF(ISERROR(INDIRECT(CONCATENATE($B305,"!P122"))),"",INDIRECT(CONCATENATE($B305,"!P122"))) -> 95.1317657 | T305: =IF(ISERROR(INDIRECT(CONCATENATE($B305,"!P129"))),"",INDIRECT(CONCATENATE($B305,"!P129"))) -> N/A | W305: =IF(ISERROR(INDIRECT(CONCATENATE($B305,"!P127"))),"",INDIRECT(CONCATENATE($B305,"!P127"))) -> 0 | X305: =IF(ISERROR(INDIRECT(CONCATENATE($B305,"!Q122"))),"",INDIRECT(CONCATENATE($B305,"!Q122"))) -> 93.65989466 | Y305: =IF(ISERROR(INDIRECT(CONCATENATE($B305,"!Q129"))),"",INDIRECT(CONCATENATE($B305,"!Q129"))) -> N/A | AB305: =IF(ISERROR(INDIRECT(CONCATENATE($B305,"!Q2127"))),"",INDIRECT(CONCATENATE($B305,"!Q127"))) -> 0
B306: MICS05 | C306: 2005 | D306: 93.96742921 | E306: 98.52135141 | H306: 0 | I306: 94.56355749 | J306: 98.7664131 | M306: 0 | N306: 95.75820761 | O306: 99.12796392 | R306: 0 | S306: 95.48900663 | T306: 99.32924923 | W306: 0 | X306: 96.50214457 | Y306: 99.0843222 | AB306: 0
B307: WMS13 | C307: 2013 | D307: 68.9342141 | E307: N/A | H307: 0 | I307: 69.15743721 | J307: N/A | M307: 0 | N307: 73.06482918 | O307: N/A | R307: 0 | S307: 81.465157 | T307: N/A | W307: 0 | X307: 80.5230284 | Y307: N/A | AB307: 0
B308: MICS18 | C308: 2018 | D308: 75.06743987 | E308: 96.84414178 | H308: 0.5409137043 | I308: 85.19477871 | J308: 98.66380471 | M308: 0 | N308: 87.2502919 | O308: 98.72942726 | R308: 0.01222276196 | S308: 89.34918221 | T308: 99.69519043 | W308: 0 | X308: 94.18807465 | Y308: 100 | AB308: 0
B318: =CONCATENATE("Rural use of sanitation facilities, ",C299,"–",C300) -> Rural use of sanitation facilities, 2000–2020 | S318: Data points used for regression

Sheet Hygiene
B4: Access to hygiene facilities by wealth quintile (%)
B5: =IF(ISERROR(INDIRECT(CONCATENATE($E$32,"!A2"))),"",INDIRECT(CONCATENATE($E$32,"!A2"))) -> Georgia
B7: =CONCATENATE("National ",IF(ISERROR(INDIRECT(CONCATENATE($E$32,"!A2"))),"",INDIRECT(CONCATENATE($E$32,"!A210")))) -> National Access to hygiene facilities | K7: =CONCATENATE("Urban ",IF(ISERROR(INDIRECT(CONCATENATE($E$32,"!A2"))),"",INDIRECT(CONCATENATE($E$32,"!A210")))) -> Urban Access to hygiene facilities | S7: =CONCATENATE("Rural ",IF(ISERROR(INDIRECT(CONCATENATE($E$32,"!A2"))),"",INDIRECT(CONCATENATE($E$32,"!A210")))) -> Rural Access to hygiene facilities
E32: =INDEX(B88:B100,A88) -> MICS18 | G32: =IF(ISERROR(INDIRECT(CONCATENATE($E$32,"!A2"))),"",INDIRECT(CONCATENATE($E$32,"!A2"))) -> Georgia | K32: Poorest | N32: Poor | Q32: Middle | T32: Rich | W32: Richest
K33: Basic | L33: Limited | M33: No facility | N33: Basic | O33: Limited | P33: No facility | Q33: Basic | R33: Limited | S33: No facility | T33: Basic | U33: Limited | V33: No facility | W33: Basic | X33: Limited | Y33: No facility
B34: >>> Select Survey : | G34: NATIONAL | J34: =IF(ISERROR(INDIRECT(CONCATENATE(#REF!,"!A2"))),"",INDIRECT(CONCATENATE(#REF!,"!A210"))) ->  | K34: =IF(ISERROR(INDIRECT(CONCATENATE($E$32,"!C222"))),"",INDIRECT(CONCATENATE($E$32,"!C222"))) -> 82.30968162 | L34: =IF(ISERROR(INDIRECT(CONCATENATE($E$32,"!C223"))),"",INDIRECT(CONCATENATE($E$32,"!C223"))) -> 13.47780701 | M34: =IF(ISERROR(INDIRECT(CONCATENATE($E$32,"!C224"))),"",INDIRECT(CONCATENATE($E$32,"!C224"))) -> 4.212511368 | N34: =IF(ISERROR(INDIRECT(CONCATENATE($E$32,"!D222"))),"",INDIRECT(CONCATENATE($E$32,"!D222"))) -> 92.59668078 | O34: =IF(ISERROR(INDIRECT(CONCATENATE($E$32,"!D223"))),"",INDIRECT(CONCATENATE($E$32,"!D223"))) -> 5.932101735 | P34: =IF(ISERROR(INDIRECT(CONCATENATE($E$32,"!D224"))),"",INDIRECT(CONCATENATE($E$32,"!D224"))) -> 1.471217489 | Q34: =IF(ISERROR(INDIRECT(CONCATENATE($E$32,"!E222"))),"",INDIRECT(CONCATENATE($E$32,"!E222"))) -> 90.65267915 | R34: =IF(ISERROR(INDIRECT(CONCATENATE($E$32,"!E223"))),"",INDIRECT(CONCATENATE($E$32,"!E223"))) -> 7.645459489 | S34: =IF(ISERROR(INDIRECT(CONCATENATE($E$32,"!E224"))),"",INDIRECT(CONCATENATE($E$32,"!E224"))) -> 1.701861366 | T34: =IF(ISERROR(INDIRECT(CONCATENATE($E$32,"!F222"))),"",INDIRECT(CONCATENATE($E$32,"!F222"))) -> 95.767336 | U34: =IF(ISERROR(INDIRECT(CONCATENATE($E$32,"!F223"))),"",INDIRECT(CONCATENATE($E$32,"!F223"))) -> 3.256379774 | V34: =IF(ISERROR(INDIRECT(CONCATENATE($E$32,"!F224"))),"",INDIRECT(CONCATENATE($E$32,"!F224"))) -> 0.9762842227 | W34: =IF(ISERROR(INDIRECT(CONCATENATE($E$32,"!G222"))),"",INDIRECT(CONCATENATE($E$32,"!G222"))) -> 97.75399951 | X34: =IF(ISERROR(INDIRECT(CONCATENATE($E$32,"!G223"))),"",INDIRECT(CONCATENATE($E$32,"!G223"))) -> 0.9586738131 | Y34: =IF(ISERROR(INDIRECT(CONCATENATE($E$32,"!G224"))),"",INDIRECT(CONCATENATE($E$32,"!G224"))) -> 1.287326679
G37: URBAN | J37: =IF(ISERROR(INDIRECT(CONCATENATE(#REF!,"!A2"))),"",INDIRECT(CONCATENATE(#REF!,"!A210"))) ->  | K37: =IF(ISERROR(INDIRECT(CONCATENATE($E$32,"!H222"))),"",INDIRECT(CONCATENATE($E$32,"!H222"))) -> 88.68457573 | L37: =IF(ISERROR(INDIRECT(CONCATENATE($E$32,"!H223"))),"",INDIRECT(CONCATENATE($E$32,"!H223"))) -> 9.21636197 | M37: =IF(ISERROR(INDIRECT(CONCATENATE($E$32,"!H224"))),"",INDIRECT(CONCATENATE($E$32,"!H224"))) -> 2.0990623 | N37: =IF(ISERROR(INDIRECT(CONCATENATE($E$32,"!I222"))),"",INDIRECT(CONCATENATE($E$32,"!I222"))) -> 93.85833684 | O37: =IF(ISERROR(INDIRECT(CONCATENATE($E$32,"!I223"))),"",INDIRECT(CONCATENATE($E$32,"!I223"))) -> 5.231110008 | P37: =IF(ISERROR(INDIRECT(CONCATENATE($E$32,"!I224"))),"",INDIRECT(CONCATENATE($E$32,"!I224"))) -> 0.9105531534 | Q37: =IF(ISERROR(INDIRECT(CONCATENATE($E$32,"!J222"))),"",INDIRECT(CONCATENATE($E$32,"!J222"))) -> 95.27887962 | R37: =IF(ISERROR(INDIRECT(CONCATENATE($E$32,"!J223"))),"",INDIRECT(CONCATENATE($E$32,"!J223"))) -> 3.217112378 | S37: =IF(ISERROR(INDIRECT(CONCATENATE($E$32,"!J224"))),"",INDIRECT(CONCATENATE($E$32,"!J224"))) -> 1.504008006 | T37: =IF(ISERROR(INDIRECT(CONCATENATE($E$32,"!K222"))),"",INDIRECT(CONCATENATE($E$32,"!K222"))) -> 97.7627593 | U37: =IF(ISERROR(INDIRECT(CONCATENATE($E$32,"!K223"))),"",INDIRECT(CONCATENATE($E$32,"!K223"))) -> 1.764875317 | V37: =IF(ISERROR(INDIRECT(CONCATENATE($E$32,"!K224"))),"",INDIRECT(CONCATENATE($E$32,"!K224"))) -> 0.4723653879 | W37: =IF(ISERROR(INDIRECT(CONCATENATE($E$32,"!L222"))),"",INDIRECT(CONCATENATE($E$32,"!L222"))) -> 98.00092065 | X37: =IF(ISERROR(INDIRECT(CONCATENATE($E$32,"!L223"))),"",INDIRECT(CONCATENATE($E$32,"!L223"))) -> 0.3082740532 | Y37: =IF(ISERROR(INDIRECT(CONCATENATE($E$32,"!L224"))),"",INDIRECT(CONCATENATE($E$32,"!L224"))) -> 1.690805295
G40: RURAL | J40: =IF(ISERROR(INDIRECT(CONCATENATE(#REF!,"!A2"))),"",INDIRECT(CONCATENATE(#REF!,"!A210"))) ->  | K40: =IF(ISERROR(INDIRECT(CONCATENATE($E$32,"!M222"))),"",INDIRECT(CONCATENATE($E$32,"!M222"))) -> 75.72357623 | L40: =IF(ISERROR(INDIRECT(CONCATENATE($E$32,"!M223"))),"",INDIRECT(CONCATENATE($E$32,"!M223"))) -> 17.26749328 | M40: =IF(ISERROR(INDIRECT(CONCATENATE($E$32,"!M224"))),"",INDIRECT(CONCATENATE($E$32,"!M224"))) -> 7.008930488 | N40: =IF(ISERROR(INDIRECT(CONCATENATE($E$32,"!N222"))),"",INDIRECT(CONCATENATE($E$32,"!N222"))) -> 86.576723 | O40: =IF(ISERROR(INDIRECT(CONCATENATE($E$32,"!N223"))),"",INDIRECT(CONCATENATE($E$32,"!N223"))) -> 11.08588449 | P40: =IF(ISERROR(INDIRECT(CONCATENATE($E$32,"!N224"))),"",INDIRECT(CONCATENATE($E$32,"!N224"))) -> 2.337392507 | Q40: =IF(ISERROR(INDIRECT(CONCATENATE($E$32,"!O222"))),"",INDIRECT(CONCATENATE($E$32,"!O222"))) -> 90.04313401 | R40: =IF(ISERROR(INDIRECT(CONCATENATE($E$32,"!O223"))),"",INDIRECT(CONCATENATE($E$32,"!O223"))) -> 7.978137119 | S40: =IF(ISERROR(INDIRECT(CONCATENATE($E$32,"!O224"))),"",INDIRECT(CONCATENATE($E$32,"!O224"))) -> 1.978728873 | T40: =IF(ISERROR(INDIRECT(CONCATENATE($E$32,"!P222"))),"",INDIRECT(CONCATENATE($E$32,"!P222"))) -> 91.59572641 | U40: =IF(ISERROR(INDIRECT(CONCATENATE($E$32,"!P223"))),"",INDIRECT(CONCATENATE($E$32,"!P223"))) -> 6.379322026 | V40: =IF(ISERROR(INDIRECT(CONCATENATE($E$32,"!P224"))),"",INDIRECT(CONCATENATE($E$32,"!P224"))) -> 2.02495156 | W40: =IF(ISERROR(INDIRECT(CONCATENATE($E$32,"!Q222"))),"",INDIRECT(CONCATENATE($E$32,"!Q222"))) -> 93.93250673 | X40: =IF(ISERROR(INDIRECT(CONCATENATE($E$32,"!Q223"))),"",INDIRECT(CONCATENATE($E$32,"!Q223"))) -> 5.411786615 | Y40: =IF(ISERROR(INDIRECT(CONCATENATE($E$32,"!Q224"))),"",INDIRECT(CONCATENATE($E$32,"!Q224"))) -> 0.6557066572
A88: 4 | B88: WHS03
B89: MICS05
B90: WMS13
B91: MICS18
B92: Template

Sheet WHS03
A2: =A1026 -> Georgia
A3: =A1034 -> 2003
A4: Use of drinking water sources
A5: by wealth quintile and sub-national region
A6: Notes:
A7: WHO/UNICEF JMP customised wealth index excludes water,
A8: sanitation and hygiene assets.
A9: Survey used for analysis: | B9: =A1025 -> WHS03
A10: =B1028 -> 
A11: =B1027 -> 
A14: Use of drinking water sources | C14: NATIONAL wealth index quintile | H14: URBAN wealth index quintile | M14: RURAL wealth index quintile | BA14: Raw numbers of respondents: | BB14: Use of drinking water sources | BC14: NATIONAL wealth index quintile | BH14: URBAN wealth index quintile | BM14: RURAL wealth index quintile
A15: Weighted percentage (used in graphs) | C15: Poorest | D15: Poor | E15: Middle | F15: Rich | G15: Richest | H15: Poorest | I15: Poor | J15: Middle | K15: Rich | L15: Richest | M15: Poorest | N15: Poor | O15: Middle | P15: Rich | Q15: Richest | BA15: Water data, raw numbers (weighted) | BC15: Poorest | BD15: Poor | BE15: Middle | BF15: Rich | BG15: Richest | BH15: Poorest | BI15: Poor | BJ15: Middle | BK15: Rich | BL15: Richest | BM15: Poorest | BN15: Poor | BO15: Middle | BP15: Rich | BQ15: Richest
A16: Water | B16: Improved | C16: 99.19185898 | D16: 97.81734115 | E16: 98.45479892 | F16: 97.73444653 | G16: 99.41539597 | H16: 99.04284081 | I16: 99.24340058 | J16: 99.09621956 | K16: 99.65302741 | L16: 99.33438658 | M16: 94.28292997 | N16: 97.21006114 | O16: 98.11344804 | P16: 98.51112909 | Q16: 100 | BA16: Water | BB16: Improved | BC16: N/A | BD16: N/A | BE16: N/A | BF16: N/A | BG16: N/A | BH16: N/A | BI16: N/A | BJ16: N/A | BK16: N/A | BL16: N/A | BM16: N/A | BN16: N/A | BO16: N/A | BP16: N/A | BQ16: N/A
B17: Not Improved | C17: 0.8081410236 | D17: 2.182658853 | E17: 1.545201082 | F17: 2.265553472 | G17: 0.584604033 | H17: 0.9571591866 | I17: 0.7565994179 | J17: 0.9037804429 | K17: 0.3469725931 | L17: 0.6656134185 | M17: 5.717070026 | N17: 2.789938858 | O17: 1.886551961 | P17: 1.488870906 | Q17: 0 | BB17: Not Improved | BC17: N/A | BD17: N/A | BE17: N/A | BF17: N/A | BG17: N/A | BH17: N/A | BI17: N/A | BJ17: N/A | BK17: N/A | BL17: N/A | BM17: N/A | BN17: N/A | BO17: N/A | BP17: N/A | BQ17: N/A
A18: Water ladder | B18: Basic | C18: =C16*C23/100 -> 91.77650986 | D18: =D16*D23/100 -> 87.09639694 | E18: =E16*E23/100 -> 95.57255898 | F18: 96.71260355 | G18: 99.35170838 | H18: 97.32872006 | I18: 98.97101514 | J18: 98.62250915 | K18: 99.65302741 | L18: 99.33438658 | M18: 88.64655624 | N18: 89.45097419 | O18: 85.62128316 | P18: 84.20040656 | Q18: 95.67597662 | BA18: Water ladder | BB18: Basic | BC18: N/A | BD18: N/A | BE18: N/A | BF18: N/A | BG18: N/A | BH18: N/A | BI18: N/A | BJ18: N/A | BK18: N/A | BL18: N/A | BM18: N/A | BN18: N/A | BO18: N/A | BP18: N/A | BQ18: N/A
B19: Limited | C19: =C16*C22/100 -> 7.41534912 | D19: =D16*D22/100 -> 10.7209442 | E19: =E16*E22/100 -> 2.882239939 | F19: 1.021842974 | G19: 0.06368759021 | H19: 1.714120757 | I19: 0.2723854433 | J19: 0.4737104067 | K19: 0 | L19: 0 | M19: 5.636373733 | N19: 7.759086956 | O19: 12.49216488 | P19: 14.31072253 | Q19: 4.324023384 | BB19: Limited | BC19: N/A | BD19: N/A | BE19: N/A | BF19: N/A | BG19: N/A | BH19: N/A | BI19: N/A | BJ19: N/A | BK19: N/A | BL19: N/A | BM19: N/A | BN19: N/A | BO19: N/A | BP19: N/A | BQ19: N/A
B20: Unimproved | C20: =100-C18-C19-C21 -> 0.8081410236 | D20: =100-D18-D19-D21 -> 2.182658853 | E20: =100-E18-E19-E21 -> 1.391186429 | F20: 0.9137902702 | G20: 0.5081789189 | H20: 0.9571591866 | I20: 0.7565994179 | J20: 0.9037804429 | K20: 0.3469725931 | L20: 0.6656134185 | M20: 2.335437368 | N20: 2.789938858 | O20: 1.886551961 | P20: 1.488870906 | Q20: -4.440892099e-15 | BB20: Unimproved | BC20: N/A | BD20: N/A | BE20: N/A | BF20: N/A | BG20: N/A | BH20: N/A | BI20: N/A | BJ20: N/A | BK20: N/A | BL20: N/A | BM20: N/A | BN20: N/A | BO20: N/A | BP20: N/A | BQ20: N/A
B21: Surface water | C21: 0 | D21: 0 | E21: 0.154014653 | F21: 1.351763201 | G21: 0.07642511412 | H21: 0 | I21: 0 | J21: 0 | K21: 0 | L21: 0 | M21: 3.381632659 | N21: 0 | O21: 0 | P21: 0 | Q21: 0 | BB21: Surface water | BC21: N/A | BD21: N/A | BE21: N/A | BF21: N/A | BG21: N/A | BH21: N/A | BI21: N/A | BJ21: N/A | BK21: N/A | BL21: N/A | BM21: N/A | BN21: N/A | BO21: N/A | BP21: N/A | BQ21: N/A
A22: Improved water point at more than 30 minutes | B22: Yes | C22: 7.475763834 | D22: 10.96016726 | E22: 2.927475319 | F22: 1.045530016 | G22: 0.06406209983 | H22: 1.730686179 | I22: 0.2744620214 | J22: 0.4780307552 | K22: 0 | L22: 0 | M22: 5.978148679 | N22: 7.981773558 | O22: 12.73236761 | P22: 14.52701097 | Q22: 4.324023384 | BA22: Improved water point at more than 30 minutes | BB22: Yes | BC22: N/A | BD22: N/A | BE22: N/A | BF22: N/A | BG22: N/A | BH22: N/A | BI22: N/A | BJ22: N/A | BK22: N/A | BL22: N/A | BM22: N/A | BN22: N/A | BO22: N/A | BP22: N/A | BQ22: N/A
B23: No | C23: 92.52423617 | D23: 89.03983274 | E23: 97.07252468 | F23: 98.95446998 | G23: 99.9359379 | H23: 98.26931382 | I23: 99.72553798 | J23: 99.52196924 | K23: 100 | L23: 100 | M23: 94.02185132 | N23: 92.01822644 | O23: 87.26763239 | P23: 85.47298903 | Q23: 95.67597662 | BB23: No | BC23: N/A | BD23: N/A | BE23: N/A | BF23: N/A | BG23: N/A | BH23: N/A | BI23: N/A | BJ23: N/A | BK23: N/A | BL23: N/A | BM23: N/A | BN23: N/A | BO23: N/A | BP23: N/A | BQ23: N/A
A24: Manually calculated ratios | B24: Improved wells
B25: Improved springs
B26: Other
C27: NATIONAL wealth index quintile | H27: URBAN wealth index quintile | M27: RURAL wealth index quintile | BA27: Raw numbers of respondents: | BB27: Use of drinking water sources | BC27: NATIONAL wealth index quintile | BH27: URBAN wealth index quintile | BM27: RURAL wealth index quintile
A28: Percentage based on weighted population | C28: Poorest | D28: Poor | E28: Middle | F28: Rich | G28: Richest | H28: Poorest | I28: Poor | J28: Middle | K28: Rich | L28: Richest | M28: Poorest | N28: Poor | O28: Middle | P28: Rich | Q28: Richest | BA28: Water data, raw numbers (weighted) | BC28: Poorest | BD28: Poor | BE28: Middle | BF28: Rich | BG28: Richest | BH28: Poorest | BI28: Poor | BJ28: Middle | BK28: Rich | BL28: Richest | BM28: Poorest | BN28: Poor | BO28: Middle | BP28: Rich | BQ28: Richest
A29: Piped water | B29: Yes | C29: 36.24041512 | D29: 33.55453645 | E29: 66.30531946 | F29: 89.0634126 | G29: 98.3083896 | H29: 86.2449621 | I29: 89.18056079 | J29: 92.29308734 | K29: 97.79779853 | L29: 98.98513566 | M29: 50.08993104 | N29: 30.60319925 | O29: 30.09047202 | P29: 34.58445628 | Q29: 28.73053935 | BA29: Piped water | BB29: Yes | BC29: N/A | BD29: N/A | BE29: N/A | BF29: N/A | BG29: N/A | BH29: N/A | BI29: N/A | BJ29: N/A | BK29: N/A | BL29: N/A | BM29: N/A | BN29: N/A | BO29: N/A | BP29: N/A | BQ29: N/A
B30: No | C30: 63.75958488 | D30: 66.44546355 | E30: 33.69468054 | F30: 10.9365874 | G30: 1.691610402 | H30: 13.7550379 | I30: 10.81943921 | J30: 7.706912663 | K30: 2.202201473 | L30: 1.014864335 | M30: 49.91006896 | N30: 69.39680075 | O30: 69.90952798 | P30: 65.41554372 | Q30: 71.26946065 | BB30: No | BC30: N/A | BD30: N/A | BE30: N/A | BF30: N/A | BG30: N/A | BH30: N/A | BI30: N/A | BJ30: N/A | BK30: N/A | BL30: N/A | BM30: N/A | BN30: N/A | BO30: N/A | BP30: N/A | BQ30: N/A
A31: Piped water on premises | B31: Yes | C31: 32.17276188 | D31: 28.85186992 | E31: 60.42449295 | F31: 86.08566802 | G31: 97.82466864 | H31: 78.89602862 | I31: 88.17888057 | J31: 90.26732435 | K31: 97.19848624 | L31: 98.74787305 | M31: 41.60457511 | N31: 25.54679933 | O31: 25.29085241 | P31: 31.41293631 | Q31: 25.32863816 | BA31: Piped water on premises | BB31: Yes | BC31: N/A | BD31: N/A | BE31: N/A | BF31: N/A | BG31: N/A | BH31: N/A | BI31: N/A | BJ31: N/A | BK31: N/A | BL31: N/A | BM31: N/A | BN31: N/A | BO31: N/A | BP31: N/A | BQ31: N/A
B32: No | C32: 67.82723812 | D32: 71.14813008 | E32: 39.57550705 | F32: 13.91433198 | G32: 2.175331356 | H32: 21.10397138 | I32: 11.82111943 | J32: 9.73267565 | K32: 2.801513765 | L32: 1.25212695 | M32: 58.39542489 | N32: 74.45320067 | O32: 74.70914759 | P32: 68.58706369 | Q32: 74.67136184 | BB32: No | BC32: N/A | BD32: N/A | BE32: N/A | BF32: N/A | BG32: N/A | BH32: N/A | BI32: N/A | BJ32: N/A | BK32: N/A | BL32: N/A | BM32: N/A | BN32: N/A | BO32: N/A | BP32: N/A | BQ32: N/A
A33: Piped water into dwelling | B33: Yes | C33: N/A | D33: N/A | E33: N/A | F33: N/A | G33: N/A | H33: N/A | I33: N/A | J33: N/A | K33: N/A | L33: N/A | M33: N/A | N33: N/A | O33: N/A | P33: N/A | Q33: N/A | BA33: Piped water into dwelling | BB33: Yes | BC33: N/A | BD33: N/A | BE33: N/A | BF33: N/A | BG33: N/A | BH33: N/A | BI33: N/A | BJ33: N/A | BK33: N/A | BL33: N/A | BM33: N/A | BN33: N/A | BO33: N/A | BP33: N/A | BQ33: N/A
B34: No | C34: N/A | D34: N/A | E34: N/A | F34: N/A | G34: N/A | H34: N/A | I34: N/A | J34: N/A | K34: N/A | L34: N/A | M34: N/A | N34: N/A | O34: N/A | P34: N/A | Q34: N/A | BB34: No | BC34: N/A | BD34: N/A | BE34: N/A | BF34: N/A | BG34: N/A | BH34: N/A | BI34: N/A | BJ34: N/A | BK34: N/A | BL34: N/A | BM34: N/A | BN34: N/A | BO34: N/A | BP34: N/A | BQ34: N/A
A35: Water source on premises | B35: Yes | C35: N/A | D35: N/A | E35: N/A | F35: N/A | G35: N/A | H35: N/A | I35: N/A | J35: N/A | K35: N/A | L35: N/A | M35: N/A | N35: N/A | O35: N/A | P35: N/A | Q35: N/A | BA35: Water source on premises | BB35: Yes | BC35: N/A | BD35: N/A | BE35: N/A | BF35: N/A | BG35: N/A | BH35: N/A | BI35: N/A | BJ35: N/A | BK35: N/A | BL35: N/A | BM35: N/A | BN35: N/A | BO35: N/A | BP35: N/A | BQ35: N/A
B36: No | C36: N/A | D36: N/A | E36: N/A | F36: N/A | G36: N/A | H36: N/A | I36: N/A | J36: N/A | K36: N/A | L36: N/A | M36: N/A | N36: N/A | O36: N/A | P36: N/A | Q36: N/A | BB36: No | BC36: N/A | BD36: N/A | BE36: N/A | BF36: N/A | BG36: N/A | BH36: N/A | BI36: N/A | BJ36: N/A | BK36: N/A | BL36: N/A | BM36: N/A | BN36: N/A | BO36: N/A | BP36: N/A | BQ36: N/A
A37: Improved Water source on premises | B37: Yes | C37: N/A | D37: N/A | E37: N/A | F37: N/A | G37: N/A | H37: N/A | I37: N/A | J37: N/A | K37: N/A | L37: N/A | M37: N/A | N37: N/A | O37: N/A | P37: N/A | Q37: N/A | BA37: Improved water source on premises | BB37: Yes | BC37: N/A | BD37: N/A | BE37: N/A | BF37: N/A | BG37: N/A | BH37: N/A | BI37: N/A | BJ37: N/A | BK37: N/A | BL37: N/A | BM37: N/A | BN37: N/A | BO37: N/A | BP37: N/A | BQ37: N/A
B38: No | C38: N/A | D38: N/A | E38: N/A | F38: N/A | G38: N/A | H38: N/A | I38: N/A | J38: N/A | K38: N/A | L38: N/A | M38: N/A | N38: N/A | O38: N/A | P38: N/A | Q38: N/A | BB38: No | BC38: N/A | BD38: N/A | BE38: N/A | BF38: N/A | BG38: N/A | BH38: N/A | BI38: N/A | BJ38: N/A | BK38: N/A | BL38: N/A | BM38: N/A | BN38: N/A | BO38: N/A | BP38: N/A | BQ38: N/A
A39: Piped water on premises available when needed | B39: Yes | C39: N/A | D39: N/A | E39: N/A | F39: N/A | G39: N/A | H39: N/A | I39: N/A | J39: N/A | K39: N/A | L39: N/A | M39: N/A | N39: N/A | O39: N/A | P39: N/A | Q39: N/A | BA39: Piped water on premises available when needed | BB39: Yes | BC39: N/A | BD39: N/A | BE39: N/A | BF39: N/A | BG39: N/A | BH39: N/A | BI39: N/A | BJ39: N/A | BK39: N/A | BL39: N/A | BM39: N/A | BN39: N/A | BO39: N/A | BP39: N/A | BQ39: N/A
B40: No | C40: N/A | D40: N/A | E40: N/A | F40: N/A | G40: N/A | H40: N/A | I40: N/A | J40: N/A | K40: N/A | L40: N/A | M40: N/A | N40: N/A | O40: N/A | P40: N/A | Q40: N/A | BB40: No | BC40: N/A | BD40: N/A | BE40: N/A | BF40: N/A | BG40: N/A | BH40: N/A | BI40: N/A | BJ40: N/A | BK40: N/A | BL40: N/A | BM40: N/A | BN40: N/A | BO40: N/A | BP40: N/A | BQ40: N/A
A41: Water point at more than 30 minutes | B41: Yes | C41: 7.446907584 | D41: 10.94846295 | E41: 3.023268352 | F41: 2.016036244 | G41: 0.1408283644 | H41: 1.722318179 | I41: 0.2738104636 | J41: 0.4780307552 | K41: 0 | L41: 0 | M41: 7.924954239 | N41: 8.214498087 | O41: 12.52123022 | P41: 14.65009064 | Q41: 4.324023384 | BA41: Water point at more than 30 minutes | BB41: Yes | BC41: N/A | BD41: N/A | BE41: N/A | BF41: N/A | BG41: N/A | BH41: N/A | BI41: N/A | BJ41: N/A | BK41: N/A | BL41: N/A | BM41: N/A | BN41: N/A | BO41: N/A | BP41: N/A | BQ41: N/A
B42: No | C42: 92.55309242 | D42: 89.05153705 | E42: 96.97673165 | F42: 97.98396376 | G42: 99.85917164 | H42: 98.27768182 | I42: 99.72618954 | J42: 99.52196924 | K42: 100 | L42: 100 | M42: 92.07504576 | N42: 91.78550191 | O42: 87.47876978 | P42: 85.34990936 | Q42: 95.67597662 | BB42: No | BC42: N/A | BD42: N/A | BE42: N/A | BF42: N/A | BG42: N/A | BH42: N/A | BI42: N/A | BJ42: N/A | BK42: N/A | BL42: N/A | BM42: N/A | BN42: N/A | BO42: N/A | BP42: N/A | BQ42: N/A
A43: Water source available when needed | B43: Yes | C43: N/A | D43: N/A | E43: N/A | F43: N/A | G43: N/A | H43: N/A | I43: N/A | J43: N/A | K43: N/A | L43: N/A | M43: N/A | N43: N/A | O43: N/A | P43: N/A | Q43: N/A | BA43: Water source available when needed | BB43: Yes | BC43: N/A | BD43: N/A | BE43: N/A | BF43: N/A | BG43: N/A | BH43: N/A | BI43: N/A | BJ43: N/A | BK43: N/A | BL43: N/A | BM43: N/A | BN43: N/A | BO43: N/A | BP43: N/A | BQ43: N/A
B44: No | C44: N/A | D44: N/A | E44: N/A | F44: N/A | G44: N/A | H44: N/A | I44: N/A | J44: N/A | K44: N/A | L44: N/A | M44: N/A | N44: N/A | O44: N/A | P44: N/A | Q44: N/A | BB44: No | BC44: N/A | BD44: N/A | BE44: N/A | BF44: N/A | BG44: N/A | BH44: N/A | BI44: N/A | BJ44: N/A | BK44: N/A | BL44: N/A | BM44: N/A | BN44: N/A | BO44: N/A | BP44: N/A | BQ44: N/A
A45: Improved water source available when needed | B45: Yes | C45: N/A | D45: N/A | E45: N/A | F45: N/A | G45: N/A | H45: N/A | I45: N/A | J45: N/A | K45: N/A | L45: N/A | M45: N/A | N45: N/A | O45: N/A | P45: N/A | Q45: N/A | BA45: Improved water source available when needed | BB45: Yes | BC45: N/A | BD45: N/A | BE45: N/A | BF45: N/A | BG45: N/A | BH45: N/A | BI45: N/A | BJ45: N/A | BK45: N/A | BL45: N/A | BM45: N/A | BN45: N/A | BO45: N/A | BP45: N/A | BQ45: N/A
B46: No | C46: N/A | D46: N/A | E46: N/A | F46: N/A | G46: N/A | H46: N/A | I46: N/A | J46: N/A | K46: N/A | L46: N/A | M46: N/A | N46: N/A | O46: N/A | P46: N/A | Q46: N/A | BB46: No | BC46: N/A | BD46: N/A | BE46: N/A | BF46: N/A | BG46: N/A | BH46: N/A | BI46: N/A | BJ46: N/A | BK46: N/A | BL46: N/A | BM46: N/A | BN46: N/A | BO46: N/A | BP46: N/A | BQ46: N/A
A47: Microbiological quality at point of collection | B47: Not contaminated (No E. coli in 100 mL) | C47: N/A | D47: N/A | E47: N/A | F47: N/A | G47: N/A | H47: N/A | I47: N/A | J47: N/A | K47: N/A | L47: N/A | M47: N/A | N47: N/A | O47: N/A | P47: N/A | Q47: N/A | BA47: Microbiological quality at point of collection | BB47: Not contaminated (No E. coli in 100 mL) | BC47: N/A | BD47: N/A | BE47: N/A | BF47: N/A | BG47: N/A | BH47: N/A | BI47: N/A | BJ47: N/A | BK47: N/A | BL47: N/A | BM47: N/A | BN47: N/A | BO47: N/A | BP47: N/A | BQ47: N/A
B48: Contaminated (E. coli detected in 100 mL) | C48: N/A | D48: N/A | E48: N/A | F48: N/A | G48: N/A | H48: N/A | I48: N/A | J48: N/A | K48: N/A | L48: N/A | M48: N/A | N48: N/A | O48: N/A | P48: N/A | Q48: N/A | BB48: Contaminated (E. coli detected in 100 mL) | BC48: N/A | BD48: N/A | BE48: N/A | BF48: N/A | BG48: N/A | BH48: N/A | BI48: N/A | BJ48: N/A | BK48: N/A | BL48: N/A | BM48: N/A | BN48: N/A | BO48: N/A | BP48: N/A | BQ48: N/A
B49: Highly contaminated (>100 CFU/100 mL) | C49: N/A | D49: N/A | E49: N/A | F49: N/A | G49: N/A | H49: N/A | I49: N/A | J49: N/A | K49: N/A | L49: N/A | M49: N/A | N49: N/A | O49: N/A | P49: N/A | Q49: N/A | BB49: Highly contaminated (>100 CFU/100 mL) | BC49: N/A | BD49: N/A | BE49: N/A | BF49: N/A | BG49: N/A | BH49: N/A | BI49: N/A | BJ49: N/A | BK49: N/A | BL49: N/A | BM49: N/A | BN49: N/A | BO49: N/A | BP49: N/A | BQ49: N/A
A50: Microbiological quality of improved water sources at point of collection | B50: Not contaminated (No E. coli in 100 mL) | C50: N/A | D50: N/A | E50: N/A | F50: N/A | G50: N/A | H50: N/A | I50: N/A | J50: N/A | K50: N/A | L50: N/A | M50: N/A | N50: N/A | O50: N/A | P50: N/A | Q50: N/A | BA50: Microbiological quality of improved water sources at point of collection | BB50: Not contaminated (No E. coli in 100 mL) | BC50: N/A | BD50: N/A | BE50: N/A | BF50: N/A | BG50: N/A | BH50: N/A | BI50: N/A | BJ50: N/A | BK50: N/A | BL50: N/A | BM50: N/A | BN50: N/A | BO50: N/A | BP50: N/A | BQ50: N/A
B51: Contaminated (E. coli detected in 100 mL) | C51: N/A | D51: N/A | E51: N/A | F51: N/A | G51: N/A | H51: N/A | I51: N/A | J51: N/A | K51: N/A | L51: N/A | M51: N/A | N51: N/A | O51: N/A | P51: N/A | Q51: N/A | BB51: Contaminated (E. coli detected in 100 mL) | BC51: N/A | BD51: N/A | BE51: N/A | BF51: N/A | BG51: N/A | BH51: N/A | BI51: N/A | BJ51: N/A | BK51: N/A | BL51: N/A | BM51: N/A | BN51: N/A | BO51: N/A | BP51: N/A | BQ51: N/A
B52: Highly contaminated (>100 CFU/100 mL) | C52: N/A | D52: N/A | E52: N/A | F52: N/A | G52: N/A | H52: N/A | I52: N/A | J52: N/A | K52: N/A | L52: N/A | M52: N/A | N52: N/A | O52: N/A | P52: N/A | Q52: N/A | BB52: Highly contaminated (>100 CFU/100 mL) | BC52: N/A | BD52: N/A | BE52: N/A | BF52: N/A | BG52: N/A | BH52: N/A | BI52: N/A | BJ52: N/A | BK52: N/A | BL52: N/A | BM52: N/A | BN52: N/A | BO52: N/A | BP52: N/A | BQ52: N/A
A53: Microbiological quality of piped on premises at point of collection | B53: Not contaminated (No E. coli in 100 mL) | C53: N/A | D53: N/A | E53: N/A | F53: N/A | G53: N/A | H53: N/A | I53: N/A | J53: N/A | K53: N/A | L53: N/A | M53: N/A | N53: N/A | O53: N/A | P53: N/A | Q53: N/A | BA53: Microbiological quality of piped on premises at point of collection | BB53: Not contaminated (No E. coli in 100 mL) | BC53: N/A | BD53: N/A | BE53: N/A | BF53: N/A | BG53: N/A | BH53: N/A | BI53: N/A | BJ53: N/A | BK53: N/A | BL53: N/A | BM53: N/A | BN53: N/A | BO53: N/A | BP53: N/A | BQ53: N/A
B54: Contaminated (E. coli detected in 100 mL) | C54: N/A | D54: N/A | E54: N/A | F54: N/A | G54: N/A | H54: N/A | I54: N/A | J54: N/A | K54: N/A | L54: N/A | M54: N/A | N54: N/A | O54: N/A | P54: N/A | Q54: N/A | BB54: Contaminated (E. coli detected in 100 mL) | BC54: N/A | BD54: N/A | BE54: N/A | BF54: N/A | BG54: N/A | BH54: N/A | BI54: N/A | BJ54: N/A | BK54: N/A | BL54: N/A | BM54: N/A | BN54: N/A | BO54: N/A | BP54: N/A | BQ54: N/A
B55: Highly contaminated (>100 CFU/100 mL) | C55: N/A | D55: N/A | E55: N/A | F55: N/A | G55: N/A | H55: N/A | I55: N/A | J55: N/A | K55: N/A | L55: N/A | M55: N/A | N55: N/A | O55: N/A | P55: N/A | Q55: N/A | BB55: Highly contaminated (>100 CFU/100 mL) | BC55: N/A | BD55: N/A | BE55: N/A | BF55: N/A | BG55: N/A | BH55: N/A | BI55: N/A | BJ55: N/A | BK55: N/A | BL55: N/A | BM55: N/A | BN55: N/A | BO55: N/A | BP55: N/A | BQ55: N/A
C56: NATIONAL wealth index quintile | H56: URBAN wealth index quintile | M56: RURAL wealth index quintile | BA56: Raw numbers of respondents: | BB56: Use of drinking water sources | BC56: NATIONAL wealth index quintile | BH56: URBAN wealth index quintile | BM56: RURAL wealth index quintile
A57: Percentage based on weighted population | C57: Poorest | D57: Poor | E57: Middle | F57: Rich | G57: Richest | H57: Poorest | I57: Poor | J57: Middle | K57: Rich | L57: Richest | M57: Poorest | N57: Poor | O57: Middle | P57: Rich | Q57: Richest | BA57: Water data, raw numbers (weighted) | BC57: Poorest | BD57: Poor | BE57: Middle | BF57: Rich | BG57: Richest | BH57: Poorest | BI57: Poor | BJ57: Middle | BK57: Rich | BL57: Richest | BM57: Poorest | BN57: Poor | BO57: Middle | BP57: Rich | BQ57: Richest
A58: main source of drinking water | B58: Piped water through house connection or yard | C58: 32.31043187 | D58: 28.88376861 | E58: 60.58333616 | F58: 86.61203595 | G58: 98.32433217 | H58: 79.27542462 | I58: 88.64019998 | J58: 91.09058323 | K58: 97.53691259 | L58: 99.4095564 | M58: 41.74082854 | N58: 25.54679933 | O58: 25.35124968 | P58: 31.53753261 | Q58: 25.32863816
B59: Public standpipe | C59: 4.08505908 | D59: 4.707865809 | E59: 5.896285964 | F59: 2.995951895 | G59: 0.4861916779 | H59: 7.384273103 | I59: 1.006920644 | J59: 2.044238414 | K59: 0.6013989808 | L59: 0.238852449 | M59: 8.513145151 | N59: 5.056399925 | O59: 4.811081612 | P59: 3.184099486 | Q59: 3.401901196
B60: Protected tube well or bore hole | C60: 43.08035289 | D60: 35.41225409 | E60: 25.14509827 | F60: 6.227788858 | G60: 0.7449291704 | H60: 11.36330243 | I60: 9.409526195 | J60: 5.47932102 | K60: 1.130715275 | L60: 0.3515911546 | M60: 28.73309768 | N60: 38.18285478 | O60: 37.80571697 | P60: 37.42261234 | Q60: 51.07139438
B61: Protected dug well or protected spring | C61: 17.72300221 | D61: 22.03987668 | E61: 6.364923207 | F61: 2.496263816 | G61: 0.3677315056 | H61: 0.9868320586 | I61: 0.7059586647 | J61: 1.38585734 | K61: 0.7309731541 | L61: 0 | M61: 15.36096919 | N61: 27.39620745 | O61: 18.91678959 | P61: 19.56400986 | Q61: 19.1753402
B62: Unprotected dug well or spring | C62: 0.3836905861 | D62: 2.07451179 | E62: 1.133198124 | F62: 0.3079309666 | G62: 0 | H62: 0.4808810062 | I62: 0.2373945148 | J62: 0 | K62: 0 | L62: 0 | M62: 2.024169063 | N62: 2.789938858 | O62: 1.652246523 | P62: 1.098136272 | Q62: 0
B63: Rainwater (into tank or cistern ) | C63: 1.450478019 | D63: 2.894667673 | E63: 0 | F63: 0 | G63: 0 | H63: 0 | I63: 0 | J63: 0 | K63: 0 | L63: 0 | M63: 0 | N63: 0 | O63: 6.252499432 | P63: 3.082975471 | Q63: 0
B64: Water taken directly from pond-water or stream | C64: 0 | D64: 0 | E64: 0.1531861142 | F64: 1.360028512 | G64: 0.07681547417 | H64: 0 | I64: 0 | J64: 0 | K64: 0 | L64: 0 | M64: 3.384127894 | N64: 0 | O64: 0 | P64: 0 | Q64: 0
B65: Tanker-truck, vendor | C65: 0.9669853459 | D65: 3.987055353 | E65: 0.7239721557 | F65: 0 | G65: 0 | H65: 0.5092867841 | I65: 0 | J65: 0 | K65: 0 | L65: 0 | M65: 0.2436624833 | N65: 1.027799659 | O65: 5.210416193 | P65: 4.110633961 | Q65: 1.022726063
A108: =A1026 -> Georgia
A109: =A1034 -> 2003
A110: Use of sanitation facilities
A111: by wealth quintile and sub-national region
A112: Notes:
A113: WHO/UNICEF JMP customised wealth index excludes water,
A114: sanitation and hygiene assets.
A115: Survey used for analysis: | B115: =A1025 -> WHS03
A116: =B1030 -> 
A117: =B1029 -> Ratio of Shared improved based on: | B117: MICS05
A120: Use of sanitation facilities | C120: NATIONAL wealth index quintile | H120: URBAN wealth index quintile | M120: RURAL wealth index quintile | BA120: Raw numbers of respondents: | BB120: Use of sanitation facilities | BC120: NATIONAL wealth index quintile | BH120: URBAN wealth index quintile | BM120: RURAL wealth index quintile
A121: Weighted percentage (used in graphs) | C121: Poorest | D121: Poor | E121: Middle | F121: Rich | G121: Richest | H121: Poorest | I121: Poor | J121: Middle | K121: Rich | L121: Richest | M121: Poorest | N121: Poor | O121: Middle | P121: Rich | Q121: Richest | BA121: Sanitation data, raw numbers (weighted) | BC121: Poorest | BD121: Poor | BE121: Middle | BF121: Rich | BG121: Richest | BH121: Poorest | BI121: Poor | BJ121: Middle | BK121: Rich | BL121: Richest | BM121: Poorest | BN121: Poor | BO121: Middle | BP121: Rich | BQ121: Richest
A122: Sanitation | B122: Improved | C122: 94.21564097 | D122: 95.46635046 | E122: 97.00405789 | F122: 94.97074204 | G122: 99.58856498 | H122: 96.42359191 | I122: 99.46810284 | J122: 99.02270181 | K122: 100 | L122: 99.61149282 | M122: 87.12604695 | N122: 93.77175795 | O122: 96.4460196 | P122: 95.1317657 | Q122: 93.65989466 | BA122: Sanitation | BB122: Improved | BC122: 195714.0899 | BD122: 198114.9803 | BE122: 201593.8104 | BF122: 197051.7675 | BG122: 206875.9016 | BH122: 100560.2529 | BI122: 104139.5271 | BJ122: 103368.4828 | BK122: 104334.2084 | BL122: 103804.561 | BM122: 84747.74707 | BN122: 91242.70515 | BO122: 92779.5726 | BP122: 92945.95324 | BQ122: 91585.96074
B123: Not Improved | C123: 5.78435903 | D123: 4.53364954 | E123: 2.995942113 | F123: 5.029257958 | G123: 0.4114350204 | H123: 3.576408089 | I123: 0.5318971565 | J123: 0.9772981921 | K123: 0 | L123: 0.3885071769 | M123: 12.87395305 | N123: 6.228242045 | O123: 3.553980397 | P123: 4.868234296 | Q123: 6.340105344 | BB123: Not Improved | BC123: 12015.84526 | BD123: 9408.381958 | BE123: 6226.166199 | BF123: 10435.04713 | BG123: 854.6763458 | BH123: 3729.839294 | BI123: 556.8771973 | BJ123: 1020.188599 | BK123: 0 | BL123: 404.861084 | BM123: 12522.52977 | BN123: 6060.264465 | BO123: 3418.873932 | BP123: 4756.378418 | BQ123: 6199.714844
A124: Sanitation ladder | B124: Basic | C124: =C122*MICS05!C129/100 -> 92.6345095 | D124: =D122*MICS05!D129/100 -> 94.71695859 | E124: =E122*MICS05!E129/100 -> 93.88673486 | F124: =F122*MICS05!F129/100 -> 92.39279639 | G124: =G122*MICS05!G129/100 -> 98.77413672 | H124: =H122*MICS05!H129/100 -> 92.01759806 | I124: =I122*MICS05!I129/100 -> 94.51544492 | J124: =J122*MICS05!J129/100 -> 96.51059545 | K124: =K122*MICS05!K129/100 -> 99.16812232 | L124: =L122*MICS05!L129/100 -> 99.00246919 | M124: =M122*MICS05!M129/100 -> 85.83775888 | N124: =N122*MICS05!N129/100 -> 92.61500184 | O124: =O122*MICS05!O129/100 -> 95.60497551 | P124: =P122*MICS05!P129/100 -> 94.49366865 | Q124: =Q122*MICS05!Q129/100 -> 92.80227179 | BA124: Sanitation ladder | BB124: Basic | BC124: 14942.56392 | BD124: 17096.94965 | BE124: 100381.6406 | BF124: 161695.8389 | BG124: 202531.9763 | BH124: 57040.7529 | BI124: 83322.33614 | BJ124: 95092.48051 | BK124: 100455.9812 | BL124: 103338.8629 | BM124: 22679.28864 | BN124: 8284.175674 | BO124: 3296.876587 | BP124: 4557.313354 | BQ124: 6051.061707
B125: Limited | C125: =C122*MICS05!C128/100 -> 1.581131474 | D125: =D122*MICS05!D128/100 -> 0.7493918719 | E125: =E122*MICS05!E128/100 -> 3.117323023 | F125: =F122*MICS05!F128/100 -> 2.577945652 | G125: =G122*MICS05!G128/100 -> 0.8144282612 | H125: =H122*MICS05!H128/100 -> 4.405993849 | I125: =I122*MICS05!I128/100 -> 4.952657922 | J125: =J122*MICS05!J128/100 -> 2.512106358 | K125: =K122*MICS05!K128/100 -> 0.8318776794 | L125: =L122*MICS05!L128/100 -> 0.6090236323 | M125: =M122*MICS05!M128/100 -> 1.288288068 | N125: =N122*MICS05!N128/100 -> 1.156756118 | O125: =O122*MICS05!O128/100 -> 0.8410440934 | P125: =P122*MICS05!P128/100 -> 0.6380970511 | Q125: =Q122*MICS05!Q128/100 -> 0.8576228623 | BB125: Limited | BC125: 12450.67563 | BD125: 7586.56781 | BE125: 8705.463638 | BF125: 2262.695999 | BG125: 465.6981201 | BH125: 1332.248718 | BI125: 2743.492798 | BJ125: 668.8726654 | BK125: 0 | BL125: 465.6981201 | BM125: 5080.268265 | BN125: 4322.557541 | BO125: 2438.719315 | BP125: 5913.983795 | BQ125: 7522.312805
B126: Unimproved | C126: =100-C124-C125-C127 -> 5.78435903 | D126: =100-D124-D125-D127 -> 3.632711467 | E126: 2.626292764 | F126: 1.238292511 | G126: 0.1944743516 | H126: 3.576408089 | I126: 0.5318971565 | J126: 0.9772981921 | K126: 4.607425552e-14 | L126: 0.3885071769 | M126: 3.677033737 | N126: 4.143603378 | O126: 3.553980397 | P126: 4.868234296 | Q126: 6.340105344 | BB126: Unimproved | BC126: 4628.307938 | BD126: 2714.133423 | BE126: 4035.600525 | BF126: 0 | BG126: 0 | BH126: 2185.972137 | BI126: 0 | BJ126: 0 | BK126: 0 | BL126: 0 | BM126: 971.6400452 | BN126: 933.6813049 | BO126: 1216.618805 | BP126: 1410.390228 | BQ126: 2406.834396
B127: Open defecation | C127: =C159 -> 0 | D127: =D159 -> 0.9009380738 | E127: 0.3696493487 | F127: 3.790965447 | G127: 0.2169606687 | H127: 0 | I127: 0 | J127: 0 | K127: 0 | L127: 0 | M127: 9.196919311 | N127: 2.084638667 | O127: 0 | P127: 0 | Q127: 0 | BB127: Open defecation | BC127: 163692.5424 | BD127: 170717.3294 | BE127: 88471.10561 | BF127: 33093.23257 | BG127: 3878.227249 | BH127: 40001.27917 | BI127: 18073.69814 | BJ127: 7607.129654 | BK127: 3878.227249 | BL127: 0 | BM127: 56016.55013 | BN127: 77702.29063 | BO127: 85827.35789 | BP127: 81064.26586 | BQ127: 75605.75183
A128: Shared among Improved Sanitation | B128: Yes | C128: N/A | D128: N/A | E128: N/A | F128: N/A | G128: N/A | H128: N/A | I128: N/A | J128: N/A | K128: N/A | L128: N/A | M128: N/A | N128: N/A | O128: N/A | P128: N/A | Q128: N/A | BA128: Shared among improved sanitation facilities | BB128: Yes | BC128: N/A | BD128: N/A | BE128: N/A | BF128: N/A | BG128: N/A | BH128: N/A | BI128: N/A | BJ128: N/A | BK128: N/A | BL128: N/A | BM128: N/A | BN128: N/A | BO128: N/A | BP128: N/A | BQ128: N/A
B129: No | C129: N/A | D129: N/A | E129: N/A | F129: N/A | G129: N/A | H129: N/A | I129: N/A | J129: N/A | K129: N/A | L129: N/A | M129: N/A | N129: N/A | O129: N/A | P129: N/A | Q129: N/A | BB129: No | BC129: N/A | BD129: N/A | BE129: N/A | BF129: N/A | BG129: N/A | BH129: N/A | BI129: N/A | BJ129: N/A | BK129: N/A | BL129: N/A | BM129: N/A | BN129: N/A | BO129: N/A | BP129: N/A | BQ129: N/A
A130: Manually calculated ratios | B130: Improved latrines
B131: Other
B132: Other
C133: NATIONAL wealth index quintile | H133: URBAN wealth index quintile | M133: RURAL wealth index quintile | BA133: Raw numbers of respondents: | BB133: Use of sanitation facilities | BC133: NATIONAL wealth index quintile | BH133: URBAN wealth index quintile | BM133: RURAL wealth index quintile
A134: Percentage based on weighted population | C134: Poorest | D134: Poor | E134: Middle | F134: Rich | G134: Richest | H134: Poorest | I134: Poor | J134: Middle | K134: Rich | L134: Richest | M134: Poorest | N134: Poor | O134: Middle | P134: Rich | Q134: Richest | BA134: Sanitation data, raw numbers (weighted) | BC134: Poorest | BD134: Poor | BE134: Middle | BF134: Rich | BG134: Richest | BH134: Poorest | BI134: Poor | BJ134: Middle | BK134: Rich | BL134: Richest | BM134: Poorest | BN134: Poor | BO134: Middle | BP134: Rich | BQ134: Richest
A135: Sanitation type | B135: Sewer connection | C135: 7.193264616 | D135: 8.238566233 | E135: 48.30220958 | F135: 77.93065752 | G135: 97.49743068 | H135: 54.69431629 | I135: 79.58471613 | J135: 91.09463624 | K135: 96.28288046 | L135: 99.16460605 | M135: 23.3157439 | N135: 8.513795321 | O135: 3.427161982 | P135: 4.664487814 | Q135: 6.188086006 | BA135: Sanitation type | BB135: Sewer connection | BC135: N/A | BD135: N/A | BE135: N/A | BF135: N/A | BG135: N/A | BH135: N/A | BI135: N/A | BJ135: N/A | BK135: N/A | BL135: N/A | BM135: N/A | BN135: N/A | BO135: N/A | BP135: N/A | BQ135: N/A
B136: Septic tank connection | C136: 5.993683877 | D136: 3.655765659 | E136: 4.188944576 | F136: 1.0905252 | G136: 0.2241837117 | H136: 1.277445143 | I136: 2.620426955 | J136: 0.6407521585 | K136: 0 | L136: 0.4468867696 | M136: 5.222837263 | N136: 4.442369599 | O136: 2.5350922 | P136: 6.05306311 | Q136: 7.692653101 | BB136: Septic tank connection | BC136: N/A | BD136: N/A | BE136: N/A | BF136: N/A | BG136: N/A | BH136: N/A | BI136: N/A | BJ136: N/A | BK136: N/A | BL136: N/A | BM136: N/A | BN136: N/A | BO136: N/A | BP136: N/A | BQ136: N/A
B137: Improved latrines | C137: 81.02869248 | D137: 83.57201857 | E137: 44.51290374 | F137: 15.94955932 | G137: 1.866950589 | H137: 40.45183048 | I137: 17.26295976 | J137: 7.287313412 | K137: 3.717119541 | L137: 0 | M137: 58.58746579 | N137: 80.81559304 | O137: 90.48376542 | P137: 84.41421478 | Q137: 79.77915555 | BB137: Improved latrines | BC137: N/A | BD137: N/A | BE137: N/A | BF137: N/A | BG137: N/A | BH137: N/A | BI137: N/A | BJ137: N/A | BK137: N/A | BL137: N/A | BM137: N/A | BN137: N/A | BO137: N/A | BP137: N/A | BQ137: N/A
B138: Unimproved facilities | C138: 5.78435903 | D138: 3.632711467 | E138: 2.62671296 | F138: 1.238292511 | G138: 0.1948972019 | H138: 3.576408089 | I138: 0.5318971565 | J138: 0.9772981921 | K138: 0 | L138: 0.3885071769 | M138: 3.699370027 | N138: 4.143603378 | O138: 3.553980397 | P138: 4.868234296 | Q138: 6.340105344 | BB138: Unimproved facilities | BC138: N/A | BD138: N/A | BE138: N/A | BF138: N/A | BG138: N/A | BH138: N/A | BI138: N/A | BJ138: N/A | BK138: N/A | BL138: N/A | BM138: N/A | BN138: N/A | BO138: N/A | BP138: N/A | BQ138: N/A
B139: Open defecation | C139: 0 | D139: 0.9009380738 | E139: 0.3692291531 | F139: 3.790965447 | G139: 0.2165378185 | H139: 0 | I139: 0 | J139: 0 | K139: 0 | L139: 0 | M139: 9.174583021 | N139: 2.084638667 | O139: 0 | P139: 0 | Q139: 0 | BB139: Open defecation | BC139: N/A | BD139: N/A | BE139: N/A | BF139: N/A | BG139: N/A | BH139: N/A | BI139: N/A | BJ139: N/A | BK139: N/A | BL139: N/A | BM139: N/A | BN139: N/A | BO139: N/A | BP139: N/A | BQ139: N/A
A140: Septic tank emptying practices | B140: Not emptied/treated and disposed in situ | C140: N/A | D140: N/A | E140: N/A | F140: N/A | G140: N/A | H140: N/A | I140: N/A | J140: N/A | K140: N/A | L140: N/A | M140: N/A | N140: N/A | O140: N/A | P140: N/A | Q140: N/A | BA140: Septic tank emptying practices | BB140: Not emptied/treated and disposed in situ | BC140: N/A | BD140: N/A | BE140: N/A | BF140: N/A | BG140: N/A | BH140: N/A | BI140: N/A | BJ140: N/A | BK140: N/A | BL140: N/A | BM140: N/A | BN140: N/A | BO140: N/A | BP140: N/A | BQ140: N/A
B141: Emptied and buried on site | C141: N/A | D141: N/A | E141: N/A | F141: N/A | G141: N/A | H141: N/A | I141: N/A | J141: N/A | K141: N/A | L141: N/A | M141: N/A | N141: N/A | O141: N/A | P141: N/A | Q141: N/A | BB141: Emptied and buried on site | BC141: N/A | BD141: N/A | BE141: N/A | BF141: N/A | BG141: N/A | BH141: N/A | BI141: N/A | BJ141: N/A | BK141: N/A | BL141: N/A | BM141: N/A | BN141: N/A | BO141: N/A | BP141: N/A | BQ141: N/A
B142: Emptied and discharged locally | C142: N/A | D142: N/A | E142: N/A | F142: N/A | G142: N/A | H142: N/A | I142: N/A | J142: N/A | K142: N/A | L142: N/A | M142: N/A | N142: N/A | O142: N/A | P142: N/A | Q142: N/A | BB142: Emptied and discharged locally | BC142: N/A | BD142: N/A | BE142: N/A | BF142: N/A | BG142: N/A | BH142: N/A | BI142: N/A | BJ142: N/A | BK142: N/A | BL142: N/A | BM142: N/A | BN142: N/A | BO142: N/A | BP142: N/A | BQ142: N/A
B143: Emptied and removed offsite | C143: N/A | D143: N/A | E143: N/A | F143: N/A | G143: N/A | H143: N/A | I143: N/A | J143: N/A | K143: N/A | L143: N/A | M143: N/A | N143: N/A | O143: N/A | P143: N/A | Q143: N/A | BB143: Emptied and removed offsite | BC143: N/A | BD143: N/A | BE143: N/A | BF143: N/A | BG143: N/A | BH143: N/A | BI143: N/A | BJ143: N/A | BK143: N/A | BL143: N/A | BM143: N/A | BN143: N/A | BO143: N/A | BP143: N/A | BQ143: N/A
A144: Latrine emptying practices | B144: Not emptied/treated and disposed in situ | C144: N/A | D144: N/A | E144: N/A | F144: N/A | G144: N/A | H144: N/A | I144: N/A | J144: N/A | K144: N/A | L144: N/A | M144: N/A | N144: N/A | O144: N/A | P144: N/A | Q144: N/A | BA144: Latrine emptying practices | BB144: Not emptied/treated and disposed in situ | BC144: N/A | BD144: N/A | BE144: N/A | BF144: N/A | BG144: N/A | BH144: N/A | BI144: N/A | BJ144: N/A | BK144: N/A | BL144: N/A | BM144: N/A | BN144: N/A | BO144: N/A | BP144: N/A | BQ144: N/A
B145: Emptied and buried on site | C145: N/A | D145: N/A | E145: N/A | F145: N/A | G145: N/A | H145: N/A | I145: N/A | J145: N/A | K145: N/A | L145: N/A | M145: N/A | N145: N/A | O145: N/A | P145: N/A | Q145: N/A | BB145: Emptied and buried on site | BC145: N/A | BD145: N/A | BE145: N/A | BF145: N/A | BG145: N/A | BH145: N/A | BI145: N/A | BJ145: N/A | BK145: N/A | BL145: N/A | BM145: N/A | BN145: N/A | BO145: N/A | BP145: N/A | BQ145: N/A
B146: Emptied and discharged locally | C146: N/A | D146: N/A | E146: N/A | F146: N/A | G146: N/A | H146: N/A | I146: N/A | J146: N/A | K146: N/A | L146: N/A | M146: N/A | N146: N/A | O146: N/A | P146: N/A | Q146: N/A | BB146: Emptied and discharged locally | BC146: N/A | BD146: N/A | BE146: N/A | BF146: N/A | BG146: N/A | BH146: N/A | BI146: N/A | BJ146: N/A | BK146: N/A | BL146: N/A | BM146: N/A | BN146: N/A | BO146: N/A | BP146: N/A | BQ146: N/A
B147: Emptied and removed offsite | C147: N/A | D147: N/A | E147: N/A | F147: N/A | G147: N/A | H147: N/A | I147: N/A | J147: N/A | K147: N/A | L147: N/A | M147: N/A | N147: N/A | O147: N/A | P147: N/A | Q147: N/A | BB147: Emptied and removed offsite | BC147: N/A | BD147: N/A | BE147: N/A | BF147: N/A | BG147: N/A | BH147: N/A | BI147: N/A | BJ147: N/A | BK147: N/A | BL147: N/A | BM147: N/A | BN147: N/A | BO147: N/A | BP147: N/A | BQ147: N/A
A148: Shared among improved sanitation facilities | B148: Yes | C148: N/A | D148: N/A | E148: N/A | F148: N/A | G148: N/A | H148: N/A | I148: N/A | J148: N/A | K148: N/A | L148: N/A | M148: N/A | N148: N/A | O148: N/A | P148: N/A | Q148: N/A | BA148: Shared among improved sanitation facilities | BB148: Yes | BC148: N/A | BD148: N/A | BE148: N/A | BF148: N/A | BG148: N/A | BH148: N/A | BI148: N/A | BJ148: N/A | BK148: N/A | BL148: N/A | BM148: N/A | BN148: N/A | BO148: N/A | BP148: N/A | BQ148: N/A
B149: No | C149: N/A | D149: N/A | E149: N/A | F149: N/A | G149: N/A | H149: N/A | I149: N/A | J149: N/A | K149: N/A | L149: N/A | M149: N/A | N149: N/A | O149: N/A | P149: N/A | Q149: N/A | BB149: No | BC149: N/A | BD149: N/A | BE149: N/A | BF149: N/A | BG149: N/A | BH149: N/A | BI149: N/A | BJ149: N/A | BK149: N/A | BL149: N/A | BM149: N/A | BN149: N/A | BO149: N/A | BP149: N/A | BQ149: N/A
B150: DK/missing | C150: N/A | D150: N/A | E150: N/A | F150: N/A | G150: N/A | H150: N/A | I150: N/A | J150: N/A | K150: N/A | L150: N/A | M150: N/A | N150: N/A | O150: N/A | P150: N/A | Q150: N/A | BB150: DK/missing | BC150: N/A | BD150: N/A | BE150: N/A | BF150: N/A | BG150: N/A | BH150: N/A | BI150: N/A | BJ150: N/A | BK150: N/A | BL150: N/A | BM150: N/A | BN150: N/A | BO150: N/A | BP150: N/A | BQ150: N/A
A151: Shared among all sanitation facilities | B151: Yes | C151: N/A | D151: N/A | E151: N/A | F151: N/A | G151: N/A | H151: N/A | I151: N/A | J151: N/A | K151: N/A | L151: N/A | M151: N/A | N151: N/A | O151: N/A | P151: N/A | Q151: N/A | BA151: Shared among all sanitation facilities | BB151: Yes | BC151: N/A | BD151: N/A | BE151: N/A | BF151: N/A | BG151: N/A | BH151: N/A | BI151: N/A | BJ151: N/A | BK151: N/A | BL151: N/A | BM151: N/A | BN151: N/A | BO151: N/A | BP151: N/A | BQ151: N/A
B152: No | C152: N/A | D152: N/A | E152: N/A | F152: N/A | G152: N/A | H152: N/A | I152: N/A | J152: N/A | K152: N/A | L152: N/A | M152: N/A | N152: N/A | O152: N/A | P152: N/A | Q152: N/A | BB152: No | BC152: N/A | BD152: N/A | BE152: N/A | BF152: N/A | BG152: N/A | BH152: N/A | BI152: N/A | BJ152: N/A | BK152: N/A | BL152: N/A | BM152: N/A | BN152: N/A | BO152: N/A | BP152: N/A | BQ152: N/A
A153: What type of toilet facilities | B153: Flush to piped sewage system | C153: 7.193264616 | D153: 8.238566233 | E153: 48.35717916 | F153: 77.93065752 | G153: 97.68782151 | H153: 54.69431629 | I153: 79.58471613 | J153: 91.09463624 | K153: 96.28288046 | L153: 99.55137027 | M153: 23.37250803 | N153: 8.513795321 | O153: 3.427161982 | P153: 4.664487814 | Q153: 6.188086006 | BA153: Shared among improved sanitation facilities | BB153: Yes | BC153: N/A | BD153: N/A | BE153: N/A | BF153: N/A | BG153: N/A | BH153: N/A | BI153: N/A | BJ153: N/A | BK153: N/A | BL153: N/A | BM153: N/A | BN153: N/A | BO153: N/A | BP153: N/A | BQ153: N/A
B154: Flush to septic tank | C154: 5.993683877 | D154: 3.655765659 | E154: 4.19371174 | F154: 1.0905252 | G154: 0.2246214927 | H154: 1.277445143 | I154: 2.620426955 | J154: 0.6407521585 | K154: 0 | L154: 0.4486297283 | M154: 5.235552697 | N154: 4.442369599 | O154: 2.5350922 | P154: 6.05306311 | Q154: 7.692653101 | BB154: No | BC154: N/A | BD154: N/A | BE154: N/A | BF154: N/A | BG154: N/A | BH154: N/A | BI154: N/A | BJ154: N/A | BK154: N/A | BL154: N/A | BM154: N/A | BN154: N/A | BO154: N/A | BP154: N/A | BQ154: N/A
B155: Pour flush latrine | C155: 2.22804091 | D155: 1.307868856 | E155: 1.944083165 | F155: 0 | G155: 0 | H155: 2.096049673 | I155: 0 | J155: 0 | K155: 0 | L155: 0 | M155: 1.001339377 | N155: 0.9595609554 | O155: 1.264696935 | P155: 1.443558413 | Q155: 2.461336369
B156: Covered dry latrine (with privacy) | C156: 78.80065157 | D156: 82.26414971 | E156: 42.6194778 | F156: 15.94955932 | G156: 1.870596329 | H156: 38.3557808 | I156: 17.26295976 | J156: 7.287313412 | K156: 3.717119541 | L156: 0 | M156: 57.7287625 | N156: 79.85603208 | O156: 89.21906849 | P156: 82.97065637 | Q156: 77.31781918
B157: Uncovered dry latrine (without privacy) | C157: 5.78435903 | D157: 3.632711467 | E157: 2.515898785 | F157: 1.084505221 | G157: 0 | H157: 3.576408089 | I157: 0.5318971565 | J157: 0.9772981921 | K157: 0 | L157: 0 | M157: 3.136076423 | N157: 4.143603378 | O157: 3.553980397 | P157: 4.868234296 | Q157: 6.340105344
B158: Bucket latrine (where fresh excreta are manually removed) | C158: 0 | D158: 0 | E158: 0 | F158: 0.1537872896 | G158: 0 | H158: 0 | I158: 0 | J158: 0 | K158: 0 | L158: 0 | M158: 0.3288416627 | N158: 0 | O158: 0 | P158: 0 | Q158: 0
B159: No facilities (open defecation) | C159: 0 | D159: 0.9009380738 | E159: 0.3696493487 | F159: 3.790965447 | G159: 0.2169606687 | H159: 0 | I159: 0 | J159: 0 | K159: 0 | L159: 0 | M159: 9.196919311 | N159: 2.084638667 | O159: 0 | P159: 0 | Q159: 0
A208: =A1026 -> Georgia
A209: =A1034 -> 2003
A210: Access to hygiene facilities
A211: by wealth quintile and sub-national region
A212: Notes:
A213: WHO/UNICEF JMP customised wealth index excludes water,
A214: sanitation and hygiene assets.
A215: Survey used for analysis: | B215: =A1025 -> WHS03
A220: Access to handwashing | C220: NATIONAL wealth index quintile | H220: URBAN wealth index quintile | M220: RURAL wealth index quintile | BA220: Raw numbers of respondents: | BB220: Access to handwashing | BC220: NATIONAL wealth index quintile | BH220: URBAN wealth index quintile | BM220: RURAL wealth index quintile
A221: Weighted percentage (used in graphs) | C221: Poorest | D221: Poor | E221: Middle | F221: Rich | G221: Richest | H221: Poorest | I221: Poor | J221: Middle | K221: Rich | L221: Richest | M221: Poorest | N221: Poor | O221: Middle | P221: Rich | Q221: Richest | BA221: Hygiene data, raw numbers (weighted) | BC221: Poorest | BD221: Poor | BE221: Middle | BF221: Rich | BG221: Richest | BH221: Poorest | BI221: Poor | BJ221: Middle | BK221: Rich | BL221: Richest | BM221: Poorest | BN221: Poor | BO221: Middle | BP221: Rich | BQ221: Richest
A222: Hygiene ladder | B222: Basic | C222: N/A | D222: N/A | E222: N/A | F222: N/A | G222: N/A | H222: N/A | I222: N/A | J222: N/A | K222: N/A | L222: N/A | M222: N/A | N222: N/A | O222: N/A | P222: N/A | Q222: N/A | BA222: Hygiene ladder | BB222: Basic | BC222: N/A | BD222: N/A | BE222: N/A | BF222: N/A | BG222: N/A | BH222: N/A | BI222: N/A | BJ222: N/A | BK222: N/A | BL222: N/A | BM222: N/A | BN222: N/A | BO222: N/A | BP222: N/A | BQ222: N/A
B223: Limited | C223: N/A | D223: N/A | E223: N/A | F223: N/A | G223: N/A | H223: N/A | I223: N/A | J223: N/A | K223: N/A | L223: N/A | M223: N/A | N223: N/A | O223: N/A | P223: N/A | Q223: N/A | BB223: Limited | BC223: N/A | BD223: N/A | BE223: N/A | BF223: N/A | BG223: N/A | BH223: N/A | BI223: N/A | BJ223: N/A | BK223: N/A | BL223: N/A | BM223: N/A | BN223: N/A | BO223: N/A | BP223: N/A | BQ223: N/A
B224: No facility | C224: N/A | D224: N/A | E224: N/A | F224: N/A | G224: N/A | H224: N/A | I224: N/A | J224: N/A | K224: N/A | L224: N/A | M224: N/A | N224: N/A | O224: N/A | P224: N/A | Q224: N/A | BB224: No facility | BC224: N/A | BD224: N/A | BE224: N/A | BF224: N/A | BG224: N/A | BH224: N/A | BI224: N/A | BJ224: N/A | BK224: N/A | BL224: N/A | BM224: N/A | BN224: N/A | BO224: N/A | BP224: N/A | BQ224: N/A
BA225: Observed handwashing place | BB225: Fixed | BC225: N/A | BD225: N/A | BE225: N/A | BF225: N/A | BG225: N/A | BH225: N/A | BI225: N/A | BJ225: N/A | BK225: N/A | BL225: N/A | BM225: N/A | BN225: N/A | BO225: N/A | BP225: N/A | BQ225: N/A
BB226: Mobile | BC226: N/A | BD226: N/A | BE226: N/A | BF226: N/A | BG226: N/A | BH226: N/A | BI226: N/A | BJ226: N/A | BK226: N/A | BL226: N/A | BM226: N/A | BN226: N/A | BO226: N/A | BP226: N/A | BQ226: N/A
BA227: Water / Soap | BB227: Water and soap | BC227: N/A | BD227: N/A | BE227: N/A | BF227: N/A | BG227: N/A | BH227: N/A | BI227: N/A | BJ227: N/A | BK227: N/A | BL227: N/A | BM227: N/A | BN227: N/A | BO227: N/A | BP227: N/A | BQ227: N/A
BB228: Water only | BC228: N/A | BD228: N/A | BE228: N/A | BF228: N/A | BG228: N/A | BH228: N/A | BI228: N/A | BJ228: N/A | BK228: N/A | BL228: N/A | BM228: N/A | BN228: N/A | BO228: N/A | BP228: N/A | BQ228: N/A
BB229: Soap only | BC229: N/A | BD229: N/A | BE229: N/A | BF229: N/A | BG229: N/A | BH229: N/A | BI229: N/A | BJ229: N/A | BK229: N/A | BL229: N/A | BM229: N/A | BN229: N/A | BO229: N/A | BP229: N/A | BQ229: N/A
BB230: Neither | BC230: N/A | BD230: N/A | BE230: N/A | BF230: N/A | BG230: N/A | BH230: N/A | BI230: N/A | BJ230: N/A | BK230: N/A | BL230: N/A | BM230: N/A | BN230: N/A | BO230: N/A | BP230: N/A | BQ230: N/A
BA259: Raw numbers of respondents: | BB259: Menstrual health and hygiene | BC259: NATIONAL wealth index quintile | BH259: URBAN wealth index quintile | BM259: RURAL wealth index quintile
BA260: MHH data, raw numbers (weighted) | BC260: Poorest | BD260: Poor | BE260: Middle | BF260: Rich | BG260: Richest | BH260: Poorest | BI260: Poor | BJ260: Middle | BK260: Rich | BL260: Richest | BM260: Poorest | BN260: Poor | BO260: Middle | BP260: Rich | BQ260: Richest
BA261: Private place to wash and change | BB261: Yes | BC261: N/A | BD261: N/A | BE261: N/A | BF261: N/A | BG261: N/A | BH261: N/A | BI261: N/A | BJ261: N/A | BK261: N/A | BL261: N/A | BM261: N/A | BN261: N/A | BO261: N/A | BP261: N/A | BQ261: N/A
BB262: No | BC262: N/A | BD262: N/A | BE262: N/A | BF262: N/A | BG262: N/A | BH262: N/A | BI262: N/A | BJ262: N/A | BK262: N/A | BL262: N/A | BM262: N/A | BN262: N/A | BO262: N/A | BP262: N/A | BQ262: N/A
BB263: DK/not sure/missing | BC263: N/A | BD263: N/A | BE263: N/A | BF263: N/A | BG263: N/A | BH263: N/A | BI263: N/A | BJ263: N/A | BK263: N/A | BL263: N/A | BM263: N/A | BN263: N/A | BO263: N/A | BP263: N/A | BQ263: N/A
BA264: Use of menstrual materials | BB264: Materials reusable | BC264: N/A | BD264: N/A | BE264: N/A | BF264: N/A | BG264: N/A | BH264: N/A | BI264: N/A | BJ264: N/A | BK264: N/A | BL264: N/A | BM264: N/A | BN264: N/A | BO264: N/A | BP264: N/A | BQ264: N/A
BB265: Materials not reusable | BC265: N/A | BD265: N/A | BE265: N/A | BF265: N/A | BG265: N/A | BH265: N/A | BI265: N/A | BJ265: N/A | BK265: N/A | BL265: N/A | BM265: N/A | BN265: N/A | BO265: N/A | BP265: N/A | BQ265: N/A
BB266: No materials used | BC266: N/A | BD266: N/A | BE266: N/A | BF266: N/A | BG266: N/A | BH266: N/A | BI266: N/A | BJ266: N/A | BK266: N/A | BL266: N/A | BM266: N/A | BN266: N/A | BO266: N/A | BP266: N/A | BQ266: N/A
BB267: DK/not sure/missing | BC267: N/A | BD267: N/A | BE267: N/A | BF267: N/A | BG267: N/A | BH267: N/A | BI267: N/A | BJ267: N/A | BK267: N/A | BL267: N/A | BM267: N/A | BN267: N/A | BO267: N/A | BP267: N/A | BQ267: N/A
BA268: Use of menstrual materials with private place to wash and change | BB268: Materials reusable | BC268: N/A | BD268: N/A | BE268: N/A | BF268: N/A | BG268: N/A | BH268: N/A | BI268: N/A | BJ268: N/A | BK268: N/A | BL268: N/A | BM268: N/A | BN268: N/A | BO268: N/A | BP268: N/A | BQ268: N/A
BB269: Materials not reusable | BC269: N/A | BD269: N/A | BE269: N/A | BF269: N/A | BG269: N/A | BH269: N/A | BI269: N/A | BJ269: N/A | BK269: N/A | BL269: N/A | BM269: N/A | BN269: N/A | BO269: N/A | BP269: N/A | BQ269: N/A
BB270: No materials used | BC270: N/A | BD270: N/A | BE270: N/A | BF270: N/A | BG270: N/A | BH270: N/A | BI270: N/A | BJ270: N/A | BK270: N/A | BL270: N/A | BM270: N/A | BN270: N/A | BO270: N/A | BP270: N/A | BQ270: N/A
BA271: Awareness of menstruation before menarche | BB271: Yes | BC271: N/A | BD271: N/A | BE271: N/A | BF271: N/A | BG271: N/A | BH271: N/A | BI271: N/A | BJ271: N/A | BK271: N/A | BL271: N/A | BM271: N/A | BN271: N/A | BO271: N/A | BP271: N/A | BQ271: N/A
BB272: No | BC272: N/A | BD272: N/A | BE272: N/A | BF272: N/A | BG272: N/A | BH272: N/A | BI272: N/A | BJ272: N/A | BK272: N/A | BL272: N/A | BM272: N/A | BN272: N/A | BO272: N/A | BP272: N/A | BQ272: N/A
BB273: DK/not sure/missing | BC273: N/A | BD273: N/A | BE273: N/A | BF273: N/A | BG273: N/A | BH273: N/A | BI273: N/A | BJ273: N/A | BK273: N/A | BL273: N/A | BM273: N/A | BN273: N/A | BO273: N/A | BP273: N/A | BQ273: N/A
BA274: Participation in (all) activities during menstruation | BB274: Yes | BC274: N/A | BD274: N/A | BE274: N/A | BF274: N/A | BG274: N/A | BH274: N/A | BI274: N/A | BJ274: N/A | BK274: N/A | BL274: N/A | BM274: N/A | BN274: N/A | BO274: N/A | BP274: N/A | BQ274: N/A
BB275: No | BC275: N/A | BD275: N/A | BE275: N/A | BF275: N/A | BG275: N/A | BH275: N/A | BI275: N/A | BJ275: N/A | BK275: N/A | BL275: N/A | BM275: N/A | BN275: N/A | BO275: N/A | BP275: N/A | BQ275: N/A
BB276: DK/not sure/missing/no such activity | BC276: N/A | BD276: N/A | BE276: N/A | BF276: N/A | BG276: N/A | BH276: N/A | BI276: N/A | BJ276: N/A | BK276: N/A | BL276: N/A | BM276: N/A | BN276: N/A | BO276: N/A | BP276: N/A | BQ276: N/A
BA277: Participation in specific activities during menstruation | BB277: Did not go to school (amongst those usually attending school) | BC277: N/A | BD277: N/A | BE277: N/A | BF277: N/A | BG277: N/A | BH277: N/A | BI277: N/A | BJ277: N/A | BK277: N/A | BL277: N/A | BM277: N/A | BN277: N/A | BO277: N/A | BP277: N/A | BQ277: N/A
BB278: Did not go to work (amongst those who usually work) | BC278: N/A | BD278: N/A | BE278: N/A | BF278: N/A | BG278: N/A | BH278: N/A | BI278: N/A | BJ278: N/A | BK278: N/A | BL278: N/A | BM278: N/A | BN278: N/A | BO278: N/A | BP278: N/A | BQ278: N/A
BB279: Did not participate in social activities | BC279: N/A | BD279: N/A | BE279: N/A | BF279: N/A | BG279: N/A | BH279: N/A | BI279: N/A | BJ279: N/A | BK279: N/A | BL279: N/A | BM279: N/A | BN279: N/A | BO279: N/A | BP279: N/A | BQ279: N/A
BB280: Did not cook food | BC280: N/A | BD280: N/A | BE280: N/A | BF280: N/A | BG280: N/A | BH280: N/A | BI280: N/A | BJ280: N/A | BK280: N/A | BL280: N/A | BM280: N/A | BN280: N/A | BO280: N/A | BP280: N/A | BQ280: N/A
BB281: Did not eat with others | BC281: N/A | BD281: N/A | BE281: N/A | BF281: N/A | BG281: N/A | BH281: N/A | BI281: N/A | BJ281: N/A | BK281: N/A | BL281: N/A | BM281: N/A | BN281: N/A | BO281: N/A | BP281: N/A | BQ281: N/A
BB282: Did not bathe in regular place | BC282: N/A | BD282: N/A | BE282: N/A | BF282: N/A | BG282: N/A | BH282: N/A | BI282: N/A | BJ282: N/A | BK282: N/A | BL282: N/A | BM282: N/A | BN282: N/A | BO282: N/A | BP282: N/A | BQ282: N/A
BB283: Did not participate in other activities | BC283: N/A | BD283: N/A | BE283: N/A | BF283: N/A | BG283: N/A | BH283: N/A | BI283: N/A | BJ283: N/A | BK283: N/A | BL283: N/A | BM283: N/A | BN283: N/A | BO283: N/A | BP283: N/A | BQ283: N/A
BB284: DK/not sure/missing/no such activity | BC284: N/A | BD284: N/A | BE284: N/A | BF284: N/A | BG284: N/A | BH284: N/A | BI284: N/A | BJ284: N/A | BK284: N/A | BL284: N/A | BM284: N/A | BN284: N/A | BO284: N/A | BP284: N/A | BQ284: N/A
BA339: Raw numbers of respondents: | BB339: Basic water, sanitation and hygiene | BC339: NATIONAL wealth index quintile | BH339: URBAN wealth index quintile | BM339: RURAL wealth index quintile
BA340: WatSan data, raw numbers (weighted) | BC340: Poorest | BD340: Poor | BE340: Middle | BF340: Rich | BG340: Richest | BH340: Poorest | BI340: Poor | BJ340: Middle | BK340: Rich | BL340: Richest | BM340: Poorest | BN340: Poor | BO340: Middle | BP340: Rich | BQ340: Richest
BA341: Use of Basic Water Sanitation and Hygiene | BB341: Yes | BC341: N/A | BD341: N/A | BE341: N/A | BF341: N/A | BG341: N/A | BH341: N/A | BI341: N/A | BJ341: N/A | BK341: N/A | BL341: N/A | BM341: N/A | BN341: N/A | BO341: N/A | BP341: N/A | BQ341: N/A
BB342: No | BC342: N/A | BD342: N/A | BE342: N/A | BF342: N/A | BG342: N/A | BH342: N/A | BI342: N/A | BJ342: N/A | BK342: N/A | BL342: N/A | BM342: N/A | BN342: N/A | BO342: N/A | BP342: N/A | BQ342: N/A
BA343: Use of Basic Water and Sanitation | BB343: Yes | BC343: N/A | BD343: N/A | BE343: N/A | BF343: N/A | BG343: N/A | BH343: N/A | BI343: N/A | BJ343: N/A | BK343: N/A | BL343: N/A | BM343: N/A | BN343: N/A | BO343: N/A | BP343: N/A | BQ343: N/A
BB344: No | BC344: N/A | BD344: N/A | BE344: N/A | BF344: N/A | BG344: N/A | BH344: N/A | BI344: N/A | BJ344: N/A | BK344: N/A | BL344: N/A | BM344: N/A | BN344: N/A | BO344: N/A | BP344: N/A | BQ344: N/A
BA345: Use of Basic Water and Hygiene | BB345: Yes | BC345: N/A | BD345: N/A | BE345: N/A | BF345: N/A | BG345: N/A | BH345: N/A | BI345: N/A | BJ345: N/A | BK345: N/A | BL345: N/A | BM345: N/A | BN345: N/A | BO345: N/A | BP345: N/A | BQ345: N/A
BB346: No | BC346: N/A | BD346: N/A | BE346: N/A | BF346: N/A | BG346: N/A | BH346: N/A | BI346: N/A | BJ346: N/A | BK346: N/A | BL346: N/A | BM346: N/A | BN346: N/A | BO346: N/A | BP346: N/A | BQ346: N/A
BA347: Use of Basic Sanitation and Hygiene | BB347: Yes | BC347: N/A | BD347: N/A | BE347: N/A | BF347: N/A | BG347: N/A | BH347: N/A | BI347: N/A | BJ347: N/A | BK347: N/A | BL347: N/A | BM347: N/A | BN347: N/A | BO347: N/A | BP347: N/A | BQ347: N/A
BB348: No | BC348: N/A | BD348: N/A | BE348: N/A | BF348: N/A | BG348: N/A | BH348: N/A | BI348: N/A | BJ348: N/A | BK348: N/A | BL348: N/A | BM348: N/A | BN348: N/A | BO348: N/A | BP348: N/A | BQ348: N/A
BA349: Use of Basic Water | BB349: Yes | BC349: N/A | BD349: N/A | BE349: N/A | BF349: N/A | BG349: N/A | BH349: N/A | BI349: N/A | BJ349: N/A | BK349: N/A | BL349: N/A | BM349: N/A | BN349: N/A | BO349: N/A | BP349: N/A | BQ349: N/A
BB350: No | BC350: N/A | BD350: N/A | BE350: N/A | BF350: N/A | BG350: N/A | BH350: N/A | BI350: N/A | BJ350: N/A | BK350: N/A | BL350: N/A | BM350: N/A | BN350: N/A | BO350: N/A | BP350: N/A | BQ350: N/A
BA351: Use of Basic Sanitation | BB351: Yes | BC351: N/A | BD351: N/A | BE351: N/A | BF351: N/A | BG351: N/A | BH351: N/A | BI351: N/A | BJ351: N/A | BK351: N/A | BL351: N/A | BM351: N/A | BN351: N/A | BO351: N/A | BP351: N/A | BQ351: N/A
BB352: No | BC352: N/A | BD352: N/A | BE352: N/A | BF352: N/A | BG352: N/A | BH352: N/A | BI352: N/A | BJ352: N/A | BK352: N/A | BL352: N/A | BM352: N/A | BN352: N/A | BO352: N/A | BP352: N/A | BQ352: N/A
BA353: Access to Basic Hygiene | BB353: Yes | BC353: N/A | BD353: N/A | BE353: N/A | BF353: N/A | BG353: N/A | BH353: N/A | BI353: N/A | BJ353: N/A | BK353: N/A | BL353: N/A | BM353: N/A | BN353: N/A | BO353: N/A | BP353: N/A | BQ353: N/A
BB354: No | BC354: N/A | BD354: N/A | BE354: N/A | BF354: N/A | BG354: N/A | BH354: N/A | BI354: N/A | BJ354: N/A | BK354: N/A | BL354: N/A | BM354: N/A | BN354: N/A | BO354: N/A | BP354: N/A | BQ354: N/A
C399: INITIAL (national) Wealth Index | H399: URBAN Wealth Index | M399: RURAL Wealth Index
C400: Component Matrix | H400: Component Matrix | M400: Component Matrix
E401: Component | J401: Component | O401: Component
B402: Note: The INITIAL (national) Wealth Index is based on the first component of the Principal Component Analysis (PCA) which has been obtained at national level. The final national-level (NATIONAL) Wealth Index is based on the URBAN and RURAL specific wealth indexes. Regression procedures are used to establish the relationships between the two sets of scores (urban and rural) and the initial (national) wealth factors. This allows best use of the available information for each area and a better precision of the FINAL (NATIONAL) Wealth Index. For dependency reasons, all WASH variables (contained in the generic MICS and DHS scripts) have been excluded from the sets of asset variables used in the PCAs. The PCA can extracts as many components as there are asset variables in the input. Only the first of the components is used to represent the Wealth Index. The scores represent the weights of the asset variables on the Wealth Index (correlations between the variables and the component). The communalities are the proportion of each variable's variance that can be explained by the component. Proportion of explained variance is the part of the model's total variance that is explained by the component. For more information on the procedure used: The DHS Wealth Index, DHS Comparative Reports No. 6, Shea Oscar Rutstein, Kiersten Johnson, ORC Macro International Inc., 2004. The DHS Wealth Index: Approaches for Rural and Urban Areas, Shea O. Rutstein, ORC Macro International Inc., 2008. MICS Methodological Paper No. 4, Review of options for reporting water, sanitation and hygiene coverage by wealth quintile, UNICEF, 2016. | E402: 1 | J402: 1 | O402: 1
C403: Uses wood fuel | E403: 0.7257613437 | H403: Uses wood heating | J403: 0.6071891571 | M403: Uses wood heating | O403: -0.8237663761
C404: Permanent Income question 13 | E404: 0.6873584378 | H404: Uses gaz heating | J404: -0.6002461669 | M404: Uses closed stove with chimney | O404: -0.7991850999
C405: Uses gaz fuel | E405: -0.6860174149 | H405: Uses gaz fuel | J405: -0.572749542 | M405: Uses animal dung heating | O405: 0.7553375721
C406: Uses wood heating | E406: 0.6851226532 | H406: Permanent Income question 14 | J406: 0.5585379479 | M406: Uses animal dung fuel | O406: 0.716653619
C407: Uses closed stove with chimney | E407: 0.652570482 | H407: Permanent Income question 11 | J407: 0.5447551135 | M407: Uses open fire with chimney | O407: 0.715072096
C408: Uses closed stove with chimney | E408: 0.632158646 | H408: Permanent Income question 13 | J408: 0.5330285156 | M408: Uses wood fuel | O408: -0.6222194758
C409: Uses gaz heating | E409: -0.6141751898 | H409: Uses closed stove with chimney | J409: 0.5299116238 | M409: Uses closed stove with chimney | O409: -0.5625494896
C410: Permanent Income question 11 | E410: 0.5784107762 | H410: Permanent Income question 5 | J410: 0.506387273 | M410: Uses open fire with chimney | O410: 0.538808304
C411: Permanent Income question 14 | E411: 0.5734034361 | H411: Permanent Income question 15 | J411: 0.4895918213 | M411: Uses open fire without chimney | O411: 0.3092964546
C412: Permanent Income question 5 | E412: 0.4699578427 | H412: Permanent Income question 6 | J412: 0.4675903791 | M412: Uses living or sleeping room as kitchen | O412: 0.2981316709
C413: Permanent Income question 6 | E413: 0.4464104173 | H413: Permanent Income question 16 | J413: 0.4416671815 | M413: Uses separate room as kitchen | O413: -0.284498672
C414: Permanent Income question 15 | E414: 0.4188395506 | H414: Uses wood fuel | J414: 0.4399317824 | M414: Permanent Income question 1 | O414: 0.2566695229
C415: Permanent Income question 9 | E415: 0.391000687 | H415: Permanent Income question 12 | J415: 0.4327704435 | M415: Uses electricity heating | O415: 0.2514289109
C416: Permanent Income question 12 | E416: 0.383037404 | H416: Permanent Income question 9 | J416: 0.4288237606 | M416: Permanent Income question 7 | O416: -0.2414452205
C417: Permanent Income question 18 | E417: 0.3746040517 | H417: Has Car | J417: 0.3965982739 | M417: Uses gaz fuel | O417: 0.2045483713
C418: Permanent Income question 16 | E418: 0.3609544951 | H418: Permanent Income question 18 | J418: 0.3616826536 | M418: Uses electricity fuel | O418: 0.1882338485
C419: Has TV | E419: 0.3085763225 | H419: Uses closed stove with chimney | J419: 0.3332839652 | M419: Permanent Income question 5 | O419: -0.1801615724
C420: Uses open fire without chimney | E420: -0.2972390089 | H420: Permanent Income question 8 | J420: 0.3296438754 | M420: Uses shrubs grass fuel | O420: 0.1794448615
C421: Has Car | E421: 0.2818772464 | H421: Uses electricity fuel | J421: 0.3069048787 | M421: Uses gaz heating | O421: 0.1754053855
C422: Permanent Income question 20 | E422: 0.2745017973 | H422: Has TV | J422: 0.2912437285 | M422: Has hearth floor | O422: 0.1732181358
C423: Uses separate building as kitchen | E423: 0.2534783212 | H423: Permanent Income question 4 | J423: -0.2805774569 | M423: Has hard floor | O423: -0.1732181358
C424: Permanent Income question 8 | E424: 0.2491352996 | H424: Permanent Income question 7 | J424: 0.2727545841 | M424: Permanent Income question 12 | O424: 0.1702073333
C425: Permanent Income question 7 | E425: 0.2462822543 | H425: Permanent Income question 19 | J425: 0.2615430598 | M425: Uses shrubs grass heating | O425: 0.1393156817
... 207 more rows

Sheet MICS05
A2: =A1026 -> Georgia
A3: =A1034 -> 2005
A4: Use of drinking water sources
A5: by wealth quintile and sub-national region
A6: Notes:
A7: WHO/UNICEF JMP customised wealth index excludes water,
A8: sanitation and hygiene assets.
A9: Survey used for analysis: | B9: =A1025 -> MICS05
A10: =B1028 -> 
A11: =B1027 -> 
A14: Use of drinking water sources | C14: NATIONAL wealth index quintile | H14: URBAN wealth index quintile | M14: RURAL wealth index quintile | R14: SUB-REGIONS: | BA14: Raw numbers of respondents: | BB14: Use of drinking water sources | BC14: NATIONAL wealth index quintile | BH14: URBAN wealth index quintile | BM14: RURAL wealth index quintile | BR14: SUB-REGIONS:
A15: Weighted percentage (used in graphs) | C15: Poorest | D15: Poor | E15: Middle | F15: Rich | G15: Richest | H15: Poorest | I15: Poor | J15: Middle | K15: Rich | L15: Richest | M15: Poorest | N15: Poor | O15: Middle | P15: Rich | Q15: Richest | R15: Adjara | S15: Guria | T15: Imereti | U15: Kakheti | V15: Kvemo Kartli | W15: Mtskheta - Mtianeti | X15: Racha - Lechkhumi and Kvemo Svaneti | Y15: Samegrelo and Zemo Svaneti | Z15: Samtskhe - Javakheti | AA15: Shida Kartli | AB15: Tbilisi | BA15: Water data, raw numbers (weighted) | BC15: Poorest | BD15: Poor | BE15: Middle | BF15: Rich | BG15: Richest | BH15: Poorest | BI15: Poor | BJ15: Middle | BK15: Rich | BL15: Richest | BM15: Poorest | BN15: Poor | BO15: Middle | BP15: Rich | BQ15: Richest | BR15: Adjara | BS15: Guria | BT15: Imereti | BU15: Kakheti | BV15: Kvemo Kartli | BW15: Mtskheta - Mtianeti | BX15: Racha - Lechkhumi and Kvemo Svaneti | BY15: Samegrelo and Zemo Svaneti | BZ15: Samtskhe - Javakheti | CA15: Shida Kartli | CB15: Tbilisi
A16: Water | B16: Improved | C16: 91.09248264 | D16: 92.31680256 | E16: 94.55781648 | F16: 97.8141444 | G16: 99.9086307 | H16: 97.04769204 | I16: 99.04829111 | J16: 99.12663369 | K16: 99.81106324 | L16: 100 | M16: 90.96353865 | N16: 90.56914989 | O16: 92.42576557 | P16: 92.27274743 | Q16: 91.37823846 | R16: 95.20516268 | S16: 94.48582498 | T16: 94.3971166 | U16: 94.79092449 | V16: 93.88068192 | W16: 96.33190574 | X16: 96.42701146 | Y16: 89.20095485 | Z16: 91.25968969 | AA16: 93.15547372 | AB16: 100 | BA16: Water | BB16: Improved | BC16: N/A | BD16: N/A | BE16: N/A | BF16: N/A | BG16: N/A | BH16: N/A | BI16: N/A | BJ16: N/A | BK16: N/A | BL16: N/A | BM16: N/A | BN16: N/A | BO16: N/A | BP16: N/A | BQ16: N/A | BR16: N/A | BS16: N/A | BT16: N/A | BU16: N/A | BV16: N/A | BW16: N/A | BX16: N/A | BY16: N/A | BZ16: N/A | CA16: N/A | CB16: N/A
B17: Not Improved | C17: 8.907517363 | D17: 7.683197444 | E17: 5.442183518 | F17: 2.185855598 | G17: 0.09136930418 | H17: 2.952307959 | I17: 0.9517088914 | J17: 0.8733663112 | K17: 0.1889367586 | L17: 0 | M17: 9.036461349 | N17: 9.430850106 | O17: 7.574234428 | P17: 7.727252569 | Q17: 8.621761537 | R17: 4.794837315 | S17: 5.514175025 | T17: 5.602883404 | U17: 5.209075509 | V17: 6.119318077 | W17: 3.668094257 | X17: 3.572988537 | Y17: 10.79904515 | Z17: 8.740310307 | AA17: 6.84452628 | AB17: 0 | BB17: Not Improved | BC17: N/A | BD17: N/A | BE17: N/A | BF17: N/A | BG17: N/A | BH17: N/A | BI17: N/A | BJ17: N/A | BK17: N/A | BL17: N/A | BM17: N/A | BN17: N/A | BO17: N/A | BP17: N/A | BQ17: N/A | BR17: N/A | BS17: N/A | BT17: N/A | BU17: N/A | BV17: N/A | BW17: N/A | BX17: N/A | BY17: N/A | BZ17: N/A | CA17: N/A | CB17: N/A
A18: Water ladder | B18: Basic | C18: =C16*C23/100 -> 88.9086936 | D18: =D16*D23/100 -> 90.30792059 | E18: =E16*E23/100 -> 93.81815484 | F18: 97.62329033 | G18: 99.89714434 | H18: 96.75903897 | I18: 98.75540182 | J18: 99.04434125 | K18: 99.78731134 | L18: 100 | M18: 88.27387962 | N18: 88.34373757 | O18: 90.41561058 | P18: 90.57851789 | Q18: 90.70702968 | R18: 94.8311204 | S18: 94.48582498 | T18: 93.6175658 | U18: 91.60218391 | V18: 93.11670502 | W18: 87.43542015 | X18: 95.20894719 | Y18: 89.07008055 | Z18: 88.12298192 | AA18: 92.66841303 | AB18: 100 | BA18: Water ladder | BB18: Basic | BC18: N/A | BD18: N/A | BE18: N/A | BF18: N/A | BG18: N/A | BH18: N/A | BI18: N/A | BJ18: N/A | BK18: N/A | BL18: N/A | BM18: N/A | BN18: N/A | BO18: N/A | BP18: N/A | BQ18: N/A | BR18: N/A | BS18: N/A | BT18: N/A | BU18: N/A | BV18: N/A | BW18: N/A | BX18: N/A | BY18: N/A | BZ18: N/A | CA18: N/A | CB18: N/A
B19: Limited | C19: =C16*C22/100 -> 2.183789037 | D19: =D16*D22/100 -> 2.008881967 | E19: =E16*E22/100 -> 0.7396616378 | F19: 0.1908540704 | G19: 0.01148635581 | H19: 0.2886530712 | I19: 0.2928892863 | J19: 0.08229243754 | K19: 0.02375190282 | L19: 0 | M19: 2.689659035 | N19: 2.225412324 | O19: 2.010154989 | P19: 1.694229544 | Q19: 0.6712087861 | R19: 0.3740422853 | S19: 0 | T19: 0.7795507934 | U19: 3.188740579 | V19: 0.7639769021 | W19: 8.896485597 | X19: 1.218064274 | Y19: 0.1308742925 | Z19: 3.136707772 | AA19: 0.4870606925 | AB19: 0 | BB19: Limited | BC19: N/A | BD19: N/A | BE19: N/A | BF19: N/A | BG19: N/A | BH19: N/A | BI19: N/A | BJ19: N/A | BK19: N/A | BL19: N/A | BM19: N/A | BN19: N/A | BO19: N/A | BP19: N/A | BQ19: N/A | BR19: N/A | BS19: N/A | BT19: N/A | BU19: N/A | BV19: N/A | BW19: N/A | BX19: N/A | BY19: N/A | BZ19: N/A | CA19: N/A | CB19: N/A
B20: Unimproved | C20: =100-C18-C19-C21 -> 8.735754088 | D20: =100-D18-D19-D21 -> 7.442899761 | E20: =100-E18-E19-E21 -> 5.238686707 | F20: 2.185855598 | G20: 0.09136930418 | H20: 2.952307959 | I20: 0.9517088914 | J20: 0.8733663112 | K20: 0.1889367586 | L20: 0 | M20: 8.704121066 | N20: 9.430850106 | O20: 7.14240669 | P20: 7.526411671 | Q20: 8.396437399 | R20: 4.753613807 | S20: 5.319211307 | T20: 5.602883404 | U20: 4.683152015 | V20: 5.616822075 | W20: 3.395132372 | X20: 3.572988537 | Y20: 10.79904515 | Z20: 8.740310307 | AA20: 6.84452628 | AB20: 0 | BB20: Unimproved | BC20: N/A | BD20: N/A | BE20: N/A | BF20: N/A | BG20: N/A | BH20: N/A | BI20: N/A | BJ20: N/A | BK20: N/A | BL20: N/A | BM20: N/A | BN20: N/A | BO20: N/A | BP20: N/A | BQ20: N/A | BR20: N/A | BS20: N/A | BT20: N/A | BU20: N/A | BV20: N/A | BW20: N/A | BX20: N/A | BY20: N/A | BZ20: N/A | CA20: N/A | CB20: N/A
B21: Surface water | C21: 0.1717632749 | D21: 0.2402976834 | E21: 0.2034968111 | F21: 0 | G21: 0 | H21: 0 | I21: 0 | J21: 0 | K21: 0 | L21: 0 | M21: 0.3323402831 | N21: 0 | O21: 0.4318277388 | P21: 0.2008408987 | Q21: 0.2253241386 | R21: 0.04122350815 | S21: 0.1949637175 | T21: 0 | U21: 0.5259234937 | V21: 0.5024960024 | W21: 0.2729618855 | X21: 0 | Y21: 0 | Z21: 0 | AA21: 0 | AB21: 0 | BB21: Surface water | BC21: N/A | BD21: N/A | BE21: N/A | BF21: N/A | BG21: N/A | BH21: N/A | BI21: N/A | BJ21: N/A | BK21: N/A | BL21: N/A | BM21: N/A | BN21: N/A | BO21: N/A | BP21: N/A | BQ21: N/A | BR21: N/A | BS21: N/A | BT21: N/A | BU21: N/A | BV21: N/A | BW21: N/A | BX21: N/A | BY21: N/A | BZ21: N/A | CA21: N/A | CB21: N/A
A22: Improved water point at more than 30 minutes | B22: Yes | C22: 2.397331782 | D22: 2.176074032 | E22: 0.7822321467 | F22: 0.195119092 | G22: 0.01149686041 | H22: 0.2974342462 | I22: 0.295703523 | J22: 0.08301748428 | K22: 0.02379686385 | L22: 0 | M22: 2.956854004 | N22: 2.457141672 | O22: 2.17488595 | P22: 1.836110434 | Q22: 0.7345389859 | R22: 0.3928802543 | S22: 0 | T22: 0.8258205563 | U22: 3.363972444 | V22: 0.8137743425 | W22: 9.235243016 | X22: 1.263198201 | Y22: 0.1467184883 | Z22: 3.437122987 | AA22: 0.5228470996 | AB22: 0 | BA22: Improved water point at more than 30 minutes | BB22: Yes | BC22: N/A | BD22: N/A | BE22: N/A | BF22: N/A | BG22: N/A | BH22: N/A | BI22: N/A | BJ22: N/A | BK22: N/A | BL22: N/A | BM22: N/A | BN22: N/A | BO22: N/A | BP22: N/A | BQ22: N/A | BR22: N/A | BS22: N/A | BT22: N/A | BU22: N/A | BV22: N/A | BW22: N/A | BX22: N/A | BY22: N/A | BZ22: N/A | CA22: N/A | CB22: N/A
B23: No | C23: 97.60266822 | D23: 97.82392597 | E23: 99.21776785 | F23: 99.80488091 | G23: 99.98850314 | H23: 99.70256575 | I23: 99.70429648 | J23: 99.91698252 | K23: 99.97620314 | L23: 100 | M23: 97.043146 | N23: 97.54285833 | O23: 97.82511405 | P23: 98.16388957 | Q23: 99.26546101 | R23: 99.60711975 | S23: 100 | T23: 99.17417944 | U23: 96.63602756 | V23: 99.18622566 | W23: 90.76475698 | X23: 98.7368018 | Y23: 99.85328151 | Z23: 96.56287701 | AA23: 99.4771529 | AB23: 100 | BB23: No | BC23: N/A | BD23: N/A | BE23: N/A | BF23: N/A | BG23: N/A | BH23: N/A | BI23: N/A | BJ23: N/A | BK23: N/A | BL23: N/A | BM23: N/A | BN23: N/A | BO23: N/A | BP23: N/A | BQ23: N/A | BR23: N/A | BS23: N/A | BT23: N/A | BU23: N/A | BV23: N/A | BW23: N/A | BX23: N/A | BY23: N/A | BZ23: N/A | CA23: N/A | CB23: N/A
A24: Manually calculated ratios | B24: Improved wells
B25: Improved springs
B26: Other
C27: NATIONAL wealth index quintile | H27: URBAN wealth index quintile | M27: RURAL wealth index quintile | R27: SUB-REGIONS: | BA27: Raw numbers of respondents: | BB27: Use of drinking water sources | BC27: NATIONAL wealth index quintile | BH27: URBAN wealth index quintile | BM27: RURAL wealth index quintile | BR27: SUB-REGIONS:
A28: Percentage based on weighted population | C28: Poorest | D28: Poor | E28: Middle | F28: Rich | G28: Richest | H28: Poorest | I28: Poor | J28: Middle | K28: Rich | L28: Richest | M28: Poorest | N28: Poor | O28: Middle | P28: Rich | Q28: Richest | R28: Adjara | S28: Guria | T28: Imereti | U28: Kakheti | V28: Kvemo Kartli | W28: Mtskheta - Mtianeti | X28: Racha - Lechkhumi and Kvemo Svaneti | Y28: Samegrelo and Zemo Svaneti | Z28: Samtskhe - Javakheti | AA28: Shida Kartli | AB28: Tbilisi | BA28: Water data, raw numbers (weighted) | BC28: Poorest | BD28: Poor | BE28: Middle | BF28: Rich | BG28: Richest | BH28: Poorest | BI28: Poor | BJ28: Middle | BK28: Rich | BL28: Richest | BM28: Poorest | BN28: Poor | BO28: Middle | BP28: Rich | BQ28: Richest | BR28: Adjara | BS28: Guria | BT28: Imereti | BU28: Kakheti | BV28: Kvemo Kartli | BW28: Mtskheta - Mtianeti | BX28: Racha - Lechkhumi and Kvemo Svaneti | BY28: Samegrelo and Zemo Svaneti | BZ28: Samtskhe - Javakheti | CA28: Shida Kartli | CB28: Tbilisi
A29: Piped water | B29: Yes | C29: 53.84961345 | D29: 54.50156614 | E29: 67.09015953 | F29: 90.24965418 | G29: 98.912644 | H29: 70.26004385 | I29: 91.70254151 | J29: 96.13855111 | K29: 98.39933257 | L29: 99.50326386 | M29: 51.01443219 | N29: 53.6507296 | O29: 53.25277163 | P29: 58.14145588 | Q29: 63.11950031 | R29: 86.96049307 | S29: 42.02164655 | T29: 71.03414954 | U29: 70.10835158 | V29: 61.02577388 | W29: 71.19774051 | X29: 84.1373721 | Y29: 34.46192735 | Z29: 79.69173087 | AA29: 51.28099806 | AB29: 100 | BA29: Piped water | BB29: Yes | BC29: N/A | BD29: N/A | BE29: N/A | BF29: N/A | BG29: N/A | BH29: N/A | BI29: N/A | BJ29: N/A | BK29: N/A | BL29: N/A | BM29: N/A | BN29: N/A | BO29: N/A | BP29: N/A | BQ29: N/A | BR29: N/A | BS29: N/A | BT29: N/A | BU29: N/A | BV29: N/A | BW29: N/A | BX29: N/A | BY29: N/A | BZ29: N/A | CA29: N/A | CB29: N/A
B30: No | C30: 46.15038655 | D30: 45.49843386 | E30: 32.90984047 | F30: 9.750345818 | G30: 1.087355995 | H30: 29.73995615 | I30: 8.297458488 | J30: 3.861448886 | K30: 1.600667432 | L30: 0.4967361449 | M30: 48.98556781 | N30: 46.3492704 | O30: 46.74722837 | P30: 41.85854412 | Q30: 36.88049969 | R30: 13.03950693 | S30: 57.97835345 | T30: 28.96585046 | U30: 29.89164842 | V30: 38.97422612 | W30: 28.80225949 | X30: 15.8626279 | Y30: 65.53807265 | Z30: 20.30826913 | AA30: 48.71900194 | AB30: 0 | BB30: No | BC30: N/A | BD30: N/A | BE30: N/A | BF30: N/A | BG30: N/A | BH30: N/A | BI30: N/A | BJ30: N/A | BK30: N/A | BL30: N/A | BM30: N/A | BN30: N/A | BO30: N/A | BP30: N/A | BQ30: N/A | BR30: N/A | BS30: N/A | BT30: N/A | BU30: N/A | BV30: N/A | BW30: N/A | BX30: N/A | BY30: N/A | BZ30: N/A | CA30: N/A | CB30: N/A
A31: Piped water on premises | B31: Yes | C31: 46.16561262 | D31: 46.65539293 | E31: 62.30932574 | F31: 88.53816755 | G31: 98.87495629 | H31: 65.85359371 | I31: 89.29481926 | J31: 95.81413351 | K31: 98.37558067 | L31: 99.50326386 | M31: 44.01967006 | N31: 44.87438167 | O31: 44.19589645 | P31: 50.40386492 | Q31: 59.70145146 | R31: 86.29653485 | S31: 41.58409111 | T31: 70.10393781 | U31: 50.93691832 | V31: 53.73295485 | W31: 67.27370388 | X31: 83.90926277 | Y31: 33.74330242 | Z31: 70.03677022 | AA31: 39.31636981 | AB31: 99.51710441 | BA31: Piped water on premises | BB31: Yes | BC31: N/A | BD31: N/A | BE31: N/A | BF31: N/A | BG31: N/A | BH31: N/A | BI31: N/A | BJ31: N/A | BK31: N/A | BL31: N/A | BM31: N/A | BN31: N/A | BO31: N/A | BP31: N/A | BQ31: N/A | BR31: N/A | BS31: N/A | BT31: N/A | BU31: N/A | BV31: N/A | BW31: N/A | BX31: N/A | BY31: N/A | BZ31: N/A | CA31: N/A | CB31: N/A
B32: No | C32: 53.83438738 | D32: 53.34460707 | E32: 37.69067426 | F32: 11.46183245 | G32: 1.125043715 | H32: 34.14640629 | I32: 10.70518074 | J32: 4.185866493 | K32: 1.624419334 | L32: 0.4967361449 | M32: 55.98032994 | N32: 55.12561833 | O32: 55.80410355 | P32: 49.59613508 | Q32: 40.29854854 | R32: 13.70346515 | S32: 58.41590889 | T32: 29.89606219 | U32: 49.06308168 | V32: 46.26704515 | W32: 32.72629612 | X32: 16.09073723 | Y32: 66.25669758 | Z32: 29.96322978 | AA32: 60.68363019 | AB32: 0.4828955934 | BB32: No | BC32: N/A | BD32: N/A | BE32: N/A | BF32: N/A | BG32: N/A | BH32: N/A | BI32: N/A | BJ32: N/A | BK32: N/A | BL32: N/A | BM32: N/A | BN32: N/A | BO32: N/A | BP32: N/A | BQ32: N/A | BR32: N/A | BS32: N/A | BT32: N/A | BU32: N/A | BV32: N/A | BW32: N/A | BX32: N/A | BY32: N/A | BZ32: N/A | CA32: N/A | CB32: N/A
A33: Piped water into dwelling | B33: Yes | C33: N/A | D33: N/A | E33: N/A | F33: N/A | G33: N/A | H33: N/A | I33: N/A | J33: N/A | K33: N/A | L33: N/A | M33: N/A | N33: N/A | O33: N/A | P33: N/A | Q33: N/A | R33: N/A | S33: N/A | T33: N/A | U33: N/A | V33: N/A | W33: N/A | X33: N/A | Y33: N/A | Z33: N/A | AA33: N/A | AB33: N/A | BA33: Piped water into dwelling | BB33: Yes | BC33: N/A | BD33: N/A | BE33: N/A | BF33: N/A | BG33: N/A | BH33: N/A | BI33: N/A | BJ33: N/A | BK33: N/A | BL33: N/A | BM33: N/A | BN33: N/A | BO33: N/A | BP33: N/A | BQ33: N/A | BR33: N/A | BS33: N/A | BT33: N/A | BU33: N/A | BV33: N/A | BW33: N/A | BX33: N/A | BY33: N/A | BZ33: N/A | CA33: N/A | CB33: N/A
B34: No | C34: N/A | D34: N/A | E34: N/A | F34: N/A | G34: N/A | H34: N/A | I34: N/A | J34: N/A | K34: N/A | L34: N/A | M34: N/A | N34: N/A | O34: N/A | P34: N/A | Q34: N/A | R34: N/A | S34: N/A | T34: N/A | U34: N/A | V34: N/A | W34: N/A | X34: N/A | Y34: N/A | Z34: N/A | AA34: N/A | AB34: N/A | BB34: No | BC34: N/A | BD34: N/A | BE34: N/A | BF34: N/A | BG34: N/A | BH34: N/A | BI34: N/A | BJ34: N/A | BK34: N/A | BL34: N/A | BM34: N/A | BN34: N/A | BO34: N/A | BP34: N/A | BQ34: N/A | BR34: N/A | BS34: N/A | BT34: N/A | BU34: N/A | BV34: N/A | BW34: N/A | BX34: N/A | BY34: N/A | BZ34: N/A | CA34: N/A | CB34: N/A
A35: Water source on premises | B35: Yes | C35: 61.47319258 | D35: 61.20651212 | E35: 77.84448176 | F35: 92.79762115 | G35: 99.65250799 | H35: 83.75249802 | I35: 94.50606698 | J35: 98.39920303 | K35: 99.50996669 | L35: 99.81037703 | M35: 58.68173512 | N35: 61.08707364 | O35: 59.62077053 | P35: 61.98993264 | Q35: 74.01696473 | R35: 88.11638402 | S35: 76.68539874 | T35: 83.03932212 | U35: 56.33707462 | V35: 56.84364439 | W35: 70.05491887 | X35: 87.45738866 | Y35: 76.41676765 | Z35: 70.16662053 | AA35: 58.70351198 | AB35: 99.57075851 | BA35: Water source on premises | BB35: Yes | BC35: N/A | BD35: N/A | BE35: N/A | BF35: N/A | BG35: N/A | BH35: N/A | BI35: N/A | BJ35: N/A | BK35: N/A | BL35: N/A | BM35: N/A | BN35: N/A | BO35: N/A | BP35: N/A | BQ35: N/A | BR35: N/A | BS35: N/A | BT35: N/A | BU35: N/A | BV35: N/A | BW35: N/A | BX35: N/A | BY35: N/A | BZ35: N/A | CA35: N/A | CB35: N/A
B36: No | C36: 38.52680742 | D36: 38.79348788 | E36: 22.15551824 | F36: 7.202378852 | G36: 0.3474920098 | H36: 16.24750198 | I36: 5.493933018 | J36: 1.600796965 | K36: 0.4900333084 | L36: 0.1896229687 | M36: 41.31826488 | N36: 38.91292636 | O36: 40.37922947 | P36: 38.01006736 | Q36: 25.98303527 | R36: 11.88361598 | S36: 23.31460126 | T36: 16.96067788 | U36: 43.66292538 | V36: 43.15635561 | W36: 29.94508113 | X36: 12.54261134 | Y36: 23.58323235 | Z36: 29.83337947 | AA36: 41.29648802 | AB36: 0.4292414886 | BB36: No | BC36: N/A | BD36: N/A | BE36: N/A | BF36: N/A | BG36: N/A | BH36: N/A | BI36: N/A | BJ36: N/A | BK36: N/A | BL36: N/A | BM36: N/A | BN36: N/A | BO36: N/A | BP36: N/A | BQ36: N/A | BR36: N/A | BS36: N/A | BT36: N/A | BU36: N/A | BV36: N/A | BW36: N/A | BX36: N/A | BY36: N/A | BZ36: N/A | CA36: N/A | CB36: N/A
A37: Improved Water source on premises | B37: Yes | C37: 64.26229982 | D37: 64.9870121 | E37: 80.13689104 | F37: 93.85879639 | G37: 99.6521902 | H37: 85.52333287 | I37: 94.85104408 | J37: 98.5774622 | K37: 99.50903909 | L37: 99.81037703 | M37: 61.49820867 | N37: 63.78855218 | O37: 63.05973775 | P37: 65.85869244 | Q37: 77.20691829 | R37: 92.05636427 | S37: 78.65278745 | T37: 85.4239884 | U37: 57.48865577 | V37: 60.54881923 | W37: 72.43909113 | X37: 90.02431275 | Y37: 79.0794112 | Z37: 76.85336023 | AA37: 60.33139312 | AB37: 99.57075851 | BA37: Improved water source on premises | BB37: Yes | BC37: N/A | BD37: N/A | BE37: N/A | BF37: N/A | BG37: N/A | BH37: N/A | BI37: N/A | BJ37: N/A | BK37: N/A | BL37: N/A | BM37: N/A | BN37: N/A | BO37: N/A | BP37: N/A | BQ37: N/A | BR37: N/A | BS37: N/A | BT37: N/A | BU37: N/A | BV37: N/A | BW37: N/A | BX37: N/A | BY37: N/A | BZ37: N/A | CA37: N/A | CB37: N/A
B38: No | C38: 35.73770018 | D38: 35.0129879 | E38: 19.86310896 | F38: 6.141203613 | G38: 0.3478098012 | H38: 14.47666713 | I38: 5.14895592 | J38: 1.422537801 | K38: 0.490960914 | L38: 0.1896229687 | M38: 38.50179133 | N38: 36.21144782 | O38: 36.94026225 | P38: 34.14130756 | Q38: 22.79308171 | R38: 7.943635727 | S38: 21.34721255 | T38: 14.5760116 | U38: 42.51134423 | V38: 39.45118077 | W38: 27.56090887 | X38: 9.975687246 | Y38: 20.9205888 | Z38: 23.14663977 | AA38: 39.66860688 | AB38: 0.4292414886 | BB38: No | BC38: N/A | BD38: N/A | BE38: N/A | BF38: N/A | BG38: N/A | BH38: N/A | BI38: N/A | BJ38: N/A | BK38: N/A | BL38: N/A | BM38: N/A | BN38: N/A | BO38: N/A | BP38: N/A | BQ38: N/A | BR38: N/A | BS38: N/A | BT38: N/A | BU38: N/A | BV38: N/A | BW38: N/A | BX38: N/A | BY38: N/A | BZ38: N/A | CA38: N/A | CB38: N/A
A39: Piped water on premises available when needed | B39: Yes | C39: N/A | D39: N/A | E39: N/A | F39: N/A | G39: N/A | H39: N/A | I39: N/A | J39: N/A | K39: N/A | L39: N/A | M39: N/A | N39: N/A | O39: N/A | P39: N/A | Q39: N/A | R39: N/A | S39: N/A | T39: N/A | U39: N/A | V39: N/A | W39: N/A | X39: N/A | Y39: N/A | Z39: N/A | AA39: N/A | AB39: N/A | BA39: Piped water on premises available when needed | BB39: Yes | BC39: N/A | BD39: N/A | BE39: N/A | BF39: N/A | BG39: N/A | BH39: N/A | BI39: N/A | BJ39: N/A | BK39: N/A | BL39: N/A | BM39: N/A | BN39: N/A | BO39: N/A | BP39: N/A | BQ39: N/A | BR39: N/A | BS39: N/A | BT39: N/A | BU39: N/A | BV39: N/A | BW39: N/A | BX39: N/A | BY39: N/A | BZ39: N/A | CA39: N/A | CB39: N/A
B40: No | C40: N/A | D40: N/A | E40: N/A | F40: N/A | G40: N/A | H40: N/A | I40: N/A | J40: N/A | K40: N/A | L40: N/A | M40: N/A | N40: N/A | O40: N/A | P40: N/A | Q40: N/A | R40: N/A | S40: N/A | T40: N/A | U40: N/A | V40: N/A | W40: N/A | X40: N/A | Y40: N/A | Z40: N/A | AA40: N/A | AB40: N/A | BB40: No | BC40: N/A | BD40: N/A | BE40: N/A | BF40: N/A | BG40: N/A | BH40: N/A | BI40: N/A | BJ40: N/A | BK40: N/A | BL40: N/A | BM40: N/A | BN40: N/A | BO40: N/A | BP40: N/A | BQ40: N/A | BR40: N/A | BS40: N/A | BT40: N/A | BU40: N/A | BV40: N/A | BW40: N/A | BX40: N/A | BY40: N/A | BZ40: N/A | CA40: N/A | CB40: N/A
A41: Water point at more than 30 minutes | B41: Yes | C41: 2.75668717 | D41: 2.935663821 | E41: 1.136666345 | F41: 0.3565527591 | G41: 0.01148635581 | H41: 0.3207018806 | I41: 0.2928892863 | J41: 0.08229243754 | K41: 0.02375190282 | L41: 0 | M41: 3.396849338 | N41: 2.817577011 | O41: 3.308398202 | P41: 2.31915478 | Q41: 1.407533396 | R41: 0.7244382217 | S41: 0 | T41: 1.079052602 | U41: 3.419679266 | V41: 1.8625671 | W41: 10.59282472 | X41: 1.461677129 | Y41: 0.1308569407 | Z41: 4.313328825 | AA41: 1.501720749 | AB41: 0 | BA41: Water point at more than 30 minutes | BB41: Yes | BC41: N/A | BD41: N/A | BE41: N/A | BF41: N/A | BG41: N/A | BH41: N/A | BI41: N/A | BJ41: N/A | BK41: N/A | BL41: N/A | BM41: N/A | BN41: N/A | BO41: N/A | BP41: N/A | BQ41: N/A | BR41: N/A | BS41: N/A | BT41: N/A | BU41: N/A | BV41: N/A | BW41: N/A | BX41: N/A | BY41: N/A | BZ41: N/A | CA41: N/A | CB41: N/A
B42: No | C42: 97.24331283 | D42: 97.06433618 | E42: 98.86333366 | F42: 99.64344724 | G42: 99.98851364 | H42: 99.67929812 | I42: 99.70711071 | J42: 99.91770756 | K42: 99.9762481 | L42: 100 | M42: 96.60315066 | N42: 97.18242299 | O42: 96.6916018 | P42: 97.68084522 | Q42: 98.5924666 | R42: 99.27556178 | S42: 100 | T42: 98.9209474 | U42: 96.58032073 | V42: 98.1374329 | W42: 89.40717528 | X42: 98.53832287 | Y42: 99.86914306 | Z42: 95.68667117 | AA42: 98.49827925 | AB42: 100 | BB42: No | BC42: N/A | BD42: N/A | BE42: N/A | BF42: N/A | BG42: N/A | BH42: N/A | BI42: N/A | BJ42: N/A | BK42: N/A | BL42: N/A | BM42: N/A | BN42: N/A | BO42: N/A | BP42: N/A | BQ42: N/A | BR42: N/A | BS42: N/A | BT42: N/A | BU42: N/A | BV42: N/A | BW42: N/A | BX42: N/A | BY42: N/A | BZ42: N/A | CA42: N/A | CB42: N/A
A43: Water source available when needed | B43: Yes | C43: N/A | D43: N/A | E43: N/A | F43: N/A | G43: N/A | H43: N/A | I43: N/A | J43: N/A | K43: N/A | L43: N/A | M43: N/A | N43: N/A | O43: N/A | P43: N/A | Q43: N/A | R43: N/A | S43: N/A | T43: N/A | U43: N/A | V43: N/A | W43: N/A | X43: N/A | Y43: N/A | Z43: N/A | AA43: N/A | AB43: N/A | BA43: Water source available when needed | BB43: Yes | BC43: N/A | BD43: N/A | BE43: N/A | BF43: N/A | BG43: N/A | BH43: N/A | BI43: N/A | BJ43: N/A | BK43: N/A | BL43: N/A | BM43: N/A | BN43: N/A | BO43: N/A | BP43: N/A | BQ43: N/A | BR43: N/A | BS43: N/A | BT43: N/A | BU43: N/A | BV43: N/A | BW43: N/A | BX43: N/A | BY43: N/A | BZ43: N/A | CA43: N/A | CB43: N/A
B44: No | C44: N/A | D44: N/A | E44: N/A | F44: N/A | G44: N/A | H44: N/A | I44: N/A | J44: N/A | K44: N/A | L44: N/A | M44: N/A | N44: N/A | O44: N/A | P44: N/A | Q44: N/A | R44: N/A | S44: N/A | T44: N/A | U44: N/A | V44: N/A | W44: N/A | X44: N/A | Y44: N/A | Z44: N/A | AA44: N/A | AB44: N/A | BB44: No | BC44: N/A | BD44: N/A | BE44: N/A | BF44: N/A | BG44: N/A | BH44: N/A | BI44: N/A | BJ44: N/A | BK44: N/A | BL44: N/A | BM44: N/A | BN44: N/A | BO44: N/A | BP44: N/A | BQ44: N/A | BR44: N/A | BS44: N/A | BT44: N/A | BU44: N/A | BV44: N/A | BW44: N/A | BX44: N/A | BY44: N/A | BZ44: N/A | CA44: N/A | CB44: N/A
A45: Improved water source available when needed | B45: Yes | C45: N/A | D45: N/A | E45: N/A | F45: N/A | G45: N/A | H45: N/A | I45: N/A | J45: N/A | K45: N/A | L45: N/A | M45: N/A | N45: N/A | O45: N/A | P45: N/A | Q45: N/A | R45: N/A | S45: N/A | T45: N/A | U45: N/A | V45: N/A | W45: N/A | X45: N/A | Y45: N/A | Z45: N/A | AA45: N/A | AB45: N/A | BA45: Improved water source available when needed | BB45: Yes | BC45: N/A | BD45: N/A | BE45: N/A | BF45: N/A | BG45: N/A | BH45: N/A | BI45: N/A | BJ45: N/A | BK45: N/A | BL45: N/A | BM45: N/A | BN45: N/A | BO45: N/A | BP45: N/A | BQ45: N/A | BR45: N/A | BS45: N/A | BT45: N/A | BU45: N/A | BV45: N/A | BW45: N/A | BX45: N/A | BY45: N/A | BZ45: N/A | CA45: N/A | CB45: N/A
B46: No | C46: N/A | D46: N/A | E46: N/A | F46: N/A | G46: N/A | H46: N/A | I46: N/A | J46: N/A | K46: N/A | L46: N/A | M46: N/A | N46: N/A | O46: N/A | P46: N/A | Q46: N/A | R46: N/A | S46: N/A | T46: N/A | U46: N/A | V46: N/A | W46: N/A | X46: N/A | Y46: N/A | Z46: N/A | AA46: N/A | AB46: N/A | BB46: No | BC46: N/A | BD46: N/A | BE46: N/A | BF46: N/A | BG46: N/A | BH46: N/A | BI46: N/A | BJ46: N/A | BK46: N/A | BL46: N/A | BM46: N/A | BN46: N/A | BO46: N/A | BP46: N/A | BQ46: N/A | BR46: N/A | BS46: N/A | BT46: N/A | BU46: N/A | BV46: N/A | BW46: N/A | BX46: N/A | BY46: N/A | BZ46: N/A | CA46: N/A | CB46: N/A
A47: Microbiological quality at point of collection | B47: Not contaminated (No E. coli in 100 mL) | C47: N/A | D47: N/A | E47: N/A | F47: N/A | G47: N/A | H47: N/A | I47: N/A | J47: N/A | K47: N/A | L47: N/A | M47: N/A | N47: N/A | O47: N/A | P47: N/A | Q47: N/A | R47: N/A | S47: N/A | T47: N/A | U47: N/A | V47: N/A | W47: N/A | X47: N/A | Y47: N/A | Z47: N/A | AA47: N/A | AB47: N/A | BA47: Microbiological quality at point of collection | BB47: Not contaminated (No E. coli in 100 mL) | BC47: N/A | BD47: N/A | BE47: N/A | BF47: N/A | BG47: N/A | BH47: N/A | BI47: N/A | BJ47: N/A | BK47: N/A | BL47: N/A | BM47: N/A | BN47: N/A | BO47: N/A | BP47: N/A | BQ47: N/A | BR47: N/A | BS47: N/A | BT47: N/A | BU47: N/A | BV47: N/A | BW47: N/A | BX47: N/A | BY47: N/A | BZ47: N/A | CA47: N/A | CB47: N/A
B48: Contaminated (E. coli detected in 100 mL) | C48: N/A | D48: N/A | E48: N/A | F48: N/A | G48: N/A | H48: N/A | I48: N/A | J48: N/A | K48: N/A | L48: N/A | M48: N/A | N48: N/A | O48: N/A | P48: N/A | Q48: N/A | R48: N/A | S48: N/A | T48: N/A | U48: N/A | V48: N/A | W48: N/A | X48: N/A | Y48: N/A | Z48: N/A | AA48: N/A | AB48: N/A | BB48: Contaminated (E. coli detected in 100 mL) | BC48: N/A | BD48: N/A | BE48: N/A | BF48: N/A | BG48: N/A | BH48: N/A | BI48: N/A | BJ48: N/A | BK48: N/A | BL48: N/A | BM48: N/A | BN48: N/A | BO48: N/A | BP48: N/A | BQ48: N/A | BR48: N/A | BS48: N/A | BT48: N/A | BU48: N/A | BV48: N/A | BW48: N/A | BX48: N/A | BY48: N/A | BZ48: N/A | CA48: N/A | CB48: N/A
B49: Highly contaminated (>100 CFU/100 mL) | C49: N/A | D49: N/A | E49: N/A | F49: N/A | G49: N/A | H49: N/A | I49: N/A | J49: N/A | K49: N/A | L49: N/A | M49: N/A | N49: N/A | O49: N/A | P49: N/A | Q49: N/A | R49: N/A | S49: N/A | T49: N/A | U49: N/A | V49: N/A | W49: N/A | X49: N/A | Y49: N/A | Z49: N/A | AA49: N/A | AB49: N/A | BB49: Highly contaminated (>100 CFU/100 mL) | BC49: N/A | BD49: N/A | BE49: N/A | BF49: N/A | BG49: N/A | BH49: N/A | BI49: N/A | BJ49: N/A | BK49: N/A | BL49: N/A | BM49: N/A | BN49: N/A | BO49: N/A | BP49: N/A | BQ49: N/A | BR49: N/A | BS49: N/A | BT49: N/A | BU49: N/A | BV49: N/A | BW49: N/A | BX49: N/A | BY49: N/A | BZ49: N/A | CA49: N/A | CB49: N/A
A50: Microbiological quality of improved water sources at point of collection | B50: Not contaminated (No E. coli in 100 mL) | C50: N/A | D50: N/A | E50: N/A | F50: N/A | G50: N/A | H50: N/A | I50: N/A | J50: N/A | K50: N/A | L50: N/A | M50: N/A | N50: N/A | O50: N/A | P50: N/A | Q50: N/A | R50: N/A | S50: N/A | T50: N/A | U50: N/A | V50: N/A | W50: N/A | X50: N/A | Y50: N/A | Z50: N/A | AA50: N/A | AB50: N/A | BA50: Microbiological quality of improved water sources at point of collection | BB50: Not contaminated (No E. coli in 100 mL) | BC50: N/A | BD50: N/A | BE50: N/A | BF50: N/A | BG50: N/A | BH50: N/A | BI50: N/A | BJ50: N/A | BK50: N/A | BL50: N/A | BM50: N/A | BN50: N/A | BO50: N/A | BP50: N/A | BQ50: N/A | BR50: N/A | BS50: N/A | BT50: N/A | BU50: N/A | BV50: N/A | BW50: N/A | BX50: N/A | BY50: N/A | BZ50: N/A | CA50: N/A | CB50: N/A
B51: Contaminated (E. coli detected in 100 mL) | C51: N/A | D51: N/A | E51: N/A | F51: N/A | G51: N/A | H51: N/A | I51: N/A | J51: N/A | K51: N/A | L51: N/A | M51: N/A | N51: N/A | O51: N/A | P51: N/A | Q51: N/A | R51: N/A | S51: N/A | T51: N/A | U51: N/A | V51: N/A | W51: N/A | X51: N/A | Y51: N/A | Z51: N/A | AA51: N/A | AB51: N/A | BB51: Contaminated (E. coli detected in 100 mL) | BC51: N/A | BD51: N/A | BE51: N/A | BF51: N/A | BG51: N/A | BH51: N/A | BI51: N/A | BJ51: N/A | BK51: N/A | BL51: N/A | BM51: N/A | BN51: N/A | BO51: N/A | BP51: N/A | BQ51: N/A | BR51: N/A | BS51: N/A | BT51: N/A | BU51: N/A | BV51: N/A | BW51: N/A | BX51: N/A | BY51: N/A | BZ51: N/A | CA51: N/A | CB51: N/A
B52: Highly contaminated (>100 CFU/100 mL) | C52: N/A | D52: N/A | E52: N/A | F52: N/A | G52: N/A | H52: N/A | I52: N/A | J52: N/A | K52: N/A | L52: N/A | M52: N/A | N52: N/A | O52: N/A | P52: N/A | Q52: N/A | R52: N/A | S52: N/A | T52: N/A | U52: N/A | V52: N/A | W52: N/A | X52: N/A | Y52: N/A | Z52: N/A | AA52: N/A | AB52: N/A | BB52: Highly contaminated (>100 CFU/100 mL) | BC52: N/A | BD52: N/A | BE52: N/A | BF52: N/A | BG52: N/A | BH52: N/A | BI52: N/A | BJ52: N/A | BK52: N/A | BL52: N/A | BM52: N/A | BN52: N/A | BO52: N/A | BP52: N/A | BQ52: N/A | BR52: N/A | BS52: N/A | BT52: N/A | BU52: N/A | BV52: N/A | BW52: N/A | BX52: N/A | BY52: N/A | BZ52: N/A | CA52: N/A | CB52: N/A
A53: Microbiological quality of piped on premises at point of collection | B53: Not contaminated (No E. coli in 100 mL) | C53: N/A | D53: N/A | E53: N/A | F53: N/A | G53: N/A | H53: N/A | I53: N/A | J53: N/A | K53: N/A | L53: N/A | M53: N/A | N53: N/A | O53: N/A | P53: N/A | Q53: N/A | R53: N/A | S53: N/A | T53: N/A | U53: N/A | V53: N/A | W53: N/A | X53: N/A | Y53: N/A | Z53: N/A | AA53: N/A | AB53: N/A | BA53: Microbiological quality of piped on premises at point of collection | BB53: Not contaminated (No E. coli in 100 mL) | BC53: N/A | BD53: N/A | BE53: N/A | BF53: N/A | BG53: N/A | BH53: N/A | BI53: N/A | BJ53: N/A | BK53: N/A | BL53: N/A | BM53: N/A | BN53: N/A | BO53: N/A | BP53: N/A | BQ53: N/A | BR53: N/A | BS53: N/A | BT53: N/A | BU53: N/A | BV53: N/A | BW53: N/A | BX53: N/A | BY53: N/A | BZ53: N/A | CA53: N/A | CB53: N/A
B54: Contaminated (E. coli detected in 100 mL) | C54: N/A | D54: N/A | E54: N/A | F54: N/A | G54: N/A | H54: N/A | I54: N/A | J54: N/A | K54: N/A | L54: N/A | M54: N/A | N54: N/A | O54: N/A | P54: N/A | Q54: N/A | R54: N/A | S54: N/A | T54: N/A | U54: N/A | V54: N/A | W54: N/A | X54: N/A | Y54: N/A | Z54: N/A | AA54: N/A | AB54: N/A | BB54: Contaminated (E. coli detected in 100 mL) | BC54: N/A | BD54: N/A | BE54: N/A | BF54: N/A | BG54: N/A | BH54: N/A | BI54: N/A | BJ54: N/A | BK54: N/A | BL54: N/A | BM54: N/A | BN54: N/A | BO54: N/A | BP54: N/A | BQ54: N/A | BR54: N/A | BS54: N/A | BT54: N/A | BU54: N/A | BV54: N/A | BW54: N/A | BX54: N/A | BY54: N/A | BZ54: N/A | CA54: N/A | CB54: N/A
B55: Highly contaminated (>100 CFU/100 mL) | C55: N/A | D55: N/A | E55: N/A | F55: N/A | G55: N/A | H55: N/A | I55: N/A | J55: N/A | K55: N/A | L55: N/A | M55: N/A | N55: N/A | O55: N/A | P55: N/A | Q55: N/A | R55: N/A | S55: N/A | T55: N/A | U55: N/A | V55: N/A | W55: N/A | X55: N/A | Y55: N/A | Z55: N/A | AA55: N/A | AB55: N/A | BB55: Highly contaminated (>100 CFU/100 mL) | BC55: N/A | BD55: N/A | BE55: N/A | BF55: N/A | BG55: N/A | BH55: N/A | BI55: N/A | BJ55: N/A | BK55: N/A | BL55: N/A | BM55: N/A | BN55: N/A | BO55: N/A | BP55: N/A | BQ55: N/A | BR55: N/A | BS55: N/A | BT55: N/A | BU55: N/A | BV55: N/A | BW55: N/A | BX55: N/A | BY55: N/A | BZ55: N/A | CA55: N/A | CB55: N/A
C56: NATIONAL wealth index quintile | H56: URBAN wealth index quintile | M56: RURAL wealth index quintile | R56: SUB-REGIONS: | BA56: Raw numbers of respondents: | BB56: Use of drinking water sources | BC56: NATIONAL wealth index quintile | BH56: URBAN wealth index quintile | BM56: RURAL wealth index quintile | BR56: SUB-REGIONS:
A57: Percentage based on weighted population | C57: Poorest | D57: Poor | E57: Middle | F57: Rich | G57: Richest | H57: Poorest | I57: Poor | J57: Middle | K57: Rich | L57: Richest | M57: Poorest | N57: Poor | O57: Middle | P57: Rich | Q57: Richest | R57: Adjara | S57: Guria | T57: Imereti | U57: Kakheti | V57: Kvemo Kartli | W57: Mtskheta - Mtianeti | X57: Racha - Lechkhumi and Kvemo Svaneti | Y57: Samegrelo and Zemo Svaneti | Z57: Samtskhe - Javakheti | AA57: Shida Kartli | AB57: Tbilisi | BA57: Water data, raw numbers (weighted) | BC57: Poorest | BD57: Poor | BE57: Middle | BF57: Rich | BG57: Richest | BH57: Poorest | BI57: Poor | BJ57: Middle | BK57: Rich | BL57: Richest | BM57: Poorest | BN57: Poor | BO57: Middle | BP57: Rich | BQ57: Richest | BR57: Adjara | BS57: Guria | BT57: Imereti | BU57: Kakheti | BV57: Kvemo Kartli | BW57: Mtskheta - Mtianeti | BX57: Racha - Lechkhumi and Kvemo Svaneti | BY57: Samegrelo and Zemo Svaneti | BZ57: Samtskhe - Javakheti | CA57: Shida Kartli | CB57: Tbilisi
A58: Main source of drinking water | B58: Piped into dwelling | C58: 9.62339267 | D58: 11.68884826 | E58: 32.20689102 | F58: 76.57960165 | G58: 97.3058353 | H58: 36.22257366 | I58: 75.53170394 | J58: 92.94059411 | K58: 96.24738496 | L58: 99.10512151 | M58: 8.174935065 | N58: 8.803002175 | O58: 9.622963323 | P58: 13.68668845 | Q58: 25.75837347 | R58: 53.64125834 | S58: 11.47345712 | T58: 37.80696232 | U58: 15.10829561 | V58: 30.3457862 | W58: 31.24737429 | X58: 24.79159949 | Y58: 15.43751811 | Z58: 21.85925777 | AA58: 23.99596933 | AB58: 96.66153001
B59: Piped into yard or plot | C59: 36.54221995 | D59: 34.96654467 | E59: 30.09094564 | F59: 11.90490888 | G59: 1.506237537 | H59: 29.63102005 | I59: 13.67589169 | J59: 2.826016709 | K59: 2.128195703 | L59: 0.2676374013 | M59: 35.844735 | N59: 36.0713795 | O59: 34.57293313 | P59: 36.71717647 | Q59: 33.94307799 | R59: 32.65527651 | S59: 30.11063399 | T59: 32.29697549 | U59: 35.82862272 | V59: 23.38716865 | W59: 36.02632959 | X59: 59.11766328 | Y59: 18.30578431 | Z59: 47.92081736 | AA59: 15.32040048 | AB59: 2.804066316
B60: Public tap/standpipe | C60: 7.68400083 | D60: 7.846173207 | E60: 4.780833789 | F60: 1.711486637 | G60: 0.03768771922 | H60: 4.406450136 | I60: 2.407722251 | J60: 0.3244176072 | K60: 0.02375190282 | L60: 0 | M60: 6.994762125 | N60: 8.776347933 | O60: 9.056875178 | P60: 7.73759096 | Q60: 3.418048854 | R60: 0.6639582267 | S60: 0.4375554452 | T60: 0.9302117267 | U60: 19.17143326 | V60: 7.292819032 | W60: 3.924036634 | X60: 0.2281093264 | Y60: 0.7186249275 | Z60: 9.654960642 | AA60: 11.96462825 | AB60: 0.4828955934
B61: Tubewell/borehole | C61: 2.857686479 | D61: 4.586327179 | E61: 1.976751486 | F61: 1.121683644 | G61: 0.1708964991 | H61: 2.237689617 | I61: 0.4448059717 | J61: 0.4377950455 | K61: 0.2270074317 | L61: 0.1268375441 | M61: 3.162633109 | N61: 2.911476187 | O61: 4.01274181 | P61: 4.765074137 | Q61: 2.626541355 | R61: 0.8643012243 | S61: 4.815802107 | T61: 5.300122015 | U61: 5.964874748 | V61: 1.007321035 | W61: 2.387013144 | X61: 0.4872257096 | Y61: 1.6329129 | Z61: 0.04368856101 | AA61: 2.136062404 | AB61: 0
B62: Protected well | C62: 20.78168948 | D62: 21.81100977 | E62: 17.92506718 | F62: 4.557683364 | G62: 0.7906311247 | H62: 21.24173253 | I62: 5.254639313 | J62: 1.860964986 | K62: 1.153054038 | L62: 0.3698986009 | M62: 20.79753445 | N62: 21.4640443 | O62: 20.96960675 | P62: 19.56808048 | Q62: 16.70209772 | R62: 2.397785438 | S62: 43.41306184 | T62: 11.36487392 | U62: 8.547438569 | V62: 14.50635507 | W62: 5.178995889 | X62: 0.7308385644 | Y62: 50.12758841 | Z62: 1.217256239 | AA62: 27.85425133 | AB62: 0
B63: Unprotected well | C63: 5.017467309 | D63: 3.605076664 | E63: 2.838298296 | F63: 1.174518382 | G63: 0.09136930418 | H63: 2.739785689 | I63: 0.8396009159 | J63: 0.8243586754 | K63: 0.1889367586 | L63: 0 | M63: 4.173522186 | N63: 6.093636729 | O63: 3.178414228 | P63: 3.169164798 | Q63: 3.715841203 | R63: 0.3709351171 | S63: 4.400996752 | T63: 4.124581877 | U63: 2.980490931 | V63: 1.513507887 | W63: 0.3119564406 | X63: 0.4060214247 | Y63: 9.402631561 | Z63: 0.1934553906 | AA63: 4.128737952 | AB63: 0
B64: Protected spring | C64: 11.95869169 | D64: 9.986901647 | E64: 6.281804032 | F64: 1.477080818 | G64: 0.03445906742 | H64: 2.329180273 | I64: 1.342155357 | J64: 0.5591204849 | K64: 0.03166920376 | L64: 0 | M64: 14.54161502 | N64: 10.82074771 | O64: 12.14271587 | P64: 8.115113197 | Q64: 7.927774146 | R64: 4.900152925 | S64: 4.138648598 | T64: 6.69797112 | U64: 8.752858013 | V64: 12.19632774 | W64: 14.63218463 | X64: 9.77230653 | Y64: 2.966215026 | Z64: 9.845736877 | AA64: 10.46425507 | AB64: 0
B65: Unprotected spring | C65: 3.38010814 | D65: 3.550264415 | E65: 2.096412085 | F65: 0.9170663674 | G65: 0 | H65: 0.05228138046 | I65: 0 | J65: 0.04900763572 | K65: 0 | L65: 0 | M65: 4.098920003 | N65: 3.234474149 | O65: 3.661375985 | P65: 4.103833867 | Q65: 4.044483833 | R65: 3.708198025 | S65: 0.6769652541 | T65: 1.358500803 | U65: 1.617390712 | V65: 3.576889805 | W65: 2.822200681 | X65: 3.004558543 | Y65: 1.178791275 | Z65: 8.485889978 | AA65: 2.542253479 | AB65: 0
B66: Rainwater collection | C66: 0.006167497806 | D66: 0 | E66: 0.02520236373 | F66: 0 | G66: 0 | H66: 0.01276726499 | I66: 0 | J66: 0 | K66: 0 | L66: 0 | M66: 0 | N66: 0 | O66: 0 | P66: 0.04879879792 | Q66: 0 | R66: 0 | S66: 0 | T66: 0 | U66: 0 | V66: 0 | W66: 0 | X66: 0 | Y66: 0.01231116021 | Z66: 0.09936783918 | AA66: 0 | AB66: 0
B67: Tanker-truck | C67: 1.068603709 | D67: 1.288508649 | E67: 0.8533988289 | F67: 0.3000880472 | G67: 0 | H67: 0.7043735323 | I67: 0.2063867912 | J67: 0.1302020583 | K67: 0 | L67: 0 | M67: 0.8117726062 | N67: 1.256550037 | O67: 1.951174296 | P67: 1.443799158 | Q67: 0.3547037545 | R67: 0 | S67: 0 | T67: 0 | U67: 1.167113542 | V67: 4.805893615 | W67: 0 | X67: 0 | Y67: 0 | Z67: 0.1656130653 | AA67: 0.6085315085 | AB67: 0
B68: Cart with small tank/drum | C68: 0.5700303303 | D68: 0.1424891782 | E68: 0.4054330692 | F68: 0.1079543464 | G68: 0 | H68: 0.2619049766 | I68: 0.09776216427 | J68: 0 | K68: 0 | L68: 0 | M68: 0.635551275 | N68: 0.4656020632 | O68: 0.09675521732 | P68: 0.1904257749 | Q68: 0.6476211763 | R68: 0.08243002602 | S68: 0.09666587226 | T68: 0 | U68: 0.2502880375 | V68: 0.3390105879 | W68: 2.935971565 | X68: 1.299268559 | Y68: 0 | Z68: 0.1962962438 | AA68: 0.8113753446 | AB68: 0
B69: Surface water | C69: 0.1717193509 | D69: 0.2400920511 | E69: 0.2033337107 | F69: 0 | G69: 0 | H69: 0 | I69: 0 | J69: 0 | K69: 0 | L69: 0 | M69: 0.3321977821 | N69: 0 | O69: 0.4313925199 | P69: 0.2008408987 | Q69: 0.2252824715 | R69: 0.04121501301 | S69: 0.1945483374 | T69: 0 | U69: 0.5253095545 | V69: 0.5024960024 | W69: 0.2729618855 | X69: 0 | Y69: 0 | Z69: 0 | AA69: 0 | AB69: 0
B70: Bottled water | C70: 0 | D70: 0 | E70: 0.01148908179 | F70: 0.05365701392 | G70: 0.06288344558 | H70: 0 | I70: 0.08722363229 | J70: 0.04752269259 | K70: 0 | L70: 0.1305049408 | M70: 0 | N70: 0 | O70: 0 | P70: 0 | Q70: 0 | R70: 0 | S70: 0 | T70: 0 | U70: 0 | V70: 0 | W70: 0 | X70: 0 | Y70: 0 | Z70: 0.2566950881 | AA70: 0 | AB70: 0.05150808264
B71: Other | C71: 0.3382225627 | D71: 0.2877643141 | E71: 0.3041394266 | F71: 0.09427084897 | G71: 0 | H71: 0.1602408899 | I71: 0.1121079754 | J71: 0 | K71: 0 | L71: 0 | M71: 0.4318213774 | N71: 0.1027392276 | O71: 0.3030516958 | P71: 0.2534130064 | Q71: 0.6361540296 | R71: 0.6744891598 | S71: 0.2416646807 | T71: 0.1198007236 | U71: 0.08588431187 | V71: 0.5264243835 | W71: 0.2609752502 | X71: 0.1624085699 | Y71: 0.2176223167 | Z71: 0.06096493838 | AA71: 0.1735348486 | AB71: 0
A108: =A1026 -> Georgia
A109: =A1034 -> 2005
A110: Use of sanitation facilities
A111: by wealth quintile and sub-national region
A112: Notes:
A113: WHO/UNICEF JMP customised wealth index excludes water,
A114: sanitation and hygiene assets.
A115: Survey used for analysis: | B115: =A1025 -> MICS05
A116: =B1030 -> 
A117: =B1029 -> 
A120: Use of sanitation facilities | C120: NATIONAL wealth index quintile | H120: URBAN wealth index quintile | M120: RURAL wealth index quintile | R120: SUB-REGIONS: | BA120: Raw numbers of respondents: | BB120: Use of sanitation facilities | BC120: NATIONAL wealth index quintile | BH120: URBAN wealth index quintile | BM120: RURAL wealth index quintile | BR120: SUB-REGIONS:
A121: Weighted percentage (used in graphs) | C121: Poorest | D121: Poor | E121: Middle | F121: Rich | G121: Richest | H121: Poorest | I121: Poor | J121: Middle | K121: Rich | L121: Richest | M121: Poorest | N121: Poor | O121: Middle | P121: Rich | Q121: Richest | R121: Adjara | S121: Guria | T121: Imereti | U121: Kakheti | V121: Kvemo Kartli | W121: Mtskheta - Mtianeti | X121: Racha - Lechkhumi and Kvemo Svaneti | Y121: Samegrelo and Zemo Svaneti | Z121: Samtskhe - Javakheti | AA121: Shida Kartli | AB121: Tbilisi | BA121: Sanitation data, raw numbers (weighted) | BC121: Poorest | BD121: Poor | BE121: Middle | BF121: Rich | BG121: Richest | BH121: Poorest | BI121: Poor | BJ121: Middle | BK121: Rich | BL121: Richest | BM121: Poorest | BN121: Poor | BO121: Middle | BP121: Rich | BQ121: Richest | BR121: Adjara | BS121: Guria | BT121: Imereti | BU121: Kakheti | BV121: Kvemo Kartli | BW121: Mtskheta - Mtianeti | BX121: Racha - Lechkhumi and Kvemo Svaneti | BY121: Samegrelo and Zemo Svaneti | BZ121: Samtskhe - Javakheti | CA121: Shida Kartli | CB121: Tbilisi
A122: Sanitation | B122: Improved | C122: 94.11701027 | D122: 94.85285674 | E122: 96.59689757 | F122: 99.04003359 | G122: 100 | H122: 94.30082945 | I122: 99.44655523 | J122: 99.76660932 | K122: 100 | L122: 100 | M122: 93.96742921 | N122: 94.56355749 | O122: 95.75820761 | P122: 95.48900663 | Q122: 96.50214457 | R122: 98.57407321 | S122: 98.56482851 | T122: 97.32384349 | U122: 98.89063332 | V122: 93.56356625 | W122: 98.49083607 | X122: 91.99301173 | Y122: 93.02028825 | Z122: 93.41743147 | AA122: 94.01420726 | AB122: 99.85722651 | BA122: Sanitation | BB122: Improved | BC122: 8231.99208 | BD122: 8295.493507 | BE122: 8450.144196 | BF122: 8657.197445 | BG122: 8749.918293 | BH122: 3984.404896 | BI122: 4201.586112 | BJ122: 4219.883209 | BK122: 4231.436763 | BL122: 4216.123983 | BM122: 4248.510305 | BN122: 4271.831995 | BO122: 4334.607466 | BP122: 4314.062853 | BQ122: 4362.29794 | BR122: 3998.536722 | BS122: 1489.614838 | BT122: 6851.779271 | BU122: 3864.767406 | BV122: 4654.552004 | BW122: 1322.314156 | BX122: 502.9389992 | BY122: 4075.909408 | BZ122: 2072.641993 | CA122: 2884.637958 | CB122: 10667.05277
B123: Not Improved | C123: 5.882989735 | D123: 5.147143258 | E123: 3.403102429 | F123: 0.959966414 | G123: 0 | H123: 5.699170552 | I123: 0.5534447714 | J123: 0.2333906839 | K123: 0 | L123: 0 | M123: 6.03257079 | N123: 5.436442505 | O123: 4.241792385 | P123: 4.510993371 | Q123: 3.497855428 | R123: 1.425926788 | S123: 1.435171491 | T123: 2.676156514 | U123: 1.109366681 | V123: 6.436433755 | W123: 1.509163931 | X123: 8.006988271 | Y123: 6.97971175 | Z123: 6.582568533 | AA123: 5.98579274 | AB123: 0.142773491 | BB123: Not Improved | BC123: 514.5586835 | BD123: 450.1508436 | BE123: 297.6980313 | BF123: 83.91171212 | BG123: 0 | BH123: 240.8017319 | BI123: 23.38286992 | BJ123: 9.871854271 | BK123: 0 | BL123: 0 | BM123: 272.7481148 | BN123: 245.5868799 | BO123: 192.0097023 | BP123: 203.8005171 | BQ123: 158.1176004 | BR123: 57.8409762 | BS123: 21.68981351 | BT123: 188.4063871 | BU123: 43.35541242 | BV123: 320.1963845 | BW123: 20.26167012 | BX123: 43.77535415 | BY123: 305.8329889 | BZ123: 146.046704 | CA123: 183.662081 | CB123: 15.25149872
A124: Sanitation ladder | B124: Basic | C124: =C122*C129/100 -> 92.53753402 | D124: =D122*D129/100 -> 94.10828067 | E124: =E122*E129/100 -> 93.49265905 | F124: 96.35162852 | G124: 99.18220705 | H124: 89.99183342 | I124: 94.49497019 | J124: 97.23563077 | K124: 99.16812232 | L124: 99.38860104 | M124: 92.57798114 | N124: 93.39703384 | O124: 94.92316149 | P124: 94.84851338 | Q124: 95.61849586 | R124: 95.93322392 | S124: 98.10815804 | T124: 95.67617946 | U124: 98.77770538 | V124: 92.20840068 | W124: 96.20890474 | X124: 91.74751989 | Y124: 91.95291369 | Z124: 91.26438631 | AA124: 93.74101365 | AB124: 96.63010473 | BA124: Sanitation ladder | BB124: Basic | BC124: 8092.532873 | BD124: 8230.375533 | BE124: 8168.296978 | BF124: 8419.902016 | BG124: 8671.221377 | BH124: 3792.191773 | BI124: 3992.38318 | BJ124: 4110.525812 | BK124: 4196.236385 | BL124: 4183.191083 | BM124: 4184.377594 | BN124: 4219.135236 | BO124: 4296.808124 | BP124: 4285.126243 | BQ124: 4322.353346 | BR124: 3881.298369 | BS124: 1482.713156 | BT124: 6735.780664 | BU124: 3860.354043 | BV124: 4587.135927 | BW124: 1291.441976 | BX124: 500.2685478 | BY124: 4029.139804 | BZ124: 2024.872624 | CA124: 2876.255558 | CB124: 10313.06811
B125: Limited | C125: =C122*C128/100 -> 1.579476248 | D125: =D122*D128/100 -> 0.7445760682 | E125: =E122*E128/100 -> 3.104238517 | F125: 2.688405065 | G125: 0.8177929478 | H125: 4.308996027 | I125: 4.951585036 | J125: 2.530978543 | K125: 0.8318776794 | L125: 0.6113989611 | M125: 1.389448071 | N125: 1.166523654 | O125: 0.8350461247 | P125: 0.6404932474 | Q125: 0.8836487138 | R125: 2.640849294 | S125: 0.4566704679 | T125: 1.647664029 | U125: 0.1129279434 | V125: 1.355165564 | W125: 2.281931326 | X125: 0.2454918391 | Y125: 1.067374564 | Z125: 2.153045152 | AA125: 0.2731936141 | AB125: 3.227121776 | BB125: Limited | BC125: 138.1273404 | BD125: 65.11797485 | BE125: 271.2121182 | BF125: 234.9322744 | BG125: 71.49733709 | BH125: 181.5780239 | BI125: 209.2029319 | BJ125: 106.9942422 | BK125: 35.20037795 | BL125: 25.73332008 | BM125: 62.80084427 | BN125: 52.69675971 | BO125: 37.79934124 | BP125: 28.93660981 | BQ125: 39.94459378 | BR125: 106.8443615 | BS125: 6.901682025 | BT125: 115.9986067 | BU125: 4.413362724 | BV125: 67.41607707 | BW125: 30.63107212 | BX125: 1.338584912 | BY125: 46.7696038 | BZ125: 47.76936943 | CA125: 8.38239977 | CB125: 344.4219248
B126: Unimproved | C126: =100-C124-C125-C127 -> 5.882989735 | D126: =100-D124-D125-D127 -> 5.147143258 | E126: =100-E124-E125-E127 -> 3.403102429 | F126: 0.959966414 | G126: -3.841371665e-14 | H126: 5.699170552 | I126: 0.5534447714 | J126: 0.2333906839 | K126: 4.607425552e-14 | L126: -4.662936703e-15 | M126: 6.03257079 | N126: 5.436442505 | O126: 4.241792385 | P126: 4.510993371 | Q126: 3.497855428 | R126: 1.425926788 | S126: 1.435171491 | T126: 2.676156514 | U126: 1.109366681 | V126: 6.436433755 | W126: 1.509163931 | X126: 8.006988271 | Y126: 6.97971175 | Z126: 6.582568533 | AA126: 5.98579274 | AB126: 0.142773491 | BB126: Unimproved | BC126: 514.5586835 | BD126: 450.1508436 | BE126: 297.6980313 | BF126: 83.91171212 | BG126: 0 | BH126: 240.8017319 | BI126: 23.38286992 | BJ126: 9.871854271 | BK126: 0 | BL126: 0 | BM126: 272.7481148 | BN126: 245.5868799 | BO126: 192.0097023 | BP126: 203.8005171 | BQ126: 158.1176004 | BR126: 57.8409762 | BS126: 21.68981351 | BT126: 188.4063871 | BU126: 43.35541242 | BV126: 320.1963845 | BW126: 20.26167012 | BX126: 43.77535415 | BY126: 305.8329889 | BZ126: 146.046704 | CA126: 183.662081 | CB126: 15.25149872
B127: Open defecation | C127: 0 | D127: 0 | E127: 0 | F127: 0 | G127: 0 | H127: 0 | I127: 0 | J127: 0 | K127: 0 | L127: 0 | M127: 0 | N127: 0 | O127: 0 | P127: 0 | Q127: 0 | R127: 0 | S127: 0 | T127: 0 | U127: 0 | V127: 0 | W127: 0 | X127: 0 | Y127: 0 | Z127: 0 | AA127: 0 | AB127: 0 | BB127: Open defecation | BC127: 200.8980676 | BD127: 332.8340739 | BE127: 2279.393703 | BF127: 6450.513617 | BG127: 8560.651923 | BH127: 1422.652116 | BI127: 3330.8743 | BJ127: 3943.859687 | BK127: 4129.418137 | BL127: 4152.777415 | BM127: 30.1572487 | BN127: 66.71321051 | BO127: 80.48740129 | BP127: 153.7796551 | BQ127: 513.5722144 | BR127: 1530.930823 | BS127: 115.6941402 | BT127: 2464.25997 | BU127: 227.55809 | BV127: 1229.828833 | BW127: 247.705891 | BX127: 62.03643677 | BY127: 499.8160033 | BZ127: 354.5369325 | CA127: 623.4543596 | CB127: 10468.4699
A128: Shared among Improved Sanitation | B128: Yes | C128: 1.678204869 | D128: 0.7849801195 | E128: 3.213600638 | F128: 2.714462999 | G128: 0.8177929478 | H128: 4.569414768 | I128: 4.979141836 | J128: 2.53689943 | K128: 0.8318776794 | L128: 0.6113989611 | M128: 1.478648594 | N128: 1.233586896 | O128: 0.8720360849 | P128: 0.6707507702 | Q128: 0.9156777994 | R128: 2.679050594 | S128: 0.4633199031 | T128: 1.692970572 | U128: 0.1141947823 | V128: 1.448390243 | W128: 2.316897101 | X128: 0.2668592261 | Y128: 1.147464262 | Z128: 2.304757387 | AA128: 0.2905875847 | AB128: 3.231735838 | BA128: Shared among improved sanitation facilities | BB128: Yes | BC128: N/A | BD128: N/A | BE128: N/A | BF128: N/A | BG128: N/A | BH128: N/A | BI128: N/A | BJ128: N/A | BK128: N/A | BL128: N/A | BM128: N/A | BN128: N/A | BO128: N/A | BP128: N/A | BQ128: N/A | BR128: N/A | BS128: N/A | BT128: N/A | BU128: N/A | BV128: N/A | BW128: N/A | BX128: N/A | BY128: N/A | BZ128: N/A | CA128: N/A | CB128: N/A
B129: No | C129: 98.32179513 | D129: 99.21501988 | E129: 96.78639936 | F129: 97.285537 | G129: 99.18220705 | H129: 95.43058523 | I129: 95.02085816 | J129: 97.46310057 | K129: 99.16812232 | L129: 99.38860104 | M129: 98.52135141 | N129: 98.7664131 | O129: 99.12796392 | P129: 99.32924923 | Q129: 99.0843222 | R129: 97.32094941 | S129: 99.5366801 | T129: 98.30702943 | U129: 99.88580522 | V129: 98.55160976 | W129: 97.6831029 | X129: 99.73314077 | Y129: 98.85253574 | Z129: 97.69524261 | AA129: 99.70941242 | AB129: 96.76826416 | BB129: No | BC129: N/A | BD129: N/A | BE129: N/A | BF129: N/A | BG129: N/A | BH129: N/A | BI129: N/A | BJ129: N/A | BK129: N/A | BL129: N/A | BM129: N/A | BN129: N/A | BO129: N/A | BP129: N/A | BQ129: N/A | BR129: N/A | BS129: N/A | BT129: N/A | BU129: N/A | BV129: N/A | BW129: N/A | BX129: N/A | BY129: N/A | BZ129: N/A | CA129: N/A | CB129: N/A
A130: Manually calculated ratios | B130: Improved latrines
B131: Other
B132: Other
C133: NATIONAL wealth index quintile | H133: URBAN wealth index quintile | M133: RURAL wealth index quintile | R133: SUB-REGIONS: | BA133: Raw numbers of respondents: | BB133: Use of sanitation facilities | BC133: NATIONAL wealth index quintile | BH133: URBAN wealth index quintile | BM133: RURAL wealth index quintile | BR133: SUB-REGIONS:
A134: Percentage based on weighted population | C134: Poorest | D134: Poor | E134: Middle | F134: Rich | G134: Richest | H134: Poorest | I134: Poor | J134: Middle | K134: Rich | L134: Richest | M134: Poorest | N134: Poor | O134: Middle | P134: Rich | Q134: Richest | R134: Adjara | S134: Guria | T134: Imereti | U134: Kakheti | V134: Kvemo Kartli | W134: Mtskheta - Mtianeti | X134: Racha - Lechkhumi and Kvemo Svaneti | Y134: Samegrelo and Zemo Svaneti | Z134: Samtskhe - Javakheti | AA134: Shida Kartli | AB134: Tbilisi | BA134: Sanitation data, raw numbers (weighted) | BC134: Poorest | BD134: Poor | BE134: Middle | BF134: Rich | BG134: Richest | BH134: Poorest | BI134: Poor | BJ134: Middle | BK134: Rich | BL134: Richest | BM134: Poorest | BN134: Poor | BO134: Middle | BP134: Rich | BQ134: Richest | BR134: Adjara | BS134: Guria | BT134: Imereti | BU134: Kakheti | BV134: Kvemo Kartli | BW134: Mtskheta - Mtianeti | BX134: Racha - Lechkhumi and Kvemo Svaneti | BY134: Samegrelo and Zemo Svaneti | BZ134: Samtskhe - Javakheti | CA134: Shida Kartli | CB134: Tbilisi
A135: Sanitation type | B135: Sewer connection | C135: 2.296883343 | D135: 3.805712428 | E135: 26.05663939 | F135: 73.79513859 | G135: 97.83693557 | H135: 33.67059272 | I135: 78.83784033 | J135: 93.24085267 | K135: 97.58903107 | L135: 98.49751649 | M135: 0.6670100646 | N135: 1.476799304 | O135: 1.778091637 | P135: 3.403813762 | Q135: 11.36117266 | R135: 37.74132828 | S135: 7.655249395 | T135: 35.00276967 | U135: 5.822695463 | V135: 24.72142785 | W135: 18.45004849 | X135: 11.34713885 | Y135: 11.40678657 | Z135: 15.97957086 | AA135: 20.31921102 | AB135: 97.99823751 | BA135: Sanitation type | BB135: Sewer connection | BC135: N/A | BD135: N/A | BE135: N/A | BF135: N/A | BG135: N/A | BH135: N/A | BI135: N/A | BJ135: N/A | BK135: N/A | BL135: N/A | BM135: N/A | BN135: N/A | BO135: N/A | BP135: N/A | BQ135: N/A | BR135: N/A | BS135: N/A | BT135: N/A | BU135: N/A | BV135: N/A | BW135: N/A | BX135: N/A | BY135: N/A | BZ135: N/A | CA135: N/A | CB135: N/A
B136: Septic tank connection | C136: 0.3244130124 | D136: 0.4298860427 | E136: 0.9182476355 | F136: 0.6907391993 | G136: 0.01148635581 | H136: 0.7143810222 | I136: 1.005465005 | J136: 0.08560484305 | K136: 0.02375190282 | L136: 0 | M136: 0.1439802923 | N136: 0.3832895541 | O136: 0.3921228295 | P136: 1.028559775 | Q136: 0.9368054819 | R136: 1.631369092 | S136: 1.900245795 | T136: 0.277454329 | U136: 0.112839572 | V136: 0.2784829927 | W136: 0.7567906109 | X136: 0.08120428494 | Y136: 0.6371017768 | Z136: 0.4815263685 | AA136: 0.0562988986 | AB136: 0.2252304068 | BB136: Septic tank connection | BC136: N/A | BD136: N/A | BE136: N/A | BF136: N/A | BG136: N/A | BH136: N/A | BI136: N/A | BJ136: N/A | BK136: N/A | BL136: N/A | BM136: N/A | BN136: N/A | BO136: N/A | BP136: N/A | BQ136: N/A | BR136: N/A | BS136: N/A | BT136: N/A | BU136: N/A | BV136: N/A | BW136: N/A | BX136: N/A | BY136: N/A | BZ136: N/A | CA136: N/A | CB136: N/A
B137: Improved latrines | C137: 91.49571391 | D137: 90.61725827 | E137: 69.62201055 | F137: 24.55415579 | G137: 2.151578074 | H137: 59.9158557 | I137: 19.6032499 | J137: 6.440151799 | K137: 2.387217027 | L137: 1.502483514 | M137: 93.15643885 | N137: 92.70346864 | O137: 93.58799315 | P137: 91.05663309 | Q137: 84.20416643 | R137: 59.20137584 | S137: 89.00933332 | T137: 62.04361948 | U137: 92.95509828 | V137: 68.5636554 | W137: 79.28399697 | X137: 80.5646686 | Y137: 80.9763999 | Z137: 76.95633424 | AA137: 73.63869734 | AB137: 1.633758595 | BB137: Improved latrines | BC137: N/A | BD137: N/A | BE137: N/A | BF137: N/A | BG137: N/A | BH137: N/A | BI137: N/A | BJ137: N/A | BK137: N/A | BL137: N/A | BM137: N/A | BN137: N/A | BO137: N/A | BP137: N/A | BQ137: N/A | BR137: N/A | BS137: N/A | BT137: N/A | BU137: N/A | BV137: N/A | BW137: N/A | BX137: N/A | BY137: N/A | BZ137: N/A | CA137: N/A | CB137: N/A
B138: Unimproved facilities | C138: 5.882989735 | D138: 5.147143258 | E138: 3.403102429 | F138: 0.959966414 | G138: 0 | H138: 5.699170552 | I138: 0.5534447714 | J138: 0.2333906839 | K138: 0 | L138: 0 | M138: 6.03257079 | N138: 5.436442505 | O138: 4.241792385 | P138: 4.510993371 | Q138: 3.497855428 | R138: 1.425926788 | S138: 1.435171491 | T138: 2.676156514 | U138: 1.109366681 | V138: 6.436433755 | W138: 1.509163931 | X138: 8.006988271 | Y138: 6.97971175 | Z138: 6.582568533 | AA138: 5.98579274 | AB138: 0.142773491 | BB138: Unimproved facilities | BC138: N/A | BD138: N/A | BE138: N/A | BF138: N/A | BG138: N/A | BH138: N/A | BI138: N/A | BJ138: N/A | BK138: N/A | BL138: N/A | BM138: N/A | BN138: N/A | BO138: N/A | BP138: N/A | BQ138: N/A | BR138: N/A | BS138: N/A | BT138: N/A | BU138: N/A | BV138: N/A | BW138: N/A | BX138: N/A | BY138: N/A | BZ138: N/A | CA138: N/A | CB138: N/A
B139: Open defecation | C139: 0 | D139: 0 | E139: 0 | F139: 0 | G139: 0 | H139: 0 | I139: 0 | J139: 0 | K139: 0 | L139: 0 | M139: 0 | N139: 0 | O139: 0 | P139: 0 | Q139: 0 | R139: 0 | S139: 0 | T139: 0 | U139: 0 | V139: 0 | W139: 0 | X139: 0 | Y139: 0 | Z139: 0 | AA139: 0 | AB139: 0 | BB139: Open defecation | BC139: N/A | BD139: N/A | BE139: N/A | BF139: N/A | BG139: N/A | BH139: N/A | BI139: N/A | BJ139: N/A | BK139: N/A | BL139: N/A | BM139: N/A | BN139: N/A | BO139: N/A | BP139: N/A | BQ139: N/A | BR139: N/A | BS139: N/A | BT139: N/A | BU139: N/A | BV139: N/A | BW139: N/A | BX139: N/A | BY139: N/A | BZ139: N/A | CA139: N/A | CB139: N/A
A140: Septic tank emptying practices | B140: Not emptied/treated and disposed in situ | C140: N/A | D140: N/A | E140: N/A | F140: N/A | G140: N/A | H140: N/A | I140: N/A | J140: N/A | K140: N/A | L140: N/A | M140: N/A | N140: N/A | O140: N/A | P140: N/A | Q140: N/A | R140: N/A | S140: N/A | T140: N/A | U140: N/A | V140: N/A | W140: N/A | X140: N/A | Y140: N/A | Z140: N/A | AA140: N/A | AB140: N/A | BA140: Septic tank emptying practices | BB140: Not emptied/treated and disposed in situ | BC140: N/A | BD140: N/A | BE140: N/A | BF140: N/A | BG140: N/A | BH140: N/A | BI140: N/A | BJ140: N/A | BK140: N/A | BL140: N/A | BM140: N/A | BN140: N/A | BO140: N/A | BP140: N/A | BQ140: N/A | BR140: N/A | BS140: N/A | BT140: N/A | BU140: N/A | BV140: N/A | BW140: N/A | BX140: N/A | BY140: N/A | BZ140: N/A | CA140: N/A | CB140: N/A
B141: Emptied and buried on site | C141: N/A | D141: N/A | E141: N/A | F141: N/A | G141: N/A | H141: N/A | I141: N/A | J141: N/A | K141: N/A | L141: N/A | M141: N/A | N141: N/A | O141: N/A | P141: N/A | Q141: N/A | R141: N/A | S141: N/A | T141: N/A | U141: N/A | V141: N/A | W141: N/A | X141: N/A | Y141: N/A | Z141: N/A | AA141: N/A | AB141: N/A | BB141: Emptied and buried on site | BC141: N/A | BD141: N/A | BE141: N/A | BF141: N/A | BG141: N/A | BH141: N/A | BI141: N/A | BJ141: N/A | BK141: N/A | BL141: N/A | BM141: N/A | BN141: N/A | BO141: N/A | BP141: N/A | BQ141: N/A | BR141: N/A | BS141: N/A | BT141: N/A | BU141: N/A | BV141: N/A | BW141: N/A | BX141: N/A | BY141: N/A | BZ141: N/A | CA141: N/A | CB141: N/A
B142: Emptied and discharged locally | C142: N/A | D142: N/A | E142: N/A | F142: N/A | G142: N/A | H142: N/A | I142: N/A | J142: N/A | K142: N/A | L142: N/A | M142: N/A | N142: N/A | O142: N/A | P142: N/A | Q142: N/A | R142: N/A | S142: N/A | T142: N/A | U142: N/A | V142: N/A | W142: N/A | X142: N/A | Y142: N/A | Z142: N/A | AA142: N/A | AB142: N/A | BB142: Emptied and discharged locally | BC142: N/A | BD142: N/A | BE142: N/A | BF142: N/A | BG142: N/A | BH142: N/A | BI142: N/A | BJ142: N/A | BK142: N/A | BL142: N/A | BM142: N/A | BN142: N/A | BO142: N/A | BP142: N/A | BQ142: N/A | BR142: N/A | BS142: N/A | BT142: N/A | BU142: N/A | BV142: N/A | BW142: N/A | BX142: N/A | BY142: N/A | BZ142: N/A | CA142: N/A | CB142: N/A
B143: Emptied and removed offsite | C143: N/A | D143: N/A | E143: N/A | F143: N/A | G143: N/A | H143: N/A | I143: N/A | J143: N/A | K143: N/A | L143: N/A | M143: N/A | N143: N/A | O143: N/A | P143: N/A | Q143: N/A | R143: N/A | S143: N/A | T143: N/A | U143: N/A | V143: N/A | W143: N/A | X143: N/A | Y143: N/A | Z143: N/A | AA143: N/A | AB143: N/A | BB143: Emptied and removed offsite | BC143: N/A | BD143: N/A | BE143: N/A | BF143: N/A | BG143: N/A | BH143: N/A | BI143: N/A | BJ143: N/A | BK143: N/A | BL143: N/A | BM143: N/A | BN143: N/A | BO143: N/A | BP143: N/A | BQ143: N/A | BR143: N/A | BS143: N/A | BT143: N/A | BU143: N/A | BV143: N/A | BW143: N/A | BX143: N/A | BY143: N/A | BZ143: N/A | CA143: N/A | CB143: N/A
A144: Latrine emptying practices | B144: Not emptied/treated and disposed in situ | C144: N/A | D144: N/A | E144: N/A | F144: N/A | G144: N/A | H144: N/A | I144: N/A | J144: N/A | K144: N/A | L144: N/A | M144: N/A | N144: N/A | O144: N/A | P144: N/A | Q144: N/A | R144: N/A | S144: N/A | T144: N/A | U144: N/A | V144: N/A | W144: N/A | X144: N/A | Y144: N/A | Z144: N/A | AA144: N/A | AB144: N/A | BA144: Latrine emptying practices | BB144: Not emptied/treated and disposed in situ | BC144: N/A | BD144: N/A | BE144: N/A | BF144: N/A | BG144: N/A | BH144: N/A | BI144: N/A | BJ144: N/A | BK144: N/A | BL144: N/A | BM144: N/A | BN144: N/A | BO144: N/A | BP144: N/A | BQ144: N/A | BR144: N/A | BS144: N/A | BT144: N/A | BU144: N/A | BV144: N/A | BW144: N/A | BX144: N/A | BY144: N/A | BZ144: N/A | CA144: N/A | CB144: N/A
B145: Emptied and buried on site | C145: N/A | D145: N/A | E145: N/A | F145: N/A | G145: N/A | H145: N/A | I145: N/A | J145: N/A | K145: N/A | L145: N/A | M145: N/A | N145: N/A | O145: N/A | P145: N/A | Q145: N/A | R145: N/A | S145: N/A | T145: N/A | U145: N/A | V145: N/A | W145: N/A | X145: N/A | Y145: N/A | Z145: N/A | AA145: N/A | AB145: N/A | BB145: Emptied and buried on site | BC145: N/A | BD145: N/A | BE145: N/A | BF145: N/A | BG145: N/A | BH145: N/A | BI145: N/A | BJ145: N/A | BK145: N/A | BL145: N/A | BM145: N/A | BN145: N/A | BO145: N/A | BP145: N/A | BQ145: N/A | BR145: N/A | BS145: N/A | BT145: N/A | BU145: N/A | BV145: N/A | BW145: N/A | BX145: N/A | BY145: N/A | BZ145: N/A | CA145: N/A | CB145: N/A
B146: Emptied and discharged locally | C146: N/A | D146: N/A | E146: N/A | F146: N/A | G146: N/A | H146: N/A | I146: N/A | J146: N/A | K146: N/A | L146: N/A | M146: N/A | N146: N/A | O146: N/A | P146: N/A | Q146: N/A | R146: N/A | S146: N/A | T146: N/A | U146: N/A | V146: N/A | W146: N/A | X146: N/A | Y146: N/A | Z146: N/A | AA146: N/A | AB146: N/A | BB146: Emptied and discharged locally | BC146: N/A | BD146: N/A | BE146: N/A | BF146: N/A | BG146: N/A | BH146: N/A | BI146: N/A | BJ146: N/A | BK146: N/A | BL146: N/A | BM146: N/A | BN146: N/A | BO146: N/A | BP146: N/A | BQ146: N/A | BR146: N/A | BS146: N/A | BT146: N/A | BU146: N/A | BV146: N/A | BW146: N/A | BX146: N/A | BY146: N/A | BZ146: N/A | CA146: N/A | CB146: N/A
B147: Emptied and removed offsite | C147: N/A | D147: N/A | E147: N/A | F147: N/A | G147: N/A | H147: N/A | I147: N/A | J147: N/A | K147: N/A | L147: N/A | M147: N/A | N147: N/A | O147: N/A | P147: N/A | Q147: N/A | R147: N/A | S147: N/A | T147: N/A | U147: N/A | V147: N/A | W147: N/A | X147: N/A | Y147: N/A | Z147: N/A | AA147: N/A | AB147: N/A | BB147: Emptied and removed offsite | BC147: N/A | BD147: N/A | BE147: N/A | BF147: N/A | BG147: N/A | BH147: N/A | BI147: N/A | BJ147: N/A | BK147: N/A | BL147: N/A | BM147: N/A | BN147: N/A | BO147: N/A | BP147: N/A | BQ147: N/A | BR147: N/A | BS147: N/A | BT147: N/A | BU147: N/A | BV147: N/A | BW147: N/A | BX147: N/A | BY147: N/A | BZ147: N/A | CA147: N/A | CB147: N/A
A148: Shared among improved sanitation facilities | B148: Yes | C148: 1.579220703 | D148: 0.7445760682 | E148: 3.100331615 | F148: 2.687671212 | G148: 0.8171200541 | H148: 4.297494535 | I148: 4.951585036 | J148: 2.529561183 | K148: 0.8318776794 | L148: 0.610354918 | M148: 1.389012493 | N148: 1.166523654 | O148: 0.8350461247 | P148: 0.6404932474 | Q148: 0.8836487138 | R148: 2.633984542 | S148: 0.4566704679 | T148: 1.647664029 | U148: 0.1129279434 | V148: 1.355165564 | W148: 2.281515242 | X148: 0.2448417357 | Y148: 1.067374564 | Z148: 2.153045152 | AA148: 0.2731936141 | AB148: 3.224228746 | BA148: Shared among improved sanitation facilities | BB148: Yes | BC148: N/A | BD148: N/A | BE148: N/A | BF148: N/A | BG148: N/A | BH148: N/A | BI148: N/A | BJ148: N/A | BK148: N/A | BL148: N/A | BM148: N/A | BN148: N/A | BO148: N/A | BP148: N/A | BQ148: N/A | BR148: N/A | BS148: N/A | BT148: N/A | BU148: N/A | BV148: N/A | BW148: N/A | BX148: N/A | BY148: N/A | BZ148: N/A | CA148: N/A | CB148: N/A
B149: No | C149: 92.52256223 | D149: 94.10828067 | E149: 93.37499198 | F149: 96.32532742 | G149: 99.10059827 | H149: 89.75162889 | I149: 94.49497019 | J149: 97.18117836 | K149: 99.16812232 | L149: 99.21888209 | M149: 92.54895885 | N149: 93.39703384 | O149: 94.92316149 | P149: 94.84851338 | Q149: 95.61849586 | R149: 95.68385043 | S149: 98.10815804 | T149: 95.67617946 | U149: 98.77770538 | V149: 92.20840068 | W149: 96.19136216 | X149: 91.50455714 | Y149: 91.95291369 | Z149: 91.26438631 | AA149: 93.74101365 | AB149: 96.54347837 | BB149: No | BC149: N/A | BD149: N/A | BE149: N/A | BF149: N/A | BG149: N/A | BH149: N/A | BI149: N/A | BJ149: N/A | BK149: N/A | BL149: N/A | BM149: N/A | BN149: N/A | BO149: N/A | BP149: N/A | BQ149: N/A | BR149: N/A | BS149: N/A | BT149: N/A | BU149: N/A | BV149: N/A | BW149: N/A | BX149: N/A | BY149: N/A | BZ149: N/A | CA149: N/A | CB149: N/A
B150: DK/missing | C150: 5.898217068 | D150: 5.147143258 | E150: 3.524676402 | F150: 0.9870013655 | G150: 0.08228167428 | H150: 5.950876571 | I150: 0.5534447714 | J150: 0.2892604586 | K150: 0 | L150: 0.1707629875 | M150: 6.062028661 | N150: 5.436442505 | O150: 4.241792385 | P150: 4.510993371 | Q150: 3.497855428 | R150: 1.682165025 | S150: 1.435171491 | T150: 2.676156514 | U150: 1.109366681 | V150: 6.436433755 | W150: 1.527122595 | X150: 8.250601126 | Y150: 6.97971175 | Z150: 6.582568533 | AA150: 5.98579274 | AB150: 0.2322928836 | BB150: DK/missing | BC150: N/A | BD150: N/A | BE150: N/A | BF150: N/A | BG150: N/A | BH150: N/A | BI150: N/A | BJ150: N/A | BK150: N/A | BL150: N/A | BM150: N/A | BN150: N/A | BO150: N/A | BP150: N/A | BQ150: N/A | BR150: N/A | BS150: N/A | BT150: N/A | BU150: N/A | BV150: N/A | BW150: N/A | BX150: N/A | BY150: N/A | BZ150: N/A | CA150: N/A | CB150: N/A
A151: Shared among all sanitation facilities | B151: Yes | C151: 1.714752433 | D151: 0.7921151186 | E151: 3.181977583 | F151: 2.687671212 | G151: 0.8171200541 | H151: 4.460125216 | I151: 4.951585036 | J151: 2.529561183 | K151: 0.8318776794 | L151: 0.610354918 | M151: 1.444075548 | N151: 1.313752033 | O151: 0.8350461247 | P151: 0.6404932474 | Q151: 1.041648801 | R151: 2.77769485 | S151: 0.4566704679 | T151: 1.647664029 | U151: 0.1129279434 | V151: 1.498735851 | W151: 2.281515242 | X151: 0.2448417357 | Y151: 1.113876041 | Z151: 2.183527621 | AA151: 0.5166062175 | AB151: 3.224228746 | BA151: Shared among all sanitation facilities | BB151: Yes | BC151: N/A | BD151: N/A | BE151: N/A | BF151: N/A | BG151: N/A | BH151: N/A | BI151: N/A | BJ151: N/A | BK151: N/A | BL151: N/A | BM151: N/A | BN151: N/A | BO151: N/A | BP151: N/A | BQ151: N/A | BR151: N/A | BS151: N/A | BT151: N/A | BU151: N/A | BV151: N/A | BW151: N/A | BX151: N/A | BY151: N/A | BZ151: N/A | CA151: N/A | CB151: N/A
B152: No | C152: 98.24542571 | D152: 99.20788488 | E152: 96.68456667 | F152: 97.23408445 | G152: 99.10059827 | H152: 95.26356881 | I152: 95.04841496 | J152: 97.30874097 | K152: 99.16812232 | L152: 99.21888209 | M152: 98.47888751 | N152: 98.68624797 | O152: 99.16495388 | P152: 99.35950675 | Q152: 98.9583512 | R152: 96.88741122 | S152: 99.54332953 | T152: 98.35233597 | U152: 99.88707206 | V152: 98.50126415 | W152: 97.70052609 | X152: 99.51154541 | Y152: 98.88612396 | Z152: 97.81647238 | AA152: 99.48339378 | AB152: 96.64434828 | BB152: No | BC152: N/A | BD152: N/A | BE152: N/A | BF152: N/A | BG152: N/A | BH152: N/A | BI152: N/A | BJ152: N/A | BK152: N/A | BL152: N/A | BM152: N/A | BN152: N/A | BO152: N/A | BP152: N/A | BQ152: N/A | BR152: N/A | BS152: N/A | BT152: N/A | BU152: N/A | BV152: N/A | BW152: N/A | BX152: N/A | BY152: N/A | BZ152: N/A | CA152: N/A | CB152: N/A
A153: Kind of toilet facility | B153: Flush to piped sewer system | C153: 2.296883343 | D153: 3.805712428 | E153: 26.05663939 | F153: 73.79513859 | G153: 97.83693557 | H153: 33.67059272 | I153: 78.83784033 | J153: 93.24085267 | K153: 97.58903107 | L153: 98.49751649 | M153: 0.6670100646 | N153: 1.476799304 | O153: 1.778091637 | P153: 3.403813762 | Q153: 11.36117266 | R153: 37.74132828 | S153: 7.655249395 | T153: 35.00276967 | U153: 5.822695463 | V153: 24.72142785 | W153: 18.45004849 | X153: 11.34713885 | Y153: 11.40678657 | Z153: 15.97957086 | AA153: 20.31921102 | AB153: 97.99823751 | BA153: Kind of toilet facility | BB153: Flush to piped sewer system | BC153: 200.8980676 | BD153: 332.8340739 | BE153: 2279.393703 | BF153: 6450.513617 | BG153: 8560.651923 | BH153: 1422.652116 | BI153: 3330.8743 | BJ153: 3943.859687 | BK153: 4129.418137 | BL153: 4152.777415 | BM153: 30.1572487 | BN153: 66.71321051 | BO153: 80.48740129 | BP153: 153.7796551 | BQ153: 513.5722144 | BR153: 1530.930823 | BS153: 115.6941402 | BT153: 2464.25997 | BU153: 227.55809 | BV153: 1229.828833 | BW153: 247.705891 | BX153: 62.03643677 | BY153: 499.8160033 | BZ153: 354.5369325 | CA153: 623.4543596 | CB153: 10468.4699
B154: Flush to septic tank | C154: 0.3244130124 | D154: 0.4298860427 | E154: 0.9182476355 | F154: 0.6907391993 | G154: 0.01148635581 | H154: 0.7143810222 | I154: 1.005465005 | J154: 0.08560484305 | K154: 0.02375190282 | L154: 0 | M154: 0.1439802923 | N154: 0.3832895541 | O154: 0.3921228295 | P154: 1.028559775 | Q154: 0.9368054819 | R154: 1.631369092 | S154: 1.900245795 | T154: 0.277454329 | U154: 0.112839572 | V154: 0.2784829927 | W154: 0.7567906109 | X154: 0.08120428494 | Y154: 0.6371017768 | Z154: 0.4815263685 | AA154: 0.0562988986 | AB154: 0.2252304068 | BB154: Flush to septic tank | BC154: 28.37494881 | BD154: 37.59630441 | BE154: 80.32685441 | BF154: 60.3782674 | BG154: 1.005046748 | BH154: 30.1840743 | BI154: 42.48058458 | BJ154: 3.620875183 | BK154: 1.005046748 | BL154: 0 | BM154: 6.50972109 | BN154: 17.31479466 | BO154: 17.74989932 | BP154: 46.4689253 | BQ154: 42.34750058 | BR154: 66.17449203 | BS154: 28.71850309 | BT154: 19.53329988 | BU154: 4.409909061 | BV154: 13.85382819 | BW154: 10.1604878 | BX154: 0.4439554813 | BY154: 27.91615867 | BZ154: 10.68357111 | CA154: 1.727419128 | CB154: 24.05979735
B155: Flush to pit (latrine) | C155: 7.401421594 | D155: 6.4823246 | E155: 5.651036327 | F155: 3.974331506 | G155: 0.2065708217 | H155: 4.351024838 | I155: 3.104501559 | J155: 0.6650679673 | K155: 0.03148945976 | L155: 0.18934085 | M155: 7.757760283 | N155: 7.40222505 | O155: 5.504970212 | P155: 7.503089838 | Q155: 9.918404237 | R155: 9.059601003 | S155: 2.778609481 | T155: 7.595353013 | U155: 8.638181026 | V155: 3.09679429 | W155: 7.047652609 | X155: 19.17527117 | Y155: 4.547530364 | Z155: 5.95502968 | AA155: 0.1013380175 | AB155: 0.976390522 | BB155: Flush to pit (latrine) | BC155: 647.3690969 | BD155: 566.9210552 | BE155: 494.343742 | BF155: 347.4006552 | BG155: 18.07477812 | BH155: 183.8397898 | BI155: 131.1642279 | BJ155: 28.13074602 | BK155: 1.332456577 | BL155: 7.982844985 | BM155: 350.7483899 | BN155: 334.3895116 | BO155: 249.1889267 | BP155: 338.9793474 | BQ155: 448.3530865 | BR155: 367.4916346 | BS155: 41.99325434 | BT155: 534.7269535 | BU155: 337.5907238 | BV155: 154.057724 | BW155: 94.62008027 | BX155: 104.8339598 | BY155: 199.261066 | BZ155: 132.1235704 | CA155: 3.10935443 | CB155: 104.3010064
B156: Flush to somewhere else | C156: 0.007732317765 | D156: 0.09532959991 | E156: 0.21237455 | F156: 0.1156727151 | G156: 0 | H156: 0.1144064138 | I156: 0.09076405272 | J156: 0 | K156: 0 | L156: 0 | M156: 0 | N156: 0 | O156: 0 | P156: 0.3263365064 | Q156: 0.3161361971 | R156: 0.72072049 | S156: 0 | T156: 0 | U156: 0 | V156: 0 | W156: 0.1304876251 | X156: 0 | Y156: 0.08751662527 | Z156: 0.1298503084 | AA156: 0 | AB156: 0 | BB156: Flush to somewhere else | BC156: 0.6763110985 | BD156: 8.337187769 | BE156: 18.57819056 | BF156: 10.11107829 | BG156: 0 | BH156: 4.833907378 | BI156: 3.834753074 | BJ156: 0 | BK156: 0 | BL156: 0 | BM156: 0 | BN156: 0 | BO156: 0 | BP156: 14.74343749 | BQ156: 14.29066978 | BR156: 29.23514522 | BS156: 0 | BT156: 0 | BU156: 0 | BV156: 0 | BW156: 1.751895311 | BX156: 0 | BY156: 3.834753074 | BZ156: 2.880974115 | CA156: 0 | CB156: 0
B157: Flush to unknown place/not sure/DK where | C157: 0.008693264996 | D157: 0.06149269332 | E157: 0.282359069 | F157: 0.2181819409 | G157: 0 | H157: 0.05573016037 | I157: 0.04179997131 | J157: 0 | K157: 0 | L157: 0 | M157: 0.01681746021 | N157: 0 | O157: 0.1188068719 | P157: 0 | Q157: 0.8771560244 | R157: 0.1325796723 | S157: 0 | T157: 0 | U157: 1.10283952 | V157: 0 | W157: 0 | X157: 0 | Y157: 0.03267844717 | Z157: 0 | AA157: 0 | AB157: 0 | BB157: Flush to unknown place/not sure/DK where | BC157: 0.7603608358 | BD157: 5.37793226 | BE157: 24.70032587 | BF157: 19.07152162 | BG157: 0 | BH157: 2.35471443 | BI157: 1.766035822 | BJ157: 0 | BK157: 0 | BL157: 0 | BM157: 0.7603608358 | BN157: 0 | BO157: 5.37793226 | BP157: 0 | BQ157: 39.65109724 | BR157: 5.37793226 | BS157: 0 | BT157: 0 | BU157: 43.10032295 | BV157: 0 | BW157: 0 | BX157: 0 | BY157: 1.431885374 | BZ157: 0 | CA157: 0 | CB157: 0
B158: Ventilated Improved Pit latrine (VIP) | C158: 0.06548343058 | D158: 0.2361085667 | E158: 0.9772546018 | F158: 1.259222721 | G158: 0.09793323885 | H158: 0.135830013 | I158: 0.3861922409 | J158: 0.3168555804 | K158: 0.09957344791 | L158: 0.06320765624 | M158: 0.03167006266 | N158: 0.2496584213 | O158: 0.246923948 | P158: 0.2356922165 | Q158: 3.398645202 | R158: 0.6734046843 | S158: 1.207722462 | T158: 0.3673048717 | U158: 3.009408739 | V158: 0.2153554296 | W158: 0.3687272347 | X158: 0.1958733886 | Y158: 0.3374856326 | Z158: 0.1676535805 | AA158: 0.2028438362 | AB158: 0 | BB158: Ventilated Improved Pit latrine (VIP) | BC158: 5.727541497 | BD158: 20.64921552 | BE158: 85.48869072 | BF158: 110.0700326 | BG158: 8.569078381 | BH158: 5.739098714 | BI158: 16.31650239 | BJ158: 13.40221495 | BK158: 4.213387481 | BL158: 2.664913154 | BM158: 1.431885374 | BN158: 11.27811665 | BO158: 11.17730182 | BP158: 10.64825231 | BQ158: 153.6328859 | BR158: 27.31583743 | BS158: 18.25236575 | BT158: 25.8589449 | BU158: 117.6113896 | BV158: 10.71339076 | BW158: 4.95044272 | BX158: 1.07086793 | BY158: 14.78775105 | BZ158: 3.719711042 | CA158: 6.223857504 | CB158: 0
B159: Pit latrine with slab | C159: 82.32157451 | D159: 83.09615446 | E159: 62.40380351 | F159: 18.94420622 | G159: 1.847074014 | H159: 55.34584024 | I159: 16.07075613 | J159: 5.458228251 | K159: 2.256154119 | L159: 1.249935008 | M159: 83.06788567 | N159: 83.76680156 | O159: 86.81772545 | P159: 82.94384703 | Q159: 69.25527688 | R159: 45.92067228 | S159: 85.02300138 | T159: 54.0809616 | U159: 80.204669 | V159: 64.70115292 | W159: 71.86761712 | X159: 61.19352403 | Y159: 75.79727788 | Z159: 67.37417878 | AA159: 73.33451549 | AB159: 0.6573680727 | BB159: Pit latrine with slab | BC159: 7200.298304 | BD159: 7267.294138 | BE159: 5458.986274 | BF159: 1655.933744 | BG159: 161.617467 | BH159: 2338.47611 | BI159: 678.9844614 | BJ159: 230.8696858 | BK159: 95.46773483 | BL159: 52.69880964 | BM159: 3755.713775 | BN159: 3784.097305 | BO159: 3929.906065 | BP159: 3747.289682 | BQ159: 3130.626299 | BR159: 1862.715909 | BS159: 1284.956575 | BT159: 3807.400102 | BU159: 3134.496971 | BV159: 3218.719562 | BW159: 964.8772547 | BX159: 334.5537792 | BY159: 3321.241461 | BZ159: 1494.823289 | CA159: 2250.122968 | CB159: 70.22205766
B160: Pit latrine without slab/open pit | C160: 5.786443296 | D160: 4.937857243 | E160: 3.059518631 | F160: 0.6548163948 | G160: 0 | H160: 5.325674329 | I160: 0.3586084733 | J160: 0.04083969644 | K160: 0 | L160: 0 | M160: 5.90201301 | N160: 5.436442505 | O160: 4.113365366 | P160: 4.060905538 | Q160: 3.071572587 | R160: 0.626550605 | S160: 1.193506811 | T160: 2.593581994 | U160: 1.109366681 | V160: 6.417174022 | W160: 1.367844077 | X160: 7.844579701 | Y160: 6.68775924 | Z160: 6.365341103 | AA160: 5.823517671 | AB160: 0 | BB160: Pit latrine without slab/open pit | BC160: 506.1142002 | BD160: 431.847433 | BE160: 267.6418627 | BF160: 57.23821585 | BG160: 0 | BH160: 225.0207448 | BI160: 15.15109677 | BJ160: 1.727419128 | BK160: 0 | BL160: 0 | BM160: 266.8452602 | BN160: 245.5868799 | BO160: 186.1963028 | BP160: 183.4661638 | BQ160: 138.8478446 | BR160: 25.41525901 | BS160: 18.03752395 | BT160: 182.5929876 | BU160: 43.35541242 | BV160: 319.2382612 | BW160: 18.36434392 | BX160: 42.88744318 | BY160: 293.040382 | BZ160: 141.2271036 | CA160: 178.682995 | CB160: 0
B161: Composting toilet | C161: 1.698541109 | D161: 0.7411779529 | E161: 0.3075570456 | F161: 0.1582134103 | G161: 0 | H161: 0.02743044523 | I161: 0 | J161: 0 | K161: 0 | L161: 0 | M161: 2.282305378 | N161: 1.284783608 | O161: 0.8995666649 | P161: 0.3740040098 | Q161: 0.7546840829 | R161: 3.415118207 | S161: 0 | T161: 0 | U161: 0 | V161: 0.5503527645 | W161: 0 | X161: 0 | Y161: 0.2614275774 | Z161: 3.459472193 | AA161: 0 | AB161: 0 | BB161: Composting toilet | BC161: 148.5637603 | BD161: 64.82078777 | BE161: 26.9046051 | BF161: 13.82960689 | BG161: 0 | BH161: 1.15899299 | BI161: 0 | BJ161: 0 | BK161: 0 | BL161: 0 | BM161: 103.1889241 | BN161: 58.03905722 | BO161: 40.71993909 | BP161: 16.89699016 | BQ161: 34.11485656 | BR161: 138.5300933 | BS161: 0 | BT161: 0 | BU161: 0 | BV161: 27.37866528 | BW161: 0 | BX161: 0 | BY161: 11.45508299 | BZ161: 76.75491851 | CA161: 0 | CB161: 0
B162: Bucket | C162: 0.05159611205 | D162: 0.0720136315 | E162: 0.02278748316 | F162: 0 | G162: 0 | H162: 0.03078291459 | I162: 0 | J162: 0 | K162: 0 | L162: 0 | M162: 0.08297870555 | N162: 0 | O162: 0.1284270195 | P162: 0.04291024698 | Q162: 0 | R162: 0 | S162: 0 | T162: 0.08257451998 | U162: 0 | V162: 0 | W162: 0 | X162: 0.1624085699 | Y162: 0.0950401032 | Z162: 0.08737712202 | AA162: 0 | AB162: 0 | BB162: Bucket | BC162: 4.512880132 | BD162: 6.298056095 | BE162: 1.993413074 | BF162: 0 | BG162: 0 | BH162: 1.300641748 | BI162: 0 | BJ162: 0 | BK162: 0 | BL162: 0 | BM162: 3.751681711 | BN162: 0 | BO162: 5.813399512 | BP162: 1.93862633 | BQ162: 0 | BR162: 0 | BS162: 0 | BT162: 5.813399512 | BU162: 0 | BV162: 0 | BW162: 0 | BX162: 0.8879109625 | BY162: 4.164412496 | BZ162: 1.93862633 | CA162: 0 | CB162: 0
B163: Other | C163: 0.01262348086 | D163: 0 | E163: 0 | F163: 0 | G163: 0 | H163: 0.02613171991 | I163: 0 | J163: 0 | K163: 0 | L163: 0 | M163: 0 | N163: 0 | O163: 0 | P163: 0 | Q163: 0 | R163: 0 | S163: 0 | T163: 0 | U163: 0 | V163: 0 | W163: 0.01083222938 | X163: 0 | Y163: 0.02187915632 | Z163: 0 | AA163: 0 | AB163: 0 | BB163: Other | BC163: 1.104119162 | BD163: 0 | BE163: 0 | BF163: 0 | BG163: 0 | BH163: 1.104119162 | BI163: 0 | BJ163: 0 | BK163: 0 | BL163: 0 | BM163: 0 | BN163: 0 | BO163: 0 | BP163: 0 | BQ163: 0 | BR163: 0 | BS163: 0 | BT163: 0 | BU163: 0 | BV163: 0 | BW163: 0.1454308932 | BX163: 0 | BY163: 0.9586882685 | BZ163: 0 | CA163: 0 | CB163: 0
B164: Missing | C164: 0.02459452832 | D164: 0.04194278422 | E164: 0.1084217651 | F164: 0.1894773041 | G164: 0 | H164: 0.2021751747 | I164: 0.1040722454 | J164: 0.1925509875 | K164: 0 | L164: 0 | M164: 0.04757907433 | N164: 0 | O164: 0 | P164: 0.08084108043 | Q164: 0.1101466438 | R164: 0.07865569263 | S164: 0.2416646807 | T164: 0 | U164: 0 | V164: 0.01925973286 | W164: 0 | X164: 0 | Y164: 0.08751662527 | Z164: 0 | AA164: 0.1622750689 | AB164: 0.142773491 | BB164: Missing | BC164: 2.151172904 | BD164: 3.668166739 | BE164: 9.484564955 | BF164: 16.56241798 | BG164: 0 | BH164: 8.542318883 | BI164: 4.397020086 | BJ164: 8.144435144 | BK164: 0 | BL164: 0 | BM164: 2.151172904 | BN164: 0 | BO164: 0 | BP164: 3.652289561 | BQ164: 4.979086003 | BR164: 3.190571974 | BS164: 3.652289561 | BT164: 0 | BU164: 0 | BV164: 0.9581232502 | BW164: 0 | BX164: 0 | BY164: 3.834753074 | BZ164: 0 | CA164: 4.979086003 | CB164: 15.25149872
BB165: Total | BC165: 8746.550763 | BD165: 8745.644351 | BE165: 8747.842227 | BF165: 8741.109157 | BG165: 8749.918293 | BH165: 4225.206628 | BI165: 4224.968982 | BJ165: 4229.755063 | BK165: 4231.436763 | BL165: 4216.123983 | BM165: 4521.258419 | BN165: 4517.418875 | BO165: 4526.617168 | BP165: 4517.86337 | BQ165: 4520.41554 | BR165: 4056.377698 | BS165: 1511.304652 | BT165: 7040.185658 | BU165: 3908.122819 | BV165: 4974.748388 | BW165: 1342.575827 | BX165: 546.7143533 | BY165: 4381.742397 | BZ165: 2218.688697 | CA165: 3068.300039 | CB165: 10682.30426
A208: =A1026 -> Georgia
A209: =A1034 -> 2005
A210: Access to hygiene facilities
A211: by wealth quintile and sub-national region
A212: Notes:
A213: WHO/UNICEF JMP customised wealth index excludes water,
A214: sanitation and hygiene assets.
A215: Survey used for analysis: | B215: =A1025 -> MICS05
A220: Access to handwashing | C220: NATIONAL wealth index quintile | H220: URBAN wealth index quintile | M220: RURAL wealth index quintile | R220: SUB-REGIONS: | BA220: Raw numbers of respondents: | BB220: Access to handwashing | BC220: NATIONAL wealth index quintile | BH220: URBAN wealth index quintile | BM220: RURAL wealth index quintile | BR220: SUB-REGIONS:
A221: Weighted percentage (used in graphs) | C221: Poorest | D221: Poor | E221: Middle | F221: Rich | G221: Richest | H221: Poorest | I221: Poor | J221: Middle | K221: Rich | L221: Richest | M221: Poorest | N221: Poor | O221: Middle | P221: Rich | Q221: Richest | R221: Adjara | S221: Guria | T221: Imereti | U221: Kakheti | V221: Kvemo Kartli | W221: Mtskheta - Mtianeti | X221: Racha - Lechkhumi and Kvemo Svaneti | Y221: Samegrelo and Zemo Svaneti | Z221: Samtskhe - Javakheti | AA221: Shida Kartli | AB221: Tbilisi | BA221: Hygiene data, raw numbers (weighted) | BC221: Poorest | BD221: Poor | BE221: Middle | BF221: Rich | BG221: Richest | BH221: Poorest | BI221: Poor | BJ221: Middle | BK221: Rich | BL221: Richest | BM221: Poorest | BN221: Poor | BO221: Middle | BP221: Rich | BQ221: Richest | BR221: Adjara | BS221: Guria | BT221: Imereti | BU221: Kakheti | BV221: Kvemo Kartli | BW221: Mtskheta - Mtianeti | BX221: Racha - Lechkhumi and Kvemo Svaneti | BY221: Samegrelo and Zemo Svaneti | BZ221: Samtskhe - Javakheti | CA221: Shida Kartli | CB221: Tbilisi
A222: Hygiene ladder | B222: Basic | C222: N/A | D222: N/A | E222: N/A | F222: N/A | G222: N/A | H222: N/A | I222: N/A | J222: N/A | K222: N/A | L222: N/A | M222: N/A | N222: N/A | O222: N/A | P222: N/A | Q222: N/A | R222: N/A | S222: N/A | T222: N/A | U222: N/A | V222: N/A | W222: N/A | X222: N/A | Y222: N/A | Z222: N/A | AA222: N/A | AB222: N/A | BA222: Hygiene ladder | BB222: Basic | BC222: N/A | BD222: N/A | BE222: N/A | BF222: N/A | BG222: N/A | BH222: N/A | BI222: N/A | BJ222: N/A | BK222: N/A | BL222: N/A | BM222: N/A | BN222: N/A | BO222: N/A | BP222: N/A | BQ222: N/A | BR222: N/A | BS222: N/A | BT222: N/A | BU222: N/A | BV222: N/A | BW222: N/A | BX222: N/A | BY222: N/A | BZ222: N/A | CA222: N/A | CB222: N/A
B223: Limited | C223: N/A | D223: N/A | E223: N/A | F223: N/A | G223: N/A | H223: N/A | I223: N/A | J223: N/A | K223: N/A | L223: N/A | M223: N/A | N223: N/A | O223: N/A | P223: N/A | Q223: N/A | R223: N/A | S223: N/A | T223: N/A | U223: N/A | V223: N/A | W223: N/A | X223: N/A | Y223: N/A | Z223: N/A | AA223: N/A | AB223: N/A | BB223: Limited | BC223: N/A | BD223: N/A | BE223: N/A | BF223: N/A | BG223: N/A | BH223: N/A | BI223: N/A | BJ223: N/A | BK223: N/A | BL223: N/A | BM223: N/A | BN223: N/A | BO223: N/A | BP223: N/A | BQ223: N/A | BR223: N/A | BS223: N/A | BT223: N/A | BU223: N/A | BV223: N/A | BW223: N/A | BX223: N/A | BY223: N/A | BZ223: N/A | CA223: N/A | CB223: N/A
B224: No facility | C224: N/A | D224: N/A | E224: N/A | F224: N/A | G224: N/A | H224: N/A | I224: N/A | J224: N/A | K224: N/A | L224: N/A | M224: N/A | N224: N/A | O224: N/A | P224: N/A | Q224: N/A | R224: N/A | S224: N/A | T224: N/A | U224: N/A | V224: N/A | W224: N/A | X224: N/A | Y224: N/A | Z224: N/A | AA224: N/A | AB224: N/A | BB224: No facility | BC224: N/A | BD224: N/A | BE224: N/A | BF224: N/A | BG224: N/A | BH224: N/A | BI224: N/A | BJ224: N/A | BK224: N/A | BL224: N/A | BM224: N/A | BN224: N/A | BO224: N/A | BP224: N/A | BQ224: N/A | BR224: N/A | BS224: N/A | BT224: N/A | BU224: N/A | BV224: N/A | BW224: N/A | BX224: N/A | BY224: N/A | BZ224: N/A | CA224: N/A | CB224: N/A
BA225: Observed handwashing place | BB225: Fixed | BC225: N/A | BD225: N/A | BE225: N/A | BF225: N/A | BG225: N/A | BH225: N/A | BI225: N/A | BJ225: N/A | BK225: N/A | BL225: N/A | BM225: N/A | BN225: N/A | BO225: N/A | BP225: N/A | BQ225: N/A | BR225: N/A | BS225: N/A | BT225: N/A | BU225: N/A | BV225: N/A | BW225: N/A | BX225: N/A | BY225: N/A | BZ225: N/A | CA225: N/A | CB225: N/A
BB226: Mobile | BC226: N/A | BD226: N/A | BE226: N/A | BF226: N/A | BG226: N/A | BH226: N/A | BI226: N/A | BJ226: N/A | BK226: N/A | BL226: N/A | BM226: N/A | BN226: N/A | BO226: N/A | BP226: N/A | BQ226: N/A | BR226: N/A | BS226: N/A | BT226: N/A | BU226: N/A | BV226: N/A | BW226: N/A | BX226: N/A | BY226: N/A | BZ226: N/A | CA226: N/A | CB226: N/A
BA227: Water / Soap | BB227: Water and soap | BC227: N/A | BD227: N/A | BE227: N/A | BF227: N/A | BG227: N/A | BH227: N/A | BI227: N/A | BJ227: N/A | BK227: N/A | BL227: N/A | BM227: N/A | BN227: N/A | BO227: N/A | BP227: N/A | BQ227: N/A | BR227: N/A | BS227: N/A | BT227: N/A | BU227: N/A | BV227: N/A | BW227: N/A | BX227: N/A | BY227: N/A | BZ227: N/A | CA227: N/A | CB227: N/A
BB228: Water only | BC228: N/A | BD228: N/A | BE228: N/A | BF228: N/A | BG228: N/A | BH228: N/A | BI228: N/A | BJ228: N/A | BK228: N/A | BL228: N/A | BM228: N/A | BN228: N/A | BO228: N/A | BP228: N/A | BQ228: N/A | BR228: N/A | BS228: N/A | BT228: N/A | BU228: N/A | BV228: N/A | BW228: N/A | BX228: N/A | BY228: N/A | BZ228: N/A | CA228: N/A | CB228: N/A
BB229: Soap only | BC229: N/A | BD229: N/A | BE229: N/A | BF229: N/A | BG229: N/A | BH229: N/A | BI229: N/A | BJ229: N/A | BK229: N/A | BL229: N/A | BM229: N/A | BN229: N/A | BO229: N/A | BP229: N/A | BQ229: N/A | BR229: N/A | BS229: N/A | BT229: N/A | BU229: N/A | BV229: N/A | BW229: N/A | BX229: N/A | BY229: N/A | BZ229: N/A | CA229: N/A | CB229: N/A
BB230: Neither | BC230: N/A | BD230: N/A | BE230: N/A | BF230: N/A | BG230: N/A | BH230: N/A | BI230: N/A | BJ230: N/A | BK230: N/A | BL230: N/A | BM230: N/A | BN230: N/A | BO230: N/A | BP230: N/A | BQ230: N/A | BR230: N/A | BS230: N/A | BT230: N/A | BU230: N/A | BV230: N/A | BW230: N/A | BX230: N/A | BY230: N/A | BZ230: N/A | CA230: N/A | CB230: N/A
BA259: Raw numbers of respondents: | BB259: Menstrual health and hygiene | BC259: NATIONAL wealth index quintile | BH259: URBAN wealth index quintile | BM259: RURAL wealth index quintile | BR259: SUB-REGIONS:
BA260: MHH data, raw numbers (weighted) | BC260: Poorest | BD260: Poor | BE260: Middle | BF260: Rich | BG260: Richest | BH260: Poorest | BI260: Poor | BJ260: Middle | BK260: Rich | BL260: Richest | BM260: Poorest | BN260: Poor | BO260: Middle | BP260: Rich | BQ260: Richest | BR260: Adjara | BS260: Guria | BT260: Imereti | BU260: Kakheti | BV260: Kvemo Kartli | BW260: Mtskheta - Mtianeti | BX260: Racha - Lechkhumi and Kvemo Svaneti | BY260: Samegrelo and Zemo Svaneti | BZ260: Samtskhe - Javakheti | CA260: Shida Kartli | CB260: Tbilisi
BA261: Private place to wash and change | BB261: Yes | BC261: N/A | BD261: N/A | BE261: N/A | BF261: N/A | BG261: N/A | BH261: N/A | BI261: N/A | BJ261: N/A | BK261: N/A | BL261: N/A | BM261: N/A | BN261: N/A | BO261: N/A | BP261: N/A | BQ261: N/A | BR261: N/A | BS261: N/A | BT261: N/A | BU261: N/A | BV261: N/A | BW261: N/A | BX261: N/A | BY261: N/A | BZ261: N/A | CA261: N/A | CB261: N/A
BB262: No | BC262: N/A | BD262: N/A | BE262: N/A | BF262: N/A | BG262: N/A | BH262: N/A | BI262: N/A | BJ262: N/A | BK262: N/A | BL262: N/A | BM262: N/A | BN262: N/A | BO262: N/A | BP262: N/A | BQ262: N/A | BR262: N/A | BS262: N/A | BT262: N/A | BU262: N/A | BV262: N/A | BW262: N/A | BX262: N/A | BY262: N/A | BZ262: N/A | CA262: N/A | CB262: N/A
BB263: DK/not sure/missing | BC263: N/A | BD263: N/A | BE263: N/A | BF263: N/A | BG263: N/A | BH263: N/A | BI263: N/A | BJ263: N/A | BK263: N/A | BL263: N/A | BM263: N/A | BN263: N/A | BO263: N/A | BP263: N/A | BQ263: N/A | BR263: N/A | BS263: N/A | BT263: N/A | BU263: N/A | BV263: N/A | BW263: N/A | BX263: N/A | BY263: N/A | BZ263: N/A | CA263: N/A | CB263: N/A
BA264: Use of menstrual materials | BB264: Materials reusable | BC264: N/A | BD264: N/A | BE264: N/A | BF264: N/A | BG264: N/A | BH264: N/A | BI264: N/A | BJ264: N/A | BK264: N/A | BL264: N/A | BM264: N/A | BN264: N/A | BO264: N/A | BP264: N/A | BQ264: N/A | BR264: N/A | BS264: N/A | BT264: N/A | BU264: N/A | BV264: N/A | BW264: N/A | BX264: N/A | BY264: N/A | BZ264: N/A | CA264: N/A | CB264: N/A
BB265: Materials not reusable | BC265: N/A | BD265: N/A | BE265: N/A | BF265: N/A | BG265: N/A | BH265: N/A | BI265: N/A | BJ265: N/A | BK265: N/A | BL265: N/A | BM265: N/A | BN265: N/A | BO265: N/A | BP265: N/A | BQ265: N/A | BR265: N/A | BS265: N/A | BT265: N/A | BU265: N/A | BV265: N/A | BW265: N/A | BX265: N/A | BY265: N/A | BZ265: N/A | CA265: N/A | CB265: N/A
BB266: No materials used | BC266: N/A | BD266: N/A | BE266: N/A | BF266: N/A | BG266: N/A | BH266: N/A | BI266: N/A | BJ266: N/A | BK266: N/A | BL266: N/A | BM266: N/A | BN266: N/A | BO266: N/A | BP266: N/A | BQ266: N/A | BR266: N/A | BS266: N/A | BT266: N/A | BU266: N/A | BV266: N/A | BW266: N/A | BX266: N/A | BY266: N/A | BZ266: N/A | CA266: N/A | CB266: N/A
BB267: DK/not sure/missing | BC267: N/A | BD267: N/A | BE267: N/A | BF267: N/A | BG267: N/A | BH267: N/A | BI267: N/A | BJ267: N/A | BK267: N/A | BL267: N/A | BM267: N/A | BN267: N/A | BO267: N/A | BP267: N/A | BQ267: N/A | BR267: N/A | BS267: N/A | BT267: N/A | BU267: N/A | BV267: N/A | BW267: N/A | BX267: N/A | BY267: N/A | BZ267: N/A | CA267: N/A | CB267: N/A
BA268: Use of menstrual materials with private place to wash and change | BB268: Materials reusable | BC268: N/A | BD268: N/A | BE268: N/A | BF268: N/A | BG268: N/A | BH268: N/A | BI268: N/A | BJ268: N/A | BK268: N/A | BL268: N/A | BM268: N/A | BN268: N/A | BO268: N/A | BP268: N/A | BQ268: N/A | BR268: N/A | BS268: N/A | BT268: N/A | BU268: N/A | BV268: N/A | BW268: N/A | BX268: N/A | BY268: N/A | BZ268: N/A | CA268: N/A | CB268: N/A
BB269: Materials not reusable | BC269: N/A | BD269: N/A | BE269: N/A | BF269: N/A | BG269: N/A | BH269: N/A | BI269: N/A | BJ269: N/A | BK269: N/A | BL269: N/A | BM269: N/A | BN269: N/A | BO269: N/A | BP269: N/A | BQ269: N/A | BR269: N/A | BS269: N/A | BT269: N/A | BU269: N/A | BV269: N/A | BW269: N/A | BX269: N/A | BY269: N/A | BZ269: N/A | CA269: N/A | CB269: N/A
BB270: No materials used | BC270: N/A | BD270: N/A | BE270: N/A | BF270: N/A | BG270: N/A | BH270: N/A | BI270: N/A | BJ270: N/A | BK270: N/A | BL270: N/A | BM270: N/A | BN270: N/A | BO270: N/A | BP270: N/A | BQ270: N/A | BR270: N/A | BS270: N/A | BT270: N/A | BU270: N/A | BV270: N/A | BW270: N/A | BX270: N/A | BY270: N/A | BZ270: N/A | CA270: N/A | CB270: N/A
BA271: Awareness of menstruation before menarche | BB271: Yes | BC271: N/A | BD271: N/A | BE271: N/A | BF271: N/A | BG271: N/A | BH271: N/A | BI271: N/A | BJ271: N/A | BK271: N/A | BL271: N/A | BM271: N/A | BN271: N/A | BO271: N/A | BP271: N/A | BQ271: N/A | BR271: N/A | BS271: N/A | BT271: N/A | BU271: N/A | BV271: N/A | BW271: N/A | BX271: N/A | BY271: N/A | BZ271: N/A | CA271: N/A | CB271: N/A
BB272: No | BC272: N/A | BD272: N/A | BE272: N/A | BF272: N/A | BG272: N/A | BH272: N/A | BI272: N/A | BJ272: N/A | BK272: N/A | BL272: N/A | BM272: N/A | BN272: N/A | BO272: N/A | BP272: N/A | BQ272: N/A | BR272: N/A | BS272: N/A | BT272: N/A | BU272: N/A | BV272: N/A | BW272: N/A | BX272: N/A | BY272: N/A | BZ272: N/A | CA272: N/A | CB272: N/A
BB273: DK/not sure/missing | BC273: N/A | BD273: N/A | BE273: N/A | BF273: N/A | BG273: N/A | BH273: N/A | BI273: N/A | BJ273: N/A | BK273: N/A | BL273: N/A | BM273: N/A | BN273: N/A | BO273: N/A | BP273: N/A | BQ273: N/A | BR273: N/A | BS273: N/A | BT273: N/A | BU273: N/A | BV273: N/A | BW273: N/A | BX273: N/A | BY273: N/A | BZ273: N/A | CA273: N/A | CB273: N/A
BA274: Participation in (all) activities during menstruation | BB274: Yes | BC274: N/A | BD274: N/A | BE274: N/A | BF274: N/A | BG274: N/A | BH274: N/A | BI274: N/A | BJ274: N/A | BK274: N/A | BL274: N/A | BM274: N/A | BN274: N/A | BO274: N/A | BP274: N/A | BQ274: N/A | BR274: N/A | BS274: N/A | BT274: N/A | BU274: N/A | BV274: N/A | BW274: N/A | BX274: N/A | BY274: N/A | BZ274: N/A | CA274: N/A | CB274: N/A
BB275: No | BC275: N/A | BD275: N/A | BE275: N/A | BF275: N/A | BG275: N/A | BH275: N/A | BI275: N/A | BJ275: N/A | BK275: N/A | BL275: N/A | BM275: N/A | BN275: N/A | BO275: N/A | BP275: N/A | BQ275: N/A | BR275: N/A | BS275: N/A | BT275: N/A | BU275: N/A | BV275: N/A | BW275: N/A | BX275: N/A | BY275: N/A | BZ275: N/A | CA275: N/A | CB275: N/A
BB276: DK/not sure/missing/no such activity | BC276: N/A | BD276: N/A | BE276: N/A | BF276: N/A | BG276: N/A | BH276: N/A | BI276: N/A | BJ276: N/A | BK276: N/A | BL276: N/A | BM276: N/A | BN276: N/A | BO276: N/A | BP276: N/A | BQ276: N/A | BR276: N/A | BS276: N/A | BT276: N/A | BU276: N/A | BV276: N/A | BW276: N/A | BX276: N/A | BY276: N/A | BZ276: N/A | CA276: N/A | CB276: N/A
BA277: Participation in specific activities during menstruation | BB277: Did not go to school (amongst those usually attending school) | BC277: N/A | BD277: N/A | BE277: N/A | BF277: N/A | BG277: N/A | BH277: N/A | BI277: N/A | BJ277: N/A | BK277: N/A | BL277: N/A | BM277: N/A | BN277: N/A | BO277: N/A | BP277: N/A | BQ277: N/A | BR277: N/A | BS277: N/A | BT277: N/A | BU277: N/A | BV277: N/A | BW277: N/A | BX277: N/A | BY277: N/A | BZ277: N/A | CA277: N/A | CB277: N/A
BB278: Did not go to work (amongst those who usually work) | BC278: N/A | BD278: N/A | BE278: N/A | BF278: N/A | BG278: N/A | BH278: N/A | BI278: N/A | BJ278: N/A | BK278: N/A | BL278: N/A | BM278: N/A | BN278: N/A | BO278: N/A | BP278: N/A | BQ278: N/A | BR278: N/A | BS278: N/A | BT278: N/A | BU278: N/A | BV278: N/A | BW278: N/A | BX278: N/A | BY278: N/A | BZ278: N/A | CA278: N/A | CB278: N/A
BB279: Did not participate in social activities | BC279: N/A | BD279: N/A | BE279: N/A | BF279: N/A | BG279: N/A | BH279: N/A | BI279: N/A | BJ279: N/A | BK279: N/A | BL279: N/A | BM279: N/A | BN279: N/A | BO279: N/A | BP279: N/A | BQ279: N/A | BR279: N/A | BS279: N/A | BT279: N/A | BU279: N/A | BV279: N/A | BW279: N/A | BX279: N/A | BY279: N/A | BZ279: N/A | CA279: N/A | CB279: N/A
BB280: Did not cook food | BC280: N/A | BD280: N/A | BE280: N/A | BF280: N/A | BG280: N/A | BH280: N/A | BI280: N/A | BJ280: N/A | BK280: N/A | BL280: N/A | BM280: N/A | BN280: N/A | BO280: N/A | BP280: N/A | BQ280: N/A | BR280: N/A | BS280: N/A | BT280: N/A | BU280: N/A | BV280: N/A | BW280: N/A | BX280: N/A | BY280: N/A | BZ280: N/A | CA280: N/A | CB280: N/A
BB281: Did not eat with others | BC281: N/A | BD281: N/A | BE281: N/A | BF281: N/A | BG281: N/A | BH281: N/A | BI281: N/A | BJ281: N/A | BK281: N/A | BL281: N/A | BM281: N/A | BN281: N/A | BO281: N/A | BP281: N/A | BQ281: N/A | BR281: N/A | BS281: N/A | BT281: N/A | BU281: N/A | BV281: N/A | BW281: N/A | BX281: N/A | BY281: N/A | BZ281: N/A | CA281: N/A | CB281: N/A
BB282: Did not bathe in regular place | BC282: N/A | BD282: N/A | BE282: N/A | BF282: N/A | BG282: N/A | BH282: N/A | BI282: N/A | BJ282: N/A | BK282: N/A | BL282: N/A | BM282: N/A | BN282: N/A | BO282: N/A | BP282: N/A | BQ282: N/A | BR282: N/A | BS282: N/A | BT282: N/A | BU282: N/A | BV282: N/A | BW282: N/A | BX282: N/A | BY282: N/A | BZ282: N/A | CA282: N/A | CB282: N/A
BB283: Did not participate in other activities | BC283: N/A | BD283: N/A | BE283: N/A | BF283: N/A | BG283: N/A | BH283: N/A | BI283: N/A | BJ283: N/A | BK283: N/A | BL283: N/A | BM283: N/A | BN283: N/A | BO283: N/A | BP283: N/A | BQ283: N/A | BR283: N/A | BS283: N/A | BT283: N/A | BU283: N/A | BV283: N/A | BW283: N/A | BX283: N/A | BY283: N/A | BZ283: N/A | CA283: N/A | CB283: N/A
BB284: DK/not sure/missing/no such activity | BC284: N/A | BD284: N/A | BE284: N/A | BF284: N/A | BG284: N/A | BH284: N/A | BI284: N/A | BJ284: N/A | BK284: N/A | BL284: N/A | BM284: N/A | BN284: N/A | BO284: N/A | BP284: N/A | BQ284: N/A | BR284: N/A | BS284: N/A | BT284: N/A | BU284: N/A | BV284: N/A | BW284: N/A | BX284: N/A | BY284: N/A | BZ284: N/A | CA284: N/A | CB284: N/A
BA339: Raw numbers of respondents: | BB339: Basic water, sanitation and hygiene | BC339: NATIONAL wealth index quintile | BH339: URBAN wealth index quintile | BM339: RURAL wealth index quintile | BR339: SUB-REGIONS:
BA340: WatSan data, raw numbers (weighted) | BC340: Poorest | BD340: Poor | BE340: Middle | BF340: Rich | BG340: Richest | BH340: Poorest | BI340: Poor | BJ340: Middle | BK340: Rich | BL340: Richest | BM340: Poorest | BN340: Poor | BO340: Middle | BP340: Rich | BQ340: Richest | BR340: Adjara | BS340: Guria | BT340: Imereti | BU340: Kakheti | BV340: Kvemo Kartli | BW340: Mtskheta - Mtianeti | BX340: Racha - Lechkhumi and Kvemo Svaneti | BY340: Samegrelo and Zemo Svaneti | BZ340: Samtskhe - Javakheti | CA340: Shida Kartli | CB340: Tbilisi
BA341: Use of Basic Water Sanitation and Hygiene | BB341: Yes | BC341: N/A | BD341: N/A | BE341: N/A | BF341: N/A | BG341: N/A | BH341: N/A | BI341: N/A | BJ341: N/A | BK341: N/A | BL341: N/A | BM341: N/A | BN341: N/A | BO341: N/A | BP341: N/A | BQ341: N/A | BR341: N/A | BS341: N/A | BT341: N/A | BU341: N/A | BV341: N/A | BW341: N/A | BX341: N/A | BY341: N/A | BZ341: N/A | CA341: N/A | CB341: N/A
BB342: No | BC342: N/A | BD342: N/A | BE342: N/A | BF342: N/A | BG342: N/A | BH342: N/A | BI342: N/A | BJ342: N/A | BK342: N/A | BL342: N/A | BM342: N/A | BN342: N/A | BO342: N/A | BP342: N/A | BQ342: N/A | BR342: N/A | BS342: N/A | BT342: N/A | BU342: N/A | BV342: N/A | BW342: N/A | BX342: N/A | BY342: N/A | BZ342: N/A | CA342: N/A | CB342: N/A
BA343: Use of Basic Water and Sanitation | BB343: Yes | BC343: N/A | BD343: N/A | BE343: N/A | BF343: N/A | BG343: N/A | BH343: N/A | BI343: N/A | BJ343: N/A | BK343: N/A | BL343: N/A | BM343: N/A | BN343: N/A | BO343: N/A | BP343: N/A | BQ343: N/A | BR343: N/A | BS343: N/A | BT343: N/A | BU343: N/A | BV343: N/A | BW343: N/A | BX343: N/A | BY343: N/A | BZ343: N/A | CA343: N/A | CB343: N/A
BB344: No | BC344: N/A | BD344: N/A | BE344: N/A | BF344: N/A | BG344: N/A | BH344: N/A | BI344: N/A | BJ344: N/A | BK344: N/A | BL344: N/A | BM344: N/A | BN344: N/A | BO344: N/A | BP344: N/A | BQ344: N/A | BR344: N/A | BS344: N/A | BT344: N/A | BU344: N/A | BV344: N/A | BW344: N/A | BX344: N/A | BY344: N/A | BZ344: N/A | CA344: N/A | CB344: N/A
BA345: Use of Basic Water and Hygiene | BB345: Yes | BC345: N/A | BD345: N/A | BE345: N/A | BF345: N/A | BG345: N/A | BH345: N/A | BI345: N/A | BJ345: N/A | BK345: N/A | BL345: N/A | BM345: N/A | BN345: N/A | BO345: N/A | BP345: N/A | BQ345: N/A | BR345: N/A | BS345: N/A | BT345: N/A | BU345: N/A | BV345: N/A | BW345: N/A | BX345: N/A | BY345: N/A | BZ345: N/A | CA345: N/A | CB345: N/A
BB346: No | BC346: N/A | BD346: N/A | BE346: N/A | BF346: N/A | BG346: N/A | BH346: N/A | BI346: N/A | BJ346: N/A | BK346: N/A | BL346: N/A | BM346: N/A | BN346: N/A | BO346: N/A | BP346: N/A | BQ346: N/A | BR346: N/A | BS346: N/A | BT346: N/A | BU346: N/A | BV346: N/A | BW346: N/A | BX346: N/A | BY346: N/A | BZ346: N/A | CA346: N/A | CB346: N/A
BA347: Use of Basic Sanitation and Hygiene | BB347: Yes | BC347: N/A | BD347: N/A | BE347: N/A | BF347: N/A | BG347: N/A | BH347: N/A | BI347: N/A | BJ347: N/A | BK347: N/A | BL347: N/A | BM347: N/A | BN347: N/A | BO347: N/A | BP347: N/A | BQ347: N/A | BR347: N/A | BS347: N/A | BT347: N/A | BU347: N/A | BV347: N/A | BW347: N/A | BX347: N/A | BY347: N/A | BZ347: N/A | CA347: N/A | CB347: N/A
BB348: No | BC348: N/A | BD348: N/A | BE348: N/A | BF348: N/A | BG348: N/A | BH348: N/A | BI348: N/A | BJ348: N/A | BK348: N/A | BL348: N/A | BM348: N/A | BN348: N/A | BO348: N/A | BP348: N/A | BQ348: N/A | BR348: N/A | BS348: N/A | BT348: N/A | BU348: N/A | BV348: N/A | BW348: N/A | BX348: N/A | BY348: N/A | BZ348: N/A | CA348: N/A | CB348: N/A
BA349: Use of Basic Water | BB349: Yes | BC349: N/A | BD349: N/A | BE349: N/A | BF349: N/A | BG349: N/A | BH349: N/A | BI349: N/A | BJ349: N/A | BK349: N/A | BL349: N/A | BM349: N/A | BN349: N/A | BO349: N/A | BP349: N/A | BQ349: N/A | BR349: N/A | BS349: N/A | BT349: N/A | BU349: N/A | BV349: N/A | BW349: N/A | BX349: N/A | BY349: N/A | BZ349: N/A | CA349: N/A | CB349: N/A
BB350: No | BC350: N/A | BD350: N/A | BE350: N/A | BF350: N/A | BG350: N/A | BH350: N/A | BI350: N/A | BJ350: N/A | BK350: N/A | BL350: N/A | BM350: N/A | BN350: N/A | BO350: N/A | BP350: N/A | BQ350: N/A | BR350: N/A | BS350: N/A | BT350: N/A | BU350: N/A | BV350: N/A | BW350: N/A | BX350: N/A | BY350: N/A | BZ350: N/A | CA350: N/A | CB350: N/A
BA351: Use of Basic Sanitation | BB351: Yes | BC351: N/A | BD351: N/A | BE351: N/A | BF351: N/A | BG351: N/A | BH351: N/A | BI351: N/A | BJ351: N/A | BK351: N/A | BL351: N/A | BM351: N/A | BN351: N/A | BO351: N/A | BP351: N/A | BQ351: N/A | BR351: N/A | BS351: N/A | BT351: N/A | BU351: N/A | BV351: N/A | BW351: N/A | BX351: N/A | BY351: N/A | BZ351: N/A | CA351: N/A | CB351: N/A
BB352: No | BC352: N/A | BD352: N/A | BE352: N/A | BF352: N/A | BG352: N/A | BH352: N/A | BI352: N/A | BJ352: N/A | BK352: N/A | BL352: N/A | BM352: N/A | BN352: N/A | BO352: N/A | BP352: N/A | BQ352: N/A | BR352: N/A | BS352: N/A | BT352: N/A | BU352: N/A | BV352: N/A | BW352: N/A | BX352: N/A | BY352: N/A | BZ352: N/A | CA352: N/A | CB352: N/A
BA353: Access to Basic Hygiene | BB353: Yes | BC353: N/A | BD353: N/A | BE353: N/A | BF353: N/A | BG353: N/A | BH353: N/A | BI353: N/A | BJ353: N/A | BK353: N/A | BL353: N/A | BM353: N/A | BN353: N/A | BO353: N/A | BP353: N/A | BQ353: N/A | BR353: N/A | BS353: N/A | BT353: N/A | BU353: N/A | BV353: N/A | BW353: N/A | BX353: N/A | BY353: N/A | BZ353: N/A | CA353: N/A | CB353: N/A
BB354: No | BC354: N/A | BD354: N/A | BE354: N/A | BF354: N/A | BG354: N/A | BH354: N/A | BI354: N/A | BJ354: N/A | BK354: N/A | BL354: N/A | BM354: N/A | BN354: N/A | BO354: N/A | BP354: N/A | BQ354: N/A | BR354: N/A | BS354: N/A | BT354: N/A | BU354: N/A | BV354: N/A | BW354: N/A | BX354: N/A | BY354: N/A | BZ354: N/A | CA354: N/A | CB354: N/A
C399: INITIAL (national) Wealth Index | H399: URBAN Wealth Index | M399: RURAL Wealth Index
C400: Component Matrix | H400: Component Matrix | M400: Component Matrix
E401: Component | J401: Component | O401: Component
B402: Note: The INITIAL (national) Wealth Index is based on the first component of the Principal Component Analysis (PCA) which has been obtained at national level. The final national-level (NATIONAL) Wealth Index is based on the URBAN and RURAL specific wealth indexes. Regression procedures are used to establish the relationships between the two sets of scores (urban and rural) and the initial (national) wealth factors. This allows best use of the available information for each area and a better precision of the FINAL (NATIONAL) Wealth Index. For dependency reasons, all WASH variables (contained in the generic MICS and DHS scripts) have been excluded from the sets of asset variables used in the PCAs. The PCA can extracts as many components as there are asset variables in the input. Only the first of the components is used to represent the Wealth Index. The scores represent the weights of the asset variables on the Wealth Index (correlations between the variables and the component). The communalities are the proportion of each variable's variance that can be explained by the component. Proportion of explained variance is the part of the model's total variance that is explained by the component. For more information on the procedure used: The DHS Wealth Index, DHS Comparative Reports No. 6, Shea Oscar Rutstein, Kiersten Johnson, ORC Macro International Inc., 2004. The DHS Wealth Index: Approaches for Rural and Urban Areas, Shea O. Rutstein, ORC Macro International Inc., 2008. MICS Methodological Paper No. 4, Review of options for reporting water, sanitation and hygiene coverage by wealth quintile, UNICEF, 2016. | E402: 1 | J402: 1 | O402: 1
C403: Household has chimney | E403: -0.8334266518 | H403: fuel8 | J403: -0.7799794354 | M403: Household has chimney | O403: -0.8537333971
C404: fuel8 | E404: -0.8236634781 | H404: Household has chimney | J404: -0.7760011543 | M404: fuel8 | O404: -0.7645759175
C405: floor7 | E405: 0.7001432824 | H405: floor7 | J405: 0.6803491366 | M405: chimney | O405: 0.6407484769
C406: fuel3 | E406: 0.6711228897 | H406: floor4 | J406: -0.6647115085 | M406: fuel2 | O406: 0.6120581886
C407: floor4 | E407: -0.6403464709 | H407: fuel3 | J407: 0.6346283919 | M407: Household member owns: asset2d | O407: 0.4080836021
C408: Household member owns: asset2e | E408: 0.6365992313 | H408: Household member owns: asset2e | J408: 0.4995058438 | M408: floor7 | O408: 0.4054171231
C409: roof11 | E409: 0.5399853639 | H409: Household member owns: asset2f | J409: 0.4929385812 | M409: fuel3 | O409: 0.396211851
C410: Household member owns: asset2f | E410: 0.5330750525 | H410: roof11 | J410: 0.4746028094 | M410: Household member owns: asset2f | O410: 0.3872639669
C411: chimney | E411: 0.5164697857 | H411: Household member owns: asset2d | J411: 0.445356557 | M411: floor4 | O411: -0.3393549018
C412: Household member owns: asset2d | E412: 0.4766151122 | H412: chimney | J412: 0.426262173 | M412: Household member owns: asset2q | O412: 0.3376920837
C413: roof9 | E413: -0.3759893167 | H413: roof9 | J413: -0.4003790021 | M413: Household cooks on open owen | O413: 0.2785350981
... 235 more rows

Sheet WMS13
A2: =A1026 -> Georgia
A3: =A1034 -> 2013
A4: Use of drinking water sources
A5: by wealth quintile and sub-national region
A6: Notes:
A7: WHO/UNICEF JMP customised wealth index excludes water,
A8: sanitation and hygiene assets.
A9: Survey used for analysis: | B9: =A1025 -> WMS13
A10: =B1028 -> 
A11: =B1027 -> 
A14: Use of drinking water sources | C14: NATIONAL wealth index quintile | H14: URBAN wealth index quintile | M14: RURAL wealth index quintile | R14: SUB-REGIONS: | BA14: Raw numbers of respondents: | BB14: Use of drinking water sources | BC14: NATIONAL wealth index quintile | BH14: URBAN wealth index quintile | BM14: RURAL wealth index quintile | BR14: SUB-REGIONS:
A15: Weighted percentage (used in graphs) | C15: Poorest | D15: Poor | E15: Middle | F15: Rich | G15: Richest | H15: Poorest | I15: Poor | J15: Middle | K15: Rich | L15: Richest | M15: Poorest | N15: Poor | O15: Middle | P15: Rich | Q15: Richest | R15: Achara | S15: Guria | T15: ImereTi, Racha | U15: Kakheti | V15: Mtskheta-mtianeti | W15: Qvemo qartli | X15: Samegrelo | Y15: Samtskhe-javakheti | Z15: Sida qartli | AA15: Tbilisi | BA15: Water data, raw numbers (weighted) | BC15: Poorest | BD15: Poor | BE15: Middle | BF15: Rich | BG15: Richest | BH15: Poorest | BI15: Poor | BJ15: Middle | BK15: Rich | BL15: Richest | BM15: Poorest | BN15: Poor | BO15: Middle | BP15: Rich | BQ15: Richest | BR15: Achara | BS15: Guria | BT15: ImereTi, Racha | BU15: Kakheti | BV15: Mtskheta-mtianeti | BW15: Qvemo qartli | BX15: Samegrelo | BY15: Samtskhe-javakheti | BZ15: Sida qartli | CA15: Tbilisi
A16: Water | B16: Improved | C16: 96.27637455 | D16: 98.0107994 | E16: 98.49657302 | F16: 99.87112886 | G16: 99.89671847 | H16: 99.79102224 | I16: 99.74760687 | J16: 100 | K16: 99.79941214 | L16: 100 | M16: 94.978784 | N16: 96.53907051 | O16: 97.6761703 | P16: 97.94340206 | Q16: 98.29333241 | R16: 100 | S16: 96.86408782 | T16: 96.18667975 | U16: 99.7887236 | V16: 91.60330693 | W16: 98.85891794 | X16: 97.34836793 | Y16: 100 | Z16: 98.38880189 | AA16: 100 | BA16: Water | BB16: Improved | BC16: N/A | BD16: N/A | BE16: N/A | BF16: N/A | BG16: N/A | BH16: N/A | BI16: N/A | BJ16: N/A | BK16: N/A | BL16: N/A | BM16: N/A | BN16: N/A | BO16: N/A | BP16: N/A | BQ16: N/A | BR16: N/A | BS16: N/A | BT16: N/A | BU16: N/A | BV16: N/A | BW16: N/A | BX16: N/A | BY16: N/A | BZ16: N/A | CA16: N/A
B17: Not Improved | C17: 3.723625451 | D17: 1.989200596 | E17: 1.50342698 | F17: 0.1288711366 | G17: 0.1032815334 | H17: 0.2089777621 | I17: 0.2523931348 | J17: 0 | K17: 0.200587857 | L17: 0 | M17: 5.021216004 | N17: 3.460929487 | O17: 2.323829696 | P17: 2.056597942 | Q17: 1.706667588 | R17: 0 | S17: 3.135912183 | T17: 3.813320253 | U17: 0.2112763959 | V17: 8.396693069 | W17: 1.141082059 | X17: 2.65163207 | Y17: 0 | Z17: 1.611198114 | AA17: 0 | BB17: Not Improved | BC17: N/A | BD17: N/A | BE17: N/A | BF17: N/A | BG17: N/A | BH17: N/A | BI17: N/A | BJ17: N/A | BK17: N/A | BL17: N/A | BM17: N/A | BN17: N/A | BO17: N/A | BP17: N/A | BQ17: N/A | BR17: N/A | BS17: N/A | BT17: N/A | BU17: N/A | BV17: N/A | BW17: N/A | BX17: N/A | BY17: N/A | BZ17: N/A | CA17: N/A
A18: Water ladder | B18: Basic | C18: =C16*C23/100 -> 93.40686626 | D18: =D16*D23/100 -> 96.24420769 | E18: =E16*E23/100 -> 97.88250508 | F18: 99.87112886 | G18: 99.89671847 | H18: 99.08085979 | I18: 99.74760687 | J18: 100 | K18: 99.79941214 | L18: 100 | M18: 92.25702569 | N18: 93.6099863 | O18: 94.93849833 | P18: 97.39499708 | Q18: 97.21714695 | R18: 99.46545992 | S18: 96.69238451 | T18: 96.01656171 | U18: 98.56329338 | V18: 90.68625901 | W18: 91.91099357 | X18: 96.32725269 | Y18: 100 | Z18: 97.64461069 | AA18: 100 | BA18: Water ladder | BB18: Basic | BC18: N/A | BD18: N/A | BE18: N/A | BF18: N/A | BG18: N/A | BH18: N/A | BI18: N/A | BJ18: N/A | BK18: N/A | BL18: N/A | BM18: N/A | BN18: N/A | BO18: N/A | BP18: N/A | BQ18: N/A | BR18: N/A | BS18: N/A | BT18: N/A | BU18: N/A | BV18: N/A | BW18: N/A | BX18: N/A | BY18: N/A | BZ18: N/A | CA18: N/A
B19: Limited | C19: =C16*C22/100 -> 2.869508289 | D19: =D16*D22/100 -> 1.766591712 | E19: =E16*E22/100 -> 0.6140679365 | F19: 0 | G19: 0 | H19: 0.7101624443 | I19: 0 | J19: 0 | K19: 0 | L19: 0 | M19: 2.721758308 | N19: 2.929084215 | O19: 2.73767197 | P19: 0.5484049771 | Q19: 1.076185459 | R19: 0.5345400764 | S19: 0.1717033095 | T19: 0.1701180399 | U19: 1.225430221 | V19: 0.9170479195 | W19: 6.947924369 | X19: 1.02111524 | Y19: 0 | Z19: 0.7441911937 | AA19: 0 | BB19: Limited | BC19: N/A | BD19: N/A | BE19: N/A | BF19: N/A | BG19: N/A | BH19: N/A | BI19: N/A | BJ19: N/A | BK19: N/A | BL19: N/A | BM19: N/A | BN19: N/A | BO19: N/A | BP19: N/A | BQ19: N/A | BR19: N/A | BS19: N/A | BT19: N/A | BU19: N/A | BV19: N/A | BW19: N/A | BX19: N/A | BY19: N/A | BZ19: N/A | CA19: N/A
B20: Unimproved | C20: =100-C18-C19-C21 -> 3.272188684 | D20: =100-D18-D19-D21 -> 1.989200596 | E20: =100-E18-E19-E21 -> 1.50342698 | F20: 0.1288711366 | G20: 0.1032815334 | H20: 0.2089777621 | I20: 0.2523931348 | J20: 0 | K20: 0.200587857 | L20: 0 | M20: 4.724118327 | N20: 2.831238134 | O20: 2.323829696 | P20: 2.056597942 | Q20: 1.706667588 | R20: 2.109423747e-15 | S20: 3.135912183 | T20: 3.33280857 | U20: 0.2112763959 | V20: 8.396693069 | W20: 1.141082059 | X20: 2.65163207 | Y20: 0 | Z20: 1.611198114 | AA20: 0 | BB20: Unimproved | BC20: N/A | BD20: N/A | BE20: N/A | BF20: N/A | BG20: N/A | BH20: N/A | BI20: N/A | BJ20: N/A | BK20: N/A | BL20: N/A | BM20: N/A | BN20: N/A | BO20: N/A | BP20: N/A | BQ20: N/A | BR20: N/A | BS20: N/A | BT20: N/A | BU20: N/A | BV20: N/A | BW20: N/A | BX20: N/A | BY20: N/A | BZ20: N/A | CA20: N/A
B21: Surface water | C21: 0.4514367674 | D21: 0 | E21: 0 | F21: 0 | G21: 0 | H21: 0 | I21: 0 | J21: 0 | K21: 0 | L21: 0 | M21: 0.2970976772 | N21: 0.6296913529 | O21: 0 | P21: 0 | Q21: 0 | R21: 0 | S21: 0 | T21: 0.4805116838 | U21: 0 | V21: 0 | W21: 0 | X21: 0 | Y21: 0 | Z21: 0 | AA21: 0 | BB21: Surface water | BC21: N/A | BD21: N/A | BE21: N/A | BF21: N/A | BG21: N/A | BH21: N/A | BI21: N/A | BJ21: N/A | BK21: N/A | BL21: N/A | BM21: N/A | BN21: N/A | BO21: N/A | BP21: N/A | BQ21: N/A | BR21: N/A | BS21: N/A | BT21: N/A | BU21: N/A | BV21: N/A | BW21: N/A | BX21: N/A | BY21: N/A | BZ21: N/A | CA21: N/A
A22: Improved water point at more than 30 minutes | B22: Yes | C22: 2.980490595 | D22: 1.802445978 | E22: 0.6234409154 | F22: 0 | G22: 0 | H22: 0.7116496338 | I22: 0 | J22: 0 | K22: 0 | L22: 0 | M22: 2.86564872 | N22: 3.034091999 | O22: 2.802804371 | P22: 0.5599202861 | Q22: 1.094871272 | R22: 0.5345400764 | S22: 0.177262093 | T22: 0.1768623684 | U22: 1.228024748 | V22: 1.001107875 | W22: 7.028120997 | X22: 1.048928977 | Y22: 0 | Z22: 0.7563779408 | AA22: 0 | BA22: Improved water point at more than 30 minutes | BB22: Yes | BC22: N/A | BD22: N/A | BE22: N/A | BF22: N/A | BG22: N/A | BH22: N/A | BI22: N/A | BJ22: N/A | BK22: N/A | BL22: N/A | BM22: N/A | BN22: N/A | BO22: N/A | BP22: N/A | BQ22: N/A | BR22: N/A | BS22: N/A | BT22: N/A | BU22: N/A | BV22: N/A | BW22: N/A | BX22: N/A | BY22: N/A | BZ22: N/A | CA22: N/A
B23: No | C23: 97.0195094 | D23: 98.19755402 | E23: 99.37655908 | F23: 100 | G23: 100 | H23: 99.28835037 | I23: 100 | J23: 100 | K23: 100 | L23: 100 | M23: 97.13435128 | N23: 96.965908 | O23: 97.19719563 | P23: 99.44007971 | Q23: 98.90512873 | R23: 99.46545992 | S23: 99.82273791 | T23: 99.82313763 | U23: 98.77197525 | V23: 98.99889212 | W23: 92.971879 | X23: 98.95107102 | Y23: 100 | Z23: 99.24362206 | AA23: 100 | BB23: No | BC23: N/A | BD23: N/A | BE23: N/A | BF23: N/A | BG23: N/A | BH23: N/A | BI23: N/A | BJ23: N/A | BK23: N/A | BL23: N/A | BM23: N/A | BN23: N/A | BO23: N/A | BP23: N/A | BQ23: N/A | BR23: N/A | BS23: N/A | BT23: N/A | BU23: N/A | BV23: N/A | BW23: N/A | BX23: N/A | BY23: N/A | BZ23: N/A | CA23: N/A
A24: Manually calculated ratios | B24: Improved wells
B25: Improved springs
B26: Other
C27: NATIONAL wealth index quintile | H27: URBAN wealth index quintile | M27: RURAL wealth index quintile | R27: SUB-REGIONS: | BA27: Raw numbers of respondents: | BB27: Use of drinking water sources | BC27: NATIONAL wealth index quintile | BH27: URBAN wealth index quintile | BM27: RURAL wealth index quintile | BR27: SUB-REGIONS:
A28: Percentage based on weighted population | C28: Poorest | D28: Poor | E28: Middle | F28: Rich | G28: Richest | H28: Poorest | I28: Poor | J28: Middle | K28: Rich | L28: Richest | M28: Poorest | N28: Poor | O28: Middle | P28: Rich | Q28: Richest | R28: Achara | S28: Guria | T28: ImereTi, Racha | U28: Kakheti | V28: Mtskheta-mtianeti | W28: Qvemo qartli | X28: Samegrelo | Y28: Samtskhe-javakheti | Z28: Sida qartli | AA28: Tbilisi | BA28: Water data, raw numbers (weighted) | BC28: Poorest | BD28: Poor | BE28: Middle | BF28: Rich | BG28: Richest | BH28: Poorest | BI28: Poor | BJ28: Middle | BK28: Rich | BL28: Richest | BM28: Poorest | BN28: Poor | BO28: Middle | BP28: Rich | BQ28: Richest | BR28: Achara | BS28: Guria | BT28: ImereTi, Racha | BU28: Kakheti | BV28: Mtskheta-mtianeti | BW28: Qvemo qartli | BX28: Samegrelo | BY28: Samtskhe-javakheti | BZ28: Sida qartli | CA28: Tbilisi
A29: Piped water | B29: Yes | C29: 58.5975044 | D29: 61.54012456 | E29: 77.65352452 | F29: 93.81373708 | G29: 99.77740024 | H29: 71.26108248 | I29: 91.92882591 | J29: 99.032809 | K29: 99.56767868 | L29: 100 | M29: 58.21681037 | N29: 60.93077748 | O29: 63.1110828 | P29: 61.12322669 | Q29: 74.1297905 | R29: 94.70450267 | S29: 50.58620919 | T29: 58.06104698 | U29: 92.68972559 | V29: 72.05422853 | W29: 78.82287758 | X29: 31.63835733 | Y29: 98.35221277 | Z29: 69.03262912 | AA29: 100 | BA29: Piped water | BB29: Yes | BC29: N/A | BD29: N/A | BE29: N/A | BF29: N/A | BG29: N/A | BH29: N/A | BI29: N/A | BJ29: N/A | BK29: N/A | BL29: N/A | BM29: N/A | BN29: N/A | BO29: N/A | BP29: N/A | BQ29: N/A | BR29: N/A | BS29: N/A | BT29: N/A | BU29: N/A | BV29: N/A | BW29: N/A | BX29: N/A | BY29: N/A | BZ29: N/A | CA29: N/A
B30: No | C30: 41.4024956 | D30: 38.45987544 | E30: 22.34647548 | F30: 6.186262921 | G30: 0.2225997585 | H30: 28.73891752 | I30: 8.071174085 | J30: 0.9671910007 | K30: 0.4323213168 | L30: 0 | M30: 41.78318963 | N30: 39.06922252 | O30: 36.8889172 | P30: 38.87677331 | Q30: 25.8702095 | R30: 5.295497329 | S30: 49.41379081 | T30: 41.93895302 | U30: 7.310274406 | V30: 27.94577147 | W30: 21.17712242 | X30: 68.36164267 | Y30: 1.647787235 | Z30: 30.96737088 | AA30: 0 | BB30: No | BC30: N/A | BD30: N/A | BE30: N/A | BF30: N/A | BG30: N/A | BH30: N/A | BI30: N/A | BJ30: N/A | BK30: N/A | BL30: N/A | BM30: N/A | BN30: N/A | BO30: N/A | BP30: N/A | BQ30: N/A | BR30: N/A | BS30: N/A | BT30: N/A | BU30: N/A | BV30: N/A | BW30: N/A | BX30: N/A | BY30: N/A | BZ30: N/A | CA30: N/A
A31: Piped water on premises | B31: Yes | C31: 45.02363573 | D31: 53.57111723 | E31: 74.12395949 | F31: 93.29254756 | G31: 99.77740024 | H31: 70.29951146 | I31: 91.27530741 | J31: 98.7868922 | K31: 99.56767868 | L31: 100 | M31: 43.01278802 | N31: 47.33096237 | O31: 53.18407558 | P31: 55.44184266 | Q31: 68.03939928 | R31: 93.32997105 | S31: 44.19737258 | T31: 54.56428068 | U31: 79.37436358 | V31: 63.30512744 | W31: 65.26602092 | X31: 29.76353815 | Y31: 87.51862038 | Z31: 58.02594041 | AA31: 100 | BA31: Piped water on premises | BB31: Yes | BC31: N/A | BD31: N/A | BE31: N/A | BF31: N/A | BG31: N/A | BH31: N/A | BI31: N/A | BJ31: N/A | BK31: N/A | BL31: N/A | BM31: N/A | BN31: N/A | BO31: N/A | BP31: N/A | BQ31: N/A | BR31: N/A | BS31: N/A | BT31: N/A | BU31: N/A | BV31: N/A | BW31: N/A | BX31: N/A | BY31: N/A | BZ31: N/A | CA31: N/A
B32: No | C32: 54.97636427 | D32: 46.42888277 | E32: 25.87604051 | F32: 6.707452444 | G32: 0.2225997585 | H32: 29.70048854 | I32: 8.724692592 | J32: 1.213107802 | K32: 0.4323213168 | L32: 0 | M32: 56.98721198 | N32: 52.66903763 | O32: 46.81592442 | P32: 44.55815734 | Q32: 31.96060072 | R32: 6.670028954 | S32: 55.80262742 | T32: 45.43571932 | U32: 20.62563642 | V32: 36.69487256 | W32: 34.73397908 | X32: 70.23646185 | Y32: 12.48137962 | Z32: 41.97405959 | AA32: 0 | BB32: No | BC32: N/A | BD32: N/A | BE32: N/A | BF32: N/A | BG32: N/A | BH32: N/A | BI32: N/A | BJ32: N/A | BK32: N/A | BL32: N/A | BM32: N/A | BN32: N/A | BO32: N/A | BP32: N/A | BQ32: N/A | BR32: N/A | BS32: N/A | BT32: N/A | BU32: N/A | BV32: N/A | BW32: N/A | BX32: N/A | BY32: N/A | BZ32: N/A | CA32: N/A
A33: Piped water into dwelling | B33: Yes | C33: N/A | D33: N/A | E33: N/A | F33: N/A | G33: N/A | H33: N/A | I33: N/A | J33: N/A | K33: N/A | L33: N/A | M33: N/A | N33: N/A | O33: N/A | P33: N/A | Q33: N/A | R33: N/A | S33: N/A | T33: N/A | U33: N/A | V33: N/A | W33: N/A | X33: N/A | Y33: N/A | Z33: N/A | AA33: N/A | BA33: Piped water into dwelling | BB33: Yes | BC33: N/A | BD33: N/A | BE33: N/A | BF33: N/A | BG33: N/A | BH33: N/A | BI33: N/A | BJ33: N/A | BK33: N/A | BL33: N/A | BM33: N/A | BN33: N/A | BO33: N/A | BP33: N/A | BQ33: N/A | BR33: N/A | BS33: N/A | BT33: N/A | BU33: N/A | BV33: N/A | BW33: N/A | BX33: N/A | BY33: N/A | BZ33: N/A | CA33: N/A
B34: No | C34: N/A | D34: N/A | E34: N/A | F34: N/A | G34: N/A | H34: N/A | I34: N/A | J34: N/A | K34: N/A | L34: N/A | M34: N/A | N34: N/A | O34: N/A | P34: N/A | Q34: N/A | R34: N/A | S34: N/A | T34: N/A | U34: N/A | V34: N/A | W34: N/A | X34: N/A | Y34: N/A | Z34: N/A | AA34: N/A | BB34: No | BC34: N/A | BD34: N/A | BE34: N/A | BF34: N/A | BG34: N/A | BH34: N/A | BI34: N/A | BJ34: N/A | BK34: N/A | BL34: N/A | BM34: N/A | BN34: N/A | BO34: N/A | BP34: N/A | BQ34: N/A | BR34: N/A | BS34: N/A | BT34: N/A | BU34: N/A | BV34: N/A | BW34: N/A | BX34: N/A | BY34: N/A | BZ34: N/A | CA34: N/A
A35: Water source on premises | B35: Yes | C35: 52.26125984 | D35: 62.36184766 | E35: 85.22375041 | F35: 97.72982114 | G35: 100 | H35: 83.62009961 | I35: 96.69634028 | J35: 99.7540832 | K35: 100 | L35: 100 | M35: 50.28392601 | N35: 52.02382832 | O35: 59.83879923 | P35: 68.36768278 | Q35: 80.49741235 | R35: 96.48768062 | S35: 61.69172069 | T35: 63.31450368 | U35: 79.60396113 | V35: 64.25840773 | W35: 70.247971 | X35: 57.53333881 | Y35: 87.51862038 | Z35: 70.11961008 | AA35: 100 | BA35: Water source on premises | BB35: Yes | BC35: N/A | BD35: N/A | BE35: N/A | BF35: N/A | BG35: N/A | BH35: N/A | BI35: N/A | BJ35: N/A | BK35: N/A | BL35: N/A | BM35: N/A | BN35: N/A | BO35: N/A | BP35: N/A | BQ35: N/A | BR35: N/A | BS35: N/A | BT35: N/A | BU35: N/A | BV35: N/A | BW35: N/A | BX35: N/A | BY35: N/A | BZ35: N/A | CA35: N/A
B36: No | C36: 47.73874016 | D36: 37.63815234 | E36: 14.77624959 | F36: 2.270178862 | G36: 0 | H36: 16.37990039 | I36: 3.303659718 | J36: 0.2459168015 | K36: 0 | L36: 0 | M36: 49.71607399 | N36: 47.97617168 | O36: 40.16120077 | P36: 31.63231722 | Q36: 19.50258765 | R36: 3.512319382 | S36: 38.30827931 | T36: 36.68549632 | U36: 20.39603887 | V36: 35.74159227 | W36: 29.752029 | X36: 42.46666119 | Y36: 12.48137962 | Z36: 29.88038992 | AA36: 0 | BB36: No | BC36: N/A | BD36: N/A | BE36: N/A | BF36: N/A | BG36: N/A | BH36: N/A | BI36: N/A | BJ36: N/A | BK36: N/A | BL36: N/A | BM36: N/A | BN36: N/A | BO36: N/A | BP36: N/A | BQ36: N/A | BR36: N/A | BS36: N/A | BT36: N/A | BU36: N/A | BV36: N/A | BW36: N/A | BX36: N/A | BY36: N/A | BZ36: N/A | CA36: N/A
A37: Improved Water source on premises | B37: Yes | C37: 54.2272686 | D37: 63.44594392 | E37: 85.92544969 | F37: 97.72689176 | G37: 100 | H37: 83.79521297 | I37: 96.68798097 | J37: 99.7540832 | K37: 100 | L37: 100 | M37: 52.94227183 | N37: 53.77561995 | O37: 60.88999839 | P37: 69.80325508 | Q37: 80.66582151 | R37: 96.48768062 | S37: 61.44782997 | T37: 65.079497 | U37: 79.7725016 | V37: 70.14856765 | W37: 71.05881034 | X37: 59.10046571 | Y37: 87.51862038 | Z37: 71.09177201 | AA37: 100 | BA37: Improved water source on premises | BB37: Yes | BC37: N/A | BD37: N/A | BE37: N/A | BF37: N/A | BG37: N/A | BH37: N/A | BI37: N/A | BJ37: N/A | BK37: N/A | BL37: N/A | BM37: N/A | BN37: N/A | BO37: N/A | BP37: N/A | BQ37: N/A | BR37: N/A | BS37: N/A | BT37: N/A | BU37: N/A | BV37: N/A | BW37: N/A | BX37: N/A | BY37: N/A | BZ37: N/A | CA37: N/A
B38: No | C38: 45.7727314 | D38: 36.55405608 | E38: 14.07455031 | F38: 2.273108242 | G38: 0 | H38: 16.20478703 | I38: 3.312019026 | J38: 0.2459168015 | K38: 0 | L38: 0 | M38: 47.05772817 | N38: 46.22438005 | O38: 39.11000161 | P38: 30.19674492 | Q38: 19.33417849 | R38: 3.512319382 | S38: 38.55217003 | T38: 34.920503 | U38: 20.2274984 | V38: 29.85143235 | W38: 28.94118966 | X38: 40.89953429 | Y38: 12.48137962 | Z38: 28.90822799 | AA38: 0 | BB38: No | BC38: N/A | BD38: N/A | BE38: N/A | BF38: N/A | BG38: N/A | BH38: N/A | BI38: N/A | BJ38: N/A | BK38: N/A | BL38: N/A | BM38: N/A | BN38: N/A | BO38: N/A | BP38: N/A | BQ38: N/A | BR38: N/A | BS38: N/A | BT38: N/A | BU38: N/A | BV38: N/A | BW38: N/A | BX38: N/A | BY38: N/A | BZ38: N/A | CA38: N/A
A39: Piped water on premises available when needed | B39: Yes | C39: N/A | D39: N/A | E39: N/A | F39: N/A | G39: N/A | H39: N/A | I39: N/A | J39: N/A | K39: N/A | L39: N/A | M39: N/A | N39: N/A | O39: N/A | P39: N/A | Q39: N/A | R39: N/A | S39: N/A | T39: N/A | U39: N/A | V39: N/A | W39: N/A | X39: N/A | Y39: N/A | Z39: N/A | AA39: N/A | BA39: Piped water on premises available when needed | BB39: Yes | BC39: N/A | BD39: N/A | BE39: N/A | BF39: N/A | BG39: N/A | BH39: N/A | BI39: N/A | BJ39: N/A | BK39: N/A | BL39: N/A | BM39: N/A | BN39: N/A | BO39: N/A | BP39: N/A | BQ39: N/A | BR39: N/A | BS39: N/A | BT39: N/A | BU39: N/A | BV39: N/A | BW39: N/A | BX39: N/A | BY39: N/A | BZ39: N/A | CA39: N/A
B40: No | C40: N/A | D40: N/A | E40: N/A | F40: N/A | G40: N/A | H40: N/A | I40: N/A | J40: N/A | K40: N/A | L40: N/A | M40: N/A | N40: N/A | O40: N/A | P40: N/A | Q40: N/A | R40: N/A | S40: N/A | T40: N/A | U40: N/A | V40: N/A | W40: N/A | X40: N/A | Y40: N/A | Z40: N/A | AA40: N/A | BB40: No | BC40: N/A | BD40: N/A | BE40: N/A | BF40: N/A | BG40: N/A | BH40: N/A | BI40: N/A | BJ40: N/A | BK40: N/A | BL40: N/A | BM40: N/A | BN40: N/A | BO40: N/A | BP40: N/A | BQ40: N/A | BR40: N/A | BS40: N/A | BT40: N/A | BU40: N/A | BV40: N/A | BW40: N/A | BX40: N/A | BY40: N/A | BZ40: N/A | CA40: N/A
A41: Water point at more than 30 minutes | B41: Yes | C41: 3.212225024 | D41: 1.766591712 | E41: 0.6140679365 | F41: 0 | G41: 0 | H41: 0.7101624443 | I41: 0 | J41: 0 | K41: 0 | L41: 0 | M41: 3.423952819 | N41: 2.929084215 | O41: 2.73767197 | P41: 0.5484049771 | Q41: 1.076185459 | R41: 0.5345400764 | S41: 0.1717033095 | T41: 0.324460054 | U41: 1.225430221 | V41: 0.9170479195 | W41: 7.105037829 | X41: 1.099125158 | Y41: 0 | Z41: 1.014314829 | AA41: 0 | BA41: Water point at more than 30 minutes | BB41: Yes | BC41: N/A | BD41: N/A | BE41: N/A | BF41: N/A | BG41: N/A | BH41: N/A | BI41: N/A | BJ41: N/A | BK41: N/A | BL41: N/A | BM41: N/A | BN41: N/A | BO41: N/A | BP41: N/A | BQ41: N/A | BR41: N/A | BS41: N/A | BT41: N/A | BU41: N/A | BV41: N/A | BW41: N/A | BX41: N/A | BY41: N/A | BZ41: N/A | CA41: N/A
B42: No | C42: 96.78777498 | D42: 98.23340829 | E42: 99.38593206 | F42: 100 | G42: 100 | H42: 99.28983756 | I42: 100 | J42: 100 | K42: 100 | L42: 100 | M42: 96.57604718 | N42: 97.07091579 | O42: 97.26232803 | P42: 99.45159502 | Q42: 98.92381454 | R42: 99.46545992 | S42: 99.82829669 | T42: 99.67553995 | U42: 98.77456978 | V42: 99.08295208 | W42: 92.89496217 | X42: 98.90087484 | Y42: 100 | Z42: 98.98568517 | AA42: 100 | BB42: No | BC42: N/A | BD42: N/A | BE42: N/A | BF42: N/A | BG42: N/A | BH42: N/A | BI42: N/A | BJ42: N/A | BK42: N/A | BL42: N/A | BM42: N/A | BN42: N/A | BO42: N/A | BP42: N/A | BQ42: N/A | BR42: N/A | BS42: N/A | BT42: N/A | BU42: N/A | BV42: N/A | BW42: N/A | BX42: N/A | BY42: N/A | BZ42: N/A | CA42: N/A
A43: Water source available when needed | B43: Yes | C43: N/A | D43: N/A | E43: N/A | F43: N/A | G43: N/A | H43: N/A | I43: N/A | J43: N/A | K43: N/A | L43: N/A | M43: N/A | N43: N/A | O43: N/A | P43: N/A | Q43: N/A | R43: N/A | S43: N/A | T43: N/A | U43: N/A | V43: N/A | W43: N/A | X43: N/A | Y43: N/A | Z43: N/A | AA43: N/A | BA43: Water source available when needed | BB43: Yes | BC43: N/A | BD43: N/A | BE43: N/A | BF43: N/A | BG43: N/A | BH43: N/A | BI43: N/A | BJ43: N/A | BK43: N/A | BL43: N/A | BM43: N/A | BN43: N/A | BO43: N/A | BP43: N/A | BQ43: N/A | BR43: N/A | BS43: N/A | BT43: N/A | BU43: N/A | BV43: N/A | BW43: N/A | BX43: N/A | BY43: N/A | BZ43: N/A | CA43: N/A
B44: No | C44: N/A | D44: N/A | E44: N/A | F44: N/A | G44: N/A | H44: N/A | I44: N/A | J44: N/A | K44: N/A | L44: N/A | M44: N/A | N44: N/A | O44: N/A | P44: N/A | Q44: N/A | R44: N/A | S44: N/A | T44: N/A | U44: N/A | V44: N/A | W44: N/A | X44: N/A | Y44: N/A | Z44: N/A | AA44: N/A | BB44: No | BC44: N/A | BD44: N/A | BE44: N/A | BF44: N/A | BG44: N/A | BH44: N/A | BI44: N/A | BJ44: N/A | BK44: N/A | BL44: N/A | BM44: N/A | BN44: N/A | BO44: N/A | BP44: N/A | BQ44: N/A | BR44: N/A | BS44: N/A | BT44: N/A | BU44: N/A | BV44: N/A | BW44: N/A | BX44: N/A | BY44: N/A | BZ44: N/A | CA44: N/A
A45: Improved water source available when needed | B45: Yes | C45: N/A | D45: N/A | E45: N/A | F45: N/A | G45: N/A | H45: N/A | I45: N/A | J45: N/A | K45: N/A | L45: N/A | M45: N/A | N45: N/A | O45: N/A | P45: N/A | Q45: N/A | R45: N/A | S45: N/A | T45: N/A | U45: N/A | V45: N/A | W45: N/A | X45: N/A | Y45: N/A | Z45: N/A | AA45: N/A | BA45: Improved water source available when needed | BB45: Yes | BC45: N/A | BD45: N/A | BE45: N/A | BF45: N/A | BG45: N/A | BH45: N/A | BI45: N/A | BJ45: N/A | BK45: N/A | BL45: N/A | BM45: N/A | BN45: N/A | BO45: N/A | BP45: N/A | BQ45: N/A | BR45: N/A | BS45: N/A | BT45: N/A | BU45: N/A | BV45: N/A | BW45: N/A | BX45: N/A | BY45: N/A | BZ45: N/A | CA45: N/A
B46: No | C46: N/A | D46: N/A | E46: N/A | F46: N/A | G46: N/A | H46: N/A | I46: N/A | J46: N/A | K46: N/A | L46: N/A | M46: N/A | N46: N/A | O46: N/A | P46: N/A | Q46: N/A | R46: N/A | S46: N/A | T46: N/A | U46: N/A | V46: N/A | W46: N/A | X46: N/A | Y46: N/A | Z46: N/A | AA46: N/A | BB46: No | BC46: N/A | BD46: N/A | BE46: N/A | BF46: N/A | BG46: N/A | BH46: N/A | BI46: N/A | BJ46: N/A | BK46: N/A | BL46: N/A | BM46: N/A | BN46: N/A | BO46: N/A | BP46: N/A | BQ46: N/A | BR46: N/A | BS46: N/A | BT46: N/A | BU46: N/A | BV46: N/A | BW46: N/A | BX46: N/A | BY46: N/A | BZ46: N/A | CA46: N/A
A47: Microbiological quality at point of collection | B47: Not contaminated (No E. coli in 100 mL) | C47: N/A | D47: N/A | E47: N/A | F47: N/A | G47: N/A | H47: N/A | I47: N/A | J47: N/A | K47: N/A | L47: N/A | M47: N/A | N47: N/A | O47: N/A | P47: N/A | Q47: N/A | R47: N/A | S47: N/A | T47: N/A | U47: N/A | V47: N/A | W47: N/A | X47: N/A | Y47: N/A | Z47: N/A | AA47: N/A | BA47: Microbiological quality at point of collection | BB47: Not contaminated (No E. coli in 100 mL) | BC47: N/A | BD47: N/A | BE47: N/A | BF47: N/A | BG47: N/A | BH47: N/A | BI47: N/A | BJ47: N/A | BK47: N/A | BL47: N/A | BM47: N/A | BN47: N/A | BO47: N/A | BP47: N/A | BQ47: N/A | BR47: N/A | BS47: N/A | BT47: N/A | BU47: N/A | BV47: N/A | BW47: N/A | BX47: N/A | BY47: N/A | BZ47: N/A | CA47: N/A
B48: Contaminated (E. coli detected in 100 mL) | C48: N/A | D48: N/A | E48: N/A | F48: N/A | G48: N/A | H48: N/A | I48: N/A | J48: N/A | K48: N/A | L48: N/A | M48: N/A | N48: N/A | O48: N/A | P48: N/A | Q48: N/A | R48: N/A | S48: N/A | T48: N/A | U48: N/A | V48: N/A | W48: N/A | X48: N/A | Y48: N/A | Z48: N/A | AA48: N/A | BB48: Contaminated (E. coli detected in 100 mL) | BC48: N/A | BD48: N/A | BE48: N/A | BF48: N/A | BG48: N/A | BH48: N/A | BI48: N/A | BJ48: N/A | BK48: N/A | BL48: N/A | BM48: N/A | BN48: N/A | BO48: N/A | BP48: N/A | BQ48: N/A | BR48: N/A | BS48: N/A | BT48: N/A | BU48: N/A | BV48: N/A | BW48: N/A | BX48: N/A | BY48: N/A | BZ48: N/A | CA48: N/A
B49: Highly contaminated (>100 CFU/100 mL) | C49: N/A | D49: N/A | E49: N/A | F49: N/A | G49: N/A | H49: N/A | I49: N/A | J49: N/A | K49: N/A | L49: N/A | M49: N/A | N49: N/A | O49: N/A | P49: N/A | Q49: N/A | R49: N/A | S49: N/A | T49: N/A | U49: N/A | V49: N/A | W49: N/A | X49: N/A | Y49: N/A | Z49: N/A | AA49: N/A | BB49: Highly contaminated (>100 CFU/100 mL) | BC49: N/A | BD49: N/A | BE49: N/A | BF49: N/A | BG49: N/A | BH49: N/A | BI49: N/A | BJ49: N/A | BK49: N/A | BL49: N/A | BM49: N/A | BN49: N/A | BO49: N/A | BP49: N/A | BQ49: N/A | BR49: N/A | BS49: N/A | BT49: N/A | BU49: N/A | BV49: N/A | BW49: N/A | BX49: N/A | BY49: N/A | BZ49: N/A | CA49: N/A
A50: Microbiological quality of improved water sources at point of collection | B50: Not contaminated (No E. coli in 100 mL) | C50: N/A | D50: N/A | E50: N/A | F50: N/A | G50: N/A | H50: N/A | I50: N/A | J50: N/A | K50: N/A | L50: N/A | M50: N/A | N50: N/A | O50: N/A | P50: N/A | Q50: N/A | R50: N/A | S50: N/A | T50: N/A | U50: N/A | V50: N/A | W50: N/A | X50: N/A | Y50: N/A | Z50: N/A | AA50: N/A | BA50: Microbiological quality of improved water sources at point of collection | BB50: Not contaminated (No E. coli in 100 mL) | BC50: N/A | BD50: N/A | BE50: N/A | BF50: N/A | BG50: N/A | BH50: N/A | BI50: N/A | BJ50: N/A | BK50: N/A | BL50: N/A | BM50: N/A | BN50: N/A | BO50: N/A | BP50: N/A | BQ50: N/A | BR50: N/A | BS50: N/A | BT50: N/A | BU50: N/A | BV50: N/A | BW50: N/A | BX50: N/A | BY50: N/A | BZ50: N/A | CA50: N/A
B51: Contaminated (E. coli detected in 100 mL) | C51: N/A | D51: N/A | E51: N/A | F51: N/A | G51: N/A | H51: N/A | I51: N/A | J51: N/A | K51: N/A | L51: N/A | M51: N/A | N51: N/A | O51: N/A | P51: N/A | Q51: N/A | R51: N/A | S51: N/A | T51: N/A | U51: N/A | V51: N/A | W51: N/A | X51: N/A | Y51: N/A | Z51: N/A | AA51: N/A | BB51: Contaminated (E. coli detected in 100 mL) | BC51: N/A | BD51: N/A | BE51: N/A | BF51: N/A | BG51: N/A | BH51: N/A | BI51: N/A | BJ51: N/A | BK51: N/A | BL51: N/A | BM51: N/A | BN51: N/A | BO51: N/A | BP51: N/A | BQ51: N/A | BR51: N/A | BS51: N/A | BT51: N/A | BU51: N/A | BV51: N/A | BW51: N/A | BX51: N/A | BY51: N/A | BZ51: N/A | CA51: N/A
B52: Highly contaminated (>100 CFU/100 mL) | C52: N/A | D52: N/A | E52: N/A | F52: N/A | G52: N/A | H52: N/A | I52: N/A | J52: N/A | K52: N/A | L52: N/A | M52: N/A | N52: N/A | O52: N/A | P52: N/A | Q52: N/A | R52: N/A | S52: N/A | T52: N/A | U52: N/A | V52: N/A | W52: N/A | X52: N/A | Y52: N/A | Z52: N/A | AA52: N/A | BB52: Highly contaminated (>100 CFU/100 mL) | BC52: N/A | BD52: N/A | BE52: N/A | BF52: N/A | BG52: N/A | BH52: N/A | BI52: N/A | BJ52: N/A | BK52: N/A | BL52: N/A | BM52: N/A | BN52: N/A | BO52: N/A | BP52: N/A | BQ52: N/A | BR52: N/A | BS52: N/A | BT52: N/A | BU52: N/A | BV52: N/A | BW52: N/A | BX52: N/A | BY52: N/A | BZ52: N/A | CA52: N/A
A53: Microbiological quality of piped on premises at point of collection | B53: Not contaminated (No E. coli in 100 mL) | C53: N/A | D53: N/A | E53: N/A | F53: N/A | G53: N/A | H53: N/A | I53: N/A | J53: N/A | K53: N/A | L53: N/A | M53: N/A | N53: N/A | O53: N/A | P53: N/A | Q53: N/A | R53: N/A | S53: N/A | T53: N/A | U53: N/A | V53: N/A | W53: N/A | X53: N/A | Y53: N/A | Z53: N/A | AA53: N/A | BA53: Microbiological quality of piped on premises at point of collection | BB53: Not contaminated (No E. coli in 100 mL) | BC53: N/A | BD53: N/A | BE53: N/A | BF53: N/A | BG53: N/A | BH53: N/A | BI53: N/A | BJ53: N/A | BK53: N/A | BL53: N/A | BM53: N/A | BN53: N/A | BO53: N/A | BP53: N/A | BQ53: N/A | BR53: N/A | BS53: N/A | BT53: N/A | BU53: N/A | BV53: N/A | BW53: N/A | BX53: N/A | BY53: N/A | BZ53: N/A | CA53: N/A
B54: Contaminated (E. coli detected in 100 mL) | C54: N/A | D54: N/A | E54: N/A | F54: N/A | G54: N/A | H54: N/A | I54: N/A | J54: N/A | K54: N/A | L54: N/A | M54: N/A | N54: N/A | O54: N/A | P54: N/A | Q54: N/A | R54: N/A | S54: N/A | T54: N/A | U54: N/A | V54: N/A | W54: N/A | X54: N/A | Y54: N/A | Z54: N/A | AA54: N/A | BB54: Contaminated (E. coli detected in 100 mL) | BC54: N/A | BD54: N/A | BE54: N/A | BF54: N/A | BG54: N/A | BH54: N/A | BI54: N/A | BJ54: N/A | BK54: N/A | BL54: N/A | BM54: N/A | BN54: N/A | BO54: N/A | BP54: N/A | BQ54: N/A | BR54: N/A | BS54: N/A | BT54: N/A | BU54: N/A | BV54: N/A | BW54: N/A | BX54: N/A | BY54: N/A | BZ54: N/A | CA54: N/A
B55: Highly contaminated (>100 CFU/100 mL) | C55: N/A | D55: N/A | E55: N/A | F55: N/A | G55: N/A | H55: N/A | I55: N/A | J55: N/A | K55: N/A | L55: N/A | M55: N/A | N55: N/A | O55: N/A | P55: N/A | Q55: N/A | R55: N/A | S55: N/A | T55: N/A | U55: N/A | V55: N/A | W55: N/A | X55: N/A | Y55: N/A | Z55: N/A | AA55: N/A | BB55: Highly contaminated (>100 CFU/100 mL) | BC55: N/A | BD55: N/A | BE55: N/A | BF55: N/A | BG55: N/A | BH55: N/A | BI55: N/A | BJ55: N/A | BK55: N/A | BL55: N/A | BM55: N/A | BN55: N/A | BO55: N/A | BP55: N/A | BQ55: N/A | BR55: N/A | BS55: N/A | BT55: N/A | BU55: N/A | BV55: N/A | BW55: N/A | BX55: N/A | BY55: N/A | BZ55: N/A | CA55: N/A
C56: NATIONAL wealth index quintile | H56: URBAN wealth index quintile | M56: RURAL wealth index quintile | R56: SUB-REGIONS: | BA56: Raw numbers of respondents: | BB56: Use of drinking water sources | BC56: NATIONAL wealth index quintile | BH56: URBAN wealth index quintile | BM56: RURAL wealth index quintile | BR56: SUB-REGIONS:
A57: Percentage based on weighted population | C57: Poorest | D57: Poor | E57: Middle | F57: Rich | G57: Richest | H57: Poorest | I57: Poor | J57: Middle | K57: Rich | L57: Richest | M57: Poorest | N57: Poor | O57: Middle | P57: Rich | Q57: Richest | R57: Achara | S57: Guria | T57: ImereTi, Racha | U57: Kakheti | V57: Mtskheta-mtianeti | W57: Qvemo qartli | X57: Samegrelo | Y57: Samtskhe-javakheti | Z57: Sida qartli | AA57: Tbilisi | BA57: Water data, raw numbers (weighted) | BC57: Poorest | BD57: Poor | BE57: Middle | BF57: Rich | BG57: Richest | BH57: Poorest | BI57: Poor | BJ57: Middle | BK57: Rich | BL57: Richest | BM57: Poorest | BN57: Poor | BO57: Middle | BP57: Rich | BQ57: Richest | BR57: Achara | BS57: Guria | BT57: ImereTi, Racha | BU57: Kakheti | BV57: Mtskheta-mtianeti | BW57: Qvemo qartli | BX57: Samegrelo | BY57: Samtskhe-javakheti | BZ57: Sida qartli | CA57: Tbilisi
A58: What is the main source of drinking water for members of your household? | B58: Piped water (piped into dwelling) | C58: 11.27561416 | D58: 22.25008291 | E58: 55.06578098 | F58: 86.540238 | G58: 99.1008005 | H58: 51.92351048 | I58: 78.69133006 | J58: 97.99098952 | K58: 98.95404711 | L58: 99.29491578 | M58: 7.112437195 | N58: 14.12957076 | O58: 18.74855306 | P58: 28.38217758 | Q58: 45.71878489 | R58: 80.07765693 | S58: 32.48315902 | T58: 34.42898273 | U58: 36.33662426 | V58: 31.32797745 | W58: 37.86556944 | X58: 22.44772949 | Y58: 44.34790377 | Z58: 33.07202691 | AA58: 95.26223558
B59: Piped water (piped into compound, yard or plot) | C59: 33.74802157 | D59: 31.32103432 | E59: 19.05817852 | F59: 6.752309558 | G59: 0.6765997416 | H59: 18.37600098 | I59: 12.58397734 | J59: 0.7959026747 | K59: 0.6136315693 | L59: 0.7050842206 | M59: 35.90035083 | N59: 33.20139161 | O59: 34.43552252 | P59: 27.05966508 | Q59: 22.32061439 | R59: 13.25231412 | S59: 11.71421355 | T59: 20.13529795 | U59: 43.03773932 | V59: 31.97714999 | W59: 27.40045148 | X59: 7.315808657 | Y59: 43.17071662 | Z59: 24.95391349 | AA59: 4.737764419
B60: Piped water (piped to neighbor) | C60: 3.293614839 | D60: 1.195486989 | E60: 1.341886339 | F60: 0 | G60: 0 | H60: 0.2472539772 | I60: 0 | J60: 0 | K60: 0 | L60: 0 | M60: 4.986934442 | N60: 2.159928245 | O60: 1.230520823 | P60: 0.9088535842 | Q60: 2.403115535 | R60: 1.374531625 | S60: 2.760793049 | T60: 0.8175644266 | U60: 1.999755149 | V60: 3.418019565 | W60: 1.246179182 | X60: 0.7271459895 | Y60: 5.987504285 | Z60: 1.225189211 | AA60: 0
B61: Piped water (public tap/standpipe) | C61: 10.28025383 | D61: 6.773520342 | E61: 2.187678687 | F61: 0.5211895228 | G61: 0 | H61: 0.7143170435 | I61: 0.6535185074 | J61: 0.2459168015 | K61: 0 | L61: 0 | M61: 10.21708791 | N61: 11.43988686 | O61: 8.696486388 | P61: 4.772530446 | Q61: 3.687275684 | R61: 0 | S61: 3.628043562 | T61: 2.67920187 | U61: 11.31560686 | V61: 5.331081531 | W61: 12.31067747 | X61: 1.147673187 | Y61: 4.846088096 | Z61: 9.781499501 | AA61: 0
B62: Tube well, borehole | C62: 7.019807203 | D62: 8.629521539 | E62: 5.654698375 | F62: 1.875460412 | G62: 0 | H62: 10.50678276 | I62: 2.254149341 | J62: 0 | K62: 0 | L62: 0 | M62: 5.979670158 | N62: 6.919424367 | O62: 8.023008462 | P62: 8.163070398 | Q62: 5.019404885 | R62: 0.3795819586 | S62: 12.68184479 | T62: 6.749985863 | U62: 5.116938137 | V62: 3.84488189 | W62: 14.60436227 | X62: 6.008715396 | Y62: 0 | Z62: 5.96501314 | AA62: 0
B63: Protected well | C63: 25.22502868 | D63: 24.89444556 | E63: 13.79660462 | F63: 3.922168737 | G63: 0 | H63: 17.27471603 | I63: 5.288982261 | J63: 0.7338829634 | K63: 0 | L63: 0 | M63: 23.96766697 | N63: 24.41006299 | O63: 23.28113238 | P63: 25.45174902 | Q63: 17.46215965 | R63: 0 | S63: 26.67107585 | T63: 27.21270739 | U63: 0.6448623778 | V63: 14.19961958 | W63: 3.487824505 | X63: 58.28091242 | Y63: 1.647787235 | Z63: 21.27761245 | AA63: 0
B64: Unprotected well | C64: 1.581428611 | D64: 0.9956227786 | E64: 1.227359641 | F64: 0.1288711366 | G64: 0.1032815334 | H64: 0.2089777621 | I64: 0.2523931348 | J64: 0 | K64: 0.200587857 | L64: 0 | M64: 1.730466958 | N64: 1.647789343 | O64: 1.433978832 | P64: 1.056805746 | Q64: 1.706667588 | R64: 0 | S64: 2.722750965 | T64: 2.260296609 | U64: 0 | V64: 0.7135079294 | W64: 0 | X64: 2.585154025 | Y64: 0 | Z64: 0.62788473 | AA64: 0
B65: Protected srping | C65: 4.515398973 | D65: 2.946707746 | E65: 1.345404347 | F65: 0.2597626355 | G65: 0.1193182251 | H65: 0.7484409671 | I65: 0.2756493483 | J65: 0.2333080373 | K65: 0.2317334599 | L65: 0 | M65: 6.154107625 | N65: 3.053561731 | O65: 3.260946665 | P65: 3.205355947 | Q65: 1.587093615 | R65: 4.381375294 | S65: 6.924957986 | T65: 4.162939515 | U65: 0 | V65: 1.504576922 | W65: 1.727036252 | X65: 1.420382791 | Y65: 0 | Z65: 2.113547181 | AA65: 0
B66: Unprotected spring | C66: 1.642022458 | D66: 0.9430176276 | E66: 0.276067339 | F66: 0 | G66: 0 | H66: 0 | I66: 0 | J66: 0 | K66: 0 | L66: 0 | M66: 2.89379256 | N66: 1.183448791 | O66: 0.8898508646 | P66: 0.8961440879 | Q66: 0 | R66: 0 | S66: 0.4131612177 | T66: 1.072511961 | U66: 0 | V66: 7.68318514 | W66: 1.141082059 | X66: 0.06647804428 | Y66: 0 | Z66: 0.9833133836 | AA66: 0
B67: Rainwater collection | C67: 0.2293270475 | D67: 0 | E67: 0 | F67: 0 | G67: 0 | H67: 0 | I67: 0 | J67: 0 | K67: 0 | L67: 0 | M67: 0 | N67: 0.4712446796 | O67: 0 | P67: 0 | Q67: 0 | R67: 0.5345400764 | S67: 0 | T67: 0 | U67: 0 | V67: 0 | W67: 0 | X67: 0 | Y67: 0 | Z67: 0 | AA67: 0
B68: Tanker trucker | C68: 0.591833022 | D68: 0 | E68: 0.04634115806 | F68: 0 | G68: 0 | H68: 0 | I68: 0 | J68: 0 | K68: 0 | L68: 0 | M68: 0.4608112564 | N68: 0.7539992703 | O68: 0 | P68: 0 | Q68: 0.09488375588 | R68: 0 | S68: 0 | T68: 0 | U68: 1.129742879 | V68: 0 | W68: 0.2168173354 | X68: 0 | Y68: 0 | Z68: 0 | AA68: 0
B69: Carts with small tank/drum | C69: 0.09747522779 | D69: 0 | E69: 0 | F69: 0 | G69: 0 | H69: 0 | I69: 0 | J69: 0 | K69: 0 | L69: 0 | M69: 0.1997176175 | N69: 0 | O69: 0 | P69: 0 | Q69: 0 | R69: 0 | S69: 0 | T69: 0 | U69: 0.2074546166 | V69: 0 | W69: 0 | X69: 0 | Y69: 0 | Z69: 0 | AA69: 0
B70: Surface water(river, stream, dam, lake, pond, canal, irrigation channel) | C70: 0.4514367674 | D70: 0 | E70: 0 | F70: 0 | G70: 0 | H70: 0 | I70: 0 | J70: 0 | K70: 0 | L70: 0 | M70: 0.2970976772 | N70: 0.6296913529 | O70: 0 | P70: 0 | Q70: 0 | R70: 0 | S70: 0 | T70: 0.4805116838 | U70: 0 | V70: 0 | W70: 0 | X70: 0 | Y70: 0 | Z70: 0 | AA70: 0
B71: Other | C71: 0.04873761389 | D71: 0.0505601898 | E71: 0 | F71: 0 | G71: 0 | H71: 0 | I71: 0 | J71: 0 | K71: 0 | L71: 0 | M71: 0.09985880873 | N71: 0 | O71: 0 | P71: 0.103648109 | Q71: 0 | R71: 0 | S71: 0 | T71: 0 | U71: 0.2112763959 | V71: 0 | W71: 0 | X71: 0 | Y71: 0 | Z71: 0 | AA71: 0
A108: =A1026 -> Georgia
A109: =A1034 -> 2013
A110: Use of sanitation facilities
A111: by wealth quintile and sub-national region
A112: Notes:
A113: WHO/UNICEF JMP customised wealth index excludes water,
A114: sanitation and hygiene assets.
A115: Survey used for analysis: | B115: =A1025 -> WMS13
A116: =B1030 -> 
A117: =B1029 -> Ratio of Shared improved based on: | B117: MICS05
A120: Use of sanitation facilities | C120: NATIONAL wealth index quintile | H120: URBAN wealth index quintile | M120: RURAL wealth index quintile | R120: SUB-REGIONS: | BA120: Raw numbers of respondents: | BB120: Use of sanitation facilities | BC120: NATIONAL wealth index quintile | BH120: URBAN wealth index quintile | BM120: RURAL wealth index quintile | BR120: SUB-REGIONS:
A121: Weighted percentage (used in graphs) | C121: Poorest | D121: Poor | E121: Middle | F121: Rich | G121: Richest | H121: Poorest | I121: Poor | J121: Middle | K121: Rich | L121: Richest | M121: Poorest | N121: Poor | O121: Middle | P121: Rich | Q121: Richest | R121: Achara | S121: Guria | T121: ImereTi, Racha | U121: Kakheti | V121: Mtskheta-mtianeti | W121: Qvemo qartli | X121: Samegrelo | Y121: Samtskhe-javakheti | Z121: Sida qartli | AA121: Tbilisi | BA121: Sanitation data, raw numbers (weighted) | BC121: Poorest | BD121: Poor | BE121: Middle | BF121: Rich | BG121: Richest | BH121: Poorest | BI121: Poor | BJ121: Middle | BK121: Rich | BL121: Richest | BM121: Poorest | BN121: Poor | BO121: Middle | BP121: Rich | BQ121: Richest | BR121: Achara | BS121: Guria | BT121: ImereTi, Racha | BU121: Kakheti | BV121: Mtskheta-mtianeti | BW121: Qvemo qartli | BX121: Samegrelo | BY121: Samtskhe-javakheti | BZ121: Sida qartli | CA121: Tbilisi
